Workbook

Sheet Index
B1: Massachusetts Department of Elementary and Secondary Education
B2: FY14 Charter School End of Year Financial Report Summary
B3: Last Updated: May 2015
B5: Data Context
B6: This data was collected via the FY2014 Charter School End of Year Financial Report (14CSEOYFR) as well as SIMS and EPIMS databases.
B8: Technical Tips
B9: We recommend that you save this workbook to your computer before proceeding, then leave this browser, and open the workbook using EXCEL or My Computer. If you get a "macros not enabled" or similar macro security error message, access the various sheets manually using the tabs at the bottom of the screen. To enable macros, use the "Tools\Macro\Security" commands to re-set the macro security level to "low". Then save the file, file close, and re-open the file.
B11: Instructions for Viewing Data
B12: Use the drop-down menu to select a charter school that was operating in FY14 or a statewide charter summary total (location in FY14 in parenthesis) [Type of charter school in brackets: C = Commonwealth, HM = Horace Mann]. The charter school's location in FY14 is provided in parenthesis. Then use any of the three links below (or click the corresponding worksheet) to view specific financial data.
C15: =VLOOKUP(E15, CSORDER, 2, FALSE) -> Abby Kelley Foster Charter Public School | D15: =VLOOKUP(E15, CSORDER, 3, FALSE) -> 445 | E15: 2
B18: 1. Balance Sheet (for selected charter school or total)
B19: 2. Income Statement (for selected charter school or total)
B20: 3. Schedule of Functional Expenses (for selected charter school or total)
B22: In addition, statewide summary data is available for the following:
B23: 4. Expenditures Per Pupil (Summary By Function)
B24: 5. Average Teacher Salaries (summary)
B26: For researchers, the following raw data sets are available:
B27: BAL14_raw (Balance Sheet Data)
B28: INC14_raw (Income Statement Data)
B29: FE14_raw (Schedule of Functional Expenses Data)
B30: SIMS14_raw (Student FTE Enrollment Data)
B31: EPIMS14_raw (Teacher FTE Enrollment Data)

Sheet 1. Balance
B1: NAME: | C1: =SCHOOLNAME -> Abby Kelley Foster Charter Public School | F1: LEA: | G1: =LEA -> 445
A3: Statement of Net Assets
A4: For the Year Ended June 30, 2014
E6: =C1 -> Abby Kelley Foster Charter Public School | F6: ABC Charter School Foundation (Component Unit) | G6: 2014 Total (Memorandum Only) | I6: Line | J6: Rec. Acct# | L6: Instructions/Notes
C7: ASSETS
C8: Current Assets
A9: 1 | C9: Cash and Cash Equivalents | E9: =VLOOKUP($G$1&$A9, BAL, 6,FALSE) -> 2197174 | F9: =VLOOKUP($G$1&$A9, BAL, 7,FALSE) -> 18448 | G9: =VLOOKUP($G$1&$A9, BAL, 8,FALSE) -> 2215622 | I9: =A9 -> 1 | J9: 10XX | L9: Assets that are cash or can be converted into cash immediately.
A10: 2 | C10: Accounts Receivable net of doubtful accounts | E10: =VLOOKUP($G$1&$A10, BAL, 6,FALSE) -> 4925445 | F10: 0 | G10: 4925445 | I10: =A10 -> 2 | J10: 11XX | L10: A school's claim for money, goods and services from customers and other entities.
A11: 3 | C11: Grants Receivable - State | E11: 0 | F11: 0 | G11: 0 | I11: 3 | J11: 11XX | L11: Claims for goods and services provided under state awarded contracts.
A12: 4 | C12: Grants Receivable - Federal | E12: 0 | F12: 0 | G12: 0 | I12: 4 | J12: 11XX | L12: Claims for goods and services provided under federal awarded contracts.
A13: 5 | C13: Grants Receivable - Private | E13: 0 | F13: 0 | G13: 0 | I13: 5 | J13: 11XX | L13: Claims for goods and services provided from private awards received.
A14: 6 | C14: Contributions Receivable | E14: 0 | F14: 0 | G14: 0 | I14: 6 | J14: 11XX | L14: Unconditional promises to give by private individuals or corporations.
A15: 7 | C15: Due from related parties | E15: 6078 | F15: 0 | G15: 6078 | I15: 7 | J15: 12XX | L15: Amounts to be received from related parties.
A16: 8 | C16: Prepaid Expenses / Inventory | E16: 94378 | F16: 0 | G16: 94378 | I16: 8 | J16: 13XX | L16: An expense paid but not incurred as of year end. Also include short-term inventories of supplies such as uniforms.
A17: 9 | C17: Short-Term Investments | E17: 0 | F17: 0 | G17: 0 | I17: 9 | J17: 14XX | L17: Readily marketable security for which the intention of the school is the conversion to cash in the short term.
A18: 10 | C18: Deposit (Security, Other) | E18: 0 | F18: 0 | G18: 0 | I18: 10 | J18: 15XX | L18: Security deposits for leases, or other deposits.
A19: 11 | C19: Restricted Current Assets | E19: 0 | F19: 0 | G19: 0 | I19: 11 | J19: 15XX | L19: Current assets restricted by external sources for future purchases.
A20: 12 | C20: TOTAL CURRENT ASSETS | E20: 7223075 | F20: 18448 | G20: 7241523 | I20: 12 | J20: NA | L20: Calculates automatically.
C21: Noncurrent Assets
C22: Capital Assets
A23: 13 | C23: - Land and Buildings | E23: =VLOOKUP($G$1&$A23, BAL, 6,FALSE) -> 46020812 | F23: =VLOOKUP($G$1&$A23, BAL, 7,FALSE) -> 0 | G23: =VLOOKUP($G$1&$A23, BAL, 8,FALSE) -> 46020812 | I23: =A23 -> 13 | J23: 15XX | L23: Value of land and building inclusive of remodeling, reconditioning, or altering the building purchased to make it available for the purpose for which it was acquired, including construction in progress.
A24: 14 | C24: - Building/Leasehold Improvement | E24: 0 | F24: 0 | G24: 0 | I24: 14 | J24: 15XX | L24: Value of improvements on leased property that revert back to the owners upon termination of the lease.
A25: 15 | C25: - Furniture and Equipment | E25: 1938403 | F25: 0 | G25: 1938403 | I25: 15 | J25: 15XX | L25: Value of furniture and equipment that meet the school's capitalization policy.
A26: 16 | C26: - Less Accumulated Depreciation | E26: -9317040 | F26: 0 | G26: -9317040 | I26: 16 | J26: 16XX | L26: The aggregate, at a given point in time, of the depreciation charges made during the useful life of the fixed asset. Enter as a negative number.
A27: 17 | C27: Net Capital Assets | E27: 38642175 | F27: 0 | G27: 38642175 | I27: 17 | J27: NA | L27: Calculates automatically.
A28: 18 | C28: Restricted Noncurrent Assets | E28: 3018678 | F28: 0 | G28: 3018678 | I28: 18 | J28: 10XX | L28: Noncurrent assets restricted by external sources for future purchases.
A29: 19 | C29: Long-Term Investments | E29: 0 | F29: 0 | G29: 0 | I29: 19 | J29: 14XX | L29: Investments that do not meet the criteria of "Short-Term Investments" above.
A30: 20 | C30: Building Acquisition / Financing Costs / Deferred Expenses | E30: 0 | F30: 0 | G30: 0 | I30: 20 | J30: 14XX | L30: Costs related to building acquisition, construction, and/or financing costs which are amortized. Also include long-term pre-paid leases or expenses which are amortized.
A31: 21 | C31: Long-Term Grants / Contributions Receivable | E31: 0 | F31: 0 | G31: 0 | I31: 21 | J31: 14XX | L31: Please enter a brief description in the highlighted green cell, if applicable.
A32: 22 | C32: TOTAL NONCURRENT ASSETS | E32: 41660853 | F32: 0 | G32: 41660853 | I32: 22 | J32: NA | L32: Calculates automatically.
A33: 23 | C33: TOTAL ASSETS | E33: 48883928 | F33: 18448 | G33: 48902376 | I33: 23 | J33: NA | L33: Calculates automatically.
C35: LIABILITIES AND NET ASSETS
C36: Current Liabilities
A37: 24 | C37: Accounts Payable | E37: =VLOOKUP($G$1&$A37, BAL, 6,FALSE) -> 139516 | F37: =VLOOKUP($G$1&$A37, BAL, 7,FALSE) -> 0 | G37: =VLOOKUP($G$1&$A37, BAL, 8,FALSE) -> 139516 | I37: =A37 -> 24 | J37: 20XX | L37: Obligations for goods or services purchased for which invoices have been received.
A38: 25 | C38: Accrued Expenses / Accrued Payroll | E38: 1430821 | F38: 0 | G38: 1430821 | I38: 25 | J38: 21XX | L38: An unpaid expense incurred that has not been paid as of the end of the period, including accrued payroll.
A39: 26 | C39: Deferred Revenue | E39: 0 | F39: 0 | G39: 0 | I39: 26 | J39: 22XX | L39: Cash received for services not performed (i.e., grant funds received that were not expended).
A40: 27 | C40: Due to related parties | E40: 0 | F40: 6078 | G40: 6078 | I40: 27 | J40: 23XX | L40: Amounts due to related parties such as the school's component unit.
A41: 28 | C41: Current Debt Payable | E41: 1043519 | F41: 0 | G41: 1043519 | I41: 28 | J41: 24XX | L41: Debt obligations due within one year of financial statement date.
A42: 29 | C42: Current Lease Obligations Payable | E42: 0 | F42: 0 | G42: 0 | I42: 29 | J42: 24XX | L42: Lease obligations due within one year of financial statement date.
A43: 30 | C43: TOTAL CURRENT LIABILITIES | E43: 2613856 | F43: 6078 | G43: 2619934 | I43: 30 | J43: NA | L43: Calculates automatically.
C44: Noncurrent Liabilities
A45: 31 | C45: Noncurrent Lease Obligations | E45: =VLOOKUP($G$1&$A45, BAL, 6,FALSE) -> 0 | F45: =VLOOKUP($G$1&$A45, BAL, 7,FALSE) -> 0 | G45: =VLOOKUP($G$1&$A45, BAL, 8,FALSE) -> 0 | I45: =A45 -> 31 | J45: 26XX | L45: Lease obligations due after one year of financial statement date.
A46: 32 | C46: Long-Term Debt | E46: =VLOOKUP($G$1&$A46, BAL, 6,FALSE) -> 27313958 | F46: =VLOOKUP($G$1&$A46, BAL, 7,FALSE) -> 0 | G46: =VLOOKUP($G$1&$A46, BAL, 8,FALSE) -> 27313958 | I46: =A46 -> 32 | J46: 26XX | L46: Debt obligations due after one year of financial statement date.
A47: 33 | C47: Deferred Revenue | E47: =VLOOKUP($G$1&$A47, BAL, 6,FALSE) -> 0 | F47: =VLOOKUP($G$1&$A47, BAL, 7,FALSE) -> 0 | G47: =VLOOKUP($G$1&$A47, BAL, 8,FALSE) -> 0 | I47: =A47 -> 33 | J47: 2XXX | L47: Cash received for services not performed (i.e., grant funds received that were not expended).
A48: 34 | C48: TOTAL NONCURRENT LIABILITIES | E48: =VLOOKUP($G$1&$A48, BAL, 6,FALSE) -> 27313958 | F48: =VLOOKUP($G$1&$A48, BAL, 7,FALSE) -> 0 | G48: =VLOOKUP($G$1&$A48, BAL, 8,FALSE) -> 27313958 | I48: =A48 -> 34 | J48: NA | L48: Calculates automatically.
A49: 35 | C49: TOTAL LIABILITIES | E49: =VLOOKUP($G$1&$A49, BAL, 6,FALSE) -> 29927814 | F49: =VLOOKUP($G$1&$A49, BAL, 7,FALSE) -> 6078 | G49: =VLOOKUP($G$1&$A49, BAL, 8,FALSE) -> 29933892 | I49: =A49 -> 35 | J49: NA | L49: Calculates automatically.
C51: NET ASSETS
A52: 36 | C52: Investment in capital assets (net of related debt) | E52: =VLOOKUP($G$1&$A52, BAL, 6,FALSE) -> 10284700 | F52: =VLOOKUP($G$1&$A52, BAL, 7,FALSE) -> 0 | G52: =VLOOKUP($G$1&$A52, BAL, 8,FALSE) -> 10284700 | I52: =A52 -> 36 | J52: 3XXX | L52: Represents capital assets reduced by accumulated depreciation and any outstanding debt used to acquire, construct or improve those assets.
A53: 37 | C53: Temporarily Restricted | E53: 30000 | F53: 0 | G53: 30000 | I53: 37 | J53: 32XX | L53: Net assets that are temporarily restricted by a funder or the school's Board for a specific purpose.
A54: 38 | C54: Permanently Restricted | E54: 0 | F54: 0 | G54: 0 | I54: 38 | J54: 33XX | L54: Net assets that are restricted by an outside agency or person, as contrasted with assets over which the entity has control and discretion. E.g., a donor scholarship fund.
A55: 39 | C55: Unrestricted (non-capital) | E55: 8641414 | F55: 12370 | G55: 8653784 | I55: 39 | J55: 30XX | L55: Net assets that do not meet the definitions of any of the above categories.
A56: 40 | C56: TOTAL NET ASSETS | E56: 18956114 | F56: 12370 | G56: 18968484 | I56: 40 | J56: NA | L56: Calculates automatically.
A57: 41 | C57: TOTAL LIABILITIES AND NET ASSETS | E57: 48883928 | F57: 18448 | G57: 48902376 | I57: 41 | J57: NA | L57: Calculates automatically. MUST RECONCILE WITH LINE 23 (TOTAL ASSETS)

Sheet 2. Income
B1: NAME: | C1: =SCHOOLNAME -> Abby Kelley Foster Charter Public School | F1: LEA: | G1: =LEA -> 445 | M1: =3 -> 3
A3: Statement of Revenues, Expenses, and Changes in Net Assets
A4: ='1. Balance'!A4:I4 -> For the Year Ended June 30, 2014
E6: =C1 -> Abby Kelley Foster Charter Public School | F6: ='1. Balance'!F6 -> ABC Charter School Foundation (Component Unit) | G6: 2014 Total (Memorandum Only) | I6: Line | J6: Rec. Acct# | L6: Instructions/Notes
C7: REVENUES
A8: 1 | C8: Tuition | E8: =VLOOKUP($G$1&$A8, INC, 6,FALSE) -> 17157926 | G8: =VLOOKUP($G$1&$A8, INC, 8,FALSE) -> 17157926 | I8: =A8 -> 1 | J8: 4000 | L8: Total tuition paid to the charter school by either the Commonwealth or sending school district (Horace Mann), inclusive of local transportation and facilities reimbursement embedded in Commonwealth tuition payments. This should include any reimbursements received for local transportation reimbursement, if applicable.
A9: 2a | B9: ^ | C9: Grants - State - passed through ESE | E9: 5217.99 | F9: =VLOOKUP($G$1&$A9, INC, 7,FALSE) -> 0 | G9: 5217.99 | I9: =A9 -> 2a | J9: 41XX | L9: Grants awarded through the ESE.
A10: 2b | B10: ^ | C10: Grants - State - other non-ESE pass-through | E10: 0 | F10: 0 | G10: 0 | I10: =A10 -> 2b | J10: 41XX | L10: Grants awarded directly by the Commonwealth of MA.
A11: 3 | B11: ^ | C11: Grants - Federal - Passed through ESE | E11: 863413 | F11: 0 | G11: 863413 | I11: 3 | J11: 41XX | L11: Grants from federal sources that pass through ESE such as Title I, IDEA, Charter School Start-Up Assistance, etc.
A12: 4 | B12: ^ | C12: Grants - Federal - Direct or other pass-through | E12: 0 | F12: 0 | G12: 0 | I12: 4 | J12: 41XX | L12: Grants from federal sources awarded directly from federal agencies or passed-through other agencies.
A13: 5a | B13: ^ | C13: Grants - Private (restricted) | E13: 0 | F13: 0 | G13: 0 | I13: 5a | J13: 41XX | L13: Grants awarded by private (non-governmental) foundations, corporations, or individuals that are restricted.
A14: 5b | C14: Grants - Private (unrestricted) | E14: 700 | F14: 0 | G14: 700 | I14: 5b | J14: 41XX | L14: Grants awarded by private (non-governmental) foundations, corporations, or individuals that are unrestricted.
A15: 6 | B15: ^ | C15: Nutrition Funding - State | E15: 8565 | G15: 8565 | I15: 6 | J15: 42XX | L15: Funding for nutrition programs is split between the federal and state governments.
A16: 7 | B16: ^ | C16: Nutrition Funding - Federal | E16: 483060 | G16: 483060 | I16: 7 | J16: 42XX | L16: Funding for nutrition programs is split between the federal and state governments.
A17: 8 | C17: Nutrition Funding - Fees | E17: 84110 | G17: 84110 | I17: 8 | J17: 42XX | L17: Fees collected from students for nutrition programs.
A18: 9 | C18: Other Program / Student Activity Fees | E18: 23001.5 | F18: =VLOOKUP($G$1&$A18, INC, 7,FALSE) -> 0 | G18: 23001.5 | I18: 9 | J18: 43XX | L18: Any fees that the school collects for transportation, uniforms, etc.
A19: 10 | C19: Regional Transportation Aid | E19: 42349 | G19: 42349 | I19: =A19 -> 10 | J19: 45XX | L19: Reimbursements from the Commonwealth for regional transportation costs, if applicable.
A20: 11 | C20: Medicaid Reimbursements | E20: 46906.29 | G20: 46906.29 | I20: =A20 -> 11 | J20: 45XX | L20: Reimbursement from Medicaid
A21: 12 | C21: Circuit Breaker Reimbursements | E21: 0 | G21: 0 | I21: =A21 -> 12 | J21: 45XX | L21: Reimbursements from the Commonwealth for high-cost special education students, if applicable.
A22: 13a | C22: Contributions, in-kind, host district | E22: 0 | G22: 0 | I22: 13a | J22: 44XX | L22: Recorded monetary value of in-kind donations for services that would otherwise have been purchased, provided by the school's host district (e.g. transportation, food).
A23: 13b | C23: Contributions, in-kind, other | E23: 158318 | F23: =VLOOKUP($G$1&$A23, INC, 7,FALSE) -> 3530 | G23: 161848 | I23: 13b | J23: 44XX | L23: Recorded monetary value of in-kind donations for services that would otherwise have been purchased, provided by individuals/organizations other than the host district.
A24: 14 | C24: Contributions, from Component Unit (restricted) | E24: 0 | F24: 0 | G24: 0 | I24: 14 | J24: 44XX | L24: Restricted contributions made to the School by the Component Unit
A25: 14b | C25: Contributions, from Component Unit (unrestricted) | E25: 0 | F25: 0 | G25: 0 | I25: 14b | J25: 44XX | L25: Unrestricted contributions made to the School by the Component Unit
A26: 15 | C26: Contributions / Fundraising (restricted) | E26: 0 | F26: 0 | G26: 0 | I26: 15 | J26: 44XX | L26: Restricted donations from individuals, businesses, or corporations.
A27: 15b | C27: Contributions / Fundraising (unrestricted) | E27: 3210 | F27: 49045 | G27: 52255 | I27: 15b | J27: 44XX | L27: Unrestricted donations from individuals, businesses, or corporations.
A28: 16 | C28: Interest / Investment Income (restricted) | E28: 0 | F28: 0 | G28: 0 | I28: 16 | J28: 47XX | L28: Restricted income generated from interest/investments.
A29: 16a | C29: Interest / Investment Income (unrestricted) | E29: 22296 | F29: 0 | G29: 22296 | I29: 16b | J29: 47XX | L29: Unrestricted income generated from interest/investments.
A30: 17 | C30: Rental Income | E30: 11075 | F30: 0 | G30: 11075 | I30: 17 | J30: 46XX | L30: Income generated from rental of space.
A31: 18 | C31: Loan Forgiveness or Other Reimbursement | E31: 0 | F31: 0 | G31: 0 | I31: 18 | J31: 4XXX | L31: Revenue recorded for loan forgiveness or other credit.
A32: 19 | C32: Miscellaneous Income | E32: 4172.51 | F32: 0 | G32: 4172.51 | I32: 19 | J32: 4XXX | L32: Miscellaneous Income.
A33: 20 | C33: TOTAL REVENUES | E33: 18914320.29 | F33: 52575 | G33: 18966895.29 | I33: 20 | J33: NA | L33: Calculates automatically.
B34: ^ | C34: Non-"General Fund" revenue sources
C36: EXPENSES
A37: 21 | C37: ='3. Sch_FuncExp'!C10 -> Administration | E37: =VLOOKUP($G$1&$A37, INC, 6,FALSE) -> 795296.2 | G37: =VLOOKUP($G$1&$A37, INC, 8,FALSE) -> 795296.2 | I37: =A37 -> 21 | J37: NA | L37: Charter School figures will be populated from the Sch_FuncExp sheet.
A38: 22 | C38: ='3. Sch_FuncExp'!C44 -> Instructional Services | E38: 9523503.85 | G38: 9523503.85 | I38: =A38 -> 22 | J38: NA | L38: Charter School figures will be populated from the Sch_FuncExp sheet.
A39: 23 | C39: ='3. Sch_FuncExp'!C80 -> Pupil Services | E39: 2050206.71 | G39: 2050206.71 | I39: 23 | J39: NA | L39: Charter School figures will be populated from the Sch_FuncExp sheet.
A40: 24 | C40: ='3. Sch_FuncExp'!C90 -> Operation & Maintenance of Plant | E40: 1777355.64 | G40: 1777355.64 | I40: 24 | J40: NA | L40: Charter School figures will be populated from the Sch_FuncExp sheet.
A41: 25 | C41: ='3. Sch_FuncExp'!C97 -> Benefits and Other Fixed Charges | E41: 2205294.05 | G41: 2205294.05 | I41: 25 | J41: NA | L41: Charter School figures will be populated from the Sch_FuncExp sheet.
A42: 26 | C42: ='3. Sch_FuncExp'!C104 -> Community Services | E42: 0 | G42: 0 | I42: 26 | J42: NA | L42: Charter School figures will be populated from the Sch_FuncExp sheet.
A43: 27 | C43: Non-Operating Financing Expenses | E43: 2177896.91 | G43: 2177896.91 | I43: =A43 -> 27 | J43: NA | L43: Charter School figures will be populated from the Sch_FuncExp sheet.
A44: 28 | C44: Component Unit Expenses | F44: =VLOOKUP($G$1&$A44, INC, 7,FALSE) -> 40205 | G44: 40205 | I44: =A44 -> 28 | J44: NA | L44: Aggregate operating expenses for the Component Unit.
A45: 29 | C45: Contributions to School | F45: =VLOOKUP($G$1&$A45, INC, 7,FALSE) -> 0 | G45: 0 | I45: =A45 -> 29 | J45: NA | L45: Contributions made by the Component Unit to the School
A46: 30 | C46: TOTAL EXPENSES | E46: =VLOOKUP($G$1&$A46, INC, 6,FALSE) -> 18529553.36 | F46: =VLOOKUP($G$1&$A46, INC, 7,FALSE) -> 40205 | G46: 18569758.36 | I46: 30 | J46: NA | L46: Calculates automatically.
A48: 31 | C48: TOTAL GAIN/(LOSS) | E48: =VLOOKUP($G$1&$A48, INC, 6,FALSE) -> 384766.93 | F48: =VLOOKUP($G$1&$A48, INC, 7,FALSE) -> 12370 | G48: =VLOOKUP($G$1&$A48, INC, 8,FALSE) -> 397136.93 | I48: 31 | J48: NA | L48: Calculates automatically.
A49: 32 | C49: Gain/Loss on Sale of Asset or Lease Transaction | E49: =VLOOKUP($G$1&$A49, INC, 6,FALSE) -> 0 | F49: =VLOOKUP($G$1&$A49, INC, 7,FALSE) -> 0 | G49: =VLOOKUP($G$1&$A49, INC, 8,FALSE) -> 0 | I49: =A49 -> 32 | J49: 5XXX | L49: Gain/Loss recorded on sale of school assets or lease transaction.
A50: 33 | C50: Other Gain/Loss | E50: =VLOOKUP($G$1&$A50, INC, 6,FALSE) -> 0 | F50: =VLOOKUP($G$1&$A50, INC, 7,FALSE) -> 0 | G50: =VLOOKUP($G$1&$A50, INC, 8,FALSE) -> 0 | I50: =A50 -> 33 | J50: 5XXX | L50: Other Gain or Loss that is a non-recurring, unusual occurrence such as a prior-period adjustment
A51: 34 | C51: TOTAL CHANGES IN NET ASSETS: | E51: =VLOOKUP($G$1&$A51, INC, 6,FALSE) -> 384766.93 | F51: =VLOOKUP($G$1&$A51, INC, 7,FALSE) -> 12370 | G51: =VLOOKUP($G$1&$A51, INC, 8,FALSE) -> 397136.93 | I51: =A51 -> 34 | J51: NA | L51: Calculates automatically.
A53: 35 | C53: NET ASSETS AT BEGINNING OF YEAR | E53: =VLOOKUP($G$1&$A53, INC, 6,FALSE) -> 18571348 | F53: =VLOOKUP($G$1&$A53, INC, 7,FALSE) -> 0 | G53: =VLOOKUP($G$1&$A53, INC, 8,FALSE) -> 18571348 | I53: =A53 -> 35 | J53: NA | L53: Please enter values from previous year's audit.
A54: 36 | C54: NET ASSETS AT END OF YEAR | E54: =VLOOKUP($G$1&$A54, INC, 6,FALSE) -> 18956115 | F54: =VLOOKUP($G$1&$A54, INC, 7,FALSE) -> 12370 | G54: =VLOOKUP($G$1&$A54, INC, 8,FALSE) -> 18968485 | I54: =A54 -> 36 | J54: NA | L54: Calculates automatically. MUST RECONCILE WITH BALANCE SHEET LINE 40 (TOTAL NET ASSETS)
E55: ='1. Balance'!E56 -> 18956114 | F55: ='1. Balance'!F56 -> 12370 | G55: ='1. Balance'!G56 -> 18968484

Sheet 3. Sch_FuncExp
B1: NAME: | C1: =SCHOOLNAME -> Abby Kelley Foster Charter Public School | G1: LEA: | H1: =LEA -> 445
A3: Schedule of Functional Expenses
A4: ='1. Balance'!A4:I4 -> For the Year Ended June 30, 2014
E5: "General" Fund
E6: 1 | F6: 2 | G6: 3 | H6: 4 | I6: 5 | J6: 6 | K6: 7
E7: General Education | F7: Special Education | G7: Undistributed | H7: State Grants & Nut. Reimb. | I7: Federal Grants & Nut. Reimb. | J7: Private Grants (Designated) | K7: TOTAL | N7: Rec. | P7: Comments and Notes | Q7: Crosswalk to EOYR, if possible
A8: Line | C8: Functional Category | E8: Expenses | F8: Expenses | G8: Expenses | H8: Expenses | I8: Expenses | J8: Expenses | K8: Expenses | M8: Line | N8: Acct# | P8: For salaried personnel, please provide a full-time equivalency (FTE) total that corresponds to the salary expense reported.
A10: 100 | C10: Administration | G10: =VLOOKUP($H$1&$A10, FE, 8,FALSE) -> 795296.2 | H10: =VLOOKUP($H$1&$A10, FE, 9,FALSE) -> 0 | I10: =VLOOKUP($H$1&$A10, FE, 10,FALSE) -> 0 | J10: =VLOOKUP($H$1&$A10, FE, 11,FALSE) -> 0 | K10: =VLOOKUP($H$1&$A10, FE, 12,FALSE) -> 795296.2 | M10: =A10 -> 100 | N10: NA | P10: =C10&" - Calculates automatically." -> Administration - Calculates automatically. | Q10: 1000 series
A11: 110 | C11: Subtotal - Board of Trustees | G11: 0 | H11: 0 | I11: 0 | J11: 0 | K11: 0 | M11: 110 | N11: NA | P11: Calculates automatically - expenses for the Board of Trustees. | Q11: 1100
A12: 111 | C12: Contracted Services | G12: 0 | H12: 0 | I12: 0 | J12: 0 | K12: 0 | M12: 111 | N12: 53X1 | P12: Contracted professional services, including all related expenses covered by the contract | Q12: 1100
A13: 112 | C13: Travel and other expenses | G13: 0 | H13: 0 | I13: 0 | J13: 0 | K13: 0 | M13: 112 | N13: 57X1 | P13: Travel and other expenses for Board members such as dues, subscriptions and memberships. | Q13: 1100
A14: 120 | C14: Subtotal - School Leaders | G14: 68917.04 | H14: 0 | I14: 0 | J14: 0 | K14: 68917.04 | M14: 120 | N14: NA | P14: Calculates automatically - expenses for the School Leader office. | Q14: 1210, 1220
A15: 121 | C15: Salaries - Professional | G15: 68917.04 | H15: 0 | I15: 0 | J15: 0 | K15: 68917.04 | M15: 121 | N15: 5XX1 | P15: Salaries for non-instructional school-wide administrative personnel such as executive director (Principals and Instructional Leaders should be noted in Instructional Services). | Q15: 1210, 1220
A16: 122 | C16: Contracted Services | G16: 0 | H16: 0 | I16: 0 | J16: 0 | K16: 0 | M16: 122 | N16: 53X1 | P16: Contracted professional services, including all related expenses covered by the contract. | Q16: 1210, 1220
A17: 130 | C17: Subtotal - Business and Finance | G17: 256219.17 | H17: 0 | I17: 0 | J17: 0 | K17: 256219.17 | M17: 130 | N17: NA | P17: Calculates automatically - expenses for the Business and Finance office. | Q17: 1410
A18: 131 | C18: Salaries - Professional | G18: 201198.93 | H18: 0 | I18: 0 | J18: 0 | K18: 201198.93 | M18: 131 | N18: 5XX1 | P18: Salaries for non-instructional school-wide administrative personnel such as business manager, accountant, chief financial officer, etc. | Q18: 1410
A19: 132 | C19: Contracted Services | G19: 55020.24 | H19: 0 | I19: 0 | J19: 0 | K19: 55020.24 | M19: 132 | N19: 53X1 | P19: Contracted professional services, including all related expenses covered by the contract. | Q19: 1410
A20: 140 | C20: Subtotal - Human Resources | G20: 78821.95 | H20: 0 | I20: 0 | J20: 0 | K20: 78821.95 | M20: 140 | N20: NA | P20: Calculates automatically - expenses for the HR office. | Q20: 1420
A21: 141 | C21: Salaries - Professional | G21: 0 | H21: 0 | I21: 0 | J21: 0 | K21: 0 | M21: 141 | N21: 5XX1 | P21: Salaries for non-instructional school-wide administrative personnel such as an HR director. | Q21: 1420
A22: 142 | C22: Contracted Services | G22: 78821.95 | H22: 0 | I22: 0 | J22: 0 | K22: 78821.95 | M22: 142 | N22: 53X1 | P22: Contracted professional services, including all related expenses covered by the contract. | Q22: 1420
A23: 150 | C23: Subtotal - Legal Services | G23: 29359.88 | H23: 0 | I23: 0 | J23: 0 | K23: 29359.88 | M23: 150 | N23: NA | P23: Calculates automatically - expenses for legal representation for the School. | Q23: 1430, 1435
A24: 151 | C24: Salaries - Professional | G24: 0 | H24: 0 | I24: 0 | J24: 0 | K24: 0 | M24: 151 | N24: 5XX1 | P24: Salaries for non-instructional school-wide administrative personnel such as a school attorney. | Q24: 1430, 1435
A25: 152 | C25: Contracted Services | G25: 29359.88 | H25: 0 | I25: 0 | J25: 0 | K25: 29359.88 | M25: 152 | N25: 53X1 | P25: Contracted professional services, including all related expenses covered by the contract. | Q25: 1430, 1435
A26: 160 | C26: Subtotal - Info. Management & Technology | G26: 140994.7 | H26: 0 | I26: 0 | J26: 0 | K26: 140994.7 | M26: 160 | N26: NA | P26: Calculates automatically - expenses that support the data processing needs of the school, including student databases. | Q26: 1450
A27: 161 | C27: Salaries - Professional | G27: 65619.74 | H27: 0 | I27: 0 | J27: 0 | K27: 65619.74 | M27: 161 | N27: 5XX1 | P27: Salaries for non-instructional school-wide administrative personnel such as a network support technician. | Q27: 1450
A28: 162 | C28: Contracted Services | G28: 39348.14 | H28: 0 | I28: 0 | J28: 0 | K28: 39348.14 | M28: 162 | N28: 53X1 | P28: Contracted professional services, including all related expenses covered by the contract. | Q28: 1450
A29: 163 | C29: Supplies and Materials | G29: 26968.16 | H29: 0 | I29: 0 | J29: 0 | K29: 26968.16 | M29: 163 | N29: 54X1 | P29: Materials and items of an expendable nature that are consumed or loses their identity through incorporation into a different/more complex unit/substance. Unit price of less than $5000. | Q29: 1230
A30: 164 | C30: Depreciation for Information Technology | G30: 9058.66 | H30: 0 | I30: 0 | J30: 0 | K30: 9058.66 | M30: 164 | N30: 5701 | P30: Annual depreciation expense for capitalized Information Management and Technology. | Q30: 1450
A31: 170 | C31: Subtotal - Development (Private) | G31: 5607.49 | H31: 0 | I31: 0 | J31: 0 | K31: 5607.49 | M31: 170 | N31: NA | P31: Calculates automatically - expenses related to development, fundraising, and recruitment (private). | Q31: 1230
A32: 170a | C32: Salaries - Professional - Private | G32: 5607.49 | H32: 0 | I32: 0 | J32: 0 | K32: 5607.49 | M32: 170a | N32: 5XX1 | P32: Salaries apportioned to private development personnel (this could be % of a salary). | Q32: 1230
A33: 170b | C33: Contracted Services - Private | G33: 0 | H33: 0 | I33: 0 | J33: 0 | K33: 0 | M33: 170b | N33: 53X1 | P33: Contracts apportioned to professional services for private development (including all related expenses covered by the contract). | Q33: 1230??
A34: 170c | C34: Fundraising - Private | G34: 0 | H34: 0 | I34: 0 | J34: 0 | K34: 0 | M34: 170c | N34: 5891 | P34: Expenses related to private fundraising.
A35: 171 | C35: Subtotal - Development (Public) | G35: 0 | H35: 0 | I35: 0 | J35: 0 | K35: 0 | M35: 171 | N35: NA | P35: Calculates automatically - expenses related to development, fundraising, and recruitment (public).
A36: 171a | C36: Salaries - Professional - Public | G36: 0 | H36: 0 | I36: 0 | J36: 0 | K36: 0 | M36: 171a | N36: 5XX1 | P36: Salaries apportioned to public development personnel (this could be a % of a salary).
A37: 171b | C37: Contracted Services - Public | G37: 0 | H37: 0 | I37: 0 | J37: 0 | K37: 0 | M37: 171b | N37: 53X1 | P37: Contracts apportioned to professional services for public development (including all related expenses covered by the contract).
A38: 180 | C38: Subtotal - Other Administration | G38: 215375.97 | H38: 0 | I38: 0 | J38: 0 | K38: 215375.97 | M38: 180 | N38: NA | P38: Calculates automatically - expenses related to other adminstration. | Q38: 1230
A39: 181 | C39: Salaries - Clerical | G39: 84710.2 | H39: 0 | I39: 0 | J39: 0 | K39: 84710.2 | M39: 181 | N39: 5XX1 | P39: Salaries for administrative support personnel who prepare, transcribe, systematize or preserve communications, records and transactions. | Q39: 1230
A40: 182 | C40: Recruitment/Advertising | G40: 1641 | H40: 0 | I40: 0 | J40: 0 | K40: 1641 | M40: =A40 -> 182 | N40: 58X1 | P40: Recruiting/advertising for students, staff, and board members. | Q40: 1230??
A41: 183 | C41: Travel, Dues, and other expenses | G41: 77767.59 | H41: 0 | I41: 0 | J41: 0 | K41: 77767.59 | M41: 183 | N41: 57X1 | P41: Travel and other expenses for staff and the school such as dues, subscriptions and memberships. | Q41: 1230
A42: 184 | C42: Supplies and Materials | G42: 51257.18 | H42: 0 | I42: 0 | J42: 0 | K42: 51257.18 | M42: 184 | N42: 54X1 | P42: Materials and items of an expendable nature that are consumed or loses their identity through incorporation into a different/more complex unit/substance. Unit price of less than $5000. | Q42: 1230
A44: 200 | C44: Instructional Services | E44: =VLOOKUP($H$1&$A44, FE, 6,FALSE) -> 6710759 | F44: =VLOOKUP($H$1&$A44, FE, 7,FALSE) -> 1006193.83 | G44: =VLOOKUP($H$1&$A44, FE, 8,FALSE) -> 1029487.02 | H44: =VLOOKUP($H$1&$A44, FE, 9,FALSE) -> 5218 | I44: =VLOOKUP($H$1&$A44, FE, 10,FALSE) -> 771846 | J44: =VLOOKUP($H$1&$A44, FE, 11,FALSE) -> 0 | K44: =VLOOKUP($H$1&$A44, FE, 12,FALSE) -> 9523503.85 | M44: =A44 -> 200 | N44: NA | P44: =C44&" - Calculates automatically." -> Instructional Services - Calculates automatically. | Q44: 2000 series
A45: 210 | C45: Subtotal - Instructional Leadership | E45: 0 | F45: 107222.32 | G45: 993623.54 | H45: 0 | I45: 133230 | J45: 0 | K45: 1234075.86 | M45: 210 | N45: NA | P45: Calculates automatically - expenses for instructional leadership. | Q45: 2100s, 2200s, 2315
A46: 211 | C46: Salaries - Professional | E46: 0 | F46: 50982.09 | G46: 792373.52 | H46: 0 | I46: 133230 | J46: 0 | K46: 976585.61 | M46: 211 | N46: 5XX2 | P46: Salaries for instructional personnel in leadership roles such as Principal/Asst. Principals (undistributed), Curriculum Directors (including SPED), Department Heads, Technology/Instructional Coordinators, Team Leaders, etc. | Q46: 2110, 2120, 2210, 2220, 2250, 2315
A47: 212 | C47: Salaries - Clerical | E47: 0 | F47: 56240.23 | G47: 139498.18 | H47: 0 | I47: 0 | J47: 0 | K47: 195738.41 | M47: 212 | N47: 5XX2 | P47: Salaries for administrative support personnel who prepare, transcribe, systematize or preserve communications, records and transactions. | Q47: 2110, 2120, 2210, 2220, 2250, 2315
A48: 213 | C48: Contracted Services | E48: 0 | F48: 0 | G48: 61500 | H48: 0 | I48: 0 | J48: 0 | K48: 61500 | M48: 213 | N48: 53X2 | P48: Contracted professional services, including all related expenses covered by the contract. | Q48: 2110, 2120, 2210, 2220, 2250, 2315
A49: 214 | C49: Supplies and Materials | E49: 0 | F49: 0 | G49: 0 | H49: 0 | I49: 0 | J49: 0 | K49: 0 | M49: 214 | N49: 54X2 | P49: Materials and items of an expendable nature that is consumed or loses its identity through incorporation into a different/more complex unit/substance. Unit price of less than $5000. | Q49: 2110, 2120, 2210, 2220, 2250, 2315
A50: 215 | C50: Travel and other expenses | E50: 0 | F50: 0 | G50: 251.84 | H50: 0 | I50: 0 | J50: 0 | K50: 251.84 | M50: 215 | N50: 57X2 | P50: Travel and other expenses for staff such as dues, subscriptions and memberships. | Q50: 2110, 2120, 2210, 2220, 2250, 2315
A51: 220 | C51: Subtotal - Classroom and Specialist Teachers | E51: 5465005.08 | F51: 499568.05 | H51: 0 | I51: 567771 | J51: 0 | K51: 6532344.13 | M51: 220 | N51: NA | P51: Calculates automatically - expenses for teachers. | Q51: 2300
A52: 221 | C52: Salaries - Teachers, Classroom | E52: 5245424 | F52: 0 | H52: 0 | I52: 0 | J52: 0 | K52: 5245424 | M52: 221 | N52: 5XX2 | P52: Salaries for teachers with primary responsibility for teaching designated curriculum to established "classes" of students in a group instruction setting. Also includes itinerant music, art, health, physical education teachers who travel from classroom-to- | Q52: 2305
A53: 222 | C53: Salaries - Teachers, Specialists | E53: 219581.08 | F53: 499568.05 | H53: 0 | I53: 567771 | J53: 0 | K53: 1286920.13 | M53: 222 | N53: 5XX2 | P53: Salaries for teachers who provide individualized instruction to students (1-on-1 or small groups) to supplement the services delivered by the students' classroom teachers, e.g. reading recovery, Title I reading specialists, special education, academic support, and language acquisitions services. NOT paraprofessionals. | Q53: 2310
A54: 230 | C54: Subtotal - Other Teaching Services | E54: 555605.4 | F54: 377710.91 | H54: 5218 | I54: 66212 | J54: 0 | K54: 1004746.31 | M54: 230 | N54: NA | P54: Calculates automatically - expenses for other teaching services. | Q54: 2300
A55: 231 | C55: Salaries - Professional | E55: 180741.34 | F55: 54090.22 | H55: 0 | I55: 11080 | J55: 0 | K55: 245911.56 | M55: 231 | N55: 5XX2 | P55: Salaries for Medical/Therapeutic service professionals (OT, PT, Speech, Vision and other therapeutic services that are provided by licensed practitioners), librarians, media center directors, substitute teachers on payroll. | Q55: 2320, 2325, 2340
A56: 232 | C56: Salaries - Nonclerical Paraprofessionals | E56: 374864.06 | F56: 82870.44 | H56: 5218 | I56: 50000 | J56: 0 | K56: 512952.5 | M56: 232 | N56: 5XX2 | P56: Salaries for paraprofessionals hired to assist teachers/specialists with classroom instruction in the preparation or reproduction of instructional materials or classroom instruction. Includes American Sign Language Specialists. | Q56: 2330
A57: 233 | C57: Salaries - Clerical | E57: 0 | F57: 0 | H57: 0 | I57: 0 | J57: 0 | K57: 0 | M57: 233 | N57: 5XX2 | P57: Salaries for administrative support personnel who prepare, transcribe, systematize or preserve communications, records and transactions. | Q57: 2320, 2325, 2340
A58: 234 | C58: Contracted Services | E58: 0 | F58: 240750.25 | H58: 0 | I58: 5132 | J58: 0 | K58: 245882.25 | M58: 234 | N58: 53X2 | P58: Contracted professional services, including all related expenses covered by the contract, for other teaching services (non-payroll substitute teachers should be included here). | Q58: 2320, 2325, 2340
A59: 240 | C59: Subtotal - Professional Development | E59: 73124.12 | F59: 6161.74 | G59: =VLOOKUP($H$1&$A59, FE, 8,FALSE) -> 0 | H59: 0 | I59: 3633 | J59: 0 | K59: 82918.86 | M59: 240 | N59: NA | P59: Calculates automatically - expenses for professional development of instructional personnel. | Q59: 2350s
A60: 241 | C60: Salaries - Professional | E60: 0 | F60: 0 | G60: =VLOOKUP($H$1&$A60, FE, 8,FALSE) -> 0 | H60: 0 | I60: 0 | J60: 0 | K60: 0 | M60: 241 | N60: 5XX2 | P60: Salaries for full-time or prorated salary (if 50% or greater) of director/staff for professional development, including training for new teachers, new curriculum or instructional practices, master and mentor teachers, coaches; Also salaries of teacher/ins | Q60: 2351, 2353
A61: 242 | C61: Contracted Services | E61: 69146.52 | F61: 6161.74 | G61: =VLOOKUP($H$1&$A61, FE, 8,FALSE) -> 0 | H61: 0 | I61: 3633 | J61: 0 | K61: 78941.26 | M61: 242 | N61: 53X2 | P61: Contracted professional services, including all related expenses covered by the contract, for professional development (non-payroll substitute teachers should be included here). | Q61: 2351, 2353
A62: 243 | C62: Supplies and Materials | E62: 3977.6 | F62: 0 | G62: =VLOOKUP($H$1&$A62, FE, 8,FALSE) -> 0 | H62: 0 | I62: 0 | J62: 0 | K62: 3977.6 | M62: 243 | N62: 54X2 | P62: Materials and items of an expendable nature that is consumed or loses its identity through incorporation into a different/more complex unit/substance. Unit price of less than $5000. | Q62: 2351, 2353
A63: 244 | C63: Travel and other expenses | E63: 0 | F63: 0 | G63: =VLOOKUP($H$1&$A63, FE, 8,FALSE) -> 0 | H63: 0 | I63: 0 | J63: 0 | K63: 0 | M63: 244 | N63: 57X2 | P63: Travel and other expenses for staff such as dues, subscriptions and memberships. | Q63: 2351, 2353
A64: 250 | C64: Subtotal - Guidance, Psychological & Testing | E64: 246909.46 | F64: 0 | H64: 0 | I64: 0 | J64: 0 | K64: 246909.46 | M64: 250 | N64: NA | P64: Calculates automatically - expenses for guidance, psychological, and testing. | Q64: 2700s, 2800s
A65: 251 | C65: Salaries - Professional | E65: 244832.33 | F65: 0 | H65: 0 | I65: 0 | J65: 0 | K65: 244832.33 | M65: 251 | N65: 5XX2 | P65: Salaries for Director of Guidance, school social workers, and counselors for guidance, school adjustment, higher education, career planning, and workplace learning placement; psychological evaluations and other services provided by a licensed mental heal | Q65: 2710, 2720, 2800
A66: 252 | C66: Salaries - Clerical | E66: 0 | F66: 0 | H66: 0 | I66: 0 | J66: 0 | K66: 0 | M66: 252 | N66: 5XX2 | P66: Salaries for administrative support personnel who prepare, transcribe, systematize or preserve communications, records and transactions. | Q66: 2710, 2720, 2800
A67: 253 | C67: Contracted Services | E67: 0 | F67: 0 | H67: 0 | I67: 0 | J67: 0 | K67: 0 | M67: 253 | N67: 53X2 | P67: Contracted professional services, including all related expenses covered by the contract, for guidance, psychological, and testing. | Q67: 2710, 2720, 2800
A68: 254 | C68: Supplies and Materials | E68: 2077.13 | F68: 0 | H68: 0 | I68: 0 | J68: 0 | K68: 2077.13 | M68: 254 | N68: 54X2 | P68: Materials and items of an expendable nature that is consumed or loses its identity through incorporation into a different/more complex unit/substance. Unit price of less than $5000. | Q68: 2710, 2720, 2800
A69: 260 | C69: Subtotal - Materials, Equipment & Technology | E69: 370114.94 | F69: 15530.81 | G69: =VLOOKUP($H$1&$A69, FE, 8,FALSE) -> 35863.48 | H69: 0 | I69: 1000 | J69: 0 | K69: 422509.23 | M69: 260 | N69: NA | P69: Calculates automatically - expenses for materials, equipment & technology. | Q69: 2451
A70: 261 | C70: Textbooks & Related Media/Materials | E70: 80914.97 | F70: 15530.81 | H70: 0 | I70: 1000 | J70: 0 | K70: 97445.78 | M70: 261 | N70: 54X2 | P70: Expenditures for all textbooks, workbooks, and materials including accessories, such as CD-ROMS, videos, etc. provided as an integrated package, and printed manuals, used to support direct instructional activities. | Q70: 2410
A71: 262 | C71: Other Instructional Materials | E71: 42226.82 | F71: 0 | H71: 0 | I71: 0 | J71: 0 | K71: 42226.82 | M71: 262 | N71: 54X2 | P71: Books and other materials, excluding textbooks, for use in school libraries or classroom libraries (trade books, periodicals, reference materials, etc.). | Q71: 2415
A72: 263 | C72: Instructional Equipment | E72: 7437.87 | F72: 0 | H72: 0 | I72: 0 | J72: 0 | K72: 7437.87 | M72: 263 | N72: 54X2 | P72: Non-capitalized expenditures for purchase of science laboratory, physical education, equipment, irrespective of unit cost. Also includes lease/purchase of copy equipment primarily used to produce instructional materials. | Q72: 2420
A73: 264 | C73: General Supplies | E73: 54912.06 | F73: 0 | H73: 0 | I73: 0 | J73: 0 | K73: 54912.06 | M73: 264 | N73: 54X2 | P73: Papers, pens, pencils, crayons, chalk, paint, toner printer cartridges, calculators, etc. | Q73: 2430
A74: 265 | C74: Other Instructional Services | E74: 4905.5 | F74: 0 | H74: 0 | I74: 0 | J74: 0 | K74: 4905.5 | M74: 265 | N74: 58X2 | P74: Cost for field trips, including admissions and transportation costs. Also, distance learning services. | Q74: 2440
A75: 266 | C75: Classroom Instructional Technology | G75: =VLOOKUP($H$1&$A75, FE, 8,FALSE) -> 35863.48 | H75: 0 | I75: 0 | J75: 0 | K75: 35863.48 | M75: 266 | N75: 54X2 | P75: Computers, servers, networks, scanners, digital cameras, etc. used in the classroom or in computer laboratories. | Q75: 2451
A76: 267 | C76: Other Instructional Hardware | G76: =VLOOKUP($H$1&$A76, FE, 8,FALSE) -> 0 | H76: 0 | I76: 0 | J76: 0 | K76: 0 | M76: 267 | N76: 54X2 | P76: Computers, servers, networks, scanners, digital cameras, etc. for school libraries and media centers. | Q76: 2453
A77: 268 | C77: Instructional Software | E77: =VLOOKUP($H$1&$A77, FE, 6,FALSE) -> 2095 | F77: =VLOOKUP($H$1&$A77, FE, 7,FALSE) -> 0 | H77: 0 | I77: 0 | J77: 0 | K77: 2095 | M77: 268 | N77: 54X2 | P77: Programs, licenses, CD-ROMs. | Q77: 2455
A78: 269 | C78: Depreciation for Instructional Equipment | E78: =VLOOKUP($H$1&$A78, FE, 6,FALSE) -> 177622.72 | F78: =VLOOKUP($H$1&$A78, FE, 7,FALSE) -> 0 | H78: 0 | I78: 0 | J78: 0 | K78: 177622.72 | M78: 269 | N78: 5702 | P78: Annual depreciation expense for capitalized Instructional Materials, Equipment, & Technology. | Q78: NA
A80: 300 | C80: Pupil Services | E80: =VLOOKUP($H$1&$A80, FE, 6,FALSE) -> 960750 | F80: =VLOOKUP($H$1&$A80, FE, 7,FALSE) -> 38979 | G80: =VLOOKUP($H$1&$A80, FE, 8,FALSE) -> 524752.71 | H80: =VLOOKUP($H$1&$A80, FE, 9,FALSE) -> 8565 | I80: =VLOOKUP($H$1&$A80, FE, 10,FALSE) -> 517160 | J80: =VLOOKUP($H$1&$A80, FE, 11,FALSE) -> 0 | K80: =VLOOKUP($H$1&$A80, FE, 12,FALSE) -> 2050206.71 | M80: =A80 -> 300 | N80: NA | P80: =C80&" - Calculates automatically." -> Pupil Services - Calculates automatically. | Q80: 3000 series
A81: 310 | C81: Salaries - Pupil Services, non-food-related | G81: =VLOOKUP($H$1&$A81, FE, 8,FALSE) -> 175954.09 | H81: 0 | I81: 0 | J81: 0 | K81: 175954.09 | M81: 310 | N81: 5XX3 | P81: School nurses, food service coordinators, coaches, etc. on payroll. | Q81: various salary 3000's
A82: 315 | C82: Salaries - Food Services | G82: =VLOOKUP($H$1&$A82, FE, 8,FALSE) -> 142773.8 | H82: 8565 | I82: 10720.91 | J82: 0 | K82: 162059.71 | M82: 315 | N82: 5XX3 | P82: Cafeteria workers, food directions, and other food-related services for personell on payroll | Q82: various salary 3000's
A83: 320 | C83: Health Services | G83: =VLOOKUP($H$1&$A83, FE, 8,FALSE) -> 4266.11 | H83: 0 | I83: 0 | J83: 0 | K83: 4266.11 | M83: 320 | N83: 58X3 | P83: Contracted professional services and related costs, including stipends. | Q83: 3200
A84: 330 | C84: Student Transportation (to and from school) | E84: =VLOOKUP($H$1&$A84, FE, 6,FALSE) -> 960750 | F84: =VLOOKUP($H$1&$A84, FE, 7,FALSE) -> 38979 | H84: 0 | I84: 0 | J84: 0 | K84: 999729 | M84: 330 | N84: 58X3 | P84: Contracted professional services and related costs incurred by the school; Or, monetary fair market value of services provided by sending district. (Please note: More detail is required in the Schedule 7C worksheet for those seeking reimbursement.) | Q84: 3300
A85: 340 | C85: Depreciation of Transportation Vehicles | E85: =VLOOKUP($H$1&$A85, FE, 6,FALSE) -> 0 | F85: =VLOOKUP($H$1&$A85, FE, 7,FALSE) -> 0 | H85: 0 | I85: 0 | J85: 0 | K85: 0 | M85: 340 | N85: 5703 | P85: Annual depreciation expense for capitalized transportation vehicles. (Please note: More detail is required in the Schedule 7C worksheet for those seeking state or district reimbursement for transportation costs.) | Q85: 3300
A86: 350 | C86: Food Services | G86: =VLOOKUP($H$1&$A86, FE, 8,FALSE) -> 3669.38 | H86: 0 | I86: 506439.09 | J86: 0 | K86: 510108.47 | M86: 350 | N86: 58X3 | P86: Contracted professional services and related costs, including stipends. | Q86: 3400
A87: 360 | C87: Athletic Services | G87: =VLOOKUP($H$1&$A87, FE, 8,FALSE) -> 71252.5 | H87: 0 | I87: 0 | J87: 0 | K87: 71252.5 | M87: 360 | N87: 58X3 | P87: Contracted professional services and related costs, including stipends. | Q87: 3510
A88: 370 | C88: Other Student Activities | G88: =VLOOKUP($H$1&$A88, FE, 8,FALSE) -> 126836.83 | H88: 0 | I88: 0 | J88: 0 | K88: 126836.83 | M88: 370 | N88: 58X3 | P88: Contracted professional services and related costs, including stipends, for extracurricular/club activities. | Q88: 3520/3600
A90: 400 | C90: Operation & Maintenance of Plant | G90: =VLOOKUP($H$1&$A90, FE, 8,FALSE) -> 1777355.64 | H90: =VLOOKUP($H$1&$A90, FE, 9,FALSE) -> 0 | I90: =VLOOKUP($H$1&$A90, FE, 10,FALSE) -> 0 | J90: =VLOOKUP($H$1&$A90, FE, 11,FALSE) -> 0 | K90: =VLOOKUP($H$1&$A90, FE, 12,FALSE) -> 1777355.64 | M90: =A90 -> 400 | N90: NA | P90: =C90&" - Calculates automatically." -> Operation & Maintenance of Plant - Calculates automatically. | Q90: 4000 series
A91: 410 | C91: Salaries - Operation & Maintenance of Plant | G91: 621388.19 | H91: 0 | I91: 0 | J91: 0 | K91: 621388.19 | M91: 410 | N91: 5XX4 | P91: Plant managers, custodians, maintenance, etc., including technology maintenance. | Q91: various 4000's salaries
A92: 420 | C92: Utilities | G92: 542469.2 | H92: 0 | I92: 0 | J92: 0 | K92: 542469.2 | M92: 420 | N92: 55X4 | P92: Cost of coal, fuel, oil, electivity, gas, water, trash, waste disposal, telephone services, etc. | Q92: 4120 and 4130
A93: 430 | C93: Maintenance of Buildings & Grounds | G93: 579714.58 | H93: 0 | I93: 0 | J93: 0 | K93: 579714.58 | M93: 430 | N93: 55X4 | P93: Includes contracted custodial services and building security. | Q93: 4110, 4210, 4220 (Security = 3600, 4225)
A94: 440 | C94: Maintenance of Equipment | G94: 31853.67 | H94: 0 | I94: 0 | J94: 0 | K94: 31853.67 | M94: 440 | N94: 55X4 | P94: Equipment parts and repair, materials, and tools, contracted services, including vehicles. | Q94: 4230
A95: 450 | C95: Networking and Telecommunications | G95: 1930 | H95: 0 | I95: 0 | J95: 0 | K95: 1930 | M95: 450 | N95: 54X4 | P95: Costs for supporting school technology infrastructure, including wiring, PBX Systems, file servers, etc. | Q95: 4400
A97: 500 | C97: Benefits and Other Fixed Charges | G97: =VLOOKUP($H$1&$A97, FE, 8,FALSE) -> 2147827.05 | H97: =VLOOKUP($H$1&$A97, FE, 9,FALSE) -> 0 | I97: =VLOOKUP($H$1&$A97, FE, 10,FALSE) -> 57467 | J97: =VLOOKUP($H$1&$A97, FE, 11,FALSE) -> 0 | K97: =VLOOKUP($H$1&$A97, FE, 12,FALSE) -> 2205294.05 | M97: =A97 -> 500 | N97: NA | P97: =C97&" - Calculates automatically." -> Benefits and Other Fixed Charges - Calculates automatically. | Q97: 5000 series
A98: 510 | C98: Employee Retirement | G98: 365369.69 | H98: 0 | I98: 57467 | J98: 0 | K98: 422836.69 | M98: 510 | N98: 52X5 | P98: "Payroll taxes", including contributions to Medicaid, social security, pension plans, and other employee retirement systems, school's portion, for non-MTRS employees; and Federal grant MTRS "surcharge" | Q98: 5100
A99: 520 | C99: Fringe Benefits | G99: 1600671.01 | H99: 0 | I99: 0 | J99: 0 | K99: 1600671.01 | M99: 520 | N99: 52X5 | P99: Employee unemployment, health, and life insurance premiums or payments, and worker's compensation or other benefits, paid by the school for the benefit of the employee. | Q99: 5200, 5250
A100: 530 | C100: Insurance (non-employee) | G100: 133025.67 | H100: 0 | I100: 0 | J100: 0 | K100: 133025.67 | M100: 530 | N100: 52X5 | P100: Insurance premiums for property, fire, liability, fidelity bonds; judgments against the school resulting from self-insurance. | Q100: 5260
A101: 550 | C101: Rental/Lease of Equipment | G101: 48760.68 | H101: 0 | I101: 0 | J101: 0 | K101: 48760.68 | M101: 550 | N101: 56X5 | P101: Annual operating lease/rental costs. | Q101: 5300
A102: 560 | C102: Short-Term Interest | G102: 0 | H102: 0 | I102: 0 | J102: 0 | K102: 0 | M102: 560 | N102: 57X5 | P102: Interest costs for short-term (less than one year) lines of credit that are needed to sustain cash flow for ongoing operations. | Q102: 5400, 5450
A104: 600 | C104: Community Services | G104: =VLOOKUP($H$1&$A104, FE, 8,FALSE) -> 0 | H104: =VLOOKUP($H$1&$A104, FE, 9,FALSE) -> 0 | I104: =VLOOKUP($H$1&$A104, FE, 10,FALSE) -> 0 | J104: =VLOOKUP($H$1&$A104, FE, 11,FALSE) -> 0 | K104: =VLOOKUP($H$1&$A104, FE, 12,FALSE) -> 0 | M104: =A104 -> 600 | N104: NA | P104: =C104&" - Calculates automatically." -> Community Services - Calculates automatically. | Q104: 6000 series
A105: 610 | C105: Dissemination Activities | G105: =VLOOKUP($H$1&$A105, FE, 8,FALSE) -> 0 | H105: =VLOOKUP($H$1&$A105, FE, 9,FALSE) -> 0 | I105: =VLOOKUP($H$1&$A105, FE, 10,FALSE) -> 0 | J105: =VLOOKUP($H$1&$A105, FE, 11,FALSE) -> 0 | K105: =VLOOKUP($H$1&$A105, FE, 12,FALSE) -> 0 | M105: =A105 -> 610 | N105: 58X6 | P105: Activities designed to disseminate the school's best practices to external groups, including presentations at or hosting of conferences, etc. | Q105: 6200
A106: 620 | C106: Civic Activities | G106: =VLOOKUP($H$1&$A106, FE, 8,FALSE) -> 0 | H106: =VLOOKUP($H$1&$A106, FE, 9,FALSE) -> 0 | I106: =VLOOKUP($H$1&$A106, FE, 10,FALSE) -> 0 | J106: =VLOOKUP($H$1&$A106, FE, 11,FALSE) -> 0 | K106: =VLOOKUP($H$1&$A106, FE, 12,FALSE) -> 0 | M106: =A106 -> 620 | N106: 58X6 | P106: Materials and items of an expendable nature that is consumed or loses its identity through incorporation into a different/more complex unit/substance. Unit price of less than $5000. | Q106: 6200
A108: 700 | C108: Non-Operating / Capital Facilities Costs | G108: =VLOOKUP($H$1&$A108, FE, 8,FALSE) -> 2177896.91 | H108: =VLOOKUP($H$1&$A108, FE, 9,FALSE) -> 0 | I108: =VLOOKUP($H$1&$A108, FE, 10,FALSE) -> 0 | J108: =VLOOKUP($H$1&$A108, FE, 11,FALSE) -> 0 | K108: =VLOOKUP($H$1&$A108, FE, 12,FALSE) -> 2177896.91 | M108: =A108 -> 700 | N108: NA | P108: =C108&" - Calculates automatically." -> Non-Operating / Capital Facilities Costs - Calculates automatically. | Q108: 7000 series
A109: 720 | C109: Long-Term Interest, facilities related | G109: 1155348.35 | H109: 0 | I109: 0 | J109: 0 | K109: 1155348.35 | M109: 720 | N109: 57X7 | P109: Annual debt service costs for long-term financing (greater than one year) related to capital facilities costs. | Q109: 8200
A110: 725 | C110: Long-Term Interest, non-facilities related | G110: 0 | H110: 0 | I110: 0 | J110: 0 | K110: 0 | M110: 725 | N110: 57X7 | P110: Annual debt service costs for long-term financing (greater than one year) not related to capital facilities costs | Q110: 8300
A111: 730 | C111: Other costs related to capital facilities acquisition | G111: 0 | H111: 0 | I111: 0 | J111: 0 | K111: 0 | M111: 730 | N111: 58X7 | P111: Expenses (e.g.,architectural design, closing costs, site exploration, etc.) related to capital facilities acquisition. | Q111: 8000
A112: 740 | C112: Rental/Lease of Buildings & Grounds | G112: 0 | H112: 0 | I112: 0 | J112: 0 | K112: 0 | M112: 740 | N112: 58X7 | P112: Annual operating lease/rental costs. | Q112: 7000
A113: 750 | C113: Depreciation of Equipment, Building, & Grounds | G113: 1204248.32 | H113: 0 | I113: 0 | J113: 0 | K113: 1204248.32 | M113: 750 | N113: 5707 | P113: Annual depreciation expense for capitalized Equipment, Networking and Telecommunications, Building, & Grounds. | Q113: 5350*
A114: 760 | C114: Bad debt / loss on disposal of assets | G114: -181699.76 | H114: 0 | I114: 0 | J114: 0 | K114: -181699.76 | M114: 760 | N114: 5707 | P114: Write-off costs for bad debt or loss on disposal of assets | Q114: NA
A116: 800 | C116: TOTALS | E116: =VLOOKUP($H$1&$A116, FE, 6,FALSE) -> 7671509 | F116: =VLOOKUP($H$1&$A116, FE, 7,FALSE) -> 1045172.83 | G116: =VLOOKUP($H$1&$A116, FE, 8,FALSE) -> 8452615.53 | H116: =VLOOKUP($H$1&$A116, FE, 9,FALSE) -> 13783 | I116: =VLOOKUP($H$1&$A116, FE, 10,FALSE) -> 1346473 | J116: =VLOOKUP($H$1&$A116, FE, 11,FALSE) -> 0 | K116: =VLOOKUP($H$1&$A116, FE, 12,FALSE) -> 18529553.36 | M116: =A116 -> 800 | N116: NA | P116: =C116&" - Calculates automatically." -> TOTALS - Calculates automatically.
A118: 910 | C118: Reference: Capitalized Expenditures | G118: =VLOOKUP($H$1&$A118, FE, 8,FALSE) -> 0 | H118: =VLOOKUP($H$1&$A118, FE, 9,FALSE) -> 0 | I118: =VLOOKUP($H$1&$A118, FE, 10,FALSE) -> 0 | J118: =VLOOKUP($H$1&$A118, FE, 11,FALSE) -> 0 | K118: =VLOOKUP($H$1&$A118, FE, 12,FALSE) -> 0 | M118: =A118 -> 910 | P118: Reference line for cash expenditures that are not expensed in the fiscal year
A119: 920 | C119: Reference: Deferrals/Carryovers | G119: =VLOOKUP($H$1&$A119, FE, 8,FALSE) -> 0 | H119: =VLOOKUP($H$1&$A119, FE, 9,FALSE) -> 0 | I119: =VLOOKUP($H$1&$A119, FE, 10,FALSE) -> 0 | J119: =VLOOKUP($H$1&$A119, FE, 11,FALSE) -> 0 | K119: =VLOOKUP($H$1&$A119, FE, 12,FALSE) -> 0 | M119: =A119 -> 920 | P119: Reference line for cash expenditures that are not expensed in the fiscal year
A120: 900 | C120: Reference: Totals | G120: =VLOOKUP($H$1&$A120, FE, 8,FALSE) -> 8452615.53 | H120: =VLOOKUP($H$1&$A120, FE, 9,FALSE) -> 13783 | I120: =VLOOKUP($H$1&$A120, FE, 10,FALSE) -> 1346473 | J120: =VLOOKUP($H$1&$A120, FE, 11,FALSE) -> 0 | K120: =VLOOKUP($H$1&$A120, FE, 12,FALSE) -> 18529553.36 | M120: =A120 -> 900

Sheet 13LEA (hidden)
A1: LEA | B1: Charter School | C1: Type
A2: 445 | B2: Abby Kelley Foster Charter Public School | C2: C
A3: 412 | B3: Academy of the Pacific Rim Charter Public School | C3: C
A4: 430 | B4: Advanced Math and Science Academy Charter School | C4: C
A5: 409 | B5: Alma del Mar Charter School | C5: C
A6: 415 | B6: Amesbury Academy Charter Public School | C6: HM
A7: 491 | B7: Atlantis Charter School | C7: C
A8: 427 | B8: Barnstable Community Horace Mann Charter Public School | C8: HM
A9: 3502 | B9: Baystate Academy Charter Public School | C9: C
A10: 420 | B10: Benjamin Banneker Charter Public School | C10: C
A11: 447 | B11: Benjamin Franklin Classical Charter Public School | C11: C
A12: 414 | B12: Berkshire Arts and Technology Charter Public School | C12: C
A13: 449 | B13: Boston Collegiate Charter School | C13: C
A14: 424 | B14: Boston Day and Evening Academy Charter School | C14: HM
A15: 411 | B15: Boston Green Academy Horace Mann Charter School | C15: HM3
A16: 416 | B16: Boston Preparatory Charter Public School | C16: C
A17: 481 | B17: Boston Renaissance Charter Public School | C17: C
A18: 417 | B18: Bridge Boston Charter School | C18: C
A19: 457 | B19: Brooke Charter School East Boston | C19: C
A20: 443 | B20: Brooke Charter School Mattapan | C20: C
A21: 428 | B21: Brooke Charter School Roslindale | C21: C
A22: 432 | B22: Cape Cod Lighthouse Charter School | C22: C
A23: 418 | B23: Christa McAuliffe Regional Charter Public School | C23: C
A24: 437 | B24: City On A Hill Charter Public School | C24: C
A25: 3504 | B25: City On A Hill Charter Public School II | C25: C
A26: 3507 | B26: City On A Hill Charter Public School New Bedford | C26: C
A27: 438 | B27: Codman Academy Charter Public School | C27: C
A28: 436 | B28: Community Charter School of Cambridge | C28: C
A29: 426 | B29: Community Day Charter Public School - Gateway | C29: C
A30: 440 | B30: Community Day Charter Public School - Prospect | C30: C
A31: 431 | B31: Community Day Charter Public School - R. Kingman Webster | C31: C
A32: 439 | B32: Conservatory Lab Charter School | C32: C
A33: 475 | B33: Dorchester Collegiate Academy Charter School | C33: C
A34: 407 | B34: Dudley Street Neighborhood Charter School | C34: HM3
A35: 452 | B35: Edward M. Kennedy Academy for Health Careers: A Horace Mann Charter Public School | C35: HM
A36: 410 | B36: Excel Academy Charter School | C36: C
A37: 459 | B37: Excel Academy Charter School - Boston II | C37: C
A38: 461 | B38: Excel Academy Charter School - Chelsea | C38: C
A39: 413 | B39: Four Rivers Charter Public School | C39: C
A40: 446 | B40: Foxborough Regional Charter School | C40: C
A41: 478 | B41: Francis W. Parker Charter Essential School | C41: C
A42: 496 | B42: Global Learning Charter Public School | C42: C
A43: 499 | B43: Hampden Charter School of Science | C43: C
A44: 455 | B44: Hill View Montessori Charter Public School | C44: C
A45: 450 | B45: Hilltown Cooperative Charter Public School | C45: C
A46: 453 | B46: Holyoke Community Charter School | C46: C
A47: 435 | B47: Innovation Academy Charter School | C47: C
A48: 463 | B48: KIPP Academy Boston Charter School | C48: C
A49: 429 | B49: KIPP Academy Lynn Charter School | C49: C
A50: 454 | B50: Lawrence Family Development Charter School | C50: C
A51: 3503 | B51: Lowell Collegiate Charter School | C51: C
A52: 456 | B52: Lowell Community Charter Public School | C52: C
A53: 458 | B53: Lowell Middlesex Academy Charter School | C53: C
A54: 464 | B54: Marblehead Community Charter Public School | C54: C
A55: 466 | B55: Martha's Vineyard Public Charter School | C55: C
A56: 492 | B56: Martin Luther King, Jr. Charter School of Excellence | C56: C
A57: 469 | B57: MATCH Charter Public School | C57: C
A58: 465 | B58: MATCH Community Day Charter Public School | C58: C
A59: 470 | B59: Mystic Valley Regional Charter School | C59: C
A60: 444 | B60: Neighborhood House Charter School | C60: C
A61: 474 | B61: North Central Charter Essential School | C61: C
A62: 3501 | B62: Paulo Freire Social Justice Charter School | C62: C
A63: 3508 | B63: Phoenix Academy Public Charter High School, Springfield | C63: C
A64: 493 | B64: Phoenix Academy Charter Public High School, Chelsea | C64: C
A65: 494 | B65: Pioneer Charter School of Science | C65: C
A66: 3506 | B66: Pioneer Charter School of Science II | C66: C
A67: 497 | B67: Pioneer Valley Chinese Immersion Charter School | C67: C
A68: 479 | B68: Pioneer Valley Performing Arts Charter Public School | C68: C
A69: 487 | B69: Prospect Hill Academy Charter School | C69: C
A70: 483 | B70: Rising Tide Charter Public School | C70: C
A71: 482 | B71: River Valley Charter School | C71: C
A72: 484 | B72: Roxbury Preparatory Charter School | C72: C
A73: 441 | B73: Sabis International Charter School | C73: C
A74: 485 | B74: Salem Academy Charter School | C74: C
A75: 467 | B75: Salem Community Charter School | C75: HM3
A76: 486 | B76: Seven Hills Charter Public School | C76: C
A77: 477 | B77: Silver Hill Horace Mann Charter School | C77: HM
A78: 419 | B78: Smith Leadership Academy Charter Public School | C78: C
A79: 488 | B79: South Shore Charter Public School | C79: C
A80: 476 | B80: Spirit of Knowledge Charter School | C80: C
A81: 489 | B81: Sturgis Charter Public School | C81: C
A82: 480 | B82: UP Academy Charter School of Boston | C82: HM3
A83: 3505 | B83: UP Academy Charter School of Dorchester | C83: HM3
A84: 498 | B84: Veritas Preparatory Charter School | C84: C

Sheet Tuition14 (hidden)
A1: Massachusetts Department of Elementary and Secondary Education | AI1: derived | AM1: derived | AN1: derived
A2: O F F I C E O F S C H O O L F I N A N C E
A3: F Y 1 4 C h a r t e r S c h o o l F T E a n d T u i t i o n (Q 4)
A6: 1 | B6: 2 | C6: 3 | D6: 4 | E6: 5 | F6: 6 | G6: 7 | H6: 8 | I6: 9 | J6: 10 | K6: 11
D7: F T E | I7: T U I T I O N | M7: R A W C H A R T E R D A T A | AD7: P R I O R Y E A R A D J U S T M E N T S
A8: LEA | B8: CHARTER SCHOOL | C8: PROJECTED (MAXIMUM) FTE | D8: FTE IN EXCESS OF PROJECTION MAX | E8: TRANSPOR- TATION FTE | F8: REPORTED FTE | H8: FOUNDATION TUITION | I8: TRANSPOR- TATION TUITION | J8: FACILITILES TUITION | K8: TOTAL PAYMENT TO CHARTER | M8: Lea | N8: Total FTE | O8: Cap'd FTE | P8: Total Transp FTE | Q8: Unadj Local Tuition | R8: Unadj Local Transp | S8: NSS Reduction | T8: Local Base Tuition Payment | U8: Local Facilities Tuition | V8: Total Local Payment | W8: State Tuition | X8: State Transp | Y8: State Base Tuition Payment | Z8: State Facilities Tuition | AA8: Total State Payment | AB8: Total Payment to Charter | AD8: LEA | AE8: FTE | AF8: Local Found Adj | AG8: Local Transp Adj | AH8: Local Facilities Adj | AI8: TOTAL LOCAL Adj | AJ8: State Found Adj | AK8: State Transp Adj | AL8: State Facilities Adj | AM8: TOTAL STATE Adj | AN8: TOTAL PRIOR YEAR ADJ
A10: 409 | B10: ALMA DEL MAR | C10: 200 | D10: =IF(O10=0,"",O10) ->  | E10: =P10 -> 0 | F10: =N10 -> 199.8645161 | H10: =Q10-S10+W10+AF10+AJ10 -> 2157196 | I10: =R10+X10+AG10+AK10 -> 0 | J10: =U10+Z10+AH10+AL10 -> 178479 | K10: =SUM(H10:J10) -> 2335675 | M10: 409 | N10: 199.8645161 | O10: 0 | P10: 0 | Q10: 2157196 | R10: 0 | S10: 0 | T10: 2157196 | U10: 178479 | V10: 2335675 | W10: 0 | X10: 0 | Y10: 0 | Z10: 0 | AA10: 0 | AB10: 2335675 | AI10: =SUM(AF10:AH10) -> 0 | AM10: =SUM(AJ10:AL10) -> 0 | AN10: =AI10+AM10 -> 0
A11: 410 | B11: EXCEL ACADEMY | C11: 220 | D11: =IF(O11=0,"",O11) ->  | E11: =P11 -> 0 | F11: =N11 -> 211.2178218 | H11: =Q11-S11+W11+AF11+AJ11 -> 2707457 | I11: =R11+X11+AG11+AK11 -> 0 | J11: =U11+Z11+AH11+AL11 -> 188617 | K11: =SUM(H11:J11) -> 2896074 | M11: 410 | N11: 211.2178218 | O11: 0 | P11: 0 | Q11: 2693585 | R11: 0 | S11: 0 | T11: 2693585 | U11: 187724 | V11: 2881309 | W11: 13872 | X11: 0 | Y11: 13872 | Z11: 893 | AA11: 14765 | AB11: 2896074 | AI11: =SUM(AF11:AH11) -> 0 | AM11: 0 | AN11: =AI11+AM11 -> 0
A12: 412 | B12: ACADEMY OF THE PACIFIC RIM CHARTER PUBLIC | C12: 532 | E12: 0 | F12: 507.2933333 | H12: 6715024 | I12: 0 | J12: 453007 | K12: 7168031 | M12: 412 | N12: 507.2933333 | O12: 0 | P12: 0 | Q12: 6576815 | R12: 0 | S12: 0 | T12: 6576815 | U12: 443777 | V12: 7020592 | W12: 138209 | X12: 0 | Y12: 138209 | Z12: 9230 | AA12: 147439 | AB12: 7168031 | AI12: 0 | AM12: 0 | AN12: 0
A13: 413 | B13: FOUR RIVERS CHARTER PUBLIC | C13: 216 | E13: 0 | F13: 215.100346 | H13: 2724000 | I13: 0 | J13: 192085 | K13: 2916085 | M13: 413 | N13: 215.100346 | O13: 0 | P13: 0 | Q13: 2660254 | R13: 0 | S13: 0 | T13: 2660254 | U13: 188055 | V13: 2848309 | W13: 63746 | X13: 0 | Y13: 63746 | Z13: 4030 | AA13: 67776 | AB13: 2916085 | AI13: 0 | AM13: 0 | AN13: 0
A14: 414 | B14: BERKSHIRE ARTS AND TECHNOLOGY CHARTER PUBLIC | C14: 348 | E14: 0 | F14: 322.0635452 | H14: 3772325 | I14: 0 | J14: 287603 | K14: 4059928 | M14: 414 | N14: 322.0635452 | O14: 0 | P14: 0 | Q14: 3697045 | R14: 0 | S14: 0 | T14: 3697045 | U14: 281540 | V14: 3978585 | W14: 75280 | X14: 0 | Y14: 75280 | Z14: 6063 | AA14: 81343 | AB14: 4059928 | AI14: 0 | AM14: 0 | AN14: 0
A15: 416 | B15: BOSTON PREPARATORY CHARTER PUBLIC | C15: 379 | E15: 268.3767663 | F15: 367.2148726 | H15: 5170806 | I15: 108153 | J15: 327922 | K15: 5606881 | M15: 416 | N15: 367.2148726 | O15: 0 | P15: 268.3767663 | Q15: 4976292 | R15: 103797 | S15: 0 | T15: 5080089 | U15: 315590 | V15: 5395679 | W15: 194514 | X15: 4356 | Y15: 198870 | Z15: 12332 | AA15: 211202 | AB15: 5606881 | AI15: 0 | AM15: 0 | AN15: 0
A16: 417 | B16: BRIDGE BOSTON | C16: 144 | D16: 1.859060403 | E16: 0 | F16: 145.8590604 | H16: 2165683 | I16: 0 | J16: 128646 | K16: 2294329 | M16: 417 | N16: 145.8590604 | O16: 1.859060403 | P16: 0 | Q16: 2165683 | R16: 0 | S16: 0 | T16: 2165683 | U16: 128646 | V16: 2294329 | W16: 0 | X16: 0 | Y16: 0 | Z16: 0 | AA16: 0 | AB16: 2294329 | AI16: 0 | AM16: 0 | AN16: 0
A17: 418 | B17: CHRISTA MCAULIFFE REGIONAL CHARTER PUBLIC | C17: 338 | D17: 3.942372881 | E17: 0 | F17: 341.9423729 | H17: 3928783 | I17: 0 | J17: 301933 | K17: 4230716 | M17: 418 | N17: 341.9423729 | O17: 3.942372881 | P17: 0 | Q17: 3823469 | R17: 0 | S17: 0 | T17: 3823469 | U17: 293986 | V17: 4117455 | W17: 105314 | X17: 0 | Y17: 105314 | Z17: 7947 | AA17: 113261 | AB17: 4230716 | AI17: 0 | AM17: 0 | AN17: 0
A18: 419 | B18: SMITH LEADERSHIP ACADEMY CHARTER PUBLIC | C18: 216 | D18: 15.27062706 | E18: 0 | F18: 231.2706271 | H18: 3091913 | I18: 0 | J18: 192883 | K18: 3284796 | M18: 419 | N18: 231.2706271 | O18: 15.27062706 | P18: 0 | Q18: 2979385 | R18: 0 | S18: 0 | T18: 2979385 | U18: 185790 | V18: 3165175 | W18: 112528 | X18: 0 | Y18: 112528 | Z18: 7093 | AA18: 119621 | AB18: 3284796 | AI18: 0 | AM18: 0 | AN18: 0
A19: 420 | B19: BENJAMIN BANNEKER CHARTER PUBLIC | C19: 350 | E19: 0 | F19: 342.3707483 | H19: 6089591 | I19: 0 | J19: 305738 | K19: 6395329 | M19: 420 | N19: 342.3707483 | O19: 0 | P19: 0 | Q19: 6064810 | R19: 0 | S19: 0 | T19: 6064810 | U19: 304891 | V19: 6369701 | W19: 24781 | X19: 0 | Y19: 24781 | Z19: 847 | AA19: 25628 | AB19: 6395329 | AI19: 0 | AM19: 0 | AN19: 0
A20: 426 | B20: COMMUNITY DAY CHARTER PUBLIC SCHOOL - GATEWAY | C20: 160 | E20: 90.38383838 | F20: 159.9225589 | H20: 1940180 | I20: 130966 | J20: 142811 | K20: 2213957 | M20: 426 | N20: 159.9225589 | O20: 0 | P20: 90.38383838 | Q20: 1940180 | R20: 130966 | S20: 0 | T20: 2071146 | U20: 142811 | V20: 2213957 | W20: 0 | X20: 0 | Y20: 0 | Z20: 0 | AA20: 0 | AB20: 2213957 | AI20: 0 | AM20: 0 | AN20: 0
A21: 428 | B21: EDWARD BROOKE | C21: 509 | E21: 0 | F21: 491.414791 | H21: 6813127 | I21: 0 | J21: 438832 | K21: 7251959 | M21: 428 | N21: 491.414791 | O21: 0 | P21: 0 | Q21: 6813127 | R21: 0 | S21: 0 | T21: 6813127 | U21: 438832 | V21: 7251959 | W21: 0 | X21: 0 | Y21: 0 | Z21: 0 | AA21: 0 | AB21: 7251959 | AI21: 0 | AM21: 0 | AN21: 0
A22: 429 | B22: KIPP ACADEMY LYNN | C22: 724 | E22: 166.9514563 | F22: 720.7328771 | H22: 8051254 | I22: 205517 | J22: 643614 | K22: 8900385 | M22: 429 | N22: 720.7328771 | O22: 0 | P22: 166.9514563 | Q22: 7962134 | R22: 201824 | S22: 0 | T22: 8163958 | U22: 636470 | V22: 8800428 | W22: 89120 | X22: 3693 | Y22: 92813 | Z22: 7144 | AA22: 99957 | AB22: 8900385 | AI22: 0 | AM22: 0 | AN22: 0
A23: 430 | B23: ADVANCED MATH AND SCIENCE ACADEMY | C23: 966 | D23: 27.0777027 | E23: 0 | F23: 993.0777027 | H23: 11370942 | I23: 0 | J23: 862976 | K23: 12233918 | M23: 430 | N23: 993.0777027 | O23: 27.0777027 | P23: 0 | Q23: 11077207 | R23: 0 | S23: 0 | T23: 11077207 | U23: 840385 | V23: 11917592 | W23: 293735 | X23: 0 | Y23: 293735 | Z23: 22591 | AA23: 316326 | AB23: 12233918 | AI23: 0 | AM23: 0 | AN23: 0
A24: 431 | B24: COMMUNITY DAY CHARTER PUBLIC SCHOOL - R. KINGMAN WEBSTER | C24: 160 | E24: 60.78787879 | F24: 159.9292929 | H24: 1867719 | I24: 75316 | J24: 142817 | K24: 2085852 | M24: 431 | N24: 159.9292929 | O24: 0 | P24: 60.78787879 | Q24: 1867719 | R24: 75316 | S24: 0 | T24: 1943035 | U24: 142817 | V24: 2085852 | W24: 0 | X24: 0 | Y24: 0 | Z24: 0 | AA24: 0 | AB24: 2085852 | AI24: 0 | AM24: 0 | AN24: 0
A25: 432 | B25: CAPE COD LIGHTHOUSE | C25: 240 | E25: 0 | F25: 239.5344828 | H25: 3017723 | I25: 0 | J25: 213905 | K25: 3231628 | M25: 432 | N25: 239.5344828 | O25: 0 | P25: 0 | Q25: 2905084 | R25: 0 | S25: 0 | T25: 2905084 | U25: 205381 | V25: 3110465 | W25: 112639 | X25: 0 | Y25: 112639 | Z25: 8524 | AA25: 121163 | AB25: 3231628 | AI25: 0 | AM25: 0 | AN25: 0
A26: 435 | B26: INNOVATION ACADEMY | C26: 735 | E26: 0 | F26: 723.6319444 | H26: 7472467 | I26: 0 | J26: 646202 | K26: 8118669 | M26: 435 | N26: 723.6319444 | O26: 0 | P26: 0 | Q26: 7301820 | R26: 0 | S26: 0 | T26: 7301820 | U26: 630531 | V26: 7932351 | W26: 170647 | X26: 0 | Y26: 170647 | Z26: 15671 | AA26: 186318 | AB26: 8118669 | AI26: 0 | AM26: 0 | AN26: 0
A27: 436 | B27: COMMUNITY CHARTER SCHOOL OF CAMBRIDGE | C27: 360 | D27: 13.98293515 | E27: 0 | F27: 373.9829352 | H27: 6128431 | I27: 0 | J27: 321618 | K27: 6450049 | M27: 436 | N27: 373.9829352 | O27: 13.98293515 | P27: 0 | Q27: 6045092 | R27: 0 | S27: 0 | T27: 6045092 | U27: 317274 | V27: 6362366 | W27: 83339 | X27: 0 | Y27: 83339 | Z27: 4344 | AA27: 87683 | AB27: 6450049 | AI27: 0 | AM27: 0 | AN27: 0
A28: 437 | B28: CITY ON A HILL CHARTER PUBLIC | C28: 280 | E28: 181.0013894 | F28: 277.4805733 | H28: 4220178 | I28: 72038 | J28: 247790 | K28: 4540006 | M28: 437 | N28: 277.4805733 | O28: 0 | P28: 181.0013894 | Q28: 4204949 | R28: 71640 | S28: 0 | T28: 4276589 | U28: 246897 | V28: 4523486 | W28: 15229 | X28: 398 | Y28: 15627 | Z28: 893 | AA28: 16520 | AB28: 4540006 | AI28: 0 | AM28: 0 | AN28: 0
A29: 438 | B29: CODMAN ACADEMY CHARTER PUBLIC | C29: 212 | E29: 144.9820387 | F29: 191.4022571 | H29: 2837559 | I29: 46683 | J29: 170920 | K29: 3055162 | M29: 438 | N29: 191.4022571 | O29: 0 | P29: 144.9820387 | Q29: 2792895 | R29: 45717 | S29: 0 | T29: 2838612 | U29: 168241 | V29: 3006853 | W29: 44664 | X29: 966 | Y29: 45630 | Z29: 2679 | AA29: 48309 | AB29: 3055162 | AI29: 0 | AM29: 0 | AN29: 0
A30: 439 | B30: CONSERVATORY LAB | C30: 312 | E30: 0 | F30: 311.2169492 | H30: 4286301 | I30: 0 | J30: 277918 | K30: 4564219 | M30: 439 | N30: 311.2169492 | O30: 0 | P30: 0 | Q30: 4219595 | R30: 0 | S30: 0 | T30: 4219595 | U30: 273590 | V30: 4493185 | W30: 66706 | X30: 0 | Y30: 66706 | Z30: 4328 | AA30: 71034 | AB30: 4564219 | AI30: 0 | AM30: 0 | AN30: 0
A31: 440 | B31: COMMUNITY DAY CHARTER PUBLIC - PROSPECT | C31: 331 | E31: 103.1481481 | F31: 330.9090909 | H31: 3675274 | I31: 105727 | J31: 295502 | K31: 4076503 | M31: 440 | N31: 330.9090909 | O31: 0 | P31: 103.1481481 | Q31: 3675274 | R31: 105727 | S31: 0 | T31: 3781001 | U31: 295502 | V31: 4076503 | W31: 0 | X31: 0 | Y31: 0 | Z31: 0 | AA31: 0 | AB31: 4076503 | AI31: 0 | AM31: 0 | AN31: 0
A32: 441 | B32: SABIS INTERNATIONAL | C32: 1574 | E32: 0 | F32: 1571.734007 | H32: 16214958 | I32: 0 | J32: 1403559 | K32: 17618517 | M32: 441 | N32: 1571.734007 | O32: 0 | P32: 0 | Q32: 16174637 | R32: 0 | S32: 0 | T32: 16174637 | U32: 1400062 | V32: 17574699 | W32: 40321 | X32: 0 | Y32: 40321 | Z32: 3497 | AA32: 43818 | AB32: 17618517 | AI32: 0 | AM32: 0 | AN32: 0
A33: 443 | B33: EDWARD W. BROOKE TWO | C33: 362 | E33: 0 | F33: 360.6963512 | H33: 5010701 | I33: 0 | J33: 322099 | K33: 5332800 | M33: 443 | N33: 360.6963512 | O33: 0 | P33: 0 | Q33: 4968947 | R33: 0 | S33: 0 | T33: 4968947 | U33: 319420 | V33: 5288367 | W33: 41754 | X33: 0 | Y33: 41754 | Z33: 2679 | AA33: 44433 | AB33: 5332800 | AI33: 0 | AM33: 0 | AN33: 0
A34: 444 | B34: NEIGHBORHOOD HOUSE | C34: 400 | E34: 0 | F34: 398.257732 | H34: 5432866 | I34: 0 | J34: 353858 | K34: 5786724 | M34: 444 | N34: 398.257732 | O34: 0 | P34: 0 | Q34: 5432866 | R34: 0 | S34: 0 | T34: 5432866 | U34: 353858 | V34: 5786724 | W34: 0 | X34: 0 | Y34: 0 | Z34: 0 | AA34: 0 | AB34: 5786724 | AI34: 0 | AM34: 0 | AN34: 0
A35: 445 | B35: ABBY KELLEY FOSTER CHARTER PUBLIC | C35: 1426 | E35: 1100.97506 | F35: 1424.780754 | H35: 14961891 | I35: 923706 | J35: 1272329 | K35: 17157926 | M35: 445 | N35: 1424.780754 | O35: 0 | P35: 1100.97506 | Q35: 14951431 | R35: 922867 | S35: 0 | T35: 15874298 | U35: 1271436 | V35: 17145734 | W35: 10460 | X35: 839 | Y35: 11299 | Z35: 893 | AA35: 12192 | AB35: 17157926 | AI35: 0 | AM35: 0 | AN35: 0
A36: 446 | B36: FOXBOROUGH REGIONAL | C36: 1267 | E36: 0 | F36: 1261.564014 | H36: 12827259 | I36: 0 | J36: 1126578 | K36: 13953837 | M36: 446 | N36: 1261.564014 | O36: 0 | P36: 0 | Q36: 12755520 | R36: 0 | S36: 0 | T36: 12755520 | U36: 1120131 | V36: 13875651 | W36: 71739 | X36: 0 | Y36: 71739 | Z36: 6447 | AA36: 78186 | AB36: 13953837 | AI36: 0 | AM36: 0 | AN36: 0
A37: 447 | B37: BENJAMIN FRANKLIN CLASSICAL CHARTER PUBLIC | C37: 450 | E37: 0 | F37: 447.8133333 | H37: 4049192 | I37: 0 | J37: 398569 | K37: 4447761 | M37: 447 | N37: 447.8133333 | O37: 0 | P37: 0 | Q37: 4049192 | R37: 0 | S37: 0 | T37: 4049192 | U37: 398569 | V37: 4447761 | W37: 0 | X37: 0 | Y37: 0 | Z37: 0 | AA37: 0 | AB37: 4447761 | AI37: 0 | AM37: 0 | AN37: 0
A38: 449 | B38: BOSTON COLLEGIATE | C38: 657 | E38: 0 | F38: 642.7651007 | H38: 8226380 | I38: 0 | J38: 573985 | K38: 8800365 | M38: 449 | N38: 642.7651007 | O38: 0 | P38: 0 | Q38: 7891496 | R38: 0 | S38: 0 | T38: 7891496 | U38: 550648 | V38: 8442144 | W38: 334884 | X38: 0 | Y38: 334884 | Z38: 23337 | AA38: 358221 | AB38: 8800365 | AI38: 0 | AM38: 0 | AN38: 0
A39: 450 | B39: HILLTOWN COOPERATIVE CHARTER PUBLIC | C39: 175 | E39: 0 | F39: 174.8373702 | H39: 1924870 | I39: 0 | J39: 156131 | K39: 2081001 | M39: 450 | N39: 174.8373702 | O39: 0 | P39: 0 | Q39: 1846100 | R39: 0 | S39: 0 | T39: 1846100 | U39: 149883 | V39: 1995983 | W39: 78770 | X39: 0 | Y39: 78770 | Z39: 6248 | AA39: 85018 | AB39: 2081001 | AI39: 0 | AM39: 0 | AN39: 0
A40: 453 | B40: HOLYOKE COMMUNITY | C40: 702 | D40: 0.1632653061 | E40: 528.1768707 | F40: 702.1632653 | H40: 7912242 | I40: 422029 | J40: 626986 | K40: 8961257 | M40: 453 | N40: 702.1632653 | O40: 0.1632653061 | P40: 528.1768707 | Q40: 7912242 | R40: 422029 | S40: 0 | T40: 8334271 | U40: 626986 | V40: 8961257 | W40: 0 | X40: 0 | Y40: 0 | Z40: 0 | AA40: 0 | AB40: 8961257 | AI40: 0 | AM40: 0 | AN40: 0
A41: 454 | B41: LAWRENCE FAMILY DEVELOPMENT | C41: 657 | E41: 253.8945578 | F41: 655.8027211 | H41: 7488883 | I41: 176202 | J41: 585630 | K41: 8250715 | M41: 454 | N41: 655.8027211 | O41: 0 | P41: 253.8945578 | Q41: 7488883 | R41: 176202 | S41: 0 | T41: 7665085 | U41: 585630 | V41: 8250715 | W41: 0 | X41: 0 | Y41: 0 | Z41: 0 | AA41: 0 | AB41: 8250715 | AI41: 0 | AM41: 0 | AN41: 0
A42: 455 | B42: HILL VIEW MONTESSORI CHARTER PUBLIC | C42: 306 | E42: 0 | F42: 303.8027682 | H42: 2644254 | I42: 0 | J42: 271294 | K42: 2915548 | M42: 455 | N42: 303.8027682 | O42: 0 | P42: 0 | Q42: 2610487 | R42: 0 | S42: 0 | T42: 2610487 | U42: 267802 | V42: 2878289 | W42: 33767 | X42: 0 | Y42: 33767 | Z42: 3492 | AA42: 37259 | AB42: 2915548 | AI42: 0 | AM42: 0 | AN42: 0
A43: 456 | B43: LOWELL COMMUNITY CHARTER PUBLIC | C43: 640 | D43: 10.72297297 | E43: 0 | F43: 650.722973 | H43: 7619649 | I43: 0 | J43: 571389 | K43: 8191038 | M43: 456 | N43: 650.722973 | O43: 10.72297297 | P43: 0 | Q43: 7594075 | R43: 0 | S43: 0 | T43: 7594075 | U43: 569698 | V43: 8163773 | W43: 25574 | X43: 0 | Y43: 25574 | Z43: 1691 | AA43: 27265 | AB43: 8191038 | AI43: 0 | AM43: 0 | AN43: 0
A44: 457 | B44: EDWARD W. BROOKE THREE | C44: 290 | E44: 0 | F44: 287.3601286 | H44: 3902000 | I44: 0 | J44: 256613 | K44: 4158613 | M44: 457 | N44: 287.3601286 | O44: 0 | P44: 0 | Q44: 3859064 | R44: 0 | S44: 0 | T44: 3859064 | U44: 253934 | V44: 4112998 | W44: 42936 | X44: 0 | Y44: 42936 | Z44: 2679 | AA44: 45615 | AB44: 4158613 | AI44: 0 | AM44: 0 | AN44: 0
A45: 458 | B45: LOWELL MIDDLESEX ACADEMY | C45: 146 | E45: 0 | F45: 117.7142857 | H45: 1348836 | I45: 0 | J45: 105123 | K45: 1453959 | M45: 458 | N45: 117.7142857 | O45: 0 | P45: 0 | Q45: 1348836 | R45: 0 | S45: 0 | T45: 1348836 | U45: 105123 | V45: 1453959 | W45: 0 | X45: 0 | Y45: 0 | Z45: 0 | AA45: 0 | AB45: 1453959 | AI45: 0 | AM45: 0 | AN45: 0
A46: 459 | B46: EXCEL ACADEMY - BOSTON II | C46: 112 | E46: 0 | F46: 111.6336634 | H46: 1625771 | I46: 0 | J46: 99689 | K46: 1725460 | M46: 459 | N46: 111.6336634 | O46: 0 | P46: 0 | Q46: 1582037 | R46: 0 | S46: 0 | T46: 1582037 | U46: 97010 | V46: 1679047 | W46: 43734 | X46: 0 | Y46: 43734 | Z46: 2679 | AA46: 46413 | AB46: 1725460 | AI46: 0 | AM46: 0 | AN46: 0
A47: 461 | B47: EXCEL ACADEMY - CHELSEA | C47: 168 | E47: 0 | F47: 167.2640264 | H47: 1918024 | I47: 0 | J47: 149369 | K47: 2067393 | M47: 461 | N47: 167.2640264 | O47: 0 | P47: 0 | Q47: 1918024 | R47: 0 | S47: 0 | T47: 1918024 | U47: 149369 | V47: 2067393 | W47: 0 | X47: 0 | Y47: 0 | Z47: 0 | AA47: 0 | AB47: 2067393 | AI47: 0 | AM47: 0 | AN47: 0
A48: 463 | B48: KIPP ACADEMY BOSTON | C48: 144 | E48: 141.6433333 | F48: 143.6433333 | H48: 2159373 | I48: 155527 | J48: 128273 | K48: 2443173 | M48: 463 | N48: 143.6433333 | O48: 0 | P48: 141.6433333 | Q48: 2129263 | R48: 153331 | S48: 0 | T48: 2282594 | U48: 126487 | V48: 2409081 | W48: 30110 | X48: 2196 | Y48: 32306 | Z48: 1786 | AA48: 34092 | AB48: 2443173 | AI48: 0 | AM48: 0 | AN48: 0
A49: 464 | B49: MARBLEHEAD COMMUNITY CHARTER PUBLIC | C49: 230 | E49: 0 | F49: 229.9597315 | H49: 2465343 | I49: 0 | J49: 205374 | K49: 2670717 | M49: 464 | N49: 229.9597315 | O49: 0 | P49: 0 | Q49: 2406829 | R49: 0 | S49: 0 | T49: 2406829 | U49: 200394 | V49: 2607223 | W49: 58514 | X49: 0 | Y49: 58514 | Z49: 4980 | AA49: 63494 | AB49: 2670717 | AI49: 0 | AM49: 0 | AN49: 0
A50: 465 | B50: MATCH COMMUNITY DAY CHARTER PUBLIC | C50: 300 | E50: 0 | F50: 299.976431 | H50: 4752826 | I50: 0 | J50: 267879 | K50: 5020705 | M50: 465 | N50: 299.976431 | O50: 0 | P50: 0 | Q50: 4736982 | R50: 0 | S50: 0 | T50: 4736982 | U50: 266986 | V50: 5003968 | W50: 15844 | X50: 0 | Y50: 15844 | Z50: 893 | AA50: 16737 | AB50: 5020705 | AI50: 0 | AM50: 0 | AN50: 0
A51: 466 | B51: MARTHA'S VINEYARD PUBLIC CHARTER | C51: 180 | D51: 0.006944444444 | E51: 41.08333333 | F51: 180.0069444 | H51: 3754655.402 | I51: 33976 | J51: 160746 | K51: 3949377.402 | M51: 466 | N51: 180.0069444 | O51: 0.006944444444 | P51: 41.08333333 | Q51: 3708661 | R51: 33149 | S51: 162469.5975 | T51: 3579340.402 | U51: 153645 | V51: 3732985.402 | W51: 208464 | X51: 827 | Y51: 209291 | Z51: 7101 | AA51: 216392 | AB51: 3949377.402 | AI51: 0 | AM51: 0 | AN51: 0
A52: 469 | B52: MATCH CHARTER PUBLIC | C52: 496 | D52: 5.852998378 | E52: 262.6877686 | F52: 501.8529984 | H52: 7051300 | I52: 87739 | J52: 443122 | K52: 7582161 | M52: 469 | N52: 501.8529984 | O52: 5.852998378 | P52: 262.6877686 | Q52: 6994984 | R52: 87071 | S52: 0 | T52: 7082055 | U52: 439590 | V52: 7521645 | W52: 56316 | X52: 668 | Y52: 56984 | Z52: 3532 | AA52: 60516 | AB52: 7582161 | AI52: 0 | AM52: 0 | AN52: 0
A53: 470 | B53: MYSTIC VALLEY REGIONAL | C53: 1500 | E53: 109 | F53: 1492.825806 | H53: 14838237 | I53: 75646 | J53: 1333093 | K53: 16246976 | M53: 470 | N53: 1492.825806 | O53: 0 | P53: 109 | Q53: 14838237 | R53: 75646 | S53: 0 | T53: 14913883 | U53: 1333093 | V53: 16246976 | W53: 0 | X53: 0 | Y53: 0 | Z53: 0 | AA53: 0 | AB53: 16246976 | AI53: 0 | AM53: 0 | AN53: 0
A54: 474 | B54: NORTH CENTRAL CHARTER ESSENTIAL | C54: 386 | E54: 0 | F54: 318.4097222 | H54: 3500512 | I54: 0 | J54: 284338 | K54: 3784850 | M54: 474 | N54: 318.4097222 | O54: 0 | P54: 0 | Q54: 3446918 | R54: 0 | S54: 0 | T54: 3446918 | U54: 279873 | V54: 3726791 | W54: 53594 | X54: 0 | Y54: 53594 | Z54: 4465 | AA54: 58059 | AB54: 3784850 | AI54: 0 | AM54: 0 | AN54: 0
A55: 475 | B55: DORCHESTER COLLEGIATE ACADEMY | C55: 200 | E55: 0 | F55: 189.9527027 | H55: 2526885 | I55: 0 | J55: 169627 | K55: 2696512 | M55: 475 | N55: 189.9527027 | O55: 0 | P55: 0 | Q55: 2500266 | R55: 0 | S55: 0 | T55: 2500266 | U55: 167838 | V55: 2668104 | W55: 26619 | X55: 0 | Y55: 26619 | Z55: 1789 | AA55: 28408 | AB55: 2696512 | AI55: 0 | AM55: 0 | AN55: 0
A56: 476 | B56: SPIRIT OF KNOWLEDGE | C56: 214 | E56: 0 | F56: 39.62711864 | H56: 429342 | I56: 0 | J56: 35404 | K56: 464746 | M56: 476 | N56: 39.62711864 | O56: 0 | P56: 0 | Q56: 429342 | R56: 0 | S56: 0 | T56: 429342 | U56: 35404 | V56: 464746 | W56: 0 | X56: 0 | Y56: 0 | Z56: 0 | AA56: 0 | AB56: 464746 | AI56: 0 | AM56: 0 | AN56: 0
A57: 478 | B57: FRANCIS W. PARKER CHARTER ESSENTIAL | C57: 400 | E57: 0 | F57: 398.1821429 | H57: 4436795 | I57: 0 | J57: 355577 | K57: 4792372 | M57: 478 | N57: 398.1821429 | O57: 0 | P57: 0 | Q57: 4206740 | R57: 0 | S57: 0 | T57: 4206740 | U57: 336545 | V57: 4543285 | W57: 230055 | X57: 0 | Y57: 230055 | Z57: 19032 | AA57: 249087 | AB57: 4792372 | AI57: 0 | AM57: 0 | AN57: 0
A58: 479 | B58: PIONEER VALLEY PERFORMING ARTS CHARTER PUBLIC | C58: 400 | D58: 3.230508475 | E58: 0 | F58: 403.2305085 | H58: 4576336 | I58: 0 | J58: 357252 | K58: 4933588 | M58: 479 | N58: 403.2305085 | O58: 3.230508475 | P58: 0 | Q58: 4379163 | R58: 0 | S58: 0 | T58: 4379163 | U58: 342133 | V58: 4721296 | W58: 197173 | X58: 0 | Y58: 197173 | Z58: 15119 | AA58: 212292 | AB58: 4933588 | AI58: 0 | AM58: 0 | AN58: 0
A59: 481 | B59: BOSTON RENAISSANCE CHARTER PUBLIC | C59: 944 | E59: 0 | F59: 941.1334745 | H59: 13162579 | I59: 0 | J59: 832396 | K59: 13994975 | M59: 481 | N59: 941.1334745 | O59: 0 | P59: 0 | Q59: 13077229 | R59: 0 | S59: 0 | T59: 13077229 | U59: 827038 | V59: 13904267 | W59: 85350 | X59: 0 | Y59: 85350 | Z59: 5358 | AA59: 90708 | AB59: 13994975 | AI59: 0 | AM59: 0 | AN59: 0
A60: 482 | B60: RIVER VALLEY | C60: 288 | E60: 0 | F60: 287.8321918 | H60: 3069580 | I60: 0 | J60: 257036 | K60: 3326616 | M60: 482 | N60: 287.8321918 | O60: 0 | P60: 0 | Q60: 3048509 | R60: 0 | S60: 0 | T60: 3048509 | U60: 255250 | V60: 3303759 | W60: 21071 | X60: 0 | Y60: 21071 | Z60: 1786 | AA60: 22857 | AB60: 3326616 | AI60: 0 | AM60: 0 | AN60: 0
A61: 483 | B61: RISING TIDE CHARTER PUBLIC | C61: 589 | E61: 0 | F61: 520.0793103 | H61: 5319021 | I61: 0 | J61: 464431 | K61: 5783452 | M61: 483 | N61: 520.0793103 | O61: 0 | P61: 0 | Q61: 5123379 | R61: 0 | S61: 0 | T61: 5123379 | U61: 447443 | V61: 5570822 | W61: 195642 | X61: 0 | Y61: 195642 | Z61: 16988 | AA61: 212630 | AB61: 5783452 | AI61: 0 | AM61: 0 | AN61: 0
A62: 484 | B62: ROXBURY PREPARATORY | C62: 715 | D62: 1.789297659 | E62: 598.7625418 | F62: 716.7892977 | H62: 9850205 | I62: 247888 | J62: 638650 | K62: 10736743 | M62: 484 | N62: 716.7892977 | O62: 1.789297659 | P62: 598.7625418 | Q62: 9672012 | R62: 243346 | S62: 0 | T62: 9915358 | U62: 627094 | V62: 10542452 | W62: 178193 | X62: 4542 | Y62: 182735 | Z62: 11556 | AA62: 194291 | AB62: 10736743 | AI62: 0 | AM62: 0 | AN62: 0
A63: 485 | B63: SALEM ACADEMY | C63: 372 | E63: 0 | F63: 371.8376623 | H63: 4420468 | I63: 0 | J63: 332049 | K63: 4752517 | M63: 485 | N63: 371.8376623 | O63: 0 | P63: 0 | Q63: 4397964 | R63: 0 | S63: 0 | T63: 4397964 | U63: 330263 | V63: 4728227 | W63: 22504 | X63: 0 | Y63: 22504 | Z63: 1786 | AA63: 24290 | AB63: 4752517 | AI63: 0 | AM63: 0 | AN63: 0
A64: 486 | B64: SEVEN HILLS CHARTER PUBLIC | C64: 666 | E64: 0 | F64: 664.0402477 | H64: 7329144 | I64: 0 | J64: 592987 | K64: 7922131 | M64: 486 | N64: 664.0402477 | O64: 0 | P64: 0 | Q64: 7318094 | R64: 0 | S64: 0 | T64: 7318094 | U64: 592094 | V64: 7910188 | W64: 11050 | X64: 0 | Y64: 11050 | Z64: 893 | AA64: 11943 | AB64: 7922131 | AI64: 0 | AM64: 0 | AN64: 0
A65: 487 | B65: PROSPECT HILL ACADEMY | C65: 1165 | E65: 0 | F65: 1149.225694 | H65: 16720721 | I65: 0 | J65: 1026263 | K65: 17746984 | M65: 487 | N65: 1149.225694 | O65: 0 | P65: 0 | Q65: 16553933 | R65: 0 | S65: 0 | T65: 16553933 | U65: 1016180 | V65: 17570113 | W65: 166788 | X65: 0 | Y65: 166788 | Z65: 10083 | AA65: 176871 | AB65: 17746984 | AI65: 0 | AM65: 0 | AN65: 0
A66: 488 | B66: SOUTH SHORE CHARTER PUBLIC | C66: 569 | E66: 0 | F66: 564.3016949 | H66: 6220078 | I66: 0 | J66: 503922 | K66: 6724000 | M66: 488 | N66: 564.3016949 | O66: 0 | P66: 0 | Q66: 6117110 | R66: 0 | S66: 0 | T66: 6117110 | U66: 496239 | V66: 6613349 | W66: 102968 | X66: 0 | Y66: 102968 | Z66: 7683 | AA66: 110651 | AB66: 6724000 | AI66: 0 | AM66: 0 | AN66: 0
A67: 489 | B67: STURGIS CHARTER PUBLIC | C67: 800 | D67: 3.261904762 | E67: 0 | F67: 803.2619048 | H67: 10166245 | I67: 0 | J67: 714108 | K67: 10880353 | M67: 489 | N67: 803.2619048 | O67: 3.261904762 | P67: 0 | Q67: 9735729 | R67: 0 | S67: 0 | T67: 9735729 | U67: 682901 | V67: 10418630 | W67: 430516 | X67: 0 | Y67: 430516 | Z67: 31207 | AA67: 461723 | AB67: 10880353 | AI67: 0 | AM67: 0 | AN67: 0
A68: 491 | B68: ATLANTIS | C68: 795 | E68: 0 | F68: 793.6241222 | H68: 7952993 | I68: 0 | J68: 708709 | K68: 8661702 | M68: 491 | N68: 793.6241222 | O68: 0 | P68: 0 | Q68: 7913119 | R68: 0 | S68: 0 | T68: 7913119 | U68: 705140 | V68: 8618259 | W68: 39874 | X68: 0 | Y68: 39874 | Z68: 3569 | AA68: 43443 | AB68: 8661702 | AI68: 0 | AM68: 0 | AN68: 0
A69: 492 | B69: MARTIN LUTHER KING JR CS OF EXCELLENCE | C69: 360 | D69: 7.249636025 | E69: 0 | F69: 367.4376292 | H69: 4083565 | I69: 0 | J69: 321364 | K69: 4404929 | M69: 492 | N69: 367.4376292 | O69: 7.249636025 | P69: 0 | Q69: 4039141 | R69: 0 | S69: 0 | T69: 4039141 | U69: 317864 | V69: 4357005 | W69: 44424 | X69: 0 | Y69: 44424 | Z69: 3500 | AA69: 47924 | AB69: 4404929 | AI69: 0 | AM69: 0 | AN69: 0
A70: 493 | B70: PHOENIX CHARTER ACADEMY | C70: 200 | E70: 0 | F70: 187.3401628 | H70: 2429077 | I70: 0 | J70: 167282 | K70: 2596359 | M70: 493 | N70: 187.3401628 | O70: 0 | P70: 0 | Q70: 2416234 | R70: 0 | S70: 0 | T70: 2416234 | U70: 166469 | V70: 2582703 | W70: 12843 | X70: 0 | Y70: 12843 | Z70: 813 | AA70: 13656 | AB70: 2596359 | AI70: 0 | AM70: 0 | AN70: 0
A71: 494 | B71: PIONEER CHARTER SCHOOL OF SCIENCE | C71: 360 | E71: 0 | F71: 354.1401274 | H71: 4125778 | I71: 0 | J71: 316247 | K71: 4442025 | M71: 494 | N71: 354.1401274 | O71: 0 | P71: 0 | Q71: 3993392 | R71: 0 | S71: 0 | T71: 3993392 | U71: 306654 | V71: 4300046 | W71: 132386 | X71: 0 | Y71: 132386 | Z71: 9593 | AA71: 141979 | AB71: 4442025 | AI71: 0 | AM71: 0 | AN71: 0
A72: 496 | B72: GLOBAL LEARNING CHARTER PUBLIC | C72: 500 | E72: 212.3944637 | F72: 499.8927336 | H72: 5266447 | I72: 142303 | J72: 446407 | K72: 5855157 | M72: 496 | N72: 499.8927336 | O72: 0 | P72: 212.3944637 | Q72: 5240487 | R72: 141633 | S72: 0 | T72: 5382120 | U72: 444210 | V72: 5826330 | W72: 25960 | X72: 670 | Y72: 26630 | Z72: 2197 | AA72: 28827 | AB72: 5855157 | AI72: 0 | AM72: 0 | AN72: 0
A73: 497 | B73: PIONEER VALLEY CHINESE IMMERSION | C73: 341 | E73: 0 | F73: 320.9204152 | H73: 3687518 | I73: 0 | J73: 286581 | K73: 3974099 | M73: 497 | N73: 320.9204152 | O73: 0 | P73: 0 | Q73: 3665473 | R73: 0 | S73: 0 | T73: 3665473 | U73: 284795 | V73: 3950268 | W73: 22045 | X73: 0 | Y73: 22045 | Z73: 1786 | AA73: 23831 | AB73: 3974099 | AI73: 0 | AM73: 0 | AN73: 0
A74: 498 | B74: VERITAS PREPARATORY | C74: 162 | E74: 0 | F74: 158.9675325 | H74: 1787277 | I74: 0 | J74: 141959 | K74: 1929236 | M74: 498 | N74: 158.9675325 | O74: 0 | P74: 0 | Q74: 1776034 | R74: 0 | S74: 0 | T74: 1776034 | U74: 141066 | V74: 1917100 | W74: 11243 | X74: 0 | Y74: 11243 | Z74: 893 | AA74: 12136 | AB74: 1929236 | AI74: 0 | AM74: =SUM(AJ74:AL74) -> 0 | AN74: 0
A75: 499 | B75: HAMPDEN CHARTER SCHOOL OF SCIENCE | C75: 350 | D75: =IF(O75=0,"",O75) -> 0.5317029833 | E75: =P75 -> 0 | F75: =N75 -> 350.531703 | H75: =Q75-S75+W75+AF75+AJ75 -> 3835789 | I75: =R75+X75+AG75+AK75 -> 0 | J75: =U75+Z75+AH75+AL75 -> 312671 | K75: =SUM(H75:J75) -> 4148460 | M75: 499 | N75: 350.531703 | O75: 0.5317029833 | P75: 0 | Q75: 3749977 | R75: 0 | S75: 0 | T75: 3749977 | U75: 305535 | V75: 4055512 | W75: 85812 | X75: 0 | Y75: 85812 | Z75: 7136 | AA75: 92948 | AB75: 4148460 | AI75: =SUM(AF75:AH75) -> 0 | AM75: 0 | AN75: =AI75+AM75 -> 0
A76: 3501 | B76: PAULO FREIRE SOCIAL JUSTICE | C76: 145 | D76: 2.664359862 | E76: 73.5017301 | F76: 147.6643599 | H76: 1770045 | I76: 73353 | J76: 129499 | K76: 1972897 | M76: 3501 | N76: 147.6643599 | O76: 2.664359862 | P76: 73.5017301 | Q76: 1736341 | R76: 73353 | S76: 0 | T76: 1809694 | U76: 126871 | V76: 1936565 | W76: 33704 | X76: 0 | Y76: 33704 | Z76: 2628 | AA76: 36332 | AB76: 1972897 | AI76: 0 | AM76: 0 | AN76: 0
A77: 3502 | B77: BAYSTATE ACADEMY | C77: 160 | E77: 0 | F77: 157.6324503 | H77: 1856917 | I77: 0 | J77: 140770 | K77: 1997687 | M77: 3502 | N77: 157.6324503 | O77: 0 | P77: 0 | Q77: 1845141 | R77: 0 | S77: 0 | T77: 1845141 | U77: 139877 | V77: 1985018 | W77: 11776 | X77: 0 | Y77: 11776 | Z77: 893 | AA77: 12669 | AB77: 1997687 | AI77: 0 | AM77: 0 | AN77: 0
A78: 3503 | B78: LOWELL COLLEGIATE | C78: 343 | E78: 0 | F78: 267.4843206 | H78: 3071175 | I78: 0 | J78: 238868 | K78: 3310043 | M78: 3503 | N78: 267.4843206 | O78: 0 | P78: 0 | Q78: 2821563 | R78: 0 | S78: 0 | T78: 2821563 | U78: 219266 | V78: 3040829 | W78: 249612 | X78: 0 | Y78: 249612 | Z78: 19602 | AA78: 269214 | AB78: 3310043 | AI78: 0 | AM78: 0 | AN78: 0
A79: 3504 | B79: CITY ON A HILL - II | C79: 110 | D79: 0.5548172757 | E79: 69.29568106 | F79: 110.5548173 | H79: 1640670 | I79: 31529 | J79: 98275 | K79: 1770474 | M79: 3504 | N79: 110.5548173 | O79: 0.5548172757 | P79: 69.29568106 | Q79: 1524532 | R79: 29709 | S79: 0 | T79: 1554241 | U79: 91320 | V79: 1645561 | W79: 116138 | X79: 1820 | Y79: 117958 | Z79: 6955 | AA79: 124913 | AB79: 1770474 | AI79: 0 | AM79: 0 | AN79: 0
A80: 3506 | B80: PIONEER CHARTER SCHOOL OF SCIENCE II | C80: 180 | E80: 0 | F80: 166.066879 | H80: 1955848 | I80: 0 | J80: 147861 | K80: 2103709 | M80: 3506 | N80: 166.066879 | O80: 0 | P80: 0 | Q80: 1652888 | R80: 0 | S80: 0 | T80: 1652888 | U80: 124881 | V80: 1777769 | W80: 302960 | X80: 0 | Y80: 302960 | Z80: 22980 | AA80: 325940 | AB80: 2103709 | AI80: 0 | AM80: 0 | AN80: 0
A81: 999 | B81: STATE TOTAL | C81: =SUM(C10:C80) -> 31828 | D81: =SUM(D10:D80) -> 98.16110635 | E81: =SUM(E10:E80) -> 4407.046856 | F81: =SUM(F10:F80) -> 31234.77136 | H81: =SUM(H10:H80) -> 373524453.4 | I81: =SUM(I10:I80) -> 3114298 | J81: =SUM(J10:J80) -> 27794039 | K81: =SUM(K10:K80) -> 404432790.4 | M81: 999 | N81: =SUM(N10:N80) -> 31234.77136 | O81: 98.16110635 | P81: 4407.046856 | Q81: 368179113 | R81: 3093323 | S81: 162469.5975 | T81: 371109966.4 | U81: 27397206 | V81: 398507172.4 | W81: 5507810 | X81: 20975 | Y81: 5528785 | Z81: 396833 | AA81: 5925618 | AB81: 404432790.4 | AD81: 999 | AE81: =SUM(AE10:AE80) -> 0 | AF81: 0 | AG81: 0 | AH81: 0 | AI81: 0 | AJ81: 0 | AK81: 0 | AL81: 0 | AM81: 0 | AN81: 0

Sheet FY13 Sch_Func (hidden)
A1: 13CSEOYFR Functional Expenditure Raw Data
A2: Return to Index
B3: 1 | C3: 2 | D3: 3 | E3: 4 | F3: 5 | G3: 6 | H3: 7 | I3: 8 | J3: 9 | K3: 10 | L3: 11 | M3: 12 | O3: Line 900's OKAY
A4: FY | B4: vlookup | C4: cha_code | D4: cha_type | E4: FuncExp_id | F4: Line_Desc | G4: general | H4: sped | I4: undist | J4: state | K4: federal | L4: private | M4: total | N4: lookup | O4: Horiz. Check | P4: Vert. Check
A5: 2013 | B5: =C5&E5 -> 407100 | C5: 407 | D5: HM | E5: 100 | F5: Administration | G5: 0 | H5: 0 | I5: 115743 | J5: 0 | K5: 31489 | L5: 0 | M5: 147232 | N5: =D5&E5 -> HM100
A6: 2013 | B6: =C6&E6 -> 407110 | C6: 407 | D6: HM | E6: 110 | F6: Subtotal - Board of Trustees | G6: 0 | H6: 0 | I6: 237 | J6: 0 | K6: 0 | L6: 0 | M6: 237 | N6: =D6&E6 -> HM110
A7: 2013 | B7: 407111 | C7: 407 | D7: HM | E7: 111 | F7: Contracted Services | G7: 0 | H7: 0 | I7: 0 | J7: 0 | K7: 0 | L7: 0 | M7: 0 | N7: HM111
A8: 2013 | B8: 407112 | C8: 407 | D8: HM | E8: 112 | F8: Travel and other expenses | G8: 0 | H8: 0 | I8: 237 | J8: 0 | K8: 0 | L8: 0 | M8: 237 | N8: HM112
A9: 2013 | B9: 407120 | C9: 407 | D9: HM | E9: 120 | F9: Subtotal - School Leaders | G9: 0 | H9: 0 | I9: 65400 | J9: 0 | K9: 0 | L9: 0 | M9: 65400 | N9: HM120
A10: 2013 | B10: 407121 | C10: 407 | D10: HM | E10: 121 | F10: Salaries - Professional | G10: 0 | H10: 0 | I10: 0 | J10: 0 | K10: 0 | L10: 0 | M10: 0 | N10: HM121
A11: 2013 | B11: 407122 | C11: 407 | D11: HM | E11: 122 | F11: Contracted Services | G11: 0 | H11: 0 | I11: 65400 | J11: 0 | K11: 0 | L11: 0 | M11: 65400 | N11: HM122
A12: 2013 | B12: 407130 | C12: 407 | D12: HM | E12: 130 | F12: Subtotal - Business and Finance | G12: 0 | H12: 0 | I12: 19500 | J12: 0 | K12: 0 | L12: 0 | M12: 19500 | N12: HM130
A13: 2013 | B13: 407131 | C13: 407 | D13: HM | E13: 131 | F13: Salaries - Professional | G13: 0 | H13: 0 | I13: 0 | J13: 0 | K13: 0 | L13: 0 | M13: 0 | N13: HM131
A14: 2013 | B14: 407132 | C14: 407 | D14: HM | E14: 132 | F14: Contracted Services | G14: 0 | H14: 0 | I14: 19500 | J14: 0 | K14: 0 | L14: 0 | M14: 19500 | N14: HM132
A15: 2013 | B15: 407140 | C15: 407 | D15: HM | E15: 140 | F15: Subtotal - Human Resources | G15: 0 | H15: 0 | I15: 0 | J15: 0 | K15: 0 | L15: 0 | M15: 0 | N15: HM140
A16: 2013 | B16: 407141 | C16: 407 | D16: HM | E16: 141 | F16: Salaries - Professional | G16: 0 | H16: 0 | I16: 0 | J16: 0 | K16: 0 | L16: 0 | M16: 0 | N16: HM141
A17: 2013 | B17: 407142 | C17: 407 | D17: HM | E17: 142 | F17: Contracted Services | G17: 0 | H17: 0 | I17: 0 | J17: 0 | K17: 0 | L17: 0 | M17: 0 | N17: HM142
A18: 2013 | B18: 407150 | C18: 407 | D18: HM | E18: 150 | F18: Subtotal - Legal Services | G18: 0 | H18: 0 | I18: 663 | J18: 0 | K18: 0 | L18: 0 | M18: 663 | N18: HM150
A19: 2013 | B19: 407151 | C19: 407 | D19: HM | E19: 151 | F19: Salaries - Professional | G19: 0 | H19: 0 | I19: 0 | J19: 0 | K19: 0 | L19: 0 | M19: 0 | N19: HM151
A20: 2013 | B20: 407152 | C20: 407 | D20: HM | E20: 152 | F20: Contracted Services | G20: 0 | H20: 0 | I20: 663 | J20: 0 | K20: 0 | L20: 0 | M20: 663 | N20: HM152
A21: 2013 | B21: 407160 | C21: 407 | D21: HM | E21: 160 | F21: Subtotal - Info. Management & Technology | G21: 0 | H21: 0 | I21: 0 | J21: 0 | K21: 13175 | L21: 0 | M21: 13175 | N21: HM160
A22: 2013 | B22: 407161 | C22: 407 | D22: HM | E22: 161 | F22: Salaries - Professional | G22: 0 | H22: 0 | I22: 0 | J22: 0 | K22: 0 | L22: 0 | M22: 0 | N22: HM161
A23: 2013 | B23: 407162 | C23: 407 | D23: HM | E23: 162 | F23: Contracted Services | G23: 0 | H23: 0 | I23: 0 | J23: 0 | K23: 13175 | L23: 0 | M23: 13175 | N23: HM162
A24: 2013 | B24: 407163 | C24: 407 | D24: HM | E24: 163 | F24: Supplies and Materials | G24: 0 | H24: 0 | I24: 0 | J24: 0 | K24: 0 | L24: 0 | M24: 0 | N24: HM163
A25: 2013 | B25: 407164 | C25: 407 | D25: HM | E25: 164 | F25: Depreciation for Information Technology | G25: 0 | H25: 0 | I25: 0 | J25: 0 | K25: 0 | L25: 0 | M25: 0 | N25: HM164
A26: 2013 | B26: 407170 | C26: 407 | D26: HM | E26: 170 | F26: Subtotal - Development | G26: 0 | H26: 0 | I26: 0 | J26: 0 | K26: 0 | L26: 0 | M26: 0 | N26: HM170
A27: 2013 | B27: 407171 | C27: 407 | D27: HM | E27: 171 | F27: Salaries - Professional | G27: 0 | H27: 0 | I27: 0 | J27: 0 | K27: 0 | L27: 0 | M27: 0 | N27: HM171
A28: 2013 | B28: 407172 | C28: 407 | D28: HM | E28: 172 | F28: Contracted Services | G28: 0 | H28: 0 | I28: 0 | J28: 0 | K28: 0 | L28: 0 | M28: 0 | N28: HM172
A29: 2013 | B29: 407173 | C29: 407 | D29: HM | E29: 173 | F29: Fundraising | G29: 0 | H29: 0 | I29: 0 | J29: 0 | K29: 0 | L29: 0 | M29: 0 | N29: HM173
A30: 2013 | B30: 407180 | C30: 407 | D30: HM | E30: 180 | F30: Subtotal - Other Administration | G30: 0 | H30: 0 | I30: 29943 | J30: 0 | K30: 18314 | L30: 0 | M30: 48257 | N30: HM180
A31: 2013 | B31: 407181 | C31: 407 | D31: HM | E31: 181 | F31: Salaries - Clerical | G31: 0 | H31: 0 | I31: 23365 | J31: 0 | K31: 0 | L31: 0 | M31: 23365 | N31: HM181
A32: 2013 | B32: 407182 | C32: 407 | D32: HM | E32: 182 | F32: Recruitment/Advertising | G32: 0 | H32: 0 | I32: 1529 | J32: 0 | K32: 0 | L32: 0 | M32: 1529 | N32: HM182
A33: 2013 | B33: 407183 | C33: 407 | D33: HM | E33: 183 | F33: Travel, Dues, and other expenses | G33: 0 | H33: 0 | I33: 912 | J33: 0 | K33: 18314 | L33: 0 | M33: 19226 | N33: HM183
A34: 2013 | B34: 407184 | C34: 407 | D34: HM | E34: 184 | F34: Supplies and Materials | G34: 0 | H34: 0 | I34: 4137 | J34: 0 | K34: 0 | L34: 0 | M34: 4137 | N34: HM184
A35: 2013 | B35: 407200 | C35: 407 | D35: HM | E35: 200 | F35: Instructional Services | G35: 778370 | H35: 277896 | I35: 44046 | J35: 0 | K35: 362151 | L35: 0 | M35: 1462463 | N35: HM200
A36: 2013 | B36: 407210 | C36: 407 | D36: HM | E36: 210 | F36: Subtotal - Instructional Leadership | G36: 169214 | H36: 109780 | I36: 38400 | J36: 0 | K36: 1576 | L36: 0 | M36: 318970 | N36: HM210
A37: 2013 | B37: 407211 | C37: 407 | D37: HM | E37: 211 | F37: Salaries - Professional | G37: 152859 | H37: 107443 | I37: 32403 | J37: 0 | K37: 0 | L37: 0 | M37: 292705 | N37: HM211
A38: 2013 | B38: 407212 | C38: 407 | D38: HM | E38: 212 | F38: Salaries - Clerical | G38: 16355 | H38: 2337 | I38: 4673 | J38: 0 | K38: 0 | L38: 0 | M38: 23365 | N38: HM212
A39: 2013 | B39: 407213 | C39: 407 | D39: HM | E39: 213 | F39: Contracted Services | G39: 0 | H39: 0 | I39: 0 | J39: 0 | K39: 0 | L39: 0 | M39: 0 | N39: HM213
A40: 2013 | B40: 407214 | C40: 407 | D40: HM | E40: 214 | F40: Supplies and Materials | G40: 0 | H40: 0 | I40: 1324 | J40: 0 | K40: 1576 | L40: 0 | M40: 2900 | N40: HM214
A41: 2013 | B41: 407215 | C41: 407 | D41: HM | E41: 215 | F41: Travel and other expenses | G41: 0 | H41: 0 | I41: 0 | J41: 0 | K41: 0 | L41: 0 | M41: 0 | N41: HM215
A42: 2013 | B42: 407220 | C42: 407 | D42: HM | E42: 220 | F42: Subtotal - Classroom and Specialist Teachers | G42: 496498 | H42: 55166 | I42: 0 | J42: 0 | K42: 0 | L42: 0 | M42: 551664 | N42: HM220
A43: 2013 | B43: 407221 | C43: 407 | D43: HM | E43: 221 | F43: Salaries - Teachers, Classroom | G43: 496498 | H43: 55166 | I43: 0 | J43: 0 | K43: 0 | L43: 0 | M43: 551664 | N43: HM221
A44: 2013 | B44: 407222 | C44: 407 | D44: HM | E44: 222 | F44: Salaries - Teachers, Specialists | G44: 0 | H44: 0 | I44: 0 | J44: 0 | K44: 0 | L44: 0 | M44: 0 | N44: HM222
A45: 2013 | B45: 407230 | C45: 407 | D45: HM | E45: 230 | F45: Subtotal - Other Teaching Services | G45: 566 | H45: 5092 | I45: 0 | J45: 0 | K45: 134927 | L45: 0 | M45: 140585 | N45: HM230
A46: 2013 | B46: 407231 | C46: 407 | D46: HM | E46: 231 | F46: Salaries - Professional | G46: 0 | H46: 0 | I46: 0 | J46: 0 | K46: 0 | L46: 0 | M46: 0 | N46: HM231
A47: 2013 | B47: 407232 | C47: 407 | D47: HM | E47: 232 | F47: Salaries - Nonclerical Paraprofessionals | G47: 0 | H47: 0 | I47: 0 | J47: 0 | K47: 0 | L47: 0 | M47: 0 | N47: HM232
A48: 2013 | B48: 407233 | C48: 407 | D48: HM | E48: 233 | F48: Salaries - Clerical | G48: 0 | H48: 0 | I48: 0 | J48: 0 | K48: 0 | L48: 0 | M48: 0 | N48: HM233
A49: 2013 | B49: 407234 | C49: 407 | D49: HM | E49: 234 | F49: Contracted Services | G49: 566 | H49: 5092 | I49: 0 | J49: 0 | K49: 134927 | L49: 0 | M49: 140585 | N49: HM234
A50: 2013 | B50: 407240 | C50: 407 | D50: HM | E50: 240 | F50: Subtotal - Professional Development | G50: 4756 | H50: 528 | I50: 5646 | J50: 0 | K50: 41792 | L50: 0 | M50: 52722 | N50: HM240
A51: 2013 | B51: 407241 | C51: 407 | D51: HM | E51: 241 | F51: Salaries - Professional | G51: 0 | H51: 0 | I51: 0 | J51: 0 | K51: 0 | L51: 0 | M51: 0 | N51: HM241
A52: 2013 | B52: 407242 | C52: 407 | D52: HM | E52: 242 | F52: Contracted Services | G52: 4756 | H52: 528 | I52: 0 | J52: 0 | K52: 33151 | L52: 0 | M52: 38435 | N52: HM242
A53: 2013 | B53: 407243 | C53: 407 | D53: HM | E53: 243 | F53: Supplies and Materials | G53: 0 | H53: 0 | I53: 0 | J53: 0 | K53: 8641 | L53: 0 | M53: 8641 | N53: HM243
A54: 2013 | B54: 407244 | C54: 407 | D54: HM | E54: 244 | F54: Travel and other expenses | G54: 0 | H54: 0 | I54: 5646 | J54: 0 | K54: 0 | L54: 0 | M54: 5646 | N54: HM244
A55: 2013 | B55: 407250 | C55: 407 | D55: HM | E55: 250 | F55: Subtotal - Guidance, Psychological & Testing | G55: 55718 | H55: 101594 | I55: 0 | J55: 0 | K55: 335 | L55: 0 | M55: 157647 | N55: HM250
A56: 2013 | B56: 407251 | C56: 407 | D56: HM | E56: 251 | F56: Salaries - Professional | G56: 55718 | H56: 101594 | I56: 0 | J56: 0 | K56: 0 | L56: 0 | M56: 157312 | N56: HM251
A57: 2013 | B57: 407252 | C57: 407 | D57: HM | E57: 252 | F57: Salaries - Clerical | G57: 0 | H57: 0 | I57: 0 | J57: 0 | K57: 0 | L57: 0 | M57: 0 | N57: HM252
A58: 2013 | B58: 407253 | C58: 407 | D58: HM | E58: 253 | F58: Contracted Services | G58: 0 | H58: 0 | I58: 0 | J58: 0 | K58: 0 | L58: 0 | M58: 0 | N58: HM253
A59: 2013 | B59: 407254 | C59: 407 | D59: HM | E59: 254 | F59: Supplies and Materials | G59: 0 | H59: 0 | I59: 0 | J59: 0 | K59: 335 | L59: 0 | M59: 335 | N59: HM254
A60: 2013 | B60: 407260 | C60: 407 | D60: HM | E60: 260 | F60: Subtotal - Materials, Equipment & Technology | G60: 51618 | H60: 5736 | I60: 0 | J60: 0 | K60: 183521 | L60: 0 | M60: 240875 | N60: HM260
A61: 2013 | B61: 407261 | C61: 407 | D61: HM | E61: 261 | F61: Textbooks & Related Media/Materials | G61: 0 | H61: 0 | I61: 0 | J61: 0 | K61: 25489 | L61: 0 | M61: 25489 | N61: HM261
A62: 2013 | B62: 407262 | C62: 407 | D62: HM | E62: 262 | F62: Other Instructional Materials | G62: 39497 | H62: 4389 | I62: 0 | J62: 0 | K62: 84275 | L62: 0 | M62: 128161 | N62: HM262
A63: 2013 | B63: 407263 | C63: 407 | D63: HM | E63: 263 | F63: Instructional Equipment | G63: 0 | H63: 0 | I63: 0 | J63: 0 | K63: 11392 | L63: 0 | N63: HM263
A64: 2013 | B64: 407264 | C64: 407 | D64: HM | E64: 264 | F64: General Supplies | G64: 27 | H64: 3 | I64: 0 | J64: 0 | K64: 51530 | L64: 0 | M64: 51560 | N64: HM264
A65: 2013 | B65: 407265 | C65: 407 | D65: HM | E65: 265 | F65: Other Instructional Services | G65: 97 | H65: 11 | I65: 0 | J65: 0 | K65: 2728 | L65: 0 | M65: 2836 | N65: HM265
A66: 2013 | B66: 407266 | C66: 407 | D66: HM | E66: 266 | F66: Classroom Instructional Technology | G66: 0 | H66: 0 | I66: 0 | J66: 0 | K66: 8107 | L66: 0 | M66: 8107 | N66: HM266
A67: 2013 | B67: 407267 | C67: 407 | D67: HM | E67: 267 | F67: Other Instructional Hardware | G67: 0 | H67: 0 | I67: 0 | J67: 0 | K67: 0 | L67: 0 | M67: 0 | N67: HM267
A68: 2013 | B68: 407268 | C68: 407 | D68: HM | E68: 268 | F68: Instructional Software | G68: 0 | H68: 0 | I68: 0 | J68: 0 | K68: 0 | L68: 0 | M68: 0 | N68: HM268
A69: 2013 | B69: 407269 | C69: 407 | D69: HM | E69: 269 | F69: Depreciation for Instructional Equipment | G69: 11997 | H69: 1333 | I69: 0 | J69: 0 | K69: 0 | L69: 0 | M69: 13330 | N69: HM269
A70: 2013 | B70: =C70&E70 -> 407300 | C70: 407 | D70: HM | E70: 300 | F70: Pupil Services | G70: 143543 | H70: 0 | I70: 7382 | J70: 0 | K70: 157009 | L70: 0 | M70: 307934 | N70: =D70&E70 -> HM300
A71: 2013 | B71: 407310 | C71: 407 | D71: HM | E71: 310 | F71: Salaries - Pupil Services, non-food-related | G71: 0 | H71: 0 | I71: 0 | J71: 0 | K71: 0 | L71: 0 | M71: 0 | N71: HM310
A72: 2013 | B72: 407315 | C72: 407 | D72: HM | E72: 315 | F72: Salaries - Food Services | G72: 0 | H72: 0 | I72: 0 | J72: 0 | K72: 0 | L72: 0 | M72: 0 | N72: HM315
A73: 2013 | B73: 407320 | C73: 407 | D73: HM | E73: 320 | F73: Health Services | G73: 0 | H73: 0 | I73: 0 | J73: 0 | K73: 646 | L73: 0 | M73: 646 | N73: HM320
A74: 2013 | B74: 407330 | C74: 407 | D74: HM | E74: 330 | F74: Student Transportation (to and from school) | G74: 143543 | H74: 0 | I74: 0 | J74: 0 | K74: 0 | L74: 0 | M74: 143543 | N74: HM330
A75: 2013 | B75: 407340 | C75: 407 | D75: HM | E75: 340 | F75: Depreciation of Transportation Vehicles | G75: 0 | H75: 0 | I75: 0 | J75: 0 | K75: 0 | L75: 0 | M75: 0 | N75: HM340
A76: 2013 | B76: 407350 | C76: 407 | D76: HM | E76: 350 | F76: Food Services | G76: 0 | H76: 0 | I76: 7382 | J76: 0 | K76: 352 | L76: 0 | M76: 7734 | N76: HM350
A77: 2013 | B77: 407360 | C77: 407 | D77: HM | E77: 360 | F77: Athletic Services | G77: 0 | H77: 0 | I77: 0 | J77: 0 | K77: 0 | L77: 0 | M77: 0 | N77: HM360
A78: 2013 | B78: 407370 | C78: 407 | D78: HM | E78: 370 | F78: Other Student Activities | G78: 0 | H78: 0 | I78: 0 | J78: 0 | K78: 156011 | L78: 0 | M78: 156011 | N78: HM370
A79: 2013 | B79: 407400 | C79: 407 | D79: HM | E79: 400 | F79: Operation & Maintenance of Plant | G79: 0 | H79: 0 | I79: 82250 | J79: 0 | K79: 0 | L79: 0 | M79: 82250 | N79: HM400
A80: 2013 | B80: 407410 | C80: 407 | D80: HM | E80: 410 | F80: Salaries - Operation & Maintenance of Plant | G80: 0 | H80: 0 | I80: 13493 | J80: 0 | K80: 0 | L80: 0 | M80: 13493 | N80: HM410
A81: 2013 | B81: 407420 | C81: 407 | D81: HM | E81: 420 | F81: Utilities | G81: 0 | H81: 0 | I81: 39189 | J81: 0 | K81: 0 | L81: 0 | M81: 39189 | N81: HM420
A82: 2013 | B82: 407430 | C82: 407 | D82: HM | E82: 430 | F82: Maintenance of Buildings & Grounds | G82: 0 | H82: 0 | I82: 29568 | J82: 0 | K82: 0 | L82: 0 | M82: 29568 | N82: HM430
A83: 2013 | B83: 407440 | C83: 407 | D83: HM | E83: 440 | F83: Maintenance of Equipment | G83: 0 | H83: 0 | I83: 0 | J83: 0 | K83: 0 | L83: 0 | M83: 0 | N83: HM440
A84: 2013 | B84: 407450 | C84: 407 | D84: HM | E84: 450 | F84: Networking and Telecommunications | G84: 0 | H84: 0 | I84: 0 | J84: 0 | K84: 0 | L84: 0 | M84: 0 | N84: HM450
A85: 2013 | B85: 407500 | C85: 407 | D85: HM | E85: 500 | F85: Benefits and Other Fixed Charges | G85: 0 | H85: 0 | I85: 158349 | J85: 0 | K85: 0 | L85: 0 | M85: 158349 | N85: HM500
A86: 2013 | B86: 407510 | C86: 407 | D86: HM | E86: 510 | F86: Employee Retirement | G86: 0 | H86: 0 | I86: 23888 | J86: 0 | K86: 0 | L86: 0 | M86: 23888 | N86: HM510
A87: 2013 | B87: 407520 | C87: 407 | D87: HM | E87: 520 | F87: Fringe Benefits | G87: 0 | H87: 0 | I87: 121645 | J87: 0 | K87: 0 | L87: 0 | M87: 121645 | N87: HM520
A88: 2013 | B88: 407530 | C88: 407 | D88: HM | E88: 530 | F88: Insurance (non-employee) | G88: 0 | H88: 0 | I88: 12469 | J88: 0 | K88: 0 | L88: 0 | M88: 12469 | N88: HM530
A89: 2013 | B89: 407550 | C89: 407 | D89: HM | E89: 550 | F89: Rental/Lease of Equipment | G89: 0 | H89: 0 | I89: 347 | J89: 0 | K89: 0 | L89: 0 | M89: 347 | N89: HM550
A90: 2013 | B90: 407560 | C90: 407 | D90: HM | E90: 560 | F90: Short-Term Interest | G90: 0 | H90: 0 | I90: 0 | J90: 0 | K90: 0 | L90: 0 | M90: 0 | N90: HM560
A91: 2013 | B91: 407600 | C91: 407 | D91: HM | E91: 600 | F91: Community Services | G91: 0 | H91: 0 | I91: 0 | J91: 0 | K91: 0 | L91: 0 | M91: 0 | N91: HM600
A92: 2013 | B92: 407610 | C92: 407 | D92: HM | E92: 610 | F92: Dissemination Activities | G92: 0 | H92: 0 | I92: 0 | J92: 0 | K92: 0 | L92: 0 | M92: 0 | N92: HM610
A93: 2013 | B93: 407620 | C93: 407 | D93: HM | E93: 620 | F93: Civic Activities | G93: 0 | H93: 0 | I93: 0 | J93: 0 | K93: 0 | L93: 0 | M93: 0 | N93: HM620
A94: 2013 | B94: 407700 | C94: 407 | D94: HM | E94: 700 | F94: Non-Operating / Capital Facilities Costs | G94: 0 | H94: 0 | I94: 0 | J94: 0 | K94: 0 | L94: 0 | M94: 0 | N94: HM700
A95: 2013 | B95: 407720 | C95: 407 | D95: HM | E95: 720 | F95: Long-Term Interest, facilities related | G95: 0 | H95: 0 | I95: 0 | J95: 0 | K95: 0 | L95: 0 | M95: 0 | N95: HM720
A96: 2013 | B96: 407725 | C96: 407 | D96: HM | E96: 725 | F96: Long-Term Interest, non-facilities related | G96: 0 | H96: 0 | I96: 0 | J96: 0 | K96: 0 | L96: 0 | M96: 0 | N96: HM725
A97: 2013 | B97: 407730 | C97: 407 | D97: HM | E97: 730 | F97: Other costs related to capital facilities acquisition | G97: 0 | H97: 0 | I97: 0 | J97: 0 | K97: 0 | L97: 0 | M97: 0 | N97: HM730
A98: 2013 | B98: 407740 | C98: 407 | D98: HM | E98: 740 | F98: Rental/Lease of Buildings & Grounds | G98: 0 | H98: 0 | I98: 0 | J98: 0 | K98: 0 | L98: 0 | M98: 0 | N98: HM740
A99: 2013 | B99: 407750 | C99: 407 | D99: HM | E99: 750 | F99: Depreciation of Equipment, Building, & Grounds | G99: 0 | H99: 0 | I99: 0 | J99: 0 | K99: 0 | L99: 0 | M99: 0 | N99: HM750
A100: 2013 | B100: 407760 | C100: 407 | D100: HM | E100: 760 | F100: Bad debt / loss on disposal of assets | G100: 0 | H100: 0 | I100: 0 | J100: 0 | K100: 0 | L100: 0 | M100: 0 | N100: HM760
A101: 2013 | B101: 407800 | C101: 407 | D101: HM | E101: 800 | F101: TOTALS | G101: 921913 | H101: 277896 | I101: 407770 | J101: 0 | K101: 550649 | L101: 0 | M101: 2158228 | N101: HM800
A102: 2013 | B102: 407910 | C102: 407 | D102: HM | E102: 910 | F102: Reference: Capitalized Expenditures | G102: 0 | H102: 0 | I102: 0 | J102: 0 | K102: 0 | L102: 0 | M102: 0 | N102: HM910
A103: 2013 | B103: 407920 | C103: 407 | D103: HM | E103: 920 | F103: Reference: Deferrals/Carryovers | G103: 0 | H103: 0 | I103: 0 | J103: 0 | K103: 0 | L103: 0 | M103: 0 | N103: HM920
A104: 2013 | B104: 407900 | C104: 407 | D104: HM | E104: 900 | F104: Reference: Totals | G104: 0 | H104: 0 | I104: 407770 | J104: 0 | K104: 550649 | L104: 0 | M104: 2158228 | N104: HM900
A105: 2013 | B105: 409100 | C105: 409 | D105: C | E105: 100 | F105: Administration | G105: 0 | H105: 0 | I105: 152798.97 | J105: 0 | K105: 81050.88 | L105: 0 | M105: 233849.85 | N105: C100
A106: 2013 | B106: 409110 | C106: 409 | D106: C | E106: 110 | F106: Subtotal - Board of Trustees | G106: 0 | H106: 0 | I106: 1170.8 | J106: 0 | K106: 5144.13 | L106: 0 | M106: 6314.93 | N106: C110
A107: 2013 | B107: 409111 | C107: 409 | D107: C | E107: 111 | F107: Contracted Services | G107: 0 | H107: 0 | I107: 0 | J107: 0 | K107: 5000 | L107: 0 | M107: 5000 | N107: C111
A108: 2013 | B108: 409112 | C108: 409 | D108: C | E108: 112 | F108: Travel and other expenses | G108: 0 | H108: 0 | I108: 1170.8 | J108: 0 | K108: 144.13 | L108: 0 | M108: 1314.93 | N108: C112
A109: 2013 | B109: 409120 | C109: 409 | D109: C | E109: 120 | F109: Subtotal - School Leaders | G109: 0 | H109: 0 | I109: 88000.04 | J109: 0 | K109: 0 | L109: 0 | M109: 88000.04 | N109: C120
A110: 2013 | B110: 409121 | C110: 409 | D110: C | E110: 121 | F110: Salaries - Professional | G110: 0 | H110: 0 | I110: 88000.04 | J110: 0 | K110: 0 | L110: 0 | M110: 88000.04 | N110: C121
A111: 2013 | B111: 409122 | C111: 409 | D111: C | E111: 122 | F111: Contracted Services | G111: 0 | H111: 0 | I111: 0 | J111: 0 | K111: 0 | L111: 0 | M111: 0 | N111: C122
A112: 2013 | B112: 409130 | C112: 409 | D112: C | E112: 130 | F112: Subtotal - Business and Finance | G112: 0 | H112: 0 | I112: 12262.5 | J112: 0 | K112: 30885 | L112: 0 | M112: 43147.5 | N112: C130
A113: 2013 | B113: 409131 | C113: 409 | D113: C | E113: 131 | F113: Salaries - Professional | G113: 0 | H113: 0 | I113: 0 | J113: 0 | K113: 0 | L113: 0 | M113: 0 | N113: C131
A114: 2013 | B114: 409132 | C114: 409 | D114: C | E114: 132 | F114: Contracted Services | G114: 0 | H114: 0 | I114: 12262.5 | J114: 0 | K114: 30885 | L114: 0 | M114: 43147.5 | N114: C132
A115: 2013 | B115: 409140 | C115: 409 | D115: C | E115: 140 | F115: Subtotal - Human Resources | G115: 0 | H115: 0 | I115: 5160.25 | J115: 0 | K115: 5850 | L115: 0 | M115: 11010.25 | N115: C140
A116: 2013 | B116: 409141 | C116: 409 | D116: C | E116: 141 | F116: Salaries - Professional | G116: 0 | H116: 0 | I116: 0 | J116: 0 | K116: 0 | L116: 0 | M116: 0 | N116: C141
A117: 2013 | B117: 409142 | C117: 409 | D117: C | E117: 142 | F117: Contracted Services | G117: 0 | H117: 0 | I117: 5160.25 | J117: 0 | K117: 5850 | L117: 0 | M117: 11010.25 | N117: C142
A118: 2013 | B118: 409150 | C118: 409 | D118: C | E118: 150 | F118: Subtotal - Legal Services | G118: 0 | H118: 0 | I118: 10050.51 | J118: 0 | K118: 4929 | L118: 0 | M118: 14979.51 | N118: C150
A119: 2013 | B119: 409151 | C119: 409 | D119: C | E119: 151 | F119: Salaries - Professional | G119: 0 | H119: 0 | I119: 0 | J119: 0 | K119: 0 | L119: 0 | M119: 0 | N119: C151
A120: 2013 | B120: 409152 | C120: 409 | D120: C | E120: 152 | F120: Contracted Services | G120: 0 | H120: 0 | I120: 10050.51 | J120: 0 | K120: 4929 | L120: 0 | M120: 14979.51 | N120: C152
A121: 2013 | B121: 409160 | C121: 409 | D121: C | E121: 160 | F121: Subtotal - Info. Management & Technology | G121: 0 | H121: 0 | I121: 1327.94 | J121: 0 | K121: 720.43 | L121: 0 | M121: 2048.37 | N121: C160
A122: 2013 | B122: 409161 | C122: 409 | D122: C | E122: 161 | F122: Salaries - Professional | G122: 0 | H122: 0 | I122: 0 | J122: 0 | K122: 0 | L122: 0 | M122: 0 | N122: C161
A123: 2013 | B123: 409162 | C123: 409 | D123: C | E123: 162 | F123: Contracted Services | G123: 0 | H123: 0 | I123: 1317.5 | J123: 0 | K123: 0 | L123: 0 | M123: 1317.5 | N123: C162
A124: 2013 | B124: 409163 | C124: 409 | D124: C | E124: 163 | F124: Supplies and Materials | G124: 0 | H124: 0 | I124: 10.44 | J124: 0 | K124: 720.43 | L124: 0 | M124: 730.87 | N124: C163
A125: 2013 | B125: 409164 | C125: 409 | D125: C | E125: 164 | F125: Depreciation for Information Technology | G125: 0 | H125: 0 | I125: 0 | J125: 0 | K125: 0 | L125: 0 | M125: 0 | N125: C164
A126: 2013 | B126: 409170 | C126: 409 | D126: C | E126: 170 | F126: Subtotal - Development | G126: 0 | H126: 0 | I126: 4494.21 | J126: 0 | K126: 14275.01 | L126: 0 | M126: 18769.22 | N126: C170
A127: 2013 | B127: 409171 | C127: 409 | D127: C | E127: 171 | F127: Salaries - Professional | G127: 0 | H127: 0 | I127: 0 | J127: 0 | K127: 0 | L127: 0 | M127: 0 | N127: C171
A128: 2013 | B128: 409172 | C128: 409 | D128: C | E128: 172 | F128: Contracted Services | G128: 0 | H128: 0 | I128: 0 | J128: 0 | K128: 1610 | L128: 0 | M128: 1610 | N128: C172
A129: 2013 | B129: 409173 | C129: 409 | D129: C | E129: 173 | F129: Fundraising | G129: 0 | H129: 0 | I129: 4494.21 | J129: 0 | K129: 12665.01 | L129: 0 | M129: 17159.22 | N129: C173
A130: 2013 | B130: 409180 | C130: 409 | D130: C | E130: 180 | F130: Subtotal - Other Administration | G130: 0 | H130: 0 | I130: 30332.72 | J130: 0 | K130: 19247.31 | L130: 0 | M130: 49580.03 | N130: C180
A131: 2013 | B131: 409181 | C131: 409 | D131: C | E131: 181 | F131: Salaries - Clerical | G131: 0 | H131: 0 | I131: 16612.5 | J131: 0 | K131: 0 | L131: 0 | M131: 16612.5 | N131: C181
A132: 2013 | B132: 409182 | C132: 409 | D132: C | E132: 182 | F132: Recruitment/Advertising | G132: 0 | H132: 0 | I132: 4295.56 | J132: 0 | K132: 4706.42 | L132: 0 | M132: 9001.98 | N132: C182
A133: 2013 | B133: 409183 | C133: 409 | D133: C | E133: 183 | F133: Travel, Dues, and other expenses | G133: 0 | H133: 0 | I133: 6891.61 | J133: 0 | K133: 1049.33 | L133: 0 | M133: 7940.94 | N133: C183
A134: 2013 | B134: =C134&E134 -> 409184 | C134: 409 | D134: C | E134: 184 | F134: Supplies and Materials | G134: 0 | H134: 0 | I134: 2533.05 | J134: 0 | K134: 13491.56 | L134: 0 | M134: 16024.61 | N134: =D134&E134 -> C184
A135: 2013 | B135: 409200 | C135: 409 | D135: C | E135: 200 | F135: Instructional Services | G135: 674905.6 | H135: 123235.14 | I135: 139723.71 | J135: 25 | K135: 388757.22 | L135: 74762.68 | M135: 1401409.35 | N135: C200
A136: 2013 | B136: 409210 | C136: 409 | D136: C | E136: 210 | F136: Subtotal - Instructional Leadership | G136: 0 | H136: 0 | I136: 138332.43 | J136: 0 | K136: 58603.91 | L136: 0 | M136: 196936.34 | N136: C210
A137: 2013 | B137: 409211 | C137: 409 | D137: C | E137: 211 | F137: Salaries - Professional | G137: 0 | H137: 0 | I137: 114800.18 | J137: 0 | K137: 47200 | L137: 0 | M137: 162000.18 | N137: C211
A138: 2013 | B138: 409212 | C138: 409 | D138: C | E138: 212 | F138: Salaries - Clerical | G138: 0 | H138: 0 | I138: 23532.25 | J138: 0 | K138: 10710 | L138: 0 | M138: 34242.25 | N138: C212
A139: 2013 | B139: 409213 | C139: 409 | D139: C | E139: 213 | F139: Contracted Services | G139: 0 | H139: 0 | I139: 0 | J139: 0 | K139: 0 | L139: 0 | M139: 0 | N139: C213
A140: 2013 | B140: 409214 | C140: 409 | D140: C | E140: 214 | F140: Supplies and Materials | G140: 0 | H140: 0 | I140: 0 | J140: 0 | K140: 693.91 | L140: 0 | M140: 693.91 | N140: C214
A141: 2013 | B141: 409215 | C141: 409 | D141: C | E141: 215 | F141: Travel and other expenses | G141: 0 | H141: 0 | I141: 0 | J141: 0 | K141: 0 | L141: 0 | M141: 0 | N141: C215
A142: 2013 | B142: 409220 | C142: 409 | D142: C | E142: 220 | F142: Subtotal - Classroom and Specialist Teachers | G142: 611544.61 | H142: 42000 | I142: 0 | J142: 0 | K142: 32575.24 | L142: 48500 | M142: 734619.85 | N142: C220
A143: 2013 | B143: 409221 | C143: 409 | D143: C | E143: 221 | F143: Salaries - Teachers, Classroom | G143: 506821.6 | H143: 0 | I143: 0 | J143: 0 | K143: 6833.24 | L143: 25000 | M143: 538654.84 | N143: C221
A144: 2013 | B144: 409222 | C144: 409 | D144: C | E144: 222 | F144: Salaries - Teachers, Specialists | G144: 104723.01 | H144: 42000 | I144: 0 | J144: 0 | K144: 25742 | L144: 23500 | M144: 195965.01 | N144: C222
A145: 2013 | B145: 409230 | C145: 409 | D145: C | E145: 230 | F145: Subtotal - Other Teaching Services | G145: 14955 | H145: 76173.63 | I145: 0 | J145: 25 | K145: 102776.5 | L145: 0 | M145: 193930.13 | N145: C230
A146: 2013 | B146: 409231 | C146: 409 | D146: C | E146: 231 | F146: Salaries - Professional | G146: 14955 | H146: 0 | I146: 0 | J146: 0 | K146: 0 | L146: 0 | M146: 14955 | N146: C231
A147: 2013 | B147: 409232 | C147: 409 | D147: C | E147: 232 | F147: Salaries - Nonclerical Paraprofessionals | G147: 0 | H147: 51575.13 | I147: 0 | J147: 0 | K147: 0 | L147: 0 | M147: 51575.13 | N147: C232
A148: 2013 | B148: 409233 | C148: 409 | D148: C | E148: 233 | F148: Salaries - Clerical | G148: 0 | H148: 0 | I148: 0 | J148: 0 | K148: 0 | L148: 0 | M148: 0 | N148: C233
A149: 2013 | B149: 409234 | C149: 409 | D149: C | E149: 234 | F149: Contracted Services | G149: 0 | H149: 24598.5 | I149: 0 | J149: 25 | K149: 102776.5 | L149: 0 | M149: 127400 | N149: C234
A150: 2013 | B150: 409240 | C150: 409 | D150: C | E150: 240 | F150: Subtotal - Professional Development | G150: 12923.22 | H150: 0 | I150: 0 | J150: 0 | K150: 69063.43 | L150: 15000 | M150: 96986.65 | N150: C240
A151: 2013 | B151: 409241 | C151: 409 | D151: C | E151: 241 | F151: Salaries - Professional | G151: 0 | H151: 0 | I151: 0 | J151: 0 | K151: 0 | L151: 0 | M151: 0 | N151: C241
A152: 2013 | B152: 409242 | C152: 409 | D152: C | E152: 242 | F152: Contracted Services | G152: 3352 | H152: 0 | I152: 0 | J152: 0 | K152: 56760 | L152: 15000 | M152: 75112 | N152: C242
A153: 2013 | B153: 409243 | C153: 409 | D153: C | E153: 243 | F153: Supplies and Materials | G153: 282.23 | H153: 0 | I153: 0 | J153: 0 | K153: 736.83 | L153: 0 | M153: 1019.06 | N153: C243
A154: 2013 | B154: 409244 | C154: 409 | D154: C | E154: 244 | F154: Travel and other expenses | G154: 9288.99 | H154: 0 | I154: 0 | J154: 0 | K154: 11566.6 | L154: 0 | M154: 20855.59 | N154: C244
A155: 2013 | B155: 409250 | C155: 409 | D155: C | E155: 250 | F155: Subtotal - Guidance, Psychological & Testing | G155: 2017.82 | H155: 4621.51 | I155: 0 | J155: 0 | K155: 15409.62 | L155: 0 | M155: 22048.95 | N155: C250
A156: 2013 | B156: 409251 | C156: 409 | D156: C | E156: 251 | F156: Salaries - Professional | G156: 0 | H156: 0 | I156: 0 | J156: 0 | K156: 0 | L156: 0 | M156: 0 | N156: C251
A157: 2013 | B157: 409252 | C157: 409 | D157: C | E157: 252 | F157: Salaries - Clerical | G157: 0 | H157: 0 | I157: 0 | J157: 0 | K157: 0 | L157: 0 | M157: 0 | N157: C252
A158: 2013 | B158: 409253 | C158: 409 | D158: C | E158: 253 | F158: Contracted Services | G158: 1938.65 | H158: 4496.4 | I158: 0 | J158: 0 | K158: 14181.16 | L158: 0 | M158: 20616.21 | N158: C253
A159: 2013 | B159: 409254 | C159: 409 | D159: C | E159: 254 | F159: Supplies and Materials | G159: 79.17 | H159: 125.11 | I159: 0 | J159: 0 | K159: 1228.46 | L159: 0 | M159: 1432.74 | N159: C254
A160: 2013 | B160: 409260 | C160: 409 | D160: C | E160: 260 | F160: Subtotal - Materials, Equipment & Technology | G160: 33464.95 | H160: 440 | I160: 1391.28 | J160: 0 | K160: 110328.52 | L160: 11262.68 | M160: 156887.43 | N160: C260
A161: 2013 | B161: 409261 | C161: 409 | D161: C | E161: 261 | F161: Textbooks & Related Media/Materials | G161: 0 | H161: 0 | I161: 0 | J161: 0 | K161: 25645.62 | L161: 0 | M161: 25645.62 | N161: C261
A162: 2013 | B162: 409262 | C162: 409 | D162: C | E162: 262 | F162: Other Instructional Materials | G162: 5180.15 | H162: 0 | I162: 0 | J162: 0 | K162: 16904.03 | L162: 776.4 | M162: 22860.58 | N162: C262
A163: 2013 | B163: 409263 | C163: 409 | D163: C | E163: 263 | F163: Instructional Equipment | G163: 9398.8 | H163: 0 | I163: 0 | J163: 0 | K163: 19465.72 | L163: 0 | M163: 28864.52 | N163: C263
A164: 2013 | B164: 409264 | C164: 409 | D164: C | E164: 264 | F164: General Supplies | G164: 2083.97 | H164: 0 | I164: 0 | J164: 0 | K164: 25139.71 | L164: 486.28 | M164: 27709.96 | N164: C264
A165: 2013 | B165: 409265 | C165: 409 | D165: C | E165: 265 | F165: Other Instructional Services | G165: 14948.03 | H165: 0 | I165: 0 | J165: 0 | K165: 0 | L165: 0 | M165: 14948.03 | N165: C265
A166: 2013 | B166: 409266 | C166: 409 | D166: C | E166: 266 | F166: Classroom Instructional Technology | G166: 0 | H166: 0 | I166: 1391.28 | J166: 0 | K166: 16746.9 | L166: 10000 | M166: 28138.18 | N166: C266
A167: 2013 | B167: 409267 | C167: 409 | D167: C | E167: 267 | F167: Other Instructional Hardware | G167: 0 | H167: 0 | I167: 0 | J167: 0 | K167: 0 | L167: 0 | M167: 0 | N167: C267
A168: 2013 | B168: 409268 | C168: 409 | D168: C | E168: 268 | F168: Instructional Software | G168: 0 | H168: 440 | I168: 0 | J168: 0 | K168: 6426.54 | L168: 0 | M168: 6866.54 | N168: C268
A169: 2013 | B169: 409269 | C169: 409 | D169: C | E169: 269 | F169: Depreciation for Instructional Equipment | G169: 1854 | H169: 0 | I169: 0 | J169: 0 | K169: 0 | L169: 0 | M169: 1854 | N169: C269
A170: 2013 | B170: 409300 | C170: 409 | D170: C | E170: 300 | F170: Pupil Services | G170: 196289.33 | H170: 0 | I170: 92636.14 | J170: 1145.2 | K170: 113606.23 | L170: 237.32 | M170: 403914.22 | N170: C300
A171: 2013 | B171: 409310 | C171: 409 | D171: C | E171: 310 | F171: Salaries - Pupil Services, non-food-related | G171: 0 | H171: 0 | I171: 36300 | J171: 0 | K171: 9000 | L171: 0 | M171: 45300 | N171: C310
A172: 2013 | B172: 409315 | C172: 409 | D172: C | E172: 315 | F172: Salaries - Food Services | G172: 0 | H172: 0 | I172: 15125 | J172: 0 | K172: 0 | L172: 0 | M172: 15125 | N172: C315
A173: 2013 | B173: 409320 | C173: 409 | D173: C | E173: 320 | F173: Health Services | G173: 0 | H173: 0 | I173: 4319.2 | J173: 0 | K173: 1447.59 | L173: 0 | M173: 5766.79 | N173: C320
A174: 2013 | B174: 409330 | C174: 409 | D174: C | E174: 330 | F174: Student Transportation (to and from school) | G174: 196289.33 | H174: 0 | I174: 0 | J174: 0 | K174: 20000 | L174: 0 | M174: 216289.33 | N174: C330
A175: 2013 | B175: 409340 | C175: 409 | D175: C | E175: 340 | F175: Depreciation of Transportation Vehicles | G175: 0 | H175: 0 | I175: 0 | J175: 0 | K175: 0 | L175: 0 | M175: 0 | N175: C340
A176: 2013 | B176: 409350 | C176: 409 | D176: C | E176: 350 | F176: Food Services | G176: 0 | H176: 0 | I176: 29396.97 | J176: 1145.2 | K176: 80109.59 | L176: 0 | M176: 110651.76 | N176: C350
A177: 2013 | B177: 409360 | C177: 409 | D177: C | E177: 360 | F177: Athletic Services | G177: 0 | H177: 0 | I177: 0 | J177: 0 | K177: 0 | L177: 0 | M177: 0 | N177: C360
A178: 2013 | B178: 409370 | C178: 409 | D178: C | E178: 370 | F178: Other Student Activities | G178: 0 | H178: 0 | I178: 7494.97 | J178: 0 | K178: 3049.05 | L178: 237.32 | M178: 10781.34 | N178: C370
A179: 2013 | B179: 409400 | C179: 409 | D179: C | E179: 400 | F179: Operation & Maintenance of Plant | G179: 0 | H179: 0 | I179: 129777.1 | J179: 0 | K179: 34732.04 | L179: 0 | M179: 164509.14 | N179: C400
A180: 2013 | B180: 409410 | C180: 409 | D180: C | E180: 410 | F180: Salaries - Operation & Maintenance of Plant | G180: 0 | H180: 0 | I180: 41631.62 | J180: 0 | K180: 0 | L180: 0 | M180: 41631.62 | N180: C410
A181: 2013 | B181: 409420 | C181: 409 | D181: C | E181: 420 | F181: Utilities | G181: 0 | H181: 0 | I181: 25602.19 | J181: 0 | K181: 0 | L181: 0 | M181: 25602.19 | N181: C420
A182: 2013 | B182: 409430 | C182: 409 | D182: C | E182: 430 | F182: Maintenance of Buildings & Grounds | G182: 0 | H182: 0 | I182: 51369.69 | J182: 0 | K182: 5312.69 | L182: 0 | M182: 56682.38 | N182: C430
A183: 2013 | B183: 409440 | C183: 409 | D183: C | E183: 440 | F183: Maintenance of Equipment | G183: 0 | H183: 0 | I183: 644.48 | J183: 0 | K183: 16662.37 | L183: 0 | M183: 17306.85 | N183: C440
A184: 2013 | B184: 409450 | C184: 409 | D184: C | E184: 450 | F184: Networking and Telecommunications | G184: 0 | H184: 0 | I184: 10529.12 | J184: 0 | K184: 12756.98 | L184: 0 | M184: 23286.1 | N184: C450
A185: 2013 | B185: 409500 | C185: 409 | D185: C | E185: 500 | F185: Benefits and Other Fixed Charges | G185: 0 | H185: 0 | I185: 127363.9 | J185: 0 | K185: 17822.65 | L185: 0 | M185: 145186.55 | N185: C500
A186: 2013 | B186: 409510 | C186: 409 | D186: C | E186: 510 | F186: Employee Retirement | G186: 0 | H186: 0 | I186: 0 | J186: 0 | K186: 4428 | L186: 0 | M186: 4428 | N186: C510
A187: 2013 | B187: 409520 | C187: 409 | D187: C | E187: 520 | F187: Fringe Benefits | G187: 0 | H187: 0 | I187: 115360.57 | J187: 0 | K187: 3829 | L187: 0 | M187: 119189.57 | N187: C520
A188: 2013 | B188: 409530 | C188: 409 | D188: C | E188: 530 | F188: Insurance (non-employee) | G188: 0 | H188: 0 | I188: 11517 | J188: 0 | K188: 0 | L188: 0 | M188: 11517 | N188: C530
A189: 2013 | B189: 409550 | C189: 409 | D189: C | E189: 550 | F189: Rental/Lease of Equipment | G189: 0 | H189: 0 | I189: 0 | J189: 0 | K189: 9565.65 | L189: 0 | M189: 9565.65 | N189: C550
A190: 2013 | B190: 409560 | C190: 409 | D190: C | E190: 560 | F190: Short-Term Interest | G190: 0 | H190: 0 | I190: 486.33 | J190: 0 | K190: 0 | L190: 0 | M190: 486.33 | N190: C560
A191: 2013 | B191: 409600 | C191: 409 | D191: C | E191: 600 | F191: Community Services | G191: 0 | H191: 0 | I191: 5916.67 | J191: 0 | K191: 307 | L191: 0 | M191: 6223.67 | N191: C600
A192: 2013 | B192: 409610 | C192: 409 | D192: C | E192: 610 | F192: Dissemination Activities | G192: 0 | H192: 0 | I192: 0 | J192: 0 | K192: 307 | L192: 0 | M192: 307 | N192: C610
A193: 2013 | B193: 409620 | C193: 409 | D193: C | E193: 620 | F193: Civic Activities | G193: 0 | H193: 0 | I193: 5916.67 | J193: 0 | K193: 0 | L193: 0 | M193: 5916.67 | N193: C620
A194: 2013 | B194: 409700 | C194: 409 | D194: C | E194: 700 | F194: Non-Operating / Capital Facilities Costs | G194: 0 | H194: 0 | I194: 11300 | J194: 0 | K194: 0 | L194: 0 | M194: 11300 | N194: C700
A195: 2013 | B195: 409720 | C195: 409 | D195: C | E195: 720 | F195: Long-Term Interest, facilities related | G195: 0 | H195: 0 | I195: 0 | J195: 0 | K195: 0 | L195: 0 | M195: 0 | N195: C720
A196: 2013 | B196: 409725 | C196: 409 | D196: C | E196: 725 | F196: Long-Term Interest, non-facilities related | G196: 0 | H196: 0 | I196: 0 | J196: 0 | K196: 0 | L196: 0 | M196: 0 | N196: C725
A197: 2013 | B197: 409730 | C197: 409 | D197: C | E197: 730 | F197: Other costs related to capital facilities acquisition | G197: 0 | H197: 0 | I197: 6800 | J197: 0 | K197: 0 | L197: 0 | M197: 6800 | N197: C730
A198: 2013 | B198: =C198&E198 -> 409740 | C198: 409 | D198: C | E198: 740 | F198: Rental/Lease of Buildings & Grounds | G198: 0 | H198: 0 | I198: 0 | J198: 0 | K198: 0 | L198: 0 | M198: 0 | N198: =D198&E198 -> C740
A199: 2013 | B199: 409750 | C199: 409 | D199: C | E199: 750 | F199: Depreciation of Equipment, Building, & Grounds | G199: 0 | H199: 0 | I199: 4500 | J199: 0 | K199: 0 | L199: 0 | M199: 4500 | N199: C750
A200: 2013 | B200: 409760 | C200: 409 | D200: C | E200: 760 | F200: Bad debt / loss on disposal of assets | G200: 0 | H200: 0 | I200: 0 | J200: 0 | K200: 0 | L200: 0 | M200: 0 | N200: C760
... 4300 more rows

Sheet FY13SURPLUS (hidden)
B1: FY2013 Massachusetts Commonwealth Charter Schools Excess Surplus Report - Final
D2: 01 | E2: 02 | F2: 09a | G2: 12a | H2: 12b | I2: 16 | J2: 18 | K2: 17
B3: LEA Code | C3: School Name | D3: Surplus carryover from FY12 | E3: Change in net assets | F3: Subtotal of adjustments | G3: Subtotal of Fundraising, Dep. Other | H3: Cumulative (total) surplus (A) | I3: Allowable Carryover (B) | J3: Actual carryover to next FY | K3: Excess Surplus (A) - (B) If negative, then no amount is due back to district.
B4: 445 | C4: Abby Kelley Foster Charter Public School | D4: 802772 | E4: 1673776.07 | F4: 4579965.2 | G4: 135046 | H4: -1968371.13 | I4: 7506603 | J4: 0 | K4: 0
B5: 412 | C5: Academy of the Pacific Rim Charter Public School | D5: 0 | E5: 368513 | F5: 605965 | G5: 131161 | H5: -106291 | I5: 3056688.25 | J5: 0 | K5: 0
B6: 430 | C6: Advanced Math and Science Academy Charter School | D6: 1124222 | E6: 574333.73 | F6: 187206 | G6: 128838 | H6: 1640187.73 | I6: 5311716.75 | J6: 1640187.73 | K6: 0
B7: 409 | C7: Alma del Mar Charter School | D7: 0 | E7: 444485.37 | F7: 366151.05 | G7: 23513.22 | H7: 101847.54 | I7: 923137 | J7: 101847.54 | K7: 0
B8: 491 | C8: Atlantis Charter School | D8: 0 | E8: 148859 | F8: 293243 | G8: 54087 | H8: -90297 | I8: 3808106.75 | J8: 0 | K8: 0
B9: 420 | C9: Benjamin Banneker Charter Public School | D9: 522127 | E9: 458056.44 | F9: 241900 | G9: 19937 | H9: 758220.44 | I9: 3015975.75 | J9: 758220.44 | K9: 0
B10: 447 | C10: Benjamin Franklin Classical Charter Public School | D10: 61859 | E10: 120469.01 | F10: 94060.17 | G10: 64338 | H10: 152605.84 | I10: 1091474.75 | J10: 152605.84 | K10: 0
B11: 414 | C11: Berkshire Arts and Technology Charter Public School | D11: 0 | E11: 128144.49 | F11: 474113.92 | G11: 23356 | H11: -322613.43 | I11: 1831885.25 | J11: 0 | K11: 0
B12: 449 | C12: Boston Collegiate Charter School | D12: 0 | E12: -168957.21 | F12: 443481 | G12: -46375 | H12: -658813.21 | I12: 3526958 | J12: 0 | K12: 0
B13: 416 | C13: Boston Preparatory Charter Public School | D13: 779729 | E13: -46350.12 | F13: 418203.96 | G13: 199475.73 | H13: 514650.65 | I13: 2413528.5 | J13: 514650.65 | K13: 0
B14: 481 | C14: Boston Renaissance Charter Public School | D14: 362241 | E14: 1606906.68 | F14: 2384349.48 | G14: 1325653 | H14: 910451.2 | I14: 5989695.75 | J14: 910451.2 | K14: 0
B15: 417 | C15: Bridge Boston Charter School | D15: 31612 | E15: 662.14 | F15: 432962.39 | G15: 10014.79 | H15: -390673.46 | I15: 831883.5 | J15: 0 | K15: 0
B16: 457 | C16: Brooke Charter School East Boston | D16: 0 | E16: 252759.12 | F16: 162129 | G16: 24642 | H16: 115272.12 | I16: 1394286.25 | J16: 115272.12 | K16: 0
B17: 443 | C17: Brooke Charter School Mattapan | D17: 0 | E17: 474628.6 | F17: 31087 | G17: 36008 | H17: 479549.6 | I17: 1838196.5 | J17: 479549.6 | K17: 0
B18: 428 | C18: Brooke Charter School Roslindale | D18: 1019822 | E18: 1786063.6 | F18: 2849039 | G18: 89791 | H18: 46637.6 | I18: 2960669.25 | J18: 46637.6 | K18: 0
B19: 432 | C19: Cape Cod Lighthouse Charter School | D19: 0 | E19: 5209.8 | F19: 445074 | G19: 111226 | H19: -328638.2 | I19: 1402307.5 | J19: 0 | K19: 0
B20: 418 | C20: Christa McAuliffe Regional Charter Public School | D20: 276491 | E20: 420835 | F20: 307986 | G20: 162226 | H20: 551566 | I20: 2929980.75 | J20: 551566 | K20: 0
B21: 437 | C21: City On A Hill Charter Public School | D21: 0 | E21: 4192 | F21: 105924 | G21: 7574 | H21: -94158 | I21: 1887437.75 | J21: 0 | K21: 0
B22: 438 | C22: Codman Academy Charter Public School | D22: 0 | E22: 21199.66 | F22: 439745.22 | G22: 49093.8 | H22: -369451.76 | I22: 1176659.5 | J22: 0 | K22: 0
B23: 436 | C23: Community Charter School of Cambridge | D23: 1437088 | E23: 967059 | F23: 642929 | G23: 258294 | H23: 2019512 | I23: 2910216.5 | J23: 2019512 | K23: 0
B24: 426 | C24: Community Day Charter Public School - Gateway | D24: 0 | E24: 329355 | F24: 0 | G24: 1728 | H24: 331083 | I24: 825898.5 | J24: 331083 | K24: 0
B25: 440 | C25: Community Day Charter Public School - Prospect | D25: 0 | E25: 181709 | F25: 528381 | G25: 3456 | H25: -343216 | I25: 1814671.25 | J25: 0 | K25: 0
B26: 431 | C26: Community Day Charter Public School - R. Kingman Webster | D26: 0 | E26: 413022 | F26: 0 | G26: 1728 | H26: 414750 | I26: 808460 | J26: 414750 | K26: 0
B27: 439 | C27: Conservatory Lab Charter School | D27: 0 | E27: 13956.85 | F27: 401304 | G27: 44395 | H27: -342952.15 | I27: 1442024 | J27: 0 | K27: 0
B28: 475 | C28: Dorchester Collegiate Academy Charter School | D28: 77855 | E28: 108289.82 | F28: 489131 | G28: 54728 | H28: -248258.18 | I28: 473555 | J28: 0 | K28: 0
B29: 410 | C29: Excel Academy Charter School | D29: 0 | E29: -530299.44 | F29: 332776.74 | G29: 39834.94 | H29: -823241.24 | I29: 1279319.65 | J29: 0 | K29: 0
B30: 459 | C30: Excel Academy Charter School - Boston II | D30: 0 | E30: 138225.2 | F30: 250083.04 | G30: 0 | H30: -111857.84 | I30: 532732.85 | J30: 0 | K30: 0
B31: 461 | C31: Excel Academy Charter School - Chelsea | D31: 0 | E31: -44398.68 | F31: 0 | G31: 0 | H31: -44398.68 | I31: 755734 | J31: 0 | K31: 0
B32: 413 | C32: Four Rivers Charter Public School | D32: 9375 | E32: 43916.65 | F32: 38577 | G32: 20573 | H32: 35287.65 | I32: 1297707.5 | J32: 35287.65 | K32: 0
B33: 446 | C33: Foxborough Regional Charter School | D33: 0 | E33: -60104 | F33: 3025866 | G33: 789050 | H33: -2296920 | I33: 6113606.25 | J33: 0 | K33: 0
B34: 478 | C34: Francis W. Parker Charter Essential School | D34: 0 | E34: -43372.9 | F34: 152627.38 | G34: 52275.12 | H34: -143725.16 | I34: 2090688.25 | J34: 0 | K34: 0
B35: 496 | C35: Global Learning Charter Public School | D35: 0 | E35: 233428.88 | F35: 2351316 | G35: 380919 | H35: -1736968.12 | I35: 2624069.5 | J35: 0 | K35: 0
B36: 499 | C36: Hampden Charter School of Science | D36: 127015 | E36: 228498.39 | F36: 50061 | G36: 55348 | H36: 360800.39 | I36: 1776758.75 | J36: 360800.39 | K36: 0
B37: 455 | C37: Hill View Montessori Charter Public School | D37: 0 | E37: 306103.155 | F37: 112687 | G37: 8870 | H37: 202286.155 | I37: 1306250 | J37: 202286.155 | K37: 0
B38: 450 | C38: Hilltown Cooperative Charter Public School | D38: 0 | E38: -9022.605 | F38: 79826.03 | G38: 8632.01 | H38: -80216.625 | I38: 888184.75 | J38: 0 | K38: 0
B39: 453 | C39: Holyoke Community Charter School | D39: 911973 | E39: 1405442.63 | F39: 818055 | G39: 40892 | H39: 1540252.63 | I39: 4071575.75 | J39: 1540252.63 | K39: 0
B40: 435 | C40: Innovation Academy Charter School | D40: 136077 | E40: 448342.96 | F40: 430233.37 | G40: 362112 | H40: 516298.59 | I40: 1807381.5 | J40: 516298.59 | K40: 0
B41: 463 | C41: KIPP Academy Boston Charter School | D41: 0 | E41: 340089.84 | F41: 584736 | G41: 66344 | H41: -178302.16 | I41: 698928.5 | J41: 0 | K41: 0
B42: 429 | C42: KIPP Academy Lynn Charter School | D42: 0 | E42: -376524.99 | F42: 2441893 | G42: 30717 | H42: -2787700.99 | I42: 1716361 | J42: 0 | K42: 0
B43: 454 | C43: Lawrence Family Development Charter School | D43: 0 | E43: -519821 | F43: 350334 | G43: 91849 | H43: -778306 | I43: 3611762.5 | J43: 0 | K43: 0
B44: 456 | C44: Lowell Community Charter Public School | D44: 0 | E44: -432157.97 | F44: 93122 | G44: 0 | H44: -525279.97 | I44: 1924812.5 | J44: 0 | K44: 0
B45: 458 | C45: Lowell Middlesex Academy Charter School | D45: 0 | E45: 14711.36 | F45: 161227 | G45: 78924 | H45: -67591.64 | I45: 725174.75 | J45: 0 | K45: 0
B46: 464 | C46: Marblehead Community Charter Public School | D46: 8146 | E46: 42471 | F46: 307130 | G46: 193462 | H46: -63051 | I46: 1206404.75 | J46: 0 | K46: 0
B47: 466 | C47: Martha's Vineyard Public Charter School | D47: 0 | E47: -21606.74 | F47: 907860 | G47: 22168 | H47: -907298.74 | I47: 1676402 | J47: 0 | K47: 0
B48: 492 | C48: Martin Luther King, Jr. Charter School of Excellence | D48: 0 | E48: 26153.66 | F48: 127271 | G48: 44002 | H48: -57115.34 | I48: 1947000.61 | J48: 0 | K48: 0
B49: 469 | C49: MATCH Charter Public School | D49: 0 | E49: 659181 | F49: 1050435 | G49: 129557 | H49: -261697 | I49: 3130237.75 | J49: 0 | K49: 0
B50: 465 | C50: MATCH Community Day Charter Public School | D50: 0 | E50: 489261 | F50: 83775 | G50: 2744 | H50: 408230 | I50: 1742818.5 | J50: 408230 | K50: 0
B51: 470 | C51: Mystic Valley Regional Charter School | D51: 1425667 | E51: 941891 | F51: 4567815 | G51: 588050 | H51: -1612207 | I51: 7365270.5 | J51: 0 | K51: 0
B52: 444 | C52: Neighborhood House Charter School | D52: 0 | E52: -98754.2 | F52: 1464559 | G52: 36866 | H52: -1526447.2 | I52: 2457397.75 | J52: 0 | K52: 0
B53: 474 | C53: North Central Charter Essential School | D53: 53215 | E53: 3608.06 | F53: 107874.5 | G53: 2025 | H53: -49026.44 | I53: 1885963.25 | J53: 0 | K53: 0
B54: 493 | C54: Phoenix Academy Charter Public High School, Chelsea | D54: 0 | E54: 362211.39 | F54: 209189.34 | G54: 72785 | H54: 225807.05 | I54: 1177303 | J54: 225807.05 | K54: 0
B55: 494 | C55: Pioneer Charter School of Science | D55: 308905 | E55: 564693.91 | F55: 83214 | G55: 51570 | H55: 841954.91 | I55: 1951995.25 | J55: 841954.91 | K55: 0
B56: 497 | C56: Pioneer Valley Chinese Immersion Charter School | D56: 378641 | E56: 342647.06 | F56: 24376.18 | G56: 98 | H56: 697009.88 | I56: 832744.5 | J56: 697009.88 | K56: 0
B57: 479 | C57: Pioneer Valley Performing Arts Charter Public School | D57: 0 | E57: 94450 | F57: 63322 | G57: 18505 | H57: 49633 | I57: 2195819.75 | J57: 49633 | K57: 0
B58: 487 | C58: Prospect Hill Academy Charter School | D58: 2069774 | E58: 826681 | F58: 2254680 | G58: 931448 | H58: 1573223 | I58: 7726714.25 | J58: 1573223 | K58: 0
B59: 483 | C59: Rising Tide Charter Public School | D59: 0 | E59: 70461.93 | F59: 147590 | G59: 118857 | H59: 41728.93 | I59: 3574964.25 | J59: 41728.93 | K59: 0
B60: 482 | C60: River Valley Charter School | D60: 65650 | E60: 68805 | F60: 281653 | G60: 115384 | H60: -31814 | I60: 1504831.5 | J60: 0 | K60: 0
B61: 484 | C61: Roxbury Preparatory Charter School | D61: 0 | E61: 2175753.92 | F61: 5598628 | G61: 641381 | H61: -2781493.08 | I61: 3784759.5 | J61: 0 | K61: 0
B62: 441 | C62: Sabis International Charter School | D62: 0 | E62: 999040.61 | F62: 971805.97 | G62: 102043 | H62: 129277.64 | I62: 7908096.25 | J62: 129277.64 | K62: 0
B63: 485 | C63: Salem Academy Charter School | D63: 0 | E63: 68436 | F63: 517701 | G63: 40198 | H63: -409067 | I63: 1943998.5 | J63: 0 | K63: 0
B64: 486 | C64: Seven Hills Charter Public School | D64: 0 | E64: 289191 | F64: 210527 | G64: 58309 | H64: 136973 | I64: 3496190.25 | J64: 136973 | K64: 0
B65: 419 | C65: Smith Leadership Academy Charter Public School | D65: 0 | E65: 121411 | F65: 186110 | G65: 15654 | H65: -49045 | I65: 1367559.5 | J65: 0 | K65: 0
B66: 488 | C66: South Shore Charter Public School | D66: 0 | E66: -9487 | F66: 540550 | G66: 144196 | H66: -405841 | I66: 2820605.25 | J66: 0 | K66: 0
B67: 489 | C67: Sturgis Charter Public School | D67: 0 | E67: -14403 | F67: 8888 | G67: 54239 | H67: 30948 | I67: 4417494.75 | J67: 30948 | K67: 0
B68: 498 | C68: Veritas Preparatory Charter School | D68: 0 | E68: 17828.06 | F68: 256171.44 | G68: 4807.13 | H68: -233536.25 | I68: 642750 | J68: 0 | K68: 0

Sheet 4. EXPPP
A1: Massachusetts Department of Elementary and Secondary Education
A2: FY14 Charter School Expenditures Per Pupil, All Funds, Summary By Function
A3: =Index!B3 -> Last Updated: May 2015
B4: Return to Index | F4: ----------------------------- Operating Expenditures Per Pupil In The Charter School ------------------------------------------- | S4: --- Exp pp Facilities Costs2 ---
E5: fte pupils | G5: instruc- | H5: classroom & | I5: other | J5: profes- | K5: instructn'l | L5: guidance, | N5: operations | O5: insurance, | P5: total operating | Q5: total operating | S5: Rental/Lease of | T5: Capital
D6: location | E6: at the | F6: admini- | G6: tional | H6: specialist | I6: teaching | J6: sional dev- | K6: materials, | L6: counseling | M6: pupil | N6: and | O6: retirement | P6: expenditures | Q6: expenditures | S6: Building & | T6: Facilities
A7: LEA | B7: Charter School | C7: type | D7: in FY14 | E7: charter | F7: stration | G7: leadership | H7: teachers | I7: services | J7: elopment | K7: equip & tech | L7: & testing | M7: services | N7: maintenance | O7: & other 1 | P7: aggregate | Q7: per pupil | S7: Grounds | T7: Expenses3
F8: 100 | G8: 210 | H8: 220 | I8: 230 | J8: 240 | K8: 260 | L8: 250 | M8: 300 | N8: 400 | O8: 500 | S8: 540 | T8: 720
A9: 445 | B9: Abby Kelley Foster Charter Public School | C9: =VLOOKUP(A9, FACTS, 3, FALSE) -> C | D9: =VLOOKUP(A9, FACTS, 6, FALSE) -> Worcester | E9: =VLOOKUP(A9, FTE, 2, FALSE) -> 1423.126074 | F9: =VLOOKUP($A9&100, FE, 12, FALSE)/$E9 -> 558.8374878 | G9: =VLOOKUP($A9&210, FE, 12, FALSE)/$E9 -> 867.1584918 | H9: =VLOOKUP($A9&220, FE, 12, FALSE)/$E9 -> 4590.137339 | I9: =VLOOKUP($A9&230, FE, 12, FALSE)/$E9 -> 706.0135629 | J9: =VLOOKUP($A9&240, FE, 12, FALSE)/$E9 -> 58.26529463 | K9: =VLOOKUP($A9&260, FE, 12, FALSE)/$E9 -> 296.8881238 | L9: =VLOOKUP($A9&250, FE, 12, FALSE)/$E9 -> 173.4979525 | M9: =VLOOKUP($A9&300, FE, 12, FALSE)/$E9 -> 1440.636039 | N9: =VLOOKUP($A9&400, FE, 12, FALSE)/$E9 -> 1248.909476 | O9: =VLOOKUP($A9&500, FE, 12, FALSE)/$E9 -> 1549.612568 | P9: =VLOOKUP($A9&800,FE,12,FALSE)-VLOOKUP($A9&700,FE,12,FALSE)-VLOOKUP($A9&600,FE,12,FALSE) -> 16351656.45 | Q9: =SUM(F9:O9) -> 11489.95633 | S9: =VLOOKUP($A9&740, FE, 12, FALSE)/$E9 -> 0 | T9: =(VLOOKUP($A9&700, FE, 12, FALSE)-VLOOKUP($A9&740, FE, 12, FALSE)-VLOOKUP($A9&725, FE, 12, FALSE))/$E9 -> 1530.361188
A10: 412 | B10: Academy of the Pacific Rim Charter Public School | C10: C | D10: Boston | E10: 505.6137566 | F10: 1391.669018 | G10: 1103.241343 | H10: 4734.546813 | I10: 436.4754659 | J10: 104.9022091 | K10: 733.2296544 | L10: 558.21266 | M10: 1883.487123 | N10: 1022.476136 | O10: 1496.875807 | P10: 6808148 | Q10: =SUM(F10:O10) -> 13465.11623 | S10: 0 | T10: 2324.693473
A11: 430 | B11: Advanced Math and Science Academy Charter School | C11: C | D11: Marlborough | E11: 993.5111111 | F11: 1396.988835 | G11: 946.4995404 | H11: 3829.707255 | I11: 321.7805986 | J11: 102.5241679 | K11: 762.4669231 | L11: 538.6688725 | M11: 1371.623432 | N11: 733.3964179 | O11: 1140.753221 | P11: 11072094.43 | Q11: 11144.40926 | S11: 1937.540062 | T11: 43.58788696
A12: 409 | B12: Alma del Mar Charter School | C12: C | D12: New Bedford | E12: 199.8631579 | F12: 1680.102344 | G12: 953.4805815 | H12: 4006.362295 | I12: 1285.653057 | J12: 540.8461026 | K12: 851.1446621 | L12: 124.5745352 | M12: 2611.328098 | N12: 785.9380471 | O12: 905.7484226 | P12: 2747154.71 | Q12: 13745.17815 | S12: 280.8632196 | T12: 376.0245299
A13: 415 | B13: Amesbury Academy Charter Public School | C13: HM | D13: Amesbury | E13: 43.4198895 | F13: 698.9633172 | G13: 5194.162919 | H13: 7365.696082 | I13: 124.4761344 | J13: 125.5876066 | K13: 100.5359537 | L13: 7.689333249 | M13: 374.5808703 | N13: 164.7988994 | O13: 1702.520224 | P13: 688596.52 | Q13: 15859.01134 | S13: 1417.252801 | T13: 44.12724265
A14: 491 | B14: Atlantis Charter School | C14: C | D14: Fall River | E14: 782.0035948 | F14: 1222.898471 | G14: 961.2053001 | H14: 3670.187732 | I14: 1394.021725 | J14: 40.23255163 | K14: 257.2878198 | L14: 516.3799792 | M14: 1046.201073 | N14: 981.3688903 | O14: 2106.340701 | P14: 9537413 | Q14: 12196.12424 | S14: 496.8007853 | T14: 98.34865276
A15: 427 | B15: Barnstable Community Horace Mann Charter Public School | C15: HM | D15: Barnstable | E15: 292.0777778 | F15: 880.3408529 | G15: 240.6379579 | H15: 5001.246624 | I15: 1408.296116 | J15: 50.00924792 | K15: 216.7984175 | L15: 639.1824856 | M15: 1032.718074 | N15: 904.3447331 | O15: 801.3687374 | P15: 3263952.59 | Q15: 11174.94325 | S15: 1082.838285 | T15: 0
A16: 3502 | B16: Baystate Academy Charter Public School | C16: C | D16: Springfield | E16: 156.7272727 | F16: 2032.326375 | G16: 383.787703 | H16: 3323.686624 | I16: 1435.35982 | J16: 391.3861891 | K16: 781.6300754 | L16: 0 | M16: 2833.378405 | N16: 721.6086775 | O16: 841.0091473 | P16: 1997359.48 | Q16: 12744.17302 | S16: 1233.595383 | T16: 94.67956497
A17: 420 | B17: Benjamin Banneker Charter Public School | C17: C | D17: Cambridge | E17: 341.7722222 | F17: 2557.283165 | G17: 1654.589733 | H17: 4328.701439 | I17: 2106.546095 | J17: 246.0918253 | K17: 563.8389181 | L17: 341.324872 | M17: 2810.287605 | N17: 1267.145314 | O17: 2082.302785 | P17: 6137583.76 | Q17: 17958.11175 | S17: 1382.449975 | T17: 300.7607211
A18: 447 | B18: Benjamin Franklin Classical Charter Public School | C18: C | D18: Franklin | E18: 447.9833333 | F18: 1076.400737 | G18: 613.7640388 | H18: 3871.803772 | I18: 1041.809271 | J18: 89.06706351 | K18: 138.1485323 | L18: 244.7641281 | M18: 890.5968154 | N18: 545.4 | O18: 1510.728904 | P18: 4489905.46 | Q18: 10022.48326 | S18: 524.5730868 | T18: 171.3032479
A19: 414 | B19: Berkshire Arts and Technology Charter Public School | C19: C | D19: Adams | E19: 315.9783784 | F19: 1711.66275 | G19: 1538.602459 | H19: 4614.240498 | I19: 1021.710605 | J19: 388.1539004 | K19: 512.1466565 | L19: 550.7553108 | M19: 1923.472147 | N19: 1059.925403 | O19: 1133.80166 | P19: 4567300.43 | Q19: 14454.47139 | S19: 0 | T19: 1434.942993
A20: 449 | B20: Boston Collegiate Charter School | C20: C | D20: Boston | E20: 642.7912088 | F20: 1598.539286 | G20: 1388.579974 | H20: 5907.389442 | I20: 176.4056484 | J20: 155.9324375 | K20: 128.4678429 | L20: 1058.855489 | M20: 1480.508736 | N20: 758.1559818 | O20: 886.9831949 | P20: 8703276 | Q20: 13539.81803 | S20: 0 | T20: 2716.096574
A21: 424 | B21: Boston Day and Evening Academy Charter School | C21: HM | D21: Boston | E21: 357.5865922 | F21: 1133.954709 | G21: 196.5174353 | H21: 5906.345613 | I21: 164.1001125 | J21: 147.7488283 | K21: 602.2149731 | L21: 1955.344566 | M21: 271.1846644 | N21: 81.54388514 | O21: 197.0012342 | P21: 3810427 | Q21: 10655.95602 | S21: 0 | T21: 74.27291901
A22: 411 | B22: Boston Green Academy Horace Mann Charter School | C22: HM | D22: Boston | E22: 319.8 | F22: 1623.559381 | G22: 2399.703565 | H22: 6950.619137 | I22: 616.0961226 | J22: 156.4386492 | K22: 161.1441526 | L22: 266.097561 | M22: 2064.508443 | N22: 691.1946842 | O22: 2286.782583 | P22: 5505722.94 | Q22: 17216.14428 | S22: 293.3020638 | T22: 1.751094434
A23: 416 | B23: Boston Preparatory Charter Public School | C23: C | D23: Boston | E23: 366.7 | F23: 1703.353968 | G23: 1108.156722 | H23: 6015.575457 | I23: 481.1168803 | J23: 241.3256886 | K23: 342.38961 | L23: 420.7365694 | M23: 3739.543251 | N23: 605.7618762 | O23: 1422.200191 | P23: 5896594.75 | Q23: 16080.16021 | S23: 1304.025198 | T23: 337.9383692
A24: 481 | B24: Boston Renaissance Charter Public School | C24: C | D24: Boston | E24: 940.1388889 | F24: 2011.343071 | G24: 1349.637936 | H24: 4565.50062 | I24: 1238.209018 | J24: 130.585365 | K24: 639.7045661 | L24: 187.0031887 | M24: 1170.298201 | N24: 907.3503076 | O24: 1693.688155 | P24: 13061650.83 | Q24: 13893.32043 | S24: 0 | T24: 1891.310306
A25: 417 | B25: Bridge Boston Charter School | C25: C | D25: Boston | E25: 145.8631579 | F25: 2703.914036 | G25: 1463.783405 | H25: 4273.74965 | I25: 1422.099473 | J25: 117.8658837 | K25: 854.8320344 | L25: 903.5028578 | M25: 2875.993953 | N25: 1478.356174 | O25: 1342.800491 | P25: 2543401 | Q25: 17436.89796 | S25: 2122.071155 | T25: 187.0523057
A26: 457 | B26: Brooke Charter School East Boston | C26: C | D26: Boston | E26: 290.0824742 | F26: 1754.962968 | G26: 1397.0309 | H26: 4822.70066 | I26: 799.8418747 | J26: 7.318608288 | K26: 1116.013647 | L26: 1039.818075 | M26: 1929.8029 | N26: 626.6183453 | O26: 849.3308693 | P26: 4160780.23 | Q26: 14343.43885 | S26: 1686.727202 | T26: 124.6024948
A27: 443 | B27: Brooke Charter School Mattapan | C27: C | D27: Boston | E27: 360.375 | F27: 1799.014915 | G27: 1235.274367 | H27: 4929.431842 | I27: 674.0228928 | J27: 10.1588623 | K27: 1028.642386 | L27: 890.0228928 | M27: 2523.296566 | N27: 601.7287548 | O27: 590.4349636 | P27: 5146886 | Q27: 14282.02844 | S27: 1481.326396 | T27: 140.6951093
A28: 428 | B28: Brooke Charter School Roslindale | C28: C | D28: Boston | E28: 491.545 | F28: 4168.763796 | G28: 1394.42167 | H28: 5105.215189 | I28: 925.087225 | J28: 12.7923181 | K28: 868.7180217 | L28: 1626.394328 | M28: 2059.947716 | N28: 2608.210845 | O28: 1515.334303 | P28: 9970934 | Q28: 20284.88541 | S28: 2553.987936 | T28: 6873.053332
A29: 432 | B29: Cape Cod Lighthouse Charter School | C29: C | D29: Harwich | E29: 239.8722222 | F29: 1322.662529 | G29: 309.331357 | H29: 6124.135535 | I29: 547.9333905 | J29: 51.51492693 | K29: 417.9058295 | L29: 329.3003219 | M29: 790.491697 | N29: 797.1925979 | O29: 1881.831067 | P29: 3015745.36 | Q29: 12572.29925 | S29: 0 | T29: 1137.555643
A30: 418 | B30: Christa McAuliffe Charter School | C30: C | D30: Framingham | E30: 341.7166667 | F30: 1786.6322 | G30: 894.51332 | H30: 4762.918256 | I30: 157.9006975 | J30: 169.7494903 | K30: 750.5214554 | L30: 228.4635419 | M30: 1209.194635 | N30: 393.9396088 | O30: 1399.926479 | P30: 4016455.58 | Q30: 11753.75968 | S30: 877.9203043 | T30: 0
A31: 437 | B31: City On A Hill Charter Public School | C31: C | D31: Boston | E31: 277.1851852 | F31: 1626.15271 | G31: 1362.265446 | H31: 5302.593207 | I31: 2214.552807 | J31: 306.902802 | K31: 742.0118065 | L31: 694.9603741 | M31: 1303.748105 | N31: 957.0827165 | O31: 1777.055616 | P31: 4514605.36 | Q31: 16287.32559 | S31: 2322.923282 | T31: 133.0700267
A32: 3504 | B32: City On A Hill Charter Public School II | C32: C | D32: Boston | E32: 108.3206522 | F32: 3216.340956 | G32: 3176.794573 | H32: 5349.37852 | I32: 1701.441842 | J32: 63.77315739 | K32: 2884.823473 | L32: 469.8755868 | M32: 1013.557136 | N32: 1619.846506 | O32: 1722.150082 | P32: 2298345.63 | Q32: 21217.98183 | S32: 1587.50946 | T32: 217.2833114
A33: 438 | B33: Codman Academy Charter Public School | C33: C | D33: Boston | E33: 189.3194398 | F33: 3600.274492 | G33: 1968.638088 | H33: 3961.288923 | I33: 2503.440959 | J33: 300.2828978 | K33: 1320.187828 | L33: 691.6808972 | M33: 2257.034673 | N33: 507.7880543 | O33: 1000.784231 | P33: 3428840.3 | Q33: 18111.40104 | S33: 1031.04573 | T33: 0
A34: 436 | B34: Community Charter School of Cambridge | C34: C | D34: Cambridge | E34: 373.5277778 | F34: 1325.855879 | G34: 1692.527404 | H34: 5279.676954 | I34: 764.9578345 | J34: 381.893954 | K34: 545.3436454 | L34: 569.1116234 | M34: 872.4759426 | N34: 777.893954 | O34: 1207.709378 | P34: 5011789 | Q34: 13417.44657 | S34: 2622.696512 | T34: 674.656652
A35: 426 | B35: Community Day Charter Public School - Gateway | C35: C | D35: Lawrence | E35: 159.7103825 | F35: 1506.389229 | G35: 932.487905 | H35: 5635.58227 | I35: 485.4161563 | J35: 145.1001471 | K35: 776.4179013 | L35: 219.1592021 | M35: 1515.411811 | N35: 699.6476888 | O35: 1266.968351 | P35: 2105395 | Q35: 13182.58066 | S35: 594.425976 | T35: 32.49006056
A36: 440 | B36: Community Day Charter Public School - Prospect | C36: C | D36: Lawrence | E36: 330.8360656 | F36: 1224.077548 | G36: 1796.76904 | H36: 6330.19558 | I36: 515.5604777 | J36: 87.45418958 | K36: 412.080224 | L36: 789.7657698 | M36: 1377.398196 | N36: 914.437788 | O36: 1203.139686 | P36: 4847039 | Q36: 14650.8785 | S36: 359.332045 | T36: 20.50864675
A37: 431 | B37: Community Day Charter Public School - R. Kingman Webster | C37: C | D37: Lawrence | E37: 159.7595628 | F37: 1473.370331 | G37: 945.7712409 | H37: 5131.054288 | I37: 216.7131619 | J37: 135.6020235 | K37: 854.8471063 | L37: 206.0283555 | M37: 1606.9398 | N37: 851.8926666 | O37: 1035.731427 | P37: 1990276.71 | Q37: 12457.9504 | S37: 764.7679915 | T37: 35.62228075
A38: 439 | B38: Conservatory Lab Charter School | C38: C | D38: Boston | E38: 309.2722222 | F38: 2687.329318 | G38: 925.3511937 | H38: 4602.896276 | I38: 1454.318292 | J38: 71.34510769 | K38: 1120.882042 | L38: 311.3840917 | M38: 1517.650136 | N38: 565.3874077 | O38: 1088.139561 | P38: 4436412.12 | Q38: 14344.68343 | S38: 1966.070524 | T38: 176.0196878
A39: 475 | B39: Dorchester Collegiate Academy Charter School | C39: =VLOOKUP(A39, FACTS, 3, FALSE) -> C | D39: =VLOOKUP(A39, FACTS, 6, FALSE) -> Boston | E39: =VLOOKUP(A39, FTE, 2, FALSE) -> 189.9789474 | F39: =VLOOKUP($A39&100, FE, 12, FALSE)/$E39 -> 2106.156264 | G39: 1058.880485 | H39: 5728.081059 | I39: 228.8569371 | J39: 132.7147052 | K39: 556.8945479 | L39: 539.3071254 | M39: 2029.588043 | N39: 942.5465426 | O39: 1601.051086 | P39: 2835260.4 | Q39: 14924.0768 | S39: 0 | T39: 990.8970578
A40: 407 | B40: Dudley Street Neighborhood Charter School | C40: HM | D40: Boston | E40: 176.5396017 | F40: 730.3063946 | G40: 1612.810935 | H40: 5185.788295 | I40: 1409.881962 | J40: 245.8541856 | K40: 653.1339082 | L40: 753.2077717 | M40: 1472.224915 | N40: 532.8945976 | O40: 1188.532193 | P40: 2433534 | Q40: 13784.63516 | S40: 0 | T40: 0
A41: 452 | B41: Edward M. Kennedy Academy for Health Careers: A Horace Mann Charter Public School | C41: HM | D41: Boston | E41: 326.1533859 | F41: 1948.874448 | G41: 821.285357 | H41: 5714.118204 | I41: 569.3609449 | J41: 37.31679794 | K41: 464.4501837 | L41: 1377.213972 | M41: 1587.072287 | N41: 62.52579577 | O41: 2491.634412 | P41: 4916388 | Q41: 15073.8524 | S41: 774.9697256 | T41: 0
A42: 410 | B42: Excel Academy Charter School | C42: C | D42: Boston | E42: 211.4977578 | F42: 7060.440239 | G42: 1280.249601 | H42: 6390.997445 | I42: 382.9082673 | J42: 63.73760241 | K42: 609.2673573 | L42: 1938.497619 | M42: 1553.870563 | N42: 899.1402648 | O42: 1867.424856 | P42: 4662792.47 | Q42: 22046.53381 | S42: 9.645492325 | T42: 1999.820113
A43: 459 | B43: Excel Academy Charter School - Boston II | C43: C | D43: Boston | E43: 111.2150538 | F43: 4564.530725 | G43: 1219.492285 | H43: 4926.930316 | I43: 309.2066122 | J43: 157.6362139 | K43: 576.4602707 | L43: 554.2536546 | M43: 1369.642282 | N43: 963.1609784 | O43: 998.5002591 | P43: 1739382.71 | Q43: =SUM(F43:O43) -> 15639.8136 | S43: 1668.874884 | T43: 155.1094876
A44: 461 | B44: Excel Academy Charter School - Chelsea | C44: C | D44: Chelsea | E44: 167.2167488 | F44: 2446.434122 | G44: 1345.313443 | H44: 4724.193873 | I44: 282.4672788 | J44: 115.0866175 | K44: 717.5831421 | L44: 613.0813495 | M44: 1058.118827 | N44: 579.7925191 | O44: 565.1365709 | P44: 2081381.61 | Q44: 12447.20774 | S44: 1266.031433 | T44: 449.879815
A45: 413 | B45: Four Rivers Charter Public School | C45: C | D45: Greenfield | E45: 213.6098901 | F45: 922.6454819 | G45: 1639.923132 | H45: 5228.841649 | I45: 706.3012388 | J45: 133.9310646 | K45: 715.9239206 | L45: 614.2296124 | M45: 735.8632595 | N45: 897.0176423 | O45: 1470.582003 | P45: 2790868.54 | Q45: 13065.259 | S45: 1652.381357 | T45: 56.23803277
A46: 446 | B46: Foxborough Regional Charter School | C46: C | D46: Foxborough | E46: 1258.583333 | F46: 728.727527 | G46: 937.189226 | H46: 3087.592778 | I46: 675.6748063 | J46: 48.84312256 | K46: 284.4914044 | L46: 457.8278249 | M46: 1114.331648 | N46: 808.7227703 | O46: 979.5042707 | P46: 11481936.66 | Q46: 9122.905378 | S46: 0 | T46: 2534.660928
A47: 478 | B47: Francis W. Parker Charter Essential School | C47: C | D47: Devens | E47: 397.7222222 | F47: 825.9333943 | G47: 1391.836395 | H47: 5477.475983 | I47: 235.6106719 | J47: 117.3177343 | K47: 427.2767713 | L47: 542.2625087 | M47: 1017.07455 | N47: 844.687149 | O47: 1403.489166 | P47: 4885207.866 | Q47: 12282.96432 | S47: 473.8629362 | T47: 449.8943081
A48: 496 | B48: Global Learning Charter Public School | C48: C | D48: New Bedford | E48: 499.1833333 | F48: 1194.88765 | G48: 1442.251678 | H48: 4674.398851 | I48: 302.1274749 | J48: 147.8575006 | K48: 881.7081233 | L48: 488.9746586 | M48: 1454.227238 | N48: 538.7820106 | O48: 1309.406698 | P48: 6207156 | Q48: 12434.62188 | S48: 467.1229675 | T48: 327.0982605
A49: 499 | B49: Hampden Charter School of Science | C49: C | D49: Chicopee | E49: 350.4230769 | F49: 1677.687169 | G49: 530.8428076 | H49: 4301.415772 | I49: 412.2602634 | J49: 213.7297311 | K49: 624.2441905 | L49: 511.9643135 | M49: 1934.091972 | N49: 874.60333 | O49: 1322.591149 | P49: 4346448.35 | Q49: 12403.4307 | S49: 1232.168166 | T49: 138.0898782
A50: 419 | B50: Helen Y Davis Leadership Academy Charter Public School | C50: C | D50: Boston | E50: 228.5157895 | F50: 2470.603897 | G50: 371.9655442 | H50: 5782.112488 | I50: 412.0765581 | J50: 700.1485559 | K50: 439.8645723 | L50: 284.4442397 | M50: 3243.41264 | N50: 581.8153761 | O50: 1667.429637 | P50: 3645712 | Q50: 15953.87351 | S50: 1492.64084 | T50: 0
A51: 455 | B51: Hill View Montessori Charter Public School | C51: C | D51: Haverhill | E51: 303.7222222 | F51: 1714.878998 | G51: 1.521126761 | H51: 3352.094136 | I51: 1201.504181 | J51: 65.11212731 | K51: 120.5146918 | L51: 807.8631791 | M51: 169.0623742 | N51: 808.0710664 | O51: 939.2167551 | P51: 2788120.99 | Q51: 9179.838635 | S51: 0 | T51: 433.5606365
A52: 450 | B52: Hilltown Cooperative Charter Public School | C52: C | D52: East Hampton | E52: 174.65 | F52: 1024.877813 | G52: 1016.931005 | H52: 4764.705983 | I52: 1526.4288 | J52: 27.19038076 | K52: 405.4058975 | L52: 296.2577727 | M52: 491.3709705 | N52: 346.9361008 | O52: 1416.902605 | P52: 1976515.33 | Q52: 11317.00733 | S52: 1322.645291 | T52: 518.0721443
A53: 453 | B53: Holyoke Community Charter School | C53: C | D53: Holyoke | E53: 700.1333333 | F53: 692.523805 | G53: 2548.147496 | H53: 3775.822224 | I53: 756.4502 | J53: 122.4109693 | K53: 648.2922301 | L53: 220.6222624 | M53: 1741.636831 | N53: 812.3666921 | O53: 1052.723767 | P53: 8661347 | Q53: 12370.99648 | S53: 0 | T53: 687.2048181
A54: 435 | B54: Innovation Academy Charter School | C54: C | D54: Tyngsborough | E54: 722.160221 | F54: 997.4905555 | G54: 789.7845705 | H54: 4340.58663 | I54: 626.3914667 | J54: 65.59209248 | K54: 141.0504166 | L54: 429.2399262 | M54: 1178.943364 | N54: 946.4672522 | O54: 1078.192868 | P54: 7650377 | Q54: 10593.73914 | S54: 0 | T54: 1467.207649
A55: 463 | B55: KIPP Academy Boston Charter School | C55: C | D55: Boston | E55: 141.8791209 | F55: 3607.459553 | G55: 1828.455931 | H55: 5829.540914 | I55: 1332.057098 | J55: 560.1523995 | K55: 1009.800379 | L55: 537.9179088 | M55: 3214.162219 | N55: 638.2121586 | O55: 1426.019408 | P55: 2835280.85 | Q55: 19983.77797 | S55: 2970.420929 | T55: 832.3484757
A56: 429 | B56: KIPP Academy Lynn Charter School | C56: C | D56: Lynn | E56: 719.8021978 | F56: 2540.01978 | G56: 1264.209894 | H56: 4733.237187 | I56: 669.3557223 | J56: 388.0677231 | K56: 574.5925773 | L56: 611.930974 | M56: 1220.389925 | N56: 566.5768196 | O56: 1437.50603 | P56: 10081467.98 | Q56: 14005.88663 | S56: 0 | T56: 2235.147385
A57: 454 | B57: Lawrence Family Development Charter School | C57: C | D57: Lawrence | E57: 655.0222222 | F57: 1167.67211 | G57: 1266.430912 | H57: 4676.160436 | I57: 830.7823942 | J57: 53.29478728 | K57: 161.8736226 | L57: 145.5981137 | M57: 1483.01135 | N57: 1271.687802 | O57: 1782.349881 | P57: 8409739.53 | Q57: 12838.86141 | S57: 1768.038764 | T57: 150.0380242
A58: 3503 | B58: Lowell Collegiate Charter School | C58: C | D58: Lowell | E58: 270.5934066 | F58: 938.7373964 | G58: 2414.817819 | H58: 2596.944023 | I58: 810.0153391 | J58: 55.31158423 | K58: 734.7416646 | L58: 244.3305283 | M58: 1564.122516 | N58: 534.042835 | O58: 901.6004605 | P58: 2920964.95 | Q58: 10794.66417 | S58: 4344.211948 | T58: 95.70839263
A59: 456 | B59: Lowell Community Charter Public School | C59: C | D59: Lowell | E59: 651.5459459 | F59: 1490.269176 | G59: 832.4558588 | H59: 4861.296014 | I59: 964.6044211 | J59: 136.6684123 | K59: 531.1211007 | L59: 124.9284575 | M59: 1413.608581 | N59: 1000.363112 | O59: 2283.940203 | P59: 8886601.52 | Q59: 13639.25534 | S59: 1696.294631 | T59: 268.369746
A60: 458 | B60: Lowell Middlesex Academy Charter School | C60: C | D60: Lowell | E60: 118.6444444 | F60: 977.1554036 | G60: 2219.94027 | H60: 6825.341665 | I60: 12.2744896 | J60: 30.51133171 | K60: 427.8411032 | L60: 85.34103765 | M60: 949.108747 | N60: 808.0487919 | O60: 1612.456453 | P60: 1654855 | Q60: 13948.01929 | S60: 0 | T60: 665.2144596
A61: 464 | B61: Marblehead Community Charter Public School | C61: C | D61: Marblehead | E61: 229.9337017 | F61: 1886.933568 | G61: 282.1571154 | H61: 5315.731149 | I61: 0 | J61: 37.68160099 | K61: 299.7965044 | L61: 531.8026854 | M61: 1343.968447 | N61: 696.006583 | O61: 2025.245871 | P61: 2855621.03 | Q61: 12419.32352 | S61: 1124.017741 | T61: 314.0339997
A62: 466 | B62: Martha's Vineyard Public Charter School | C62: C | D62: West Tisbury | E62: 179.6187845 | F62: 1867.132109 | G62: 1930.989573 | H62: 8527.153794 | I62: 1169.654948 | J62: 80.72652333 | K62: 1137.035865 | L62: 509.3342561 | M62: 2587.613546 | N62: 1274.265387 | O62: 3329.77423 | P62: 4025918 | Q62: 22413.68023 | S62: 1002.122359 | T62: 126.1672049
A63: 492 | B63: Martin Luther King, Jr. Charter School of Excellence | C63: C | D63: Springfield | E63: 367.0222222 | F63: 1264.771428 | G63: 371.6372245 | H63: 4828.723556 | I63: 1534.714755 | J63: 535.1401308 | K63: 697.808074 | L63: 251.1134597 | M63: 1938.462897 | N63: 1033.317323 | O63: 1619.177162 | P63: 5165788.6 | Q63: 14074.86601 | S63: 917.321349 | T63: 229.1600478
A64: 469 | B64: Match Charter Public School | C64: C | D64: Boston | E64: 499.1957085 | F64: 2710.618255 | G64: 2222.581207 | H64: 6519.168624 | I64: 226.4502641 | J64: 849.1158734 | K64: 804.2476992 | L64: 591.8620593 | M64: 1597.253315 | N64: 1009.323581 | O64: 1215.727599 | P64: 8858901 | Q64: 17746.34848 | S64: 526.3987561 | T64: 2555.935435
A65: 465 | B65: MATCH Community Day Charter Public School | C65: C | D65: Boston | E65: 297.9505495 | F65: 216.9655338 | G65: 1777.033138 | H65: 6798.977225 | I65: 585.7851255 | J65: 360.8048389 | K65: 1321.158832 | L65: 452.5146883 | M65: 2419.089347 | N65: 948.5768713 | O65: 970.4899036 | P65: 4722932 | Q65: =SUM(F65:O65) -> 15851.3955 | S65: 0 | T65: 0.4732328914
A66: 470 | B66: Mystic Valley Regional Charter School | C66: C | D66: Malden | E66: 1486.084261 | F66: 995.7833743 | G66: 242.3106209 | H66: 3810.910423 | I66: 700.4771044 | J66: 247.4556858 | K66: 645.4882978 | L66: 245.5412587 | M66: 1054.72014 | N66: 1185.4671 | O66: 1051.827976 | P66: 15128311 | Q66: 10179.98198 | S66: 191.4864503 | T66: 763.7534626
A67: 444 | B67: Neighborhood House Charter School | C67: C | D67: Boston | E67: 398.45 | F67: 3550.126741 | G67: 1147.009662 | H67: 6381.232275 | I67: 954.8349856 | J67: 52.85983185 | K67: 435.296775 | L67: 583.315347 | M67: 1037.89685 | N67: 1478.012298 | O67: 1875.319363 | P67: 6971243 | Q67: 17495.90413 | S67: 1098.672355 | T67: 114.7044799
A68: 467 | B68: New Liberty Charter School of Salem | C68: HM | D68: Salem | E68: 43.76842105 | F68: 2238.714526 | G68: 3656.490825 | H68: 7102.836075 | I68: 926.1928812 | J68: 620.1960077 | K68: 1303.428331 | L68: 3996.92874 | M68: 501.0233285 | N68: 213.6014911 | O68: 91.16161616 | P68: 903843.01 | Q68: 20650.57382 | S68: 3322.32684 | T68: 3138.609909
A69: 3501 | B69: Paulo Freire Social Justice Charter School | C69: C | D69: Holyoke | E69: 147.4944444 | F69: 2555.309805 | G69: 1106.495913 | H69: 4640.201891 | I69: 427.5754266 | J69: 34.67927229 | K69: 660.9469283 | L69: 419.5547855 | M69: 2060.586086 | N69: 484.0046706 | O69: 845.3877736 | P69: 1952051 | Q69: 13234.74255 | S69: 2728.916343 | T69: 237.3784323
A70: 493 | B70: Phoenix Academy Charter Public High School, Chelsea | C70: C | D70: Chelsea | E70: 180.6648649 | F70: 6219.841699 | G70: 1869.38119 | H70: 4623.682644 | I70: 5132.354986 | J70: 479.7723125 | K70: 978.5411244 | L70: 79.97127726 | M70: 1683.387637 | N70: 1332.749454 | O70: 3966.388266 | P70: 4763422.58 | Q70: 26366.07059 | S70: 0 | T70: 574.1957634
A71: 494 | B71: Pioneer Charter School of Science | C71: C | D71: Everett | E71: 352.9562794 | F71: 1833.640249 | G71: 1253.936609 | H71: 4520.628653 | I71: 110.5448529 | J71: 101.7608755 | K71: 690.6511492 | L71: 307.7932773 | M71: 895.7864711 | N71: 956.9707629 | O71: 1082.543879 | P71: 4148738.74 | Q71: 11754.25678 | S71: 920.490154 | T71: 0
A72: 3506 | B72: Pioneer Charter School of Science II | C72: C | D72: Saugus | E72: 167.9744898 | F72: 1878.635859 | G72: 1297.70229 | H72: 4615.216757 | I72: 34.57370228 | J72: 38.99240895 | K72: 878.2573484 | L72: 380.2090429 | M72: 1449.17017 | N72: 874.1482125 | O72: 902.5400237 | P72: 2074391.86 | Q72: 12349.44581 | S72: 404.8233758 | T72: 221.0023084
A73: 497 | B73: Pioneer Valley Chinese Immersion Charter School | C73: =VLOOKUP(A73, FACTS, 3, FALSE) -> C | D73: =VLOOKUP(A73, FACTS, 6, FALSE) -> Hadley | E73: =VLOOKUP(A73, FTE, 2, FALSE) -> 320.6611111 | F73: =VLOOKUP($A73&100, FE, 12, FALSE)/$E73 -> 1115.773343 | G73: =VLOOKUP($A73&210, FE, 12, FALSE)/$E73 -> 582.1526326 | H73: =VLOOKUP($A73&220, FE, 12, FALSE)/$E73 -> 5217.503689 | I73: =VLOOKUP($A73&230, FE, 12, FALSE)/$E73 -> 693.4462655 | J73: =VLOOKUP($A73&240, FE, 12, FALSE)/$E73 -> 87.30893467 | K73: =VLOOKUP($A73&260, FE, 12, FALSE)/$E73 -> 389.1541433 | L73: =VLOOKUP($A73&250, FE, 12, FALSE)/$E73 -> 426.3444031 | M73: =VLOOKUP($A73&300, FE, 12, FALSE)/$E73 -> 878.480833 | N73: =VLOOKUP($A73&400, FE, 12, FALSE)/$E73 -> 581.2589165 | O73: =VLOOKUP($A73&500, FE, 12, FALSE)/$E73 -> 1231.848878 | P73: =VLOOKUP($A73&800,FE,12,FALSE)-VLOOKUP($A73&700,FE,12,FALSE)-VLOOKUP($A73&600,FE,12,FALSE) -> 3592453.66 | Q73: 11203.27204 | S73: 1230.25121 | T73: 24.28133544
A74: 479 | B74: Pioneer Valley Performing Arts Charter Public School | C74: C | D74: South Hadley | E74: 401.9426796 | F74: 1611.692495 | G74: 818.3256388 | H74: 4744.402864 | I74: 867.9247508 | J74: 98.55385361 | K74: 322.1404608 | L74: 387.5851158 | M74: 1028.258558 | N74: 930.6749918 | O74: 1591.876236 | P74: 4984666 | Q74: =SUM(F74:O74) -> 12401.43496 | S74: 1020.414156 | T74: 114.3371987
A75: 487 | B75: Prospect Hill Academy Charter School | C75: C | D75: Somerville (K-6); Cambridge (7-12) | E75: 1147.061111 | F75: 1376.901217 | G75: 1837.747998 | H75: 5154.722353 | I75: 1695.511731 | J75: 126.7496811 | K75: 620.6787529 | L75: 376.0456316 | M75: 597.3586702 | N75: 790.5548198 | O75: 1904.792473 | P75: 16610664.59 | Q75: 14481.06333 | S75: 1267.228028 | T75: 1096.373443
A76: 483 | B76: Rising Tide Charter Public School | C76: C | D76: Plymouth | E76: 514.9944444 | F76: 1091.781952 | G76: 420.977551 | H76: 4824.070836 | I76: 192.6278838 | J76: 31.53969946 | K76: 518.8938888 | L76: 83.30386951 | M76: 951.7939956 | N76: 513.184235 | O76: 1262.546824 | P76: 5093666.23 | Q76: 9890.720735 | S76: =VLOOKUP($A76&740, FE, 12, FALSE)/$E76 -> 1076.444564 | T76: =(VLOOKUP($A76&700, FE, 12, FALSE)-VLOOKUP($A76&740, FE, 12, FALSE)-VLOOKUP($A76&725, FE, 12, FALSE))/$E76 -> 1299.800954
A77: 482 | B77: River Valley Charter School | C77: C | D77: Newburyport | E77: 287.7277778 | F77: 1197.823174 | G77: 825.7249329 | H77: 4115.636694 | I77: 1608.645518 | J77: 127.6762372 | K77: 559.6783225 | L77: 295.2061169 | M77: 414.1171246 | N77: 580.0447954 | O77: 1605.500183 | P77: 3259971 | Q77: 11330.0531 | S77: 0 | T77: 1380.593153
A78: 484 | B78: Roxbury Preparatory Charter School | C78: C | D78: Boston | E78: 711.1777778 | F78: 2139.94313 | G78: 3113.772771 | H78: 5381.37034 | I78: 304.0604006 | J78: 223.5938818 | K78: 521.3042527 | L78: 365.6961847 | M78: 1276.533138 | N78: 1779.744868 | O78: 1179.6218 | P78: 11581985.81 | Q78: 16285.64077 | S78: 1529.194294 | T78: 3346.074743
A79: 441 | B79: Sabis International Charter School | C79: C | D79: Springfield | E79: 1570.594444 | F79: 1230.652029 | G79: 806.2063345 | H79: 3095.808939 | I79: 734.9540832 | J79: 171.1952827 | K79: 734.7649192 | L79: 530.7593714 | M79: 2171.17601 | N79: 718.9339323 | O79: 1019.317537 | P79: 17612282.41 | Q79: 11213.76844 | S79: 41.38560418 | T79: 2096.515069
A80: 485 | B80: Salem Academy Charter School | C80: C | D80: Salem | E80: 369.7106599 | F80: 1502.315352 | G80: 1033.608282 | H80: 5651.29499 | I80: 316.715239 | J80: 51.90545494 | K80: 469.3183584 | L80: 734.2444496 | M80: 745.3206788 | N80: 520.3285187 | O80: 1290.933835 | P80: 4553351 | Q80: 12315.98516 | S80: 1573.306001 | T80: 147.8534593
A81: 486 | B81: Seven Hills Charter Public School | C81: C | D81: Worcester | E81: 663.6858639 | F81: 1122.717901 | G81: 967.2603184 | H81: 3995.302815 | I81: 1580.695111 | J81: 148.4422155 | K81: 423.7125051 | L81: 658.4093828 | M81: 1860.31083 | N81: 947.3819381 | O81: 1746.901754 | P81: 8927328 | Q81: 13451.13477 | S81: 1226.182512 | T81: 0
A82: 477 | B82: Silver Hill Horace Mann Charter School | C82: HM | D82: Haverhill | E82: 598.3055556 | F82: 41.76461303 | G82: 424.3784763 | H82: 4517.048145 | I82: 275.4428711 | J82: 59.43451414 | K82: 116.2065091 | L82: 0 | M82: 226.8322578 | N82: 383.2573471 | O82: 1028.446075 | P82: 4231702 | Q82: 7072.810808 | S82: 0 | T82: 0
A83: 474 | B83: Sizer School, A North Central Charter Essential School | C83: C | D83: Fitchburg | E83: 316.0111111 | F83: 1425.118846 | G83: 1353.521585 | H83: 5273.644601 | I83: 595.4018494 | J83: 173.7312014 | K83: 242.228698 | L83: 666.3586266 | M83: 765.5256144 | N83: 638.9892409 | O83: 1287.789371 | P83: 3925587.87 | Q83: 12422.30963 | S83: 883.1965719 | T83: 2.135304666
A84: 488 | B84: South Shore Charter Public School | C84: C | D84: Norwell | E84: 564.1944444 | F84: 1125.333165 | G84: 744.0698577 | H84: 5032.108217 | I84: 976.4939117 | J84: 127.5539324 | K84: 620.7355344 | L84: 374.3974477 | M84: 601.9851548 | N84: 756.9916439 | O84: 1021.147258 | P84: 6420993.23 | Q84: 11380.81612 | S84: 956.7053794 | T84: 238.9539481
A85: 489 | B85: Sturgis Charter Public School | C85: C | D85: Hyannis | E85: 803.3463739 | F85: 948.467591 | G85: 606.9611015 | H85: 6377.87655 | I85: 115.9524746 | J85: 0 | K85: 960.1275677 | L85: 877.7260008 | M85: 595.1505048 | N85: 670.7467881 | O85: 1141.827523 | P85: 9877012 | Q85: 12294.8361 | S85: 1520.828424 | T85: 62.60811231
A86: 480 | B86: UP Academy Charter School of Boston | C86: HM | D86: Boston | E86: 449.2295082 | F86: 1545.986439 | G86: 1650.489115 | H86: 6353.491793 | I86: 680.7947078 | J86: 54.08868865 | K86: 567.5504065 | L86: 548.9124183 | M86: 2883.38821 | N86: 734.9295716 | O86: 1225.599588 | P86: 7297837.104 | Q86: 16245.23094 | S86: 0 | T86: 81.09663176
A87: 3505 | B87: UP Academy Charter School of Dorchester | C87: HM | D87: Boston | E87: 563.8333333 | F87: 889.8818298 | G87: 1554.057008 | H87: 6498.441853 | I87: 956.7358062 | J87: 84.80283476 | K87: 806.0456045 | L87: 397.8664325 | M87: 2771.817288 | N87: 665.5064073 | O87: 1168.376222 | P87: 8904919.39 | Q87: 15793.53129 | S87: 0 | T87: 32.72126515
A88: 498 | B88: Veritas Preparatory Charter School | C88: C | D88: Springfield | E88: 159.0473684 | F88: 2482.94344 | G88: 817.1278236 | H88: 4454.528088 | I88: 893.0755121 | J88: 180.3545088 | K88: 696.8412687 | L88: 494.9856812 | M88: 2324.041156 | N88: 1616.954512 | O88: 1054.412605 | P88: 2388138.32 | Q88: 15015.2646 | S88: 548.0910553 | T88: 222.7307522
A89: C | B89: Commonwealth Charter Statewide Totals | C89: C | D89: =COUNTIF(C9:C88, A89)&" schools" -> 70 schools | E89: =SUMIF(C12:C88,"C",E12:E88) -> 28194.94361 | F89: =VLOOKUP($A89&100, FE, 12, FALSE)/$E89 -> 1738.092637 | G89: =VLOOKUP($A89&210, FE, 12, FALSE)/$E89 -> 1268.899251 | H89: =VLOOKUP($A89&220, FE, 12, FALSE)/$E89 -> 5173.360754 | I89: =VLOOKUP($A89&230, FE, 12, FALSE)/$E89 -> 892.645784 | J89: =VLOOKUP($A89&240, FE, 12, FALSE)/$E89 -> 173.9603345 | K89: =VLOOKUP($A89&260, FE, 12, FALSE)/$E89 -> 644.6204905 | L89: =VLOOKUP($A89&250, FE, 12, FALSE)/$E89 -> 520.9679241 | M89: =VLOOKUP($A89&300, FE, 12, FALSE)/$E89 -> 1568.154891 | N89: =VLOOKUP($A89&400, FE, 12, FALSE)/$E89 -> 1002.330953 | O89: =VLOOKUP($A89&500, FE, 12, FALSE)/$E89 -> 1519.350244 | P89: =VLOOKUP($A89&100,FE,12,FALSE)+VLOOKUP($A89&200,FE,12,FALSE)+VLOOKUP($A89&300,FE,12,FALSE)+VLOOKUP($A89&400,FE,12,FALSE)+VLOOKUP($A89&500,FE,12,FALSE) -> 408893878.3 | Q89: =SUM(F89:O89) -> 14502.38326 | S89: 909.8620241 | T89: 1109.997835
A90: HM | B90: Horace Mann Charter Statewide Totals | C90: HM | D90: =COUNTIF(C10:C89, A90)&" schools" -> 10 schools | E90: =SUMIF(C12:C88,"HM",E12:E88) -> 3170.714065 | F90: =VLOOKUP($A90&100, FE, 12, FALSE)/$E90 -> 1039.500535 | G90: =VLOOKUP($A90&210, FE, 12, FALSE)/$E90 -> 1172.520287 | H90: =VLOOKUP($A90&220, FE, 12, FALSE)/$E90 -> 5811.389288 | I90: =VLOOKUP($A90&230, FE, 12, FALSE)/$E90 -> 680.4943133 | J90: =VLOOKUP($A90&240, FE, 12, FALSE)/$E90 -> 98.81482958 | K90: =VLOOKUP($A90&260, FE, 12, FALSE)/$E90 -> 453.3246772 | L90: =VLOOKUP($A90&250, FE, 12, FALSE)/$E90 -> 693.641589 | M90: =VLOOKUP($A90&300, FE, 12, FALSE)/$E90 -> 1535.434924 | N90: =VLOOKUP($A90&400, FE, 12, FALSE)/$E90 -> 498.3131003 | O90: =VLOOKUP($A90&500, FE, 12, FALSE)/$E90 -> 1249.207967 | P90: =VLOOKUP($A90&100,FE,12,FALSE)+VLOOKUP($A90&200,FE,12,FALSE)+VLOOKUP($A90&300,FE,12,FALSE)+VLOOKUP($A90&400,FE,12,FALSE)+VLOOKUP($A90&500,FE,12,FALSE) -> 41956922.55 | Q90: =SUM(F90:O90) -> 13232.64151 | S90: 274.3167445 | T90: 69.79101094
A91: ALL | B91: All Charter Schools Statewide Totals | C91: ALL | D91: =COUNT(C9:C88)&" schools" -> 0 schools | E91: =SUM(E89:E90) -> 31365.65767 | F91: 1667.472858 | G91: 1259.156426 | H91: =VLOOKUP($A91&220, FE, 12, FALSE)/$E91 -> 5237.858239 | I91: =VLOOKUP($A91&230, FE, 12, FALSE)/$E91 -> 871.1996642 | J91: =VLOOKUP($A91&240, FE, 12, FALSE)/$E91 -> 166.3639718 | K91: =VLOOKUP($A91&260, FE, 12, FALSE)/$E91 -> 625.2826423 | L91: =VLOOKUP($A91&250, FE, 12, FALSE)/$E91 -> 538.4232832 | M91: =VLOOKUP($A91&300, FE, 12, FALSE)/$E91 -> 1564.847271 | N91: =VLOOKUP($A91&400, FE, 12, FALSE)/$E91 -> 951.3804355 | O91: =VLOOKUP($A91&500, FE, 12, FALSE)/$E91 -> 1492.041908 | P91: =VLOOKUP($A91&100,FE,12,FALSE)+VLOOKUP($A91&200,FE,12,FALSE)+VLOOKUP($A91&300,FE,12,FALSE)+VLOOKUP($A91&400,FE,12,FALSE)+VLOOKUP($A91&500,FE,12,FALSE) -> 450850800.8 | Q91: 14374.0267 | S91: 845.6155677 | T91: 1004.844662
A93: Notes: | B93: 1. These figures do not include facilities lease costs -- see data presented at right.
B94: 2. The majority of charter schools lease their facilities. In many cases, Horace Mann charter schools are provided their facilities in kind by their host districts; some report a monetary figure for these in-kind revenues and expenditures, some do not.
B95: 3. Capital facilities costs include facilities-related long-term interest; depreciation of equipment, buildings, and grounds; bad debt or loss on disposal of assets; and other costs related to capital facilities acquisition.
B96: Charter schools that report significant costs in this category either own their buildings or have invested heavily in leasehold improvements.

Sheet 5. AVGTCHSAL
A1: Massachusetts Department of Elementary and Secondary Education
A2: FY14 Average Teacher Salaries
A3: =Index!B3 -> Last Updated: May 2015
A5: Return to Index
A6: Average teacher salaries are calculated from data submitted on the Charter School End of Year Financial Report. The calculation includes professional teachers paid from all funding sources, including tuition revenue, federal and state grants, and private grants/contributions. Beginning in FY08, the Educator Personnel Management Information System (EPIMS) was the source for the total number of theachers, which is shown in full-time equivalents (e.g., a teacher who worked half-time would count as .5 FTE's).
A8: LEA | B8: Charter School | C8: Type | D8: Location | E8: Total Salaries | F8: Total Teachers | G8: Average Salaries
A9: 445 | B9: Abby Kelley Foster Charter Public School | C9: =VLOOKUP(A9, FACTS, 3, FALSE) -> C | D9: =VLOOKUP(A9, FACTS, 6, FALSE) -> Worcester | E9: =VLOOKUP($A9&220, FE, 12, FALSE) -> 6532344.13 | F9: =VLOOKUP(A9, TEACHEREPIMS, 2, FALSE) -> 116.588 | G9: =E9/F9 -> 56029.30087
A10: 412 | B10: Academy of the Pacific Rim Charter Public School | C10: C | D10: Boston | E10: 2393852 | F10: 36.65 | G10: =E10/F10 -> 65316.56207
A11: 430 | B11: Advanced Math and Science Academy Charter School | C11: C | D11: Marlborough | E11: 3804856.71 | F11: 86.35 | G11: 44063.19294
A12: 409 | B12: Alma del Mar Charter School | C12: C | D12: New Bedford | E12: 800724.22 | F12: 18.99 | G12: 42165.57241
A13: 415 | B13: Amesbury Academy Charter Public School | C13: HM | D13: Amesbury | E13: 319817.71 | F13: 4.777 | G13: 66949.48922
A14: 491 | B14: Atlantis Charter School | C14: C | D14: Fall River | E14: 2870100 | F14: 53.6 | G14: 53546.64179
A15: 427 | B15: Barnstable Community Horace Mann Charter Public School | C15: HM | D15: Barnstable | E15: 1460753 | F15: 23.608 | G15: 61875.33887
A16: 3502 | B16: Baystate Academy Charter Public School | C16: C | D16: Springfield | E16: 520912.34 | F16: 8.31 | G16: 62684.9988
A17: 420 | B17: Benjamin Banneker Charter Public School | C17: C | D17: Cambridge | E17: 1479429.91 | F17: 20 | G17: 73971.4955
A18: 447 | B18: Benjamin Franklin Classical Charter Public School | C18: C | D18: Franklin | E18: 1734503.56 | F18: 33.007 | G18: 52549.56706
A19: 414 | B19: Berkshire Arts and Technology Charter Public School | C19: C | D19: Adams | E19: 1458000.23 | F19: 30.11 | G19: 48422.45865
A20: 449 | B20: Boston Collegiate Charter School | C20: C | D20: Boston | E20: 3797218 | F20: 60.177 | G20: 63100.81925
A21: 424 | B21: Boston Day and Evening Academy Charter School | C21: HM | D21: Boston | E21: 2112030 | F21: 24.65 | G21: 85680.73022
A22: 411 | B22: Boston Green Academy Horace Mann Charter School | C22: HM | D22: Boston | E22: 2222808 | F22: 27.334 | G22: 81320.26048
A23: 416 | B23: Boston Preparatory Charter Public School | C23: C | D23: Boston | E23: 2205911.52 | F23: 34 | G23: 64879.75059
A24: 481 | B24: Boston Renaissance Charter Public School | C24: C | D24: Boston | E24: 4292204.68 | F24: 73 | G24: 58797.32438
A25: 417 | B25: Bridge Boston Charter School | C25: C | D25: Boston | E25: 623382.62 | F25: 11.625 | G25: 53624.3114
A26: 457 | B26: Brooke Charter School East Boston | C26: C | D26: Boston | E26: 1398980.94 | F26: 24.5 | G26: 57101.26286
A27: 443 | B27: Brooke Charter School Mattapan | C27: C | D27: Boston | E27: 1776444 | F27: 26 | G27: 68324.76923
A28: 428 | B28: Brooke Charter School Roslindale | C28: C | D28: Boston | E28: 2509443 | F28: 40 | G28: 62736.075
A29: 432 | B29: Cape Cod Lighthouse Charter School | C29: C | D29: Harwich | E29: 1469010 | F29: 18.54 | G29: 79234.62783
A30: 418 | B30: Christa McAuliffe Charter School | C30: C | D30: Framingham | E30: 1627568.55 | F30: 32.888 | G30: 49488.21911
A31: 437 | B31: City On A Hill Charter Public School | C31: C | D31: Boston | E31: 1469800.28 | F31: 23.8 | G31: 61756.31429
A32: 3504 | B32: City On A Hill Charter Public School II | C32: C | D32: Boston | E32: 579448.17 | F32: 8.2 | G32: 70664.41098
A33: 438 | B33: Codman Academy Charter Public School | C33: C | D33: Boston | E33: 749949 | F33: 17.41 | G33: 43075.76106
A34: 436 | B34: Community Charter School of Cambridge | C34: C | D34: Cambridge | E34: 1972106 | F34: 34.386 | G34: 57352.00372
A35: 426 | B35: Community Day Charter Public School - Gateway | C35: C | D35: Lawrence | E35: 900061 | F35: 18.09 | G35: 49754.61581
A36: 440 | B36: Community Day Charter Public School - Prospect | C36: C | D36: Lawrence | E36: 2094257 | F36: 33.83 | G36: 61905.32072
A37: 431 | B37: Community Day Charter Public School - R. Kingman Webster | C37: C | D37: Lawrence | E37: 819734.99 | F37: 18.08 | G37: 45339.32467
A38: 439 | B38: Conservatory Lab Charter School | C38: C | D38: Boston | E38: 1423547.96 | F38: 14.25 | G38: 99898.10246
A39: 475 | B39: Dorchester Collegiate Academy Charter School | C39: =VLOOKUP(A39, FACTS, 3, FALSE) -> C | D39: =VLOOKUP(A39, FACTS, 6, FALSE) -> Boston | E39: =VLOOKUP($A39&220, FE, 12, FALSE) -> 1088214.81 | F39: =VLOOKUP(A39, TEACHEREPIMS, 2, FALSE) -> 17.502 | G39: 62176.59753
A40: 407 | B40: Dudley Street Neighborhood Charter School | C40: HM | D40: Boston | E40: 915497 | F40: 9.999 | G40: 91558.85589
A41: 452 | B41: Edward M. Kennedy Academy for Health Careers: A Horace Mann Charter Public School | C41: HM | D41: Boston | E41: 1863679 | F41: 23.349 | G41: 79818.36481
A42: 410 | B42: Excel Academy Charter School | C42: C | D42: Boston | E42: 1351681.63 | F42: 19.297 | G42: 70046.20563
A43: 459 | B43: Excel Academy Charter School - Boston II | C43: C | D43: Boston | E43: 547948.82 | F43: =VLOOKUP(A43, TEACHEREPIMS, 2, FALSE) -> 8.625 | G43: 63530.29797
A44: 461 | B44: Excel Academy Charter School - Chelsea | C44: C | D44: Chelsea | E44: 789964.34 | F44: 12.734 | G44: 62035.83634
A45: 413 | B45: Four Rivers Charter Public School | C45: C | D45: Greenfield | E45: 1116932.29 | F45: 21.81 | G45: 51211.93443
A46: 446 | B46: Foxborough Regional Charter School | C46: C | D46: Foxborough | E46: 3885992.81 | F46: 86.643 | G46: 44850.62625
A47: 478 | B47: Francis W. Parker Charter Essential School | C47: C | D47: Devens | E47: 2178513.92 | F47: 47.411 | G47: 45949.54589
A48: 496 | B48: Global Learning Charter Public School | C48: C | D48: New Bedford | E48: 2333382 | F48: 46.716 | G48: 49948.24043
A49: 499 | B49: Hampden Charter School of Science | C49: C | D49: Chicopee | E49: 1507315.35 | F49: 25.479 | G49: 59159.12516
A50: 419 | B50: Helen Y Davis Leadership Academy Charter Public School | C50: C | D50: Boston | E50: 1321304 | F50: 17 | G50: 77723.76471
A51: 455 | B51: Hill View Montessori Charter Public School | C51: C | D51: Haverhill | E51: 1018105.48 | F51: 20.653 | G51: 49295.7672
A52: 450 | B52: Hilltown Cooperative Charter Public School | C52: C | D52: East Hampton | E52: 832155.9 | F52: 14.442 | G52: 57620.54425
A53: 453 | B53: Holyoke Community Charter School | C53: C | D53: Holyoke | E53: 2643579 | F53: 53.118 | G53: 49768.04473
A54: 435 | B54: Innovation Academy Charter School | C54: C | D54: Tyngsborough | E54: 3134599 | F54: 58.822 | G54: 53289.56853
A55: 463 | B55: KIPP Academy Boston Charter School | C55: C | D55: Boston | E55: 827090.14 | F55: 12.988 | G55: 63681.10102
A56: 429 | B56: KIPP Academy Lynn Charter School | C56: C | D56: Lynn | E56: 3406994.53 | F56: 49.04 | G56: 69473.78732
A57: 454 | B57: Lawrence Family Development Charter School | C57: C | D57: Lawrence | E57: 3062989 | F57: 53 | G57: 57792.24528
A58: 3503 | B58: Lowell Collegiate Charter School | C58: C | D58: Lowell | E58: 702715.93 | F58: 16.2 | G58: 43377.52654
A59: 456 | B59: Lowell Community Charter Public School | C59: C | D59: Lowell | E59: 3167357.71 | F59: 48.13 | G59: 65808.38791
A60: 458 | B60: Lowell Middlesex Academy Charter School | C60: C | D60: Lowell | E60: 809788.87 | F60: 11.911 | G60: 67986.64008
A61: 464 | B61: Marblehead Community Charter Public School | C61: C | D61: Marblehead | E61: 1222265.74 | F61: 21.35 | G61: 57248.9808
A62: 466 | B62: Martha's Vineyard Public Charter School | C62: C | D62: West Tisbury | E62: 1531637 | F62: 17.32 | G62: 88431.69746
A63: 492 | B63: Martin Luther King, Jr. Charter School of Excellence | C63: C | D63: Springfield | E63: 1772248.85 | F63: 39.163 | G63: 45253.14327
A64: 469 | B64: Match Charter Public School | C64: C | D64: Boston | E64: 3254341 | F64: 31.04 | G64: 104843.4601
A65: 465 | B65: MATCH Community Day Charter Public School | C65: C | D65: Boston | E65: 2025759 | F65: 20.4 | G65: 99301.91176
A66: 470 | B66: Mystic Valley Regional Charter School | C66: C | D66: Malden | E66: 5663334 | F66: 103.615 | G66: 54657.47237
A67: 444 | B67: Neighborhood House Charter School | C67: C | D67: Boston | E67: 2542602 | F67: 34.64 | G67: 73400.75058
A68: 467 | B68: New Liberty Charter School of Salem | C68: HM | D68: Salem | E68: 310879.92 | F68: 4.6 | G68: 67582.5913
A69: 3501 | B69: Paulo Freire Social Justice Charter School | C69: C | D69: Holyoke | E69: 684404 | F69: 25.003 | G69: 27372.87525
A70: 493 | B70: Phoenix Academy Charter Public High School, Chelsea | C70: C | D70: Chelsea | E70: 835337 | F70: 16.48 | G70: 50687.92476
A71: 494 | B71: Pioneer Charter School of Science | C71: C | D71: Everett | E71: 1595584.27 | F71: 30 | G71: 53186.14233
A72: 3506 | B72: Pioneer Charter School of Science II | C72: C | D72: Saugus | E72: 775238.68 | F72: 16.7 | G72: 46421.47784
A73: 497 | B73: Pioneer Valley Chinese Immersion Charter School | C73: =VLOOKUP(A73, FACTS, 3, FALSE) -> C | D73: =VLOOKUP(A73, FACTS, 6, FALSE) -> Hadley | E73: =VLOOKUP($A73&220, FE, 12, FALSE) -> 1673050.53 | F73: =VLOOKUP(A73, TEACHEREPIMS, 2, FALSE) -> 34.1 | G73: 49063.0654
A74: 479 | B74: Pioneer Valley Performing Arts Charter Public School | C74: C | D74: South Hadley | E74: 1906978 | F74: 35.396 | G74: =E74/F74 -> 53875.52266
A75: 487 | B75: Prospect Hill Academy Charter School | C75: C | D75: Somerville (K-6); Cambridge (7-12) | E75: 5912781.55 | F75: 93.022 | G75: 63563.25977
A76: 483 | B76: Rising Tide Charter Public School | C76: C | D76: Plymouth | E76: 2484369.68 | F76: 39.508 | G76: 62882.6992
A77: 482 | B77: River Valley Charter School | C77: C | D77: Newburyport | E77: 1184183 | F77: 19.468 | G77: 60827.15225
A78: 484 | B78: Roxbury Preparatory Charter School | C78: C | D78: Boston | E78: 3827111 | F78: 64.57 | G78: 59270.72944
A79: 441 | B79: Sabis International Charter School | C79: C | D79: Springfield | E79: 4862260.32 | F79: 65.45 | G79: 74289.69167
A80: 485 | B80: Salem Academy Charter School | C80: C | D80: Salem | E80: 2089344 | F80: 38.65 | G80: 54058.05951
A81: 486 | B81: Seven Hills Charter Public School | C81: C | D81: Worcester | E81: 2651626 | F81: 53.74 | G81: 49341.75661
A82: 477 | B82: Silver Hill Horace Mann Charter School | C82: HM | D82: Haverhill | E82: 2702575 | F82: 38.513 | G82: 70173.05845
A83: 474 | B83: Sizer School, A North Central Charter Essential School | C83: C | D83: Fitchburg | E83: 1666530.29 | F83: 34.101 | G83: 48870.42286
A84: 488 | B84: South Shore Charter Public School | C84: C | D84: Norwell | E84: 2839087.5 | F84: 47.763 | G84: 59441.14691
A85: 489 | B85: Sturgis Charter Public School | C85: C | D85: Hyannis | E85: 5123644 | F85: 78.13 | G85: 65578.44618
A86: 480 | B86: UP Academy Charter School of Boston | C86: HM | D86: Boston | E86: 2854175.993 | F86: 27.01 | G86: 105671.0845
A87: 3505 | B87: UP Academy Charter School of Dorchester | C87: HM | D87: Boston | E87: 3664038.131 | F87: 44.75 | G87: 81877.94707
A88: 498 | B88: Veritas Preparatory Charter School | C88: C | D88: Springfield | E88: 708480.97 | F88: 14.5 | G88: 48860.75655
A89: C | B89: Commonwealth Charter Statewide Totals | C89: C | E89: =VLOOKUP($A89&220, FE, 12, FALSE) -> 145862614.7 | F89: =SUMIF($C12:$C88,"C",F12:F88) -> 2268.423 | G89: =E89/F89 -> 64301.32948
A90: HM | B90: Horace Mann Charter Statewide Totals | C90: HM | E90: =VLOOKUP($A90&220, FE, 12, FALSE) -> 18426253.75 | F90: =SUMIF($C12:$C88,"HM",F12:F88) -> 228.59 | G90: =E90/F90 -> 80608.31075
A91: ALL | B91: All Charter Schools Statewide Totals | C91: ALL | E91: 164288868.5 | F91: =SUM(F89:F90) -> 2497.013 | G91: =E91/F91 -> 65794.15825

Sheet BAL14 (hidden)
B3: 1 | C3: 2 | D3: 3 | E3: 4 | F3: 5 | G3: 6 | H3: 7 | I3: 8
A4: FY | B4: vlookup | C4: cha_code | D4: cha_type | E4: balance_id | F4: Line_Desc | G4: balance_sch | H4: balance_found | I4: balance_total
A5: 2014 | B5: =C5&E5 -> 4071 | C5: 407 | D5: =VLOOKUP(C5, TYPE, 3, FALSE) -> HM | E5: 1 | F5: Cash and Cash Equivalents | G5: 34063 | H5: 0 | I5: 34063 | J5: =D5&E5 -> HM1
A6: 2014 | B6: =C6&E6 -> 4072 | C6: 407 | D6: HM | E6: 2 | F6: Accounts Receivable net of doubtful accounts | G6: 0 | H6: 0 | I6: 0 | J6: =D6&E6 -> HM2
A7: 2014 | B7: 4073 | C7: 407 | D7: HM | E7: 3 | F7: Grants Receivable - State | G7: 0 | H7: 0 | I7: 0 | J7: HM3
A8: 2014 | B8: 4074 | C8: 407 | D8: HM | E8: 4 | F8: Grants Receivable - Federal | G8: 0 | H8: 0 | I8: 0 | J8: HM4
A9: 2014 | B9: 4075 | C9: 407 | D9: HM | E9: 5 | F9: Grants Receivable - Private | G9: 0 | H9: 0 | I9: 0 | J9: HM5
A10: 2014 | B10: 4076 | C10: 407 | D10: HM | E10: 6 | F10: Contributions Receivable | G10: 0 | H10: 0 | I10: 0 | J10: HM6
A11: 2014 | B11: 4077 | C11: 407 | D11: HM | E11: 7 | F11: Due from related parties | G11: 0 | H11: 0 | I11: 0 | J11: HM7
A12: 2014 | B12: 4078 | C12: 407 | D12: HM | E12: 8 | F12: Prepaid Expenses / Inventory | G12: 2337 | H12: 0 | I12: 2337 | J12: HM8
A13: 2014 | B13: 4079 | C13: 407 | D13: HM | E13: 9 | F13: Short-Term Investments | G13: 0 | H13: 0 | I13: 0 | J13: HM9
A14: 2014 | B14: 40710 | C14: 407 | D14: HM | E14: 10 | F14: Deposit (Security, Other) | G14: 0 | H14: 0 | I14: 0 | J14: HM10
A15: 2014 | B15: 40711 | C15: 407 | D15: HM | E15: 11 | F15: Restricted Current Assets | G15: 0 | H15: 0 | I15: 0 | J15: HM11
A16: 2014 | B16: 40712 | C16: 407 | D16: HM | E16: 12 | F16: TOTAL CURRENT ASSETS | G16: 36400 | H16: 0 | I16: 36400 | J16: HM12
A17: 2014 | B17: 40713 | C17: 407 | D17: HM | E17: 13 | F17: - Land and Buildings | G17: 0 | H17: 0 | I17: 0 | J17: HM13
A18: 2014 | B18: 40714 | C18: 407 | D18: HM | E18: 14 | F18: - Building/Leasehold Improvement | G18: 0 | H18: 0 | I18: 0 | J18: HM14
A19: 2014 | B19: 40715 | C19: 407 | D19: HM | E19: 15 | F19: - Furniture and Equipment | G19: 97603 | H19: 0 | I19: 97603 | J19: HM15
A20: 2014 | B20: 40716 | C20: 407 | D20: HM | E20: 16 | F20: - Less Accumulated Depreciation | G20: -42873 | H20: 0 | I20: -42873 | J20: HM16
A21: 2014 | B21: 40717 | C21: 407 | D21: HM | E21: 17 | F21: Net Capital Assets | G21: 54730 | H21: 0 | I21: 54730 | J21: HM17
A22: 2014 | B22: 40718 | C22: 407 | D22: HM | E22: 18 | F22: Restricted Noncurrent Assets | G22: 0 | H22: 0 | I22: 0 | J22: HM18
A23: 2014 | B23: 40719 | C23: 407 | D23: HM | E23: 19 | F23: Long-Term Investments | G23: 0 | H23: 0 | I23: 0 | J23: HM19
A24: 2014 | B24: 40720 | C24: 407 | D24: HM | E24: 20 | F24: Building Acquisition / Financing Costs / Deferred Expenses | G24: 0 | H24: 0 | I24: 0 | J24: HM20
A25: 2014 | B25: 40721 | C25: 407 | D25: HM | E25: 21 | F25: Long-Term Grants / Contributions Receivable | G25: 0 | H25: 0 | I25: 0 | J25: HM21
A26: 2014 | B26: 40722 | C26: 407 | D26: HM | E26: 22 | F26: TOTAL NONCURRENT ASSETS | G26: 54730 | H26: 0 | I26: 54730 | J26: HM22
A27: 2014 | B27: 40723 | C27: 407 | D27: HM | E27: 23 | F27: TOTAL ASSETS | G27: 91130 | H27: 0 | I27: 91130 | J27: HM23
A28: 2014 | B28: 40724 | C28: 407 | D28: HM | E28: 24 | F28: Accounts Payable | G28: 41224 | H28: 0 | I28: 41224 | J28: HM24
A29: 2014 | B29: 40725 | C29: 407 | D29: HM | E29: 25 | F29: Accrued Expenses / Accrued Payroll | G29: 1330 | H29: 0 | I29: 1330 | J29: HM25
A30: 2014 | B30: 40726 | C30: 407 | D30: HM | E30: 26 | F30: Deferred Revenue | G30: 0 | H30: 0 | I30: 0 | J30: HM26
A31: 2014 | B31: 40727 | C31: 407 | D31: HM | E31: 27 | F31: Due to related parties | G31: 0 | H31: 0 | I31: 0 | J31: HM27
A32: 2014 | B32: 40728 | C32: 407 | D32: HM | E32: 28 | F32: Current Debt Payable | G32: 0 | H32: 0 | I32: 0 | J32: HM28
A33: 2014 | B33: 40729 | C33: 407 | D33: HM | E33: 29 | F33: Current Lease Obligations Payable | G33: 0 | H33: 0 | I33: 0 | J33: HM29
A34: 2014 | B34: 40730 | C34: 407 | D34: HM | E34: 30 | F34: TOTAL CURRENT LIABILITIES | G34: 42554 | H34: 0 | I34: 42554 | J34: HM30
A35: 2014 | B35: 40731 | C35: 407 | D35: HM | E35: 31 | F35: Noncurrent Lease Obligations | G35: 0 | H35: 0 | I35: 0 | J35: HM31
A36: 2014 | B36: 40732 | C36: 407 | D36: HM | E36: 32 | F36: Long-Term Debt | G36: 0 | H36: 0 | I36: 0 | J36: HM32
A37: 2014 | B37: 40733 | C37: 407 | D37: HM | E37: 33 | F37: Deferred Revenue | G37: 0 | H37: 0 | I37: 0 | J37: HM33
A38: 2014 | B38: 40734 | C38: 407 | D38: HM | E38: 34 | F38: TOTAL NONCURRENT LIABILITIES | G38: 0 | H38: 0 | I38: 0 | J38: HM34
A39: 2014 | B39: 40735 | C39: 407 | D39: HM | E39: 35 | F39: TOTAL LIABILITIES | G39: 42554 | H39: 0 | I39: 42554 | J39: HM35
A40: 2014 | B40: 40736 | C40: 407 | D40: HM | E40: 36 | F40: Investment in capital assets (net of related debt) | G40: 54730 | H40: 0 | I40: 54730 | J40: HM36
A41: 2014 | B41: 40737 | C41: 407 | D41: HM | E41: 37 | F41: Temporarily Restricted | G41: 0 | H41: 0 | I41: 0 | J41: HM37
A42: 2014 | B42: 40738 | C42: 407 | D42: HM | E42: 38 | F42: Permanently Restricted | G42: 0 | H42: 0 | I42: 0 | J42: HM38
A43: 2014 | B43: 40739 | C43: 407 | D43: HM | E43: 39 | F43: Unrestricted (non-capital) | G43: -6154 | H43: 0 | I43: -6154 | J43: HM39
A44: 2014 | B44: 40740 | C44: 407 | D44: HM | E44: 40 | F44: TOTAL NET ASSETS | G44: 48576 | H44: 0 | I44: 48576 | J44: HM40
A45: 2014 | B45: 40741 | C45: 407 | D45: HM | E45: 41 | F45: TOTAL LIABILITIES AND NET ASSETS | G45: 91130 | H45: 0 | I45: 91130 | J45: HM41
A46: 2014
A47: 2014
A48: 2014
A49: 2014 | B49: 4091 | C49: 409 | D49: =VLOOKUP(C49, TYPE, 3, FALSE) -> C | E49: 1 | F49: Cash and Cash Equivalents | G49: 273225.04 | H49: 177277.64 | I49: 450502.68 | J49: C1
A50: 2014 | B50: 4092 | C50: 409 | D50: C | E50: 2 | F50: Accounts Receivable net of doubtful accounts | G50: 599255.8 | H50: 20000 | I50: 619255.8 | J50: C2
A51: 2014 | B51: 4093 | C51: 409 | D51: C | E51: 3 | F51: Grants Receivable - State | G51: 0 | H51: 0 | I51: 0 | J51: C3
A52: 2014 | B52: 4094 | C52: 409 | D52: C | E52: 4 | F52: Grants Receivable - Federal | G52: 0 | H52: 0 | I52: 0 | J52: C4
A53: 2014 | B53: 4095 | C53: 409 | D53: C | E53: 5 | F53: Grants Receivable - Private | G53: 0 | H53: 0 | I53: 0 | J53: C5
A54: 2014 | B54: 4096 | C54: 409 | D54: C | E54: 6 | F54: Contributions Receivable | G54: 0 | H54: 0 | I54: 0 | J54: C6
A55: 2014 | B55: 4097 | C55: 409 | D55: C | E55: 7 | F55: Due from related parties | G55: 5050 | H55: 0 | I55: 5050 | J55: C7
A56: 2014 | B56: 4098 | C56: 409 | D56: C | E56: 8 | F56: Prepaid Expenses / Inventory | G56: 2000 | H56: 0 | I56: 2000 | J56: C8
A57: 2014 | B57: 4099 | C57: 409 | D57: C | E57: 9 | F57: Short-Term Investments | G57: 0 | H57: 0 | I57: 0 | J57: C9
A58: 2014 | B58: 40910 | C58: 409 | D58: C | E58: 10 | F58: Deposit (Security, Other) | G58: 0 | H58: 0 | I58: 0 | J58: C10
A59: 2014 | B59: 40911 | C59: 409 | D59: C | E59: 11 | F59: Restricted Current Assets | G59: 0 | H59: 0 | I59: 0 | J59: C11
A60: 2014 | B60: 40912 | C60: 409 | D60: C | E60: 12 | F60: TOTAL CURRENT ASSETS | G60: 879530.84 | H60: 197277.64 | I60: 1076808.48 | J60: C12
A61: 2014 | B61: 40913 | C61: 409 | D61: C | E61: 13 | F61: - Land and Buildings | G61: 0 | H61: 0 | I61: 0 | J61: C13
A62: 2014 | B62: 40914 | C62: 409 | D62: C | E62: 14 | F62: - Building/Leasehold Improvement | G62: 200203.71 | H62: 0 | I62: 200203.71 | J62: C14
A63: 2014 | B63: 40915 | C63: 409 | D63: C | E63: 15 | F63: - Furniture and Equipment | G63: 48137.36 | H63: 0 | I63: 48137.36 | J63: C15
A64: 2014 | B64: 40916 | C64: 409 | D64: C | E64: 16 | F64: - Less Accumulated Depreciation | G64: -76188 | H64: 0 | I64: -76188 | J64: C16
A65: 2014 | B65: 40917 | C65: 409 | D65: C | E65: 17 | F65: Net Capital Assets | G65: 172153.07 | H65: 0 | I65: 172153.07 | J65: C17
A66: 2014 | B66: 40918 | C66: 409 | D66: C | E66: 18 | F66: Restricted Noncurrent Assets | G66: 0 | H66: 0 | I66: 0 | J66: C18
A67: 2014 | B67: 40919 | C67: 409 | D67: C | E67: 19 | F67: Long-Term Investments | G67: 0 | H67: 0 | I67: 0 | J67: C19
A68: 2014 | B68: 40920 | C68: 409 | D68: C | E68: 20 | F68: Building Acquisition / Financing Costs / Deferred Expenses | G68: 48259.38 | H68: 0 | I68: 48259.38 | J68: C20
A69: 2014 | B69: 40921 | C69: 409 | D69: C | E69: 21 | F69: Long-Term Grants / Contributions Receivable | G69: 0 | H69: 0 | I69: 0 | J69: C21
A70: 2014 | B70: =C70&E70 -> 40922 | C70: 409 | D70: C | E70: 22 | F70: TOTAL NONCURRENT ASSETS | G70: 220412.45 | H70: 0 | I70: 220412.45 | J70: =D70&E70 -> C22
A71: 2014 | B71: 40923 | C71: 409 | D71: C | E71: 23 | F71: TOTAL ASSETS | G71: 1099943 | H71: 197278 | I71: 1297221 | J71: C23
A72: 2014 | B72: 40924 | C72: 409 | D72: C | E72: 24 | F72: Accounts Payable | G72: 68478.49 | H72: 0 | I72: 68478.49 | J72: C24
A73: 2014 | B73: 40925 | C73: 409 | D73: C | E73: 25 | F73: Accrued Expenses / Accrued Payroll | G73: 149954.65 | H73: 0 | I73: 149954.65 | J73: C25
A74: 2014 | B74: 40926 | C74: 409 | D74: C | E74: 26 | F74: Deferred Revenue | G74: 0 | H74: 0 | I74: 0 | J74: C26
A75: 2014 | B75: 40927 | C75: 409 | D75: C | E75: 27 | F75: Due to related parties | G75: 0 | H75: 5050 | I75: 5050 | J75: C27
A76: 2014 | B76: 40928 | C76: 409 | D76: C | E76: 28 | F76: Current Debt Payable | G76: 0 | H76: 0 | I76: 0 | J76: C28
A77: 2014 | B77: 40929 | C77: 409 | D77: C | E77: 29 | F77: Current Lease Obligations Payable | G77: 0 | H77: 0 | I77: 0 | J77: C29
A78: 2014 | B78: 40930 | C78: 409 | D78: C | E78: 30 | F78: TOTAL CURRENT LIABILITIES | G78: 218433.14 | H78: 5050 | I78: 223483.14 | J78: C30
A79: 2014 | B79: 40931 | C79: 409 | D79: C | E79: 31 | F79: Noncurrent Lease Obligations | G79: 0 | H79: 0 | I79: 0 | J79: C31
A80: 2014 | B80: 40932 | C80: 409 | D80: C | E80: 32 | F80: Long-Term Debt | G80: 0 | H80: 0 | I80: 0 | J80: C32
A81: 2014 | B81: 40933 | C81: 409 | D81: C | E81: 33 | F81: Deferred Revenue | G81: 45500 | H81: 0 | I81: 45500 | J81: C33
A82: 2014 | B82: 40934 | C82: 409 | D82: C | E82: 34 | F82: TOTAL NONCURRENT LIABILITIES | G82: 45500 | H82: 0 | I82: 45500 | J82: C34
A83: 2014 | B83: 40935 | C83: 409 | D83: C | E83: 35 | F83: TOTAL LIABILITIES | G83: 263933.14 | H83: 5050 | I83: 268983.14 | J83: C35
A84: 2014 | B84: 40936 | C84: 409 | D84: C | E84: 36 | F84: Investment in capital assets (net of related debt) | G84: 220412 | H84: 0 | I84: 220412 | J84: C36
A85: 2014 | B85: 40937 | C85: 409 | D85: C | E85: 37 | F85: Temporarily Restricted | G85: 0 | H85: 20000 | I85: 20000 | J85: C37
A86: 2014 | B86: 40938 | C86: 409 | D86: C | E86: 38 | F86: Permanently Restricted | G86: 0 | H86: 0 | I86: 0 | J86: C38
A87: 2014 | B87: 40939 | C87: 409 | D87: C | E87: 39 | F87: Unrestricted (non-capital) | G87: 615598 | H87: 172227 | I87: 787825 | J87: C39
A88: 2014 | B88: 40940 | C88: 409 | D88: C | E88: 40 | F88: TOTAL NET ASSETS | G88: 836010 | H88: 192227 | I88: 1028237 | J88: C40
A89: 2014 | B89: 40941 | C89: 409 | D89: C | E89: 41 | F89: TOTAL LIABILITIES AND NET ASSETS | G89: 1099943 | H89: 197277 | I89: 1297220 | J89: C41
A90: 2014
A91: 2014
A92: 2014
A93: 2014 | B93: 4101 | C93: 410 | D93: =VLOOKUP(C93, TYPE, 3, FALSE) -> C | E93: 1 | F93: Cash and Cash Equivalents | G93: 58174.3 | H93: 1960972 | I93: 2019146.3 | J93: C1
A94: 2014 | B94: 4102 | C94: 410 | D94: C | E94: 2 | F94: Accounts Receivable net of doubtful accounts | G94: 3395.75 | H94: 245351 | I94: 248746.75 | J94: C2
A95: 2014 | B95: 4103 | C95: 410 | D95: C | E95: 3 | F95: Grants Receivable - State | G95: 161.17 | H95: 0 | I95: 161.17 | J95: C3
A96: 2014 | B96: 4104 | C96: 410 | D96: C | E96: 4 | F96: Grants Receivable - Federal | G96: 788239.94 | H96: 0 | I96: 788239.94 | J96: C4
A97: 2014 | B97: 4105 | C97: 410 | D97: C | E97: 5 | F97: Grants Receivable - Private | G97: 0 | H97: 0 | I97: 0 | J97: C5
A98: 2014 | B98: 4106 | C98: 410 | D98: C | E98: 6 | F98: Contributions Receivable | G98: 0 | H98: 0 | I98: 0 | J98: C6
A99: 2014 | B99: 4107 | C99: 410 | D99: C | E99: 7 | F99: Due from related parties | G99: 275412.43 | H99: 905303 | I99: 1180715.43 | J99: C7
A100: 2014 | B100: 4108 | C100: 410 | D100: C | E100: 8 | F100: Prepaid Expenses / Inventory | G100: 79828.71 | H100: 0 | I100: 79828.71 | J100: C8
A101: 2014 | B101: 4109 | C101: 410 | D101: C | E101: 9 | F101: Short-Term Investments | G101: 0 | H101: 0 | I101: 0 | J101: C9
A102: 2014 | B102: 41010 | C102: 410 | D102: C | E102: 10 | F102: Deposit (Security, Other) | G102: 8250 | H102: 99744 | I102: 107994 | J102: C10
A103: 2014 | B103: 41011 | C103: 410 | D103: C | E103: 11 | F103: Restricted Current Assets | G103: 0 | H103: 406729 | I103: 406729 | J103: C11
A104: 2014 | B104: 41012 | C104: 410 | D104: C | E104: 12 | F104: TOTAL CURRENT ASSETS | G104: 1213462.3 | H104: 3618099 | I104: 4831561.3 | J104: C12
A105: 2014 | B105: 41013 | C105: 410 | D105: C | E105: 13 | F105: - Land and Buildings | G105: 8151973 | H105: 808192 | I105: 8960165 | J105: C13
A106: 2014 | B106: 41014 | C106: 410 | D106: C | E106: 14 | F106: - Building/Leasehold Improvement | G106: 0 | H106: 0 | I106: 0 | J106: C14
A107: 2014 | B107: 41015 | C107: 410 | D107: C | E107: 15 | F107: - Furniture and Equipment | G107: 130565.48 | H107: 0 | I107: 130565.48 | J107: C15
A108: 2014 | B108: 41016 | C108: 410 | D108: C | E108: 16 | F108: - Less Accumulated Depreciation | G108: -484100.47 | H108: 0 | I108: -484100.47 | J108: C16
A109: 2014 | B109: 41017 | C109: 410 | D109: C | E109: 17 | F109: Net Capital Assets | G109: 7798438.01 | H109: 808192 | I109: 8606630.01 | J109: C17
A110: 2014 | B110: 41018 | C110: 410 | D110: C | E110: 18 | F110: Restricted Noncurrent Assets | G110: 0 | H110: 0 | I110: 0 | J110: C18
A111: 2014 | B111: 41019 | C111: 410 | D111: C | E111: 19 | F111: Long-Term Investments | G111: 0 | H111: 14560844 | I111: 14560844 | J111: C19
A112: 2014 | B112: 41020 | C112: 410 | D112: C | E112: 20 | F112: Building Acquisition / Financing Costs / Deferred Expenses | G112: 0 | H112: 0 | I112: 0 | J112: C20
A113: 2014 | B113: 41021 | C113: 410 | D113: C | E113: 21 | F113: Long-Term Grants / Contributions Receivable | G113: 0 | H113: 200000 | I113: 200000 | J113: C21
A114: 2014 | B114: 41022 | C114: 410 | D114: C | E114: 22 | F114: TOTAL NONCURRENT ASSETS | G114: 7798438.01 | H114: 15569036 | I114: 23367474.01 | J114: C22
A115: 2014 | B115: 41023 | C115: 410 | D115: C | E115: 23 | F115: TOTAL ASSETS | G115: 9011900 | H115: 19187135 | I115: 28199035 | J115: C23
A116: 2014 | B116: 41024 | C116: 410 | D116: C | E116: 24 | F116: Accounts Payable | G116: 82160 | H116: 19629 | I116: 101789 | J116: C24
A117: 2014 | B117: 41025 | C117: 410 | D117: C | E117: 25 | F117: Accrued Expenses / Accrued Payroll | G117: 251472.87 | H117: 50000 | I117: 301472.87 | J117: C25
A118: 2014 | B118: 41026 | C118: 410 | D118: C | E118: 26 | F118: Deferred Revenue | G118: 0 | H118: 0 | I118: 0 | J118: C26
A119: 2014 | B119: 41027 | C119: 410 | D119: C | E119: 27 | F119: Due to related parties | G119: 0 | H119: 0 | I119: 0 | J119: C27
A120: 2014 | B120: 41028 | C120: 410 | D120: C | E120: 28 | F120: Current Debt Payable | G120: 630000 | H120: 295465 | I120: 925465 | J120: C28
A121: 2014 | B121: 41029 | C121: 410 | D121: C | E121: 29 | F121: Current Lease Obligations Payable | G121: 0 | H121: 0 | I121: 0 | J121: C29
A122: 2014 | B122: 41030 | C122: 410 | D122: C | E122: 30 | F122: TOTAL CURRENT LIABILITIES | G122: 963632.87 | H122: 365094 | I122: 1328726.87 | J122: C30
A123: 2014 | B123: 41031 | C123: 410 | D123: C | E123: 31 | F123: Noncurrent Lease Obligations | G123: 8276844.71 | H123: 0 | I123: 8276844.71 | J123: C31
A124: 2014 | B124: 41032 | C124: 410 | D124: C | E124: 32 | F124: Long-Term Debt | G124: 0 | H124: 13062809 | I124: 13062809 | J124: C32
A125: 2014 | B125: 41033 | C125: 410 | D125: C | E125: 33 | F125: Deferred Revenue | G125: 0 | H125: 0 | I125: 0 | J125: C33
A126: 2014 | B126: 41034 | C126: 410 | D126: C | E126: 34 | F126: TOTAL NONCURRENT LIABILITIES | G126: 8276844.71 | H126: 13062809 | I126: 21339653.71 | J126: C34
A127: 2014 | B127: 41035 | C127: 410 | D127: C | E127: 35 | F127: TOTAL LIABILITIES | G127: 9240477.58 | H127: 13427903 | I127: 22668380.58 | J127: C35
A128: 2014 | B128: 41036 | C128: 410 | D128: C | E128: 36 | F128: Investment in capital assets (net of related debt) | G128: -478407 | H128: 2467235 | I128: 1988828 | J128: C36
A129: 2014 | B129: 41037 | C129: 410 | D129: C | E129: 37 | F129: Temporarily Restricted | G129: 0 | H129: 1168050 | I129: 1168050 | J129: C37
A130: 2014 | B130: 41038 | C130: 410 | D130: C | E130: 38 | F130: Permanently Restricted | G130: 0 | H130: 0 | I130: 0 | J130: C38
A131: 2014 | B131: 41039 | C131: 410 | D131: C | E131: 39 | F131: Unrestricted (non-capital) | G131: 249829 | H131: 2123947 | I131: 2373776 | J131: C39
A132: 2014 | B132: 41040 | C132: 410 | D132: C | E132: 40 | F132: TOTAL NET ASSETS | G132: -228578 | H132: 5759232 | I132: 5530654 | J132: C40
A133: 2014 | B133: 41041 | C133: 410 | D133: C | E133: 41 | F133: TOTAL LIABILITIES AND NET ASSETS | G133: 9011900 | H133: 19187135 | I133: 28199035 | J133: C41
A134: 2014 | B134: =C134&E134 ->  | J134: =D134&E134 -> 
A135: 2014
A136: 2014
A137: 2014 | B137: 4111 | C137: 411 | D137: =VLOOKUP(C137, TYPE, 3, FALSE) -> HM | E137: 1 | F137: Cash and Cash Equivalents | G137: 91565 | H137: 0 | I137: 91565 | J137: HM1
A138: 2014 | B138: 4112 | C138: 411 | D138: HM | E138: 2 | F138: Accounts Receivable net of doubtful accounts | G138: 130323 | H138: 0 | I138: 130323 | J138: HM2
A139: 2014 | B139: 4113 | C139: 411 | D139: HM | E139: 3 | F139: Grants Receivable - State | G139: 0 | H139: 0 | I139: 0 | J139: HM3
A140: 2014 | B140: 4114 | C140: 411 | D140: HM | E140: 4 | F140: Grants Receivable - Federal | G140: 0 | H140: 0 | I140: 0 | J140: HM4
A141: 2014 | B141: 4115 | C141: 411 | D141: HM | E141: 5 | F141: Grants Receivable - Private | G141: 0 | H141: 0 | I141: 0 | J141: HM5
A142: 2014 | B142: 4116 | C142: 411 | D142: HM | E142: 6 | F142: Contributions Receivable | G142: 0 | H142: 0 | I142: 0 | J142: HM6
A143: 2014 | B143: 4117 | C143: 411 | D143: HM | E143: 7 | F143: Due from related parties | G143: 0 | H143: 0 | I143: 0 | J143: HM7
A144: 2014 | B144: 4118 | C144: 411 | D144: HM | E144: 8 | F144: Prepaid Expenses / Inventory | G144: 34211 | H144: 0 | I144: 34211 | J144: HM8
A145: 2014 | B145: 4119 | C145: 411 | D145: HM | E145: 9 | F145: Short-Term Investments | G145: 0 | H145: 0 | I145: 0 | J145: HM9
A146: 2014 | B146: 41110 | C146: 411 | D146: HM | E146: 10 | F146: Deposit (Security, Other) | G146: 0 | H146: 0 | I146: 0 | J146: HM10
A147: 2014 | B147: 41111 | C147: 411 | D147: HM | E147: 11 | F147: Restricted Current Assets | G147: 1714 | H147: 0 | I147: 1714 | J147: HM11
A148: 2014 | B148: 41112 | C148: 411 | D148: HM | E148: 12 | F148: TOTAL CURRENT ASSETS | G148: 257813 | H148: 0 | I148: 257813 | J148: HM12
A149: 2014 | B149: 41113 | C149: 411 | D149: HM | E149: 13 | F149: - Land and Buildings | G149: 0 | H149: 0 | I149: 0 | J149: HM13
A150: 2014 | B150: 41114 | C150: 411 | D150: HM | E150: 14 | F150: - Building/Leasehold Improvement | G150: 0 | H150: 0 | I150: 0 | J150: HM14
A151: 2014 | B151: 41115 | C151: 411 | D151: HM | E151: 15 | F151: - Furniture and Equipment | G151: 897 | H151: 0 | I151: 897 | J151: HM15
A152: 2014 | B152: 41116 | C152: 411 | D152: HM | E152: 16 | F152: - Less Accumulated Depreciation | G152: 0 | H152: 0 | I152: 0 | J152: HM16
A153: 2014 | B153: 41117 | C153: 411 | D153: HM | E153: 17 | F153: Net Capital Assets | G153: 897 | H153: 0 | I153: 897 | J153: HM17
A154: 2014 | B154: 41118 | C154: 411 | D154: HM | E154: 18 | F154: Restricted Noncurrent Assets | G154: 0 | H154: 0 | I154: 0 | J154: HM18
A155: 2014 | B155: 41119 | C155: 411 | D155: HM | E155: 19 | F155: Long-Term Investments | G155: 0 | H155: 0 | I155: 0 | J155: HM19
A156: 2014 | B156: 41120 | C156: 411 | D156: HM | E156: 20 | F156: Building Acquisition / Financing Costs / Deferred Expenses | G156: 0 | H156: 0 | I156: 0 | J156: HM20
A157: 2014 | B157: 41121 | C157: 411 | D157: HM | E157: 21 | F157: Long-Term Grants / Contributions Receivable | G157: 0 | H157: 0 | I157: 0 | J157: HM21
A158: 2014 | B158: 41122 | C158: 411 | D158: HM | E158: 22 | F158: TOTAL NONCURRENT ASSETS | G158: 897 | H158: 0 | I158: 897 | J158: HM22
A159: 2014 | B159: 41123 | C159: 411 | D159: HM | E159: 23 | F159: TOTAL ASSETS | G159: 258710 | H159: 0 | I159: 258710 | J159: HM23
A160: 2014 | B160: 41124 | C160: 411 | D160: HM | E160: 24 | F160: Accounts Payable | G160: 29959 | H160: 0 | I160: 29959 | J160: HM24
A161: 2014 | B161: 41125 | C161: 411 | D161: HM | E161: 25 | F161: Accrued Expenses / Accrued Payroll | G161: 56500 | H161: 0 | I161: 56500 | J161: HM25
A162: 2014 | B162: 41126 | C162: 411 | D162: HM | E162: 26 | F162: Deferred Revenue | G162: 11704 | H162: 0 | I162: 11704 | J162: HM26
A163: 2014 | B163: 41127 | C163: 411 | D163: HM | E163: 27 | F163: Due to related parties | G163: 104774 | H163: 0 | I163: 104774 | J163: HM27
A164: 2014 | B164: 41128 | C164: 411 | D164: HM | E164: 28 | F164: Current Debt Payable | G164: 0 | H164: 0 | I164: 0 | J164: HM28
A165: 2014 | B165: 41129 | C165: 411 | D165: HM | E165: 29 | F165: Current Lease Obligations Payable | G165: 0 | H165: 0 | I165: 0 | J165: HM29
A166: 2014 | B166: 41130 | C166: 411 | D166: HM | E166: 30 | F166: TOTAL CURRENT LIABILITIES | G166: 202937 | H166: 0 | I166: 202937 | J166: HM30
A167: 2014 | B167: 41131 | C167: 411 | D167: HM | E167: 31 | F167: Noncurrent Lease Obligations | G167: 0 | H167: 0 | I167: 0 | J167: HM31
A168: 2014 | B168: 41132 | C168: 411 | D168: HM | E168: 32 | F168: Long-Term Debt | G168: 0 | H168: 0 | I168: 0 | J168: HM32
A169: 2014 | B169: 41133 | C169: 411 | D169: HM | E169: 33 | F169: Deferred Revenue | G169: 0 | H169: 0 | I169: 0 | J169: HM33
A170: 2014 | B170: 41134 | C170: 411 | D170: HM | E170: 34 | F170: TOTAL NONCURRENT LIABILITIES | G170: 0 | H170: 0 | I170: 0 | J170: HM34
A171: 2014 | B171: 41135 | C171: 411 | D171: HM | E171: 35 | F171: TOTAL LIABILITIES | G171: 202937 | H171: 0 | I171: 202937 | J171: HM35
A172: 2014 | B172: 41136 | C172: 411 | D172: HM | E172: 36 | F172: Investment in capital assets (net of related debt) | G172: 897 | H172: 0 | I172: 897 | J172: HM36
A173: 2014 | B173: 41137 | C173: 411 | D173: HM | E173: 37 | F173: Temporarily Restricted | G173: 52885 | H173: 0 | I173: 52885 | J173: HM37
A174: 2014 | B174: 41138 | C174: 411 | D174: HM | E174: 38 | F174: Permanently Restricted | G174: 0 | H174: 0 | I174: 0 | J174: HM38
A175: 2014 | B175: 41139 | C175: 411 | D175: HM | E175: 39 | F175: Unrestricted (non-capital) | G175: 1991 | H175: 0 | I175: 1991 | J175: HM39
A176: 2014 | B176: 41140 | C176: 411 | D176: HM | E176: 40 | F176: TOTAL NET ASSETS | G176: 55773 | H176: 0 | I176: 55773 | J176: HM40
A177: 2014 | B177: 41141 | C177: 411 | D177: HM | E177: 41 | F177: TOTAL LIABILITIES AND NET ASSETS | G177: 258710 | H177: 0 | I177: 258710 | J177: HM41
A178: 2014
A179: 2014
A180: 2014
A181: 2014 | B181: 4131 | C181: 413 | D181: =VLOOKUP(C181, TYPE, 3, FALSE) -> C | E181: 1 | F181: Cash and Cash Equivalents | G181: 38650 | H181: 23516 | I181: 62166 | J181: C1
A182: 2014 | B182: 4132 | C182: 413 | D182: C | E182: 2 | F182: Accounts Receivable net of doubtful accounts | G182: 724788 | H182: 0 | I182: 724788 | J182: C2
A183: 2014 | B183: 4133 | C183: 413 | D183: C | E183: 3 | F183: Grants Receivable - State | G183: 0 | H183: 0 | I183: 0 | J183: C3
A184: 2014 | B184: 4134 | C184: 413 | D184: C | E184: 4 | F184: Grants Receivable - Federal | G184: 1160 | H184: 0 | I184: 1160 | J184: C4
A185: 2014 | B185: 4135 | C185: 413 | D185: C | E185: 5 | F185: Grants Receivable - Private | G185: 0 | H185: 0 | I185: 0 | J185: C5
A186: 2014 | B186: 4136 | C186: 413 | D186: C | E186: 6 | F186: Contributions Receivable | G186: 0 | H186: 0 | I186: 0 | J186: C6
A187: 2014 | B187: 4137 | C187: 413 | D187: C | E187: 7 | F187: Due from related parties | G187: 0 | H187: 5233 | I187: 5233 | J187: C7
A188: 2014 | B188: 4138 | C188: 413 | D188: C | E188: 8 | F188: Prepaid Expenses / Inventory | G188: 24478 | H188: 1085 | I188: 25563 | J188: C8
A189: 2014 | B189: 4139 | C189: 413 | D189: C | E189: 9 | F189: Short-Term Investments | G189: 0 | H189: 0 | I189: 0 | J189: C9
A190: 2014 | B190: 41310 | C190: 413 | D190: C | E190: 10 | F190: Deposit (Security, Other) | G190: 0 | H190: 0 | I190: 0 | J190: C10
A191: 2014 | B191: 41311 | C191: 413 | D191: C | E191: 11 | F191: Restricted Current Assets | G191: 0 | H191: 0 | I191: 0 | J191: C11
A192: 2014 | B192: 41312 | C192: 413 | D192: C | E192: 12 | F192: TOTAL CURRENT ASSETS | G192: 789076 | H192: 29834 | I192: 818910 | J192: C12
A193: 2014 | B193: 41313 | C193: 413 | D193: C | E193: 13 | F193: - Land and Buildings | G193: 0 | H193: 5939836 | I193: 5939836 | J193: C13
A194: 2014 | B194: 41314 | C194: 413 | D194: C | E194: 14 | F194: - Building/Leasehold Improvement | G194: 104985 | H194: 0 | I194: 104985 | J194: C14
A195: 2014 | B195: 41315 | C195: 413 | D195: C | E195: 15 | F195: - Furniture and Equipment | G195: 120236 | H195: 0 | I195: 120236 | J195: C15
A196: 2014 | B196: 41316 | C196: 413 | D196: C | E196: 16 | F196: - Less Accumulated Depreciation | G196: -129876 | H196: -1043559 | I196: -1173435 | J196: C16
A197: 2014 | B197: 41317 | C197: 413 | D197: C | E197: 17 | F197: Net Capital Assets | G197: 95345 | H197: 4896277 | I197: 4991622 | J197: C17
A198: 2014 | B198: =C198&E198 -> 41318 | C198: 413 | D198: C | E198: 18 | F198: Restricted Noncurrent Assets | G198: 0 | H198: 0 | I198: 0 | J198: =D198&E198 -> C18
A199: 2014 | B199: 41319 | C199: 413 | D199: C | E199: 19 | F199: Long-Term Investments | G199: 0 | H199: 0 | I199: 0 | J199: C19
A200: 2014 | B200: 41320 | C200: 413 | D200: C | E200: 20 | F200: Building Acquisition / Financing Costs / Deferred Expenses | G200: 0 | H200: 22600 | I200: 22600 | J200: C20
A201: 2014 | B201: 41321 | C201: 413 | D201: C | E201: 21 | F201: Long-Term Grants / Contributions Receivable | G201: 0 | H201: 0 | I201: 0 | J201: C21
A202: 2014 | B202: 41322 | C202: 413 | D202: C | E202: 22 | F202: TOTAL NONCURRENT ASSETS | G202: 95345 | H202: 4918877 | I202: 5014222 | J202: C22
... 3442 more rows

Sheet INC14 (hidden)
B3: 1 | C3: 2 | D3: 3 | E3: 4 | F3: 5 | G3: 6 | H3: 7 | I3: 8
A4: FY | B4: vlookup | C4: cha_code | D4: cha_type | E4: income_id | F4: Line_Desc | G4: income_sch | H4: income_found | I4: income_total
A5: 2014 | B5: =C5&E5 -> 4071 | C5: 407 | D5: =VLOOKUP(C5, TYPE, 3, FALSE) -> HM | E5: 1 | F5: Tuition | G5: 1853273 | H5: 0 | I5: 1853273 | J5: =D5&E5 -> HM1
A6: 2014 | B6: =C6&E6 -> 4072a | C6: 407 | D6: HM | E6: 2a | F6: Grants - State - passed through ESE | G6: 0 | H6: 0 | I6: 0 | J6: =D6&E6 -> HM2a
A7: 2014 | B7: 4072b | C7: 407 | D7: HM | E7: 2b | F7: Grants - State - other non-ESE pass-through | G7: 0 | H7: 0 | I7: 0 | J7: HM2b
A8: 2014 | B8: 4073 | C8: 407 | D8: HM | E8: 3 | F8: Grants - Federal - Passed through ESE | G8: 495648 | H8: 0 | I8: 495648 | J8: HM3
A9: 2014 | B9: 4074 | C9: 407 | D9: HM | E9: 4 | F9: Grants - Federal - Direct or other pass-through | G9: 0 | H9: 0 | I9: 0 | J9: HM4
A10: 2014 | B10: 4075a | C10: 407 | D10: HM | E10: 5a | F10: Grants - Private (restricted) | G10: 0 | H10: 0 | I10: 0 | J10: HM5a
A11: 2014 | B11: 4075b | C11: 407 | D11: HM | E11: 5b | F11: Grants - Private (unrestricted) | G11: 2025 | H11: 0 | I11: 2025 | J11: HM5b
A12: 2014 | B12: 4076 | C12: 407 | D12: HM | E12: 6 | F12: Nutrition Funding - State | G12: 0 | H12: 0 | I12: 0 | J12: HM6
A13: 2014 | B13: 4077 | C13: 407 | D13: HM | E13: 7 | F13: Nutrition Funding - Federal | G13: 0 | H13: 0 | I13: 0 | J13: HM7
A14: 2014 | B14: 4078 | C14: 407 | D14: HM | E14: 8 | F14: Nutrition Funding - Fees | G14: 0 | H14: 0 | I14: 0 | J14: HM8
A15: 2014 | B15: 4079 | C15: 407 | D15: HM | E15: 9 | F15: Other Program / Student Activity Fees | G15: 0 | H15: 0 | I15: 0 | J15: HM9
A16: 2014 | B16: 40710 | C16: 407 | D16: HM | E16: 10 | F16: Regional Transportation Aid | G16: 0 | H16: 0 | I16: 0 | J16: HM10
A17: 2014 | B17: 40711 | C17: 407 | D17: HM | E17: 11 | F17: Medicaid Reimbursements | G17: 0 | H17: 0 | I17: 0 | J17: HM11
A18: 2014 | B18: 40712 | C18: 407 | D18: HM | E18: 12 | F18: Circuit Breaker Reimbursements | G18: 0 | H18: 0 | I18: 0 | J18: HM12
A19: 2014 | B19: 40713a | C19: 407 | D19: HM | E19: 13a | F19: Contributions, in-kind, host district | G19: 0 | H19: 0 | I19: 0 | J19: HM13a
A20: 2014 | B20: 40713b | C20: 407 | D20: HM | E20: 13b | F20: Contributions, in-kind, other | G20: 60000 | H20: 0 | I20: 60000 | J20: HM13b
A21: 2014 | B21: 40714 | C21: 407 | D21: HM | E21: 14 | F21: Contributions, from Component Unit (restricted) | G21: 0 | H21: 0 | I21: 0 | J21: HM14
A22: 2014 | B22: 40714b | C22: 407 | D22: HM | E22: 14b | F22: Contributions, from Component Unit (unrestricted) | G22: 0 | H22: 0 | I22: 0 | J22: HM14b
A23: 2014 | B23: 40715 | C23: 407 | D23: HM | E23: 15 | F23: Contributions / Fundraising (restricted) | G23: 0 | H23: 0 | I23: 0 | J23: HM15
A24: 2014 | B24: 40715b | C24: 407 | D24: HM | E24: 15b | F24: Contributions / Fundraising (unrestricted) | G24: 0 | H24: 0 | I24: 0 | J24: HM15b
A25: 2014 | B25: 40716 | C25: 407 | D25: HM | E25: 16 | F25: Interest / Investment Income (restricted) | G25: 0 | H25: 0 | I25: 0 | J25: HM16
A26: 2014 | B26: 40716a | C26: 407 | D26: HM | E26: 16a | F26: Interest / Investment Income (unrestricted) | G26: 0 | H26: 0 | I26: 0 | J26: HM16a
A27: 2014 | B27: 40717 | C27: 407 | D27: HM | E27: 17 | F27: Rental Income | G27: 0 | H27: 0 | I27: 0 | J27: HM17
A28: 2014 | B28: 40718 | C28: 407 | D28: HM | E28: 18 | F28: Loan Forgiveness or Other Reimbursement | G28: 0 | H28: 0 | I28: 0 | J28: HM18
A29: 2014 | B29: 40719 | C29: 407 | D29: HM | E29: 19 | F29: Miscellaneous Income | G29: 10055 | H29: 0 | I29: 10055 | J29: HM19
A30: 2014 | B30: 40720 | C30: 407 | D30: HM | E30: 20 | F30: TOTAL REVENUES | G30: 2421001 | H30: 0 | I30: 2421001 | J30: HM20
A31: 2014 | B31: 40721 | C31: 407 | D31: HM | E31: 21 | F31: Administration | G31: 128928 | H31: 0 | I31: 128928 | J31: HM21
A32: 2014 | B32: 40722 | C32: 407 | D32: HM | E32: 22 | F32: Instructional Services | G32: 1740800 | H32: 0 | I32: 1740800 | J32: HM22
A33: 2014 | B33: 40723 | C33: 407 | D33: HM | E33: 23 | F33: Pupil Services | G33: 259906 | H33: 0 | I33: 259906 | J33: HM23
A34: 2014 | B34: 40724 | C34: 407 | D34: HM | E34: 24 | F34: Operation & Maintenance of Plant | G34: 94077 | H34: 0 | I34: 94077 | J34: HM24
A35: 2014 | B35: 40725 | C35: 407 | D35: HM | E35: 25 | F35: Benefits and Other Fixed Charges | G35: 209823 | H35: 0 | I35: 209823 | J35: HM25
A36: 2014 | B36: 40726 | C36: 407 | D36: HM | E36: 26 | F36: Community Services | G36: 0 | H36: 0 | I36: 0 | J36: HM26
A37: 2014 | B37: 40727 | C37: 407 | D37: HM | E37: 27 | F37: Non-Operating Financing Expenses | G37: 0 | H37: 0 | I37: 0 | J37: HM27
A38: 2014 | B38: 40728 | C38: 407 | D38: HM | E38: 28 | F38: Component Unit Expenses | G38: 0 | H38: 0 | I38: 0 | J38: HM28
A39: 2014 | B39: 40729 | C39: 407 | D39: HM | E39: 29 | F39: Contributions to School | G39: 0 | H39: 0 | I39: 0 | J39: HM29
A40: 2014 | B40: 40730 | C40: 407 | D40: HM | E40: 30 | F40: TOTAL EXPENSES | G40: 2433534 | H40: 0 | I40: 2433534 | J40: HM30
A41: 2014 | B41: 40731 | C41: 407 | D41: HM | E41: 31 | F41: TOTAL GAIN/(LOSS) | G41: -12533 | H41: 0 | I41: -12533 | J41: HM31
A42: 2014 | B42: 40732 | C42: 407 | D42: HM | E42: 32 | F42: Gain/Loss on Sale of Asset or Lease Transaction | G42: 0 | H42: 0 | I42: 0 | J42: HM32
A43: 2014 | B43: 40733 | C43: 407 | D43: HM | E43: 33 | F43: Other Gain/Loss | G43: 0 | H43: 0 | I43: 0 | J43: HM33
A44: 2014 | B44: 40734 | C44: 407 | D44: HM | E44: 34 | F44: TOTAL CHANGES IN NET ASSETS: | G44: -12533 | H44: 0 | I44: -12533 | J44: HM34
A45: 2014 | B45: 40735 | C45: 407 | D45: HM | E45: 35 | F45: NET ASSETS AT BEGINNING OF YEAR | G45: 61109 | H45: 0 | I45: 61109 | J45: HM35
A46: 2014 | B46: 40736 | C46: 407 | D46: HM | E46: 36 | F46: NET ASSETS AT END OF YEAR | G46: 48576 | H46: 0 | I46: 48576 | J46: HM36
A47: 2014
A48: 2014 | B48: 4091 | C48: 409 | D48: =VLOOKUP(C48, TYPE, 3, FALSE) -> C | E48: 1 | F48: Tuition | G48: 2335675 | H48: 0 | I48: 2335675 | J48: C1
A49: 2014 | B49: 4092a | C49: 409 | D49: C | E49: 2a | F49: Grants - State - passed through ESE | G49: 245 | H49: 0 | I49: 245 | J49: C2a
A50: 2014 | B50: 4092b | C50: 409 | D50: C | E50: 2b | F50: Grants - State - other non-ESE pass-through | G50: 0 | H50: 0 | I50: 0 | J50: C2b
A51: 2014 | B51: 4093 | C51: 409 | D51: C | E51: 3 | F51: Grants - Federal - Passed through ESE | G51: 212096 | H51: 0 | I51: 212096 | J51: C3
A52: 2014 | B52: 4094 | C52: 409 | D52: C | E52: 4 | F52: Grants - Federal - Direct or other pass-through | G52: 0 | H52: 0 | I52: 0 | J52: C4
A53: 2014 | B53: 4095a | C53: 409 | D53: C | E53: 5a | F53: Grants - Private (restricted) | G53: 205017.48 | H53: 0 | I53: 205017.48 | J53: C5a
A54: 2014 | B54: 4095b | C54: 409 | D54: C | E54: 5b | F54: Grants - Private (unrestricted) | G54: 54500 | H54: 0 | I54: 54500 | J54: C5b
A55: 2014 | B55: 4096 | C55: 409 | D55: C | E55: 6 | F55: Nutrition Funding - State | G55: 1402.75 | H55: 0 | I55: 1402.75 | J55: C6
A56: 2014 | B56: 4097 | C56: 409 | D56: C | E56: 7 | F56: Nutrition Funding - Federal | G56: 122917.97 | H56: 0 | I56: 122917.97 | J56: C7
A57: 2014 | B57: 4098 | C57: 409 | D57: C | E57: 8 | F57: Nutrition Funding - Fees | G57: 3996.83 | H57: 0 | I57: 3996.83 | J57: C8
A58: 2014 | B58: 4099 | C58: 409 | D58: C | E58: 9 | F58: Other Program / Student Activity Fees | G58: 788.75 | H58: 0 | I58: 788.75 | J58: C9
A59: 2014 | B59: 40910 | C59: 409 | D59: C | E59: 10 | F59: Regional Transportation Aid | G59: 0 | H59: 0 | I59: 0 | J59: C10
A60: 2014 | B60: 40911 | C60: 409 | D60: C | E60: 11 | F60: Medicaid Reimbursements | G60: 807.44 | H60: 0 | I60: 807.44 | J60: C11
A61: 2014 | B61: 40912 | C61: 409 | D61: C | E61: 12 | F61: Circuit Breaker Reimbursements | G61: 0 | H61: 0 | I61: 0 | J61: C12
A62: 2014 | B62: 40913a | C62: 409 | D62: C | E62: 13a | F62: Contributions, in-kind, host district | G62: 0 | H62: 0 | I62: 0 | J62: C13a
A63: 2014 | B63: 40913b | C63: 409 | D63: C | E63: 13b | F63: Contributions, in-kind, other | G63: 193815 | H63: 0 | I63: 193815 | J63: C13b
A64: 2014 | B64: 40914 | C64: 409 | D64: C | E64: 14 | F64: Contributions, from Component Unit (restricted) | G64: 0 | H64: 0 | I64: 0 | J64: C14
A65: 2014 | B65: 40914b | C65: 409 | D65: C | E65: 14b | F65: Contributions, from Component Unit (unrestricted) | G65: 0 | H65: 0 | I65: 0 | J65: C14b
A66: 2014 | B66: 40915 | C66: 409 | D66: C | E66: 15 | F66: Contributions / Fundraising (restricted) | G66: 0 | H66: 63500 | I66: 63500 | J66: C15
A67: 2014 | B67: 40915b | C67: 409 | D67: C | E67: 15b | F67: Contributions / Fundraising (unrestricted) | G67: 104547.32 | H67: 174100 | I67: 278647.32 | J67: C15b
A68: 2014 | B68: 40916 | C68: 409 | D68: C | E68: 16 | F68: Interest / Investment Income (restricted) | G68: 0 | H68: 0 | I68: 0 | J68: C16
A69: 2014 | B69: 40916a | C69: 409 | D69: C | E69: 16a | F69: Interest / Investment Income (unrestricted) | G69: 291.1 | H69: 212.31 | I69: 503.41 | J69: C16a
A70: 2014 | B70: =C70&E70 -> 40917 | C70: 409 | D70: C | E70: 17 | F70: Rental Income | G70: 0 | H70: 0 | I70: 0 | J70: =D70&E70 -> C17
A71: 2014 | B71: 40918 | C71: 409 | D71: C | E71: 18 | F71: Loan Forgiveness or Other Reimbursement | G71: 0 | H71: 0 | I71: 0 | J71: C18
A72: 2014 | B72: 40919 | C72: 409 | D72: C | E72: 19 | F72: Miscellaneous Income | G72: 1306.91 | H72: 0 | I72: 1306.91 | J72: C19
A73: 2014 | B73: 40920 | C73: 409 | D73: C | E73: 20 | F73: TOTAL REVENUES | G73: 3237407.55 | H73: 237812.31 | I73: 3475219.86 | J73: C20
A74: 2014 | B74: 40921 | C74: 409 | D74: C | E74: 21 | F74: Administration | G74: 335790.56 | H74: 0 | I74: 335790.56 | J74: C21
A75: 2014 | B75: 40922 | C75: 409 | D75: C | E75: 22 | F75: Instructional Services | G75: 1551350.07 | H75: 0 | I75: 1551350.07 | J75: C22
A76: 2014 | B76: 40923 | C76: 409 | D76: C | E76: 23 | F76: Pupil Services | G76: 521908.28 | H76: 0 | I76: 521908.28 | J76: C23
A77: 2014 | B77: 40924 | C77: 409 | D77: C | E77: 24 | F77: Operation & Maintenance of Plant | G77: 157080.06 | H77: 0 | I77: 157080.06 | J77: C24
A78: 2014 | B78: 40925 | C78: 409 | D78: C | E78: 25 | F78: Benefits and Other Fixed Charges | G78: 181025.74 | H78: 0 | I78: 181025.74 | J78: C25
A79: 2014 | B79: 40926 | C79: 409 | D79: C | E79: 26 | F79: Community Services | G79: 7519.65 | H79: 0 | I79: 7519.65 | J79: C26
A80: 2014 | B80: 40927 | C80: 409 | D80: C | E80: 27 | F80: Non-Operating Financing Expenses | G80: 131287.66 | H80: 0 | I80: 131287.66 | J80: C27
A81: 2014 | B81: 40928 | C81: 409 | D81: C | E81: 28 | F81: Component Unit Expenses | G81: 0 | H81: 813.5 | I81: 813.5 | J81: C28
A82: 2014 | B82: 40929 | C82: 409 | D82: C | E82: 29 | F82: Contributions to School | G82: 0 | H82: 98500 | I82: 98500 | J82: C29
A83: 2014 | B83: 40930 | C83: 409 | D83: C | E83: 30 | F83: TOTAL EXPENSES | G83: 2885962.02 | H83: 99313.5 | I83: 2985275.52 | J83: C30
A84: 2014 | B84: 40931 | C84: 409 | D84: C | E84: 31 | F84: TOTAL GAIN/(LOSS) | G84: 351445.53 | H84: 138498.81 | I84: 489944.34 | J84: C31
A85: 2014 | B85: 40932 | C85: 409 | D85: C | E85: 32 | F85: Gain/Loss on Sale of Asset or Lease Transaction | G85: 0 | H85: 9.33 | I85: 9.33 | J85: C32
A86: 2014 | B86: 40933 | C86: 409 | D86: C | E86: 33 | F86: Other Gain/Loss | G86: 0 | H86: 0 | I86: 0 | J86: C33
A87: 2014 | B87: 40934 | C87: 409 | D87: C | E87: 34 | F87: TOTAL CHANGES IN NET ASSETS: | G87: 351445.53 | H87: 138508.14 | I87: 489953.67 | J87: C34
A88: 2014 | B88: 40935 | C88: 409 | D88: C | E88: 35 | F88: NET ASSETS AT BEGINNING OF YEAR | G88: 484565 | H88: 53719 | I88: 538284 | J88: C35
A89: 2014 | B89: 40936 | C89: 409 | D89: C | E89: 36 | F89: NET ASSETS AT END OF YEAR | G89: 836011 | H89: 192227 | I89: 1028238 | J89: C36
A90: 2014
A91: 2014 | B91: 4101 | C91: 410 | D91: =VLOOKUP(C91, TYPE, 3, FALSE) -> C | E91: 1 | F91: Tuition | G91: 2896074 | H91: 0 | I91: 2896074 | J91: C1
A92: 2014 | B92: 4102a | C92: 410 | D92: C | E92: 2a | F92: Grants - State - passed through ESE | G92: 0 | H92: 0 | I92: 0 | J92: C2a
A93: 2014 | B93: 4102b | C93: 410 | D93: C | E93: 2b | F93: Grants - State - other non-ESE pass-through | G93: 0 | H93: 0 | I93: 0 | J93: C2b
A94: 2014 | B94: 4103 | C94: 410 | D94: C | E94: 3 | F94: Grants - Federal - Passed through ESE | G94: 199896.84 | H94: 0 | I94: 199896.84 | J94: C3
A95: 2014 | B95: 4104 | C95: 410 | D95: C | E95: 4 | F95: Grants - Federal - Direct or other pass-through | G95: 0 | H95: 0 | I95: 0 | J95: C4
A96: 2014 | B96: 4105a | C96: 410 | D96: C | E96: 5a | F96: Grants - Private (restricted) | G96: 150000 | H96: 258000 | I96: 408000 | J96: C5a
A97: 2014 | B97: 4105b | C97: 410 | D97: C | E97: 5b | F97: Grants - Private (unrestricted) | G97: 0 | H97: 0 | I97: 0 | J97: C5b
A98: 2014 | B98: 4106 | C98: 410 | D98: C | E98: 6 | F98: Nutrition Funding - State | G98: 1212.05 | H98: 0 | I98: 1212.05 | J98: C6
A99: 2014 | B99: 4107 | C99: 410 | D99: C | E99: 7 | F99: Nutrition Funding - Federal | G99: 84634.65 | H99: 0 | I99: 84634.65 | J99: C7
A100: 2014 | B100: 4108 | C100: 410 | D100: C | E100: 8 | F100: Nutrition Funding - Fees | G100: 10496.2 | H100: 0 | I100: 10496.2 | J100: C8
A101: 2014 | B101: 4109 | C101: 410 | D101: C | E101: 9 | F101: Other Program / Student Activity Fees | G101: 1257 | H101: 0 | I101: 1257 | J101: C9
A102: 2014 | B102: 41010 | C102: 410 | D102: C | E102: 10 | F102: Regional Transportation Aid | G102: 71038 | H102: 0 | I102: 71038 | J102: C10
A103: 2014 | B103: 41011 | C103: 410 | D103: C | E103: 11 | F103: Medicaid Reimbursements | G103: 10434.16 | H103: 0 | I103: 10434.16 | J103: C11
A104: 2014 | B104: 41012 | C104: 410 | D104: C | E104: 12 | F104: Circuit Breaker Reimbursements | G104: 0 | H104: 0 | I104: 0 | J104: C12
A105: 2014 | B105: 41013a | C105: 410 | D105: C | E105: 13a | F105: Contributions, in-kind, host district | G105: 55508 | H105: 0 | I105: 55508 | J105: C13a
A106: 2014 | B106: 41013b | C106: 410 | D106: C | E106: 13b | F106: Contributions, in-kind, other | G106: 0 | H106: 0 | I106: 0 | J106: C13b
A107: 2014 | B107: 41014 | C107: 410 | D107: C | E107: 14 | F107: Contributions, from Component Unit (restricted) | G107: 0 | H107: 0 | I107: 0 | J107: C14
A108: 2014 | B108: 41014b | C108: 410 | D108: C | E108: 14b | F108: Contributions, from Component Unit (unrestricted) | G108: 0 | H108: 0 | I108: 0 | J108: C14b
A109: 2014 | B109: 41015 | C109: 410 | D109: C | E109: 15 | F109: Contributions / Fundraising (restricted) | G109: 0 | H109: 640000 | I109: 640000 | J109: C15
A110: 2014 | B110: 41015b | C110: 410 | D110: C | E110: 15b | F110: Contributions / Fundraising (unrestricted) | G110: 0 | H110: 2003147 | I110: 2003147 | J110: C15b
A111: 2014 | B111: 41016 | C111: 410 | D111: C | E111: 16 | F111: Interest / Investment Income (restricted) | G111: 0 | H111: 0 | I111: 0 | J111: C16
A112: 2014 | B112: 41016a | C112: 410 | D112: C | E112: 16a | F112: Interest / Investment Income (unrestricted) | G112: 0 | H112: 340190 | I112: 340190 | J112: C16a
A113: 2014 | B113: 41017 | C113: 410 | D113: C | E113: 17 | F113: Rental Income | G113: 0 | H113: 225508 | I113: 225508 | J113: C17
A114: 2014 | B114: 41018 | C114: 410 | D114: C | E114: 18 | F114: Loan Forgiveness or Other Reimbursement | G114: 0 | H114: 0 | I114: 0 | J114: C18
A115: 2014 | B115: 41019 | C115: 410 | D115: C | E115: 19 | F115: Miscellaneous Income | G115: 455523.91 | H115: 144200 | I115: 599723.91 | J115: C19
A116: 2014 | B116: 41020 | C116: 410 | D116: C | E116: 20 | F116: TOTAL REVENUES | G116: 3936074.81 | H116: 3611045 | I116: 7547119.81 | J116: C20
A117: 2014 | B117: 41021 | C117: 410 | D117: C | E117: 21 | F117: Administration | G117: 1493267.28 | H117: 0 | I117: 1493267.28 | J117: C21
A118: 2014 | B118: 41022 | C118: 410 | D118: C | E118: 22 | F118: Instructional Services | G118: 2255762.73 | H118: 0 | I118: 2255762.73 | J118: C22
A119: 2014 | B119: 41023 | C119: 410 | D119: C | E119: 23 | F119: Pupil Services | G119: 328640.14 | H119: 0 | I119: 328640.14 | J119: C23
A120: 2014 | B120: 41024 | C120: 410 | D120: C | E120: 24 | F120: Operation & Maintenance of Plant | G120: 190166.15 | H120: 0 | I120: 190166.15 | J120: C24
A121: 2014 | B121: 41025 | C121: 410 | D121: C | E121: 25 | F121: Benefits and Other Fixed Charges | G121: 394956.17 | H121: 0 | I121: 394956.17 | J121: C25
A122: 2014 | B122: 41026 | C122: 410 | D122: C | E122: 26 | F122: Community Services | G122: 18596.7 | H122: 0 | I122: 18596.7 | J122: C26
A123: 2014 | B123: 41027 | C123: 410 | D123: C | E123: 27 | F123: Non-Operating Financing Expenses | G123: 424997.47 | H123: 0 | I123: 424997.47 | J123: C27
A124: 2014 | B124: 41028 | C124: 410 | D124: C | E124: 28 | F124: Component Unit Expenses | G124: 0 | H124: 858422 | I124: 858422 | J124: C28
A125: 2014 | B125: 41029 | C125: 410 | D125: C | E125: 29 | F125: Contributions to School | G125: 0 | H125: 0 | I125: 0 | J125: C29
A126: 2014 | B126: 41030 | C126: 410 | D126: C | E126: 30 | F126: TOTAL EXPENSES | G126: 5106386.64 | H126: 858422 | I126: 5964808.64 | J126: C30
A127: 2014 | B127: 41031 | C127: 410 | D127: C | E127: 31 | F127: TOTAL GAIN/(LOSS) | G127: -1170311.83 | H127: 2752623 | I127: 1582311.17 | J127: C31
A128: 2014 | B128: 41032 | C128: 410 | D128: C | E128: 32 | F128: Gain/Loss on Sale of Asset or Lease Transaction | G128: 0 | H128: 0 | I128: 0 | J128: C32
A129: 2014 | B129: 41033 | C129: 410 | D129: C | E129: 33 | F129: Other Gain/Loss | G129: 0 | H129: 0 | I129: 0 | J129: C33
A130: 2014 | B130: 41034 | C130: 410 | D130: C | E130: 34 | F130: TOTAL CHANGES IN NET ASSETS: | G130: -1170311.83 | H130: 2752623 | I130: 1582311.17 | J130: C34
A131: 2014 | B131: 41035 | C131: 410 | D131: C | E131: 35 | F131: NET ASSETS AT BEGINNING OF YEAR | G131: 941734 | H131: 3006609 | I131: 3948343 | J131: C35
A132: 2014 | B132: 41036 | C132: 410 | D132: C | E132: 36 | F132: NET ASSETS AT END OF YEAR | G132: -228578 | H132: 5759232 | I132: 5530654 | J132: C36
A133: 2014
A134: 2014 | B134: =C134&E134 -> 4111 | C134: 411 | D134: =VLOOKUP(C134, TYPE, 3, FALSE) -> HM | E134: 1 | F134: Tuition | G134: 2514454.16 | H134: 0 | I134: 2514454.16 | J134: =D134&E134 -> HM1
A135: 2014 | B135: 4112a | C135: 411 | D135: HM | E135: 2a | F135: Grants - State - passed through ESE | G135: 0 | H135: 0 | I135: 0 | J135: HM2a
A136: 2014 | B136: 4112b | C136: 411 | D136: HM | E136: 2b | F136: Grants - State - other non-ESE pass-through | G136: 0 | H136: 0 | I136: 0 | J136: HM2b
A137: 2014 | B137: 4113 | C137: 411 | D137: HM | E137: 3 | F137: Grants - Federal - Passed through ESE | G137: 310411 | H137: 0 | I137: 310411 | J137: HM3
A138: 2014 | B138: 4114 | C138: 411 | D138: HM | E138: 4 | F138: Grants - Federal - Direct or other pass-through | G138: 0 | H138: 0 | I138: 0 | J138: HM4
A139: 2014 | B139: 4115a | C139: 411 | D139: HM | E139: 5a | F139: Grants - Private (restricted) | G139: 84855 | H139: 0 | I139: 84855 | J139: HM5a
A140: 2014 | B140: 4115b | C140: 411 | D140: HM | E140: 5b | F140: Grants - Private (unrestricted) | G140: 215152 | H140: 0 | I140: 215152 | J140: HM5b
A141: 2014 | B141: 4116 | C141: 411 | D141: HM | E141: 6 | F141: Nutrition Funding - State | G141: 0 | H141: 0 | I141: 0 | J141: HM6
A142: 2014 | B142: 4117 | C142: 411 | D142: HM | E142: 7 | F142: Nutrition Funding - Federal | G142: 0 | H142: 0 | I142: 0 | J142: HM7
A143: 2014 | B143: 4118 | C143: 411 | D143: HM | E143: 8 | F143: Nutrition Funding - Fees | G143: 0 | H143: 0 | I143: 0 | J143: HM8
A144: 2014 | B144: 4119 | C144: 411 | D144: HM | E144: 9 | F144: Other Program / Student Activity Fees | G144: 2099 | H144: 0 | I144: 2099 | J144: HM9
A145: 2014 | B145: 41110 | C145: 411 | D145: HM | E145: 10 | F145: Regional Transportation Aid | G145: 0 | H145: 0 | I145: 0 | J145: HM10
A146: 2014 | B146: 41111 | C146: 411 | D146: HM | E146: 11 | F146: Medicaid Reimbursements | G146: 0 | H146: 0 | I146: 0 | J146: HM11
A147: 2014 | B147: 41112 | C147: 411 | D147: HM | E147: 12 | F147: Circuit Breaker Reimbursements | G147: 0 | H147: 0 | I147: 0 | J147: HM12
A148: 2014 | B148: 41113a | C148: 411 | D148: HM | E148: 13a | F148: Contributions, in-kind, host district | G148: 2466963 | H148: 0 | I148: 2466963 | J148: HM13a
A149: 2014 | B149: 41113b | C149: 411 | D149: HM | E149: 13b | F149: Contributions, in-kind, other | G149: 42985.5 | H149: 0 | I149: 42985.5 | J149: HM13b
A150: 2014 | B150: 41114 | C150: 411 | D150: HM | E150: 14 | F150: Contributions, from Component Unit (restricted) | G150: 0 | H150: 0 | I150: 0 | J150: HM14
A151: 2014 | B151: 41114b | C151: 411 | D151: HM | E151: 14b | F151: Contributions, from Component Unit (unrestricted) | G151: 0 | H151: 0 | I151: 0 | J151: HM14b
A152: 2014 | B152: 41115 | C152: 411 | D152: HM | E152: 15 | F152: Contributions / Fundraising (restricted) | G152: 0 | H152: 0 | I152: 0 | J152: HM15
A153: 2014 | B153: 41115b | C153: 411 | D153: HM | E153: 15b | F153: Contributions / Fundraising (unrestricted) | G153: 0 | H153: 0 | I153: 0 | J153: HM15b
A154: 2014 | B154: 41116 | C154: 411 | D154: HM | E154: 16 | F154: Interest / Investment Income (restricted) | G154: 0 | H154: 0 | I154: 0 | J154: HM16
A155: 2014 | B155: 41116a | C155: 411 | D155: HM | E155: 16a | F155: Interest / Investment Income (unrestricted) | G155: 102 | H155: 0 | I155: 102 | J155: HM16a
A156: 2014 | B156: 41117 | C156: 411 | D156: HM | E156: 17 | F156: Rental Income | G156: 0 | H156: 0 | I156: 0 | J156: HM17
A157: 2014 | B157: 41118 | C157: 411 | D157: HM | E157: 18 | F157: Loan Forgiveness or Other Reimbursement | G157: 0 | H157: 0 | I157: 0 | J157: HM18
A158: 2014 | B158: 41119 | C158: 411 | D158: HM | E158: 19 | F158: Miscellaneous Income | G158: 0 | H158: 0 | I158: 0 | J158: HM19
A159: 2014 | B159: 41120 | C159: 411 | D159: HM | E159: 20 | F159: TOTAL REVENUES | G159: 5637021.66 | H159: 0 | I159: 5637021.66 | J159: HM20
A160: 2014 | B160: 41121 | C160: 411 | D160: HM | E160: 21 | F160: Administration | G160: 519214.29 | H160: 0 | I160: 519214.29 | J160: HM21
A161: 2014 | B161: 41122 | C161: 411 | D161: HM | E161: 22 | F161: Instructional Services | G161: 3373921.72 | H161: 0 | I161: 3373921.72 | J161: HM22
A162: 2014 | B162: 41123 | C162: 411 | D162: HM | E162: 23 | F162: Pupil Services | G162: 660229.8 | H162: 0 | I162: 660229.8 | J162: HM23
A163: 2014 | B163: 41124 | C163: 411 | D163: HM | E163: 24 | F163: Operation & Maintenance of Plant | G163: 221044.06 | H163: 0 | I163: 221044.06 | J163: HM24
A164: 2014 | B164: 41125 | C164: 411 | D164: HM | E164: 25 | F164: Benefits and Other Fixed Charges | G164: 731313.07 | H164: 0 | I164: 731313.07 | J164: HM25
A165: 2014 | B165: 41126 | C165: 411 | D165: HM | E165: 26 | F165: Community Services | G165: 0 | H165: 0 | I165: 0 | J165: HM26
A166: 2014 | B166: 41127 | C166: 411 | D166: HM | E166: 27 | F166: Non-Operating Financing Expenses | G166: 94358 | H166: 0 | I166: 94358 | J166: HM27
A167: 2014 | B167: 41128 | C167: 411 | D167: HM | E167: 28 | F167: Component Unit Expenses | G167: 0 | H167: 0 | I167: 0 | J167: HM28
A168: 2014 | B168: 41129 | C168: 411 | D168: HM | E168: 29 | F168: Contributions to School | G168: 0 | H168: 0 | I168: 0 | J168: HM29
A169: 2014 | B169: 41130 | C169: 411 | D169: HM | E169: 30 | F169: TOTAL EXPENSES | G169: 5600080.94 | H169: 0 | I169: 5600080.94 | J169: HM30
A170: 2014 | B170: 41131 | C170: 411 | D170: HM | E170: 31 | F170: TOTAL GAIN/(LOSS) | G170: 36940.72 | H170: 0 | I170: 36940.72 | J170: HM31
A171: 2014 | B171: 41132 | C171: 411 | D171: HM | E171: 32 | F171: Gain/Loss on Sale of Asset or Lease Transaction | G171: 0 | H171: 0 | I171: 0 | J171: HM32
A172: 2014 | B172: 41133 | C172: 411 | D172: HM | E172: 33 | F172: Other Gain/Loss | G172: 0 | H172: 0 | I172: 0 | J172: HM33
A173: 2014 | B173: 41134 | C173: 411 | D173: HM | E173: 34 | F173: TOTAL CHANGES IN NET ASSETS: | G173: 36940.72 | H173: 0 | I173: 36940.72 | J173: HM34
A174: 2014 | B174: 41135 | C174: 411 | D174: HM | E174: 35 | F174: NET ASSETS AT BEGINNING OF YEAR | G174: 0 | H174: 0 | I174: 0 | J174: HM35
A175: 2014 | B175: 41136 | C175: 411 | D175: HM | E175: 36 | F175: NET ASSETS AT END OF YEAR | G175: 36941 | H175: 0 | I175: 36941 | J175: HM36
A176: 2014
A177: 2014 | B177: 4131 | C177: 413 | D177: =VLOOKUP(C177, TYPE, 3, FALSE) -> C | E177: 1 | F177: Tuition | G177: 2916085 | H177: 0 | I177: 2916085 | J177: C1
A178: 2014 | B178: 4132a | C178: 413 | D178: C | E178: 2a | F178: Grants - State - passed through ESE | G178: 0 | H178: 0 | I178: 0 | J178: C2a
A179: 2014 | B179: 4132b | C179: 413 | D179: C | E179: 2b | F179: Grants - State - other non-ESE pass-through | G179: 3100 | H179: 0 | I179: 3100 | J179: C2b
A180: 2014 | B180: 4133 | C180: 413 | D180: C | E180: 3 | F180: Grants - Federal - Passed through ESE | G180: 70234 | H180: 0 | I180: 70234 | J180: C3
A181: 2014 | B181: 4134 | C181: 413 | D181: C | E181: 4 | F181: Grants - Federal - Direct or other pass-through | G181: 26866 | H181: 0 | I181: 26866 | J181: C4
A182: 2014 | B182: 4135a | C182: 413 | D182: C | E182: 5a | F182: Grants - Private (restricted) | G182: 0 | H182: 0 | I182: 0 | J182: C5a
A183: 2014 | B183: 4135b | C183: 413 | D183: C | E183: 5b | F183: Grants - Private (unrestricted) | G183: 2657 | H183: 0 | I183: 2657 | J183: C5b
A184: 2014 | B184: 4136 | C184: 413 | D184: C | E184: 6 | F184: Nutrition Funding - State | G184: 0 | H184: 0 | I184: 0 | J184: C6
A185: 2014 | B185: 4137 | C185: 413 | D185: C | E185: 7 | F185: Nutrition Funding - Federal | G185: 0 | H185: 0 | I185: 0 | J185: C7
A186: 2014 | B186: 4138 | C186: 413 | D186: C | E186: 8 | F186: Nutrition Funding - Fees | G186: 17201 | H186: 0 | I186: 17201 | J186: C8
A187: 2014 | B187: 4139 | C187: 413 | D187: C | E187: 9 | F187: Other Program / Student Activity Fees | G187: 124840 | H187: 0 | I187: 124840 | J187: C9
A188: 2014 | B188: 41310 | C188: 413 | D188: C | E188: 10 | F188: Regional Transportation Aid | G188: 0 | H188: 0 | I188: 0 | J188: C10
A189: 2014 | B189: 41311 | C189: 413 | D189: C | E189: 11 | F189: Medicaid Reimbursements | G189: 0 | H189: 0 | I189: 0 | J189: C11
A190: 2014 | B190: 41312 | C190: 413 | D190: C | E190: 12 | F190: Circuit Breaker Reimbursements | G190: 0 | H190: 0 | I190: 0 | J190: C12
A191: 2014 | B191: 41313a | C191: 413 | D191: C | E191: 13a | F191: Contributions, in-kind, host district | G191: 0 | H191: 0 | I191: 0 | J191: C13a
A192: 2014 | B192: 41313b | C192: 413 | D192: C | E192: 13b | F192: Contributions, in-kind, other | G192: 0 | H192: 0 | I192: 0 | J192: C13b
A193: 2014 | B193: 41314 | C193: 413 | D193: C | E193: 14 | F193: Contributions, from Component Unit (restricted) | G193: 0 | H193: 0 | I193: 0 | J193: C14
A194: 2014 | B194: 41314b | C194: 413 | D194: C | E194: 14b | F194: Contributions, from Component Unit (unrestricted) | G194: 12630 | H194: 0 | I194: 12630 | J194: C14b
A195: 2014 | B195: 41315 | C195: 413 | D195: C | E195: 15 | F195: Contributions / Fundraising (restricted) | G195: 0 | H195: 0 | I195: 0 | J195: C15
A196: 2014 | B196: 41315b | C196: 413 | D196: C | E196: 15b | F196: Contributions / Fundraising (unrestricted) | G196: 7829 | H196: 11680 | I196: 19509 | J196: C15b
A197: 2014 | B197: 41316 | C197: 413 | D197: C | E197: 16 | F197: Interest / Investment Income (restricted) | G197: 0 | H197: 0 | I197: 0 | J197: C16
A198: 2014 | B198: =C198&E198 -> 41316a | C198: 413 | D198: C | E198: 16a | F198: Interest / Investment Income (unrestricted) | G198: 182 | H198: 179.19 | I198: 361.19 | J198: =D198&E198 -> C16a
A199: 2014 | B199: 41317 | C199: 413 | D199: C | E199: 17 | F199: Rental Income | G199: 3194 | H199: 352965 | I199: 356159 | J199: C17
A200: 2014 | B200: 41318 | C200: 413 | D200: C | E200: 18 | F200: Loan Forgiveness or Other Reimbursement | G200: 0 | H200: 0 | I200: 0 | J200: C18
A201: 2014 | B201: 41319 | C201: 413 | D201: C | E201: 19 | F201: Miscellaneous Income | G201: 5538 | H201: 0 | I201: 5538 | J201: C19
A202: 2014 | B202: 41320 | C202: 413 | D202: C | E202: 20 | F202: TOTAL REVENUES | G202: 3190356 | H202: 364824.19 | I202: 3555180.19 | J202: C20
... 3365 more rows

Sheet FE14 (hidden)
B3: 1 | C3: 2 | D3: 3 | E3: 4 | F3: 5 | G3: 6 | H3: 7 | I3: 8 | J3: 9 | K3: 10 | L3: 11 | M3: 12
A4: FY | B4: vlookup | C4: cha_code | D4: cha_type | E4: FuncExp_id | F4: Line_Desc | G4: general | H4: sped | I4: undist | J4: state | K4: federal | L4: private | M4: total
A5: 2014 | B5: 407100 | C5: 407 | D5: =VLOOKUP(C5, TYPE, 3, FALSE) -> HM | E5: 100 | F5: Administration | G5: 0 | H5: 0 | I5: 124961 | J5: 0 | K5: 3967 | L5: 0 | M5: 128928 | N5: =D5&E5 -> HM100
A6: 2014 | B6: 407110 | C6: 407 | D6: HM | E6: 110 | F6: Subtotal - Board of Trustees | G6: 0 | H6: 0 | I6: 190 | J6: 0 | K6: 0 | L6: 0 | M6: 190 | N6: =D6&E6 -> HM110
A7: 2014 | B7: 407111 | C7: 407 | D7: HM | E7: 111 | F7: Contracted Services | G7: 0 | H7: 0 | I7: 0 | J7: 0 | K7: 0 | L7: 0 | M7: 0 | N7: HM111
A8: 2014 | B8: 407112 | C8: 407 | D8: HM | E8: 112 | F8: Travel and other expenses | G8: 0 | H8: 0 | I8: 190 | J8: 0 | K8: 0 | L8: 0 | M8: 190 | N8: HM112
A9: 2014 | B9: 407120 | C9: 407 | D9: HM | E9: 120 | F9: Subtotal - School Leaders | G9: 0 | H9: 0 | I9: 27939 | J9: 0 | K9: 0 | L9: 0 | M9: 27939 | N9: HM120
A10: 2014 | B10: 407121 | C10: 407 | D10: HM | E10: 121 | F10: Salaries - Professional | G10: 0 | H10: 0 | I10: 27939 | J10: 0 | K10: 0 | L10: 0 | M10: 27939 | N10: HM121
A11: 2014 | B11: 407122 | C11: 407 | D11: HM | E11: 122 | F11: Contracted Services | G11: 0 | H11: 0 | I11: 0 | J11: 0 | K11: 0 | L11: 0 | M11: 0 | N11: HM122
A12: 2014 | B12: 407130 | C12: 407 | D12: HM | E12: 130 | F12: Subtotal - Business and Finance | G12: 0 | H12: 0 | I12: 30668 | J12: 0 | K12: 3555 | L12: 0 | M12: 34223 | N12: HM130
A13: 2014 | B13: 407131 | C13: 407 | D13: HM | E13: 131 | F13: Salaries - Professional | G13: 0 | H13: 0 | I13: 0 | J13: 0 | K13: 0 | L13: 0 | M13: 0 | N13: HM131
A14: 2014 | B14: 407132 | C14: 407 | D14: HM | E14: 132 | F14: Contracted Services | G14: 0 | H14: 0 | I14: 30668 | J14: 0 | K14: 3555 | L14: 0 | M14: 34223 | N14: HM132
A15: 2014 | B15: 407140 | C15: 407 | D15: HM | E15: 140 | F15: Subtotal - Human Resources | G15: 0 | H15: 0 | I15: 0 | J15: 0 | K15: 0 | L15: 0 | M15: 0 | N15: HM140
A16: 2014 | B16: 407141 | C16: 407 | D16: HM | E16: 141 | F16: Salaries - Professional | G16: 0 | H16: 0 | I16: 0 | J16: 0 | K16: 0 | L16: 0 | M16: 0 | N16: HM141
A17: 2014 | B17: 407142 | C17: 407 | D17: HM | E17: 142 | F17: Contracted Services | G17: 0 | H17: 0 | I17: 0 | J17: 0 | K17: 0 | L17: 0 | M17: 0 | N17: HM142
A18: 2014 | B18: 407150 | C18: 407 | D18: HM | E18: 150 | F18: Subtotal - Legal Services | G18: 0 | H18: 0 | I18: 0 | J18: 0 | K18: 0 | L18: 0 | M18: 0 | N18: HM150
A19: 2014 | B19: 407151 | C19: 407 | D19: HM | E19: 151 | F19: Salaries - Professional | G19: 0 | H19: 0 | I19: 0 | J19: 0 | K19: 0 | L19: 0 | M19: 0 | N19: HM151
A20: 2014 | B20: 407152 | C20: 407 | D20: HM | E20: 152 | F20: Contracted Services | G20: 0 | H20: 0 | I20: 0 | J20: 0 | K20: 0 | L20: 0 | M20: 0 | N20: HM152
A21: 2014 | B21: 407160 | C21: 407 | D21: HM | E21: 160 | F21: Subtotal - Info. Management & Technology | G21: 0 | H21: 0 | I21: 7939 | J21: 0 | K21: 350 | L21: 0 | M21: 8289 | N21: HM160
A22: 2014 | B22: 407161 | C22: 407 | D22: HM | E22: 161 | F22: Salaries - Professional | G22: 0 | H22: 0 | I22: 0 | J22: 0 | K22: 0 | L22: 0 | M22: 0 | N22: HM161
A23: 2014 | B23: 407162 | C23: 407 | D23: HM | E23: 162 | F23: Contracted Services | G23: 0 | H23: 0 | I23: 7939 | J23: 0 | K23: 350 | L23: 0 | M23: 8289 | N23: HM162
A24: 2014 | B24: 407163 | C24: 407 | D24: HM | E24: 163 | F24: Supplies and Materials | G24: 0 | H24: 0 | I24: 0 | J24: 0 | K24: 0 | L24: 0 | M24: 0 | N24: HM163
A25: 2014 | B25: 407164 | C25: 407 | D25: HM | E25: 164 | F25: Depreciation for Information Technology | G25: 0 | H25: 0 | I25: 0 | J25: 0 | K25: 0 | L25: 0 | M25: 0 | N25: HM164
A26: 2014 | B26: 407170 | C26: 407 | D26: HM | E26: 170 | F26: Subtotal - Development (Private) | G26: 0 | H26: 0 | I26: 0 | J26: 0 | K26: 0 | L26: 0 | M26: 0 | N26: HM170
A27: 2014 | B27: 407170a | C27: 407 | D27: HM | E27: 170a | F27: Salaries - Professional - Private | G27: 0 | H27: 0 | I27: 0 | J27: 0 | K27: 0 | L27: 0 | M27: 0 | N27: HM170a
A28: 2014 | B28: 407170b | C28: 407 | D28: HM | E28: 170b | F28: Contracted Services - Private | G28: 0 | H28: 0 | I28: 0 | J28: 0 | K28: 0 | L28: 0 | M28: 0 | N28: HM170b
A29: 2014 | B29: 407170c | C29: 407 | D29: HM | E29: 170c | F29: Fundraising - Private | G29: 0 | H29: 0 | I29: 0 | J29: 0 | K29: 0 | L29: 0 | M29: 0 | N29: HM170c
A30: 2014 | B30: 407171 | C30: 407 | D30: HM | E30: 171 | F30: Subtotal - Development (Public) | G30: 0 | H30: 0 | I30: 0 | J30: 0 | K30: 0 | L30: 0 | M30: 0 | N30: HM171
A31: 2014 | B31: 407171a | C31: 407 | D31: HM | E31: 171a | F31: Salaries - Professional - Public | G31: 0 | H31: 0 | I31: 0 | J31: 0 | K31: 0 | L31: 0 | M31: 0 | N31: HM171a
A32: 2014 | B32: 407171b | C32: 407 | D32: HM | E32: 171b | F32: Contracted Services - Public | G32: 0 | H32: 0 | I32: 0 | J32: 0 | K32: 0 | L32: 0 | M32: 0 | N32: HM171b
A33: 2014 | B33: 407180 | C33: 407 | D33: HM | E33: 180 | F33: Subtotal - Other Administration | G33: 0 | H33: 0 | I33: 58225 | J33: 0 | K33: 62 | L33: 0 | M33: 58287 | N33: HM180
A34: 2014 | B34: 407181 | C34: 407 | D34: HM | E34: 181 | F34: Salaries - Clerical | G34: 0 | H34: 0 | I34: 48526 | J34: 0 | K34: 0 | L34: 0 | M34: 48526 | N34: HM181
A35: 2014 | B35: 407182 | C35: 407 | D35: HM | E35: 182 | F35: Recruitment/Advertising | G35: 0 | H35: 0 | I35: 7265 | J35: 0 | K35: 62 | L35: 0 | M35: 7327 | N35: HM182
A36: 2014 | B36: 407183 | C36: 407 | D36: HM | E36: 183 | F36: Travel, Dues, and other expenses | G36: 0 | H36: 0 | I36: 2434 | J36: 0 | K36: 0 | L36: 0 | M36: 2434 | N36: HM183
A37: 2014 | B37: 407184 | C37: 407 | D37: HM | E37: 184 | F37: Supplies and Materials | G37: 0 | H37: 0 | I37: 0 | J37: 0 | K37: 0 | L37: 0 | M37: 0 | N37: HM184
A38: 2014 | B38: 407200 | C38: 407 | D38: HM | E38: 200 | F38: Instructional Services | G38: 965429 | H38: 329281 | I38: 10907 | J38: 0 | K38: 435183 | L38: 0 | M38: 1740800 | N38: HM200
A39: 2014 | B39: 407210 | C39: 407 | D39: HM | E39: 210 | F39: Subtotal - Instructional Leadership | G39: 130607 | H39: 87738 | I39: 0 | J39: 0 | K39: 66380 | L39: 0 | M39: 284725 | N39: HM210
A40: 2014 | B40: 407211 | C40: 407 | D40: HM | E40: 211 | F40: Salaries - Professional | G40: 117153 | H40: 84979 | I40: 0 | J40: 0 | K40: 58000 | L40: 0 | M40: 260132 | N40: HM211
A41: 2014 | B41: 407212 | C41: 407 | D41: HM | E41: 212 | F41: Salaries - Clerical | G41: 0 | H41: 0 | I41: 0 | J41: 0 | K41: 0 | L41: 0 | M41: 0 | N41: HM212
A42: 2014 | B42: 407213 | C42: 407 | D42: HM | E42: 213 | F42: Contracted Services | G42: 10833 | H42: 2500 | I42: 0 | J42: 0 | K42: 0 | L42: 0 | M42: 13333 | N42: HM213
A43: 2014 | B43: 407214 | C43: 407 | D43: HM | E43: 214 | F43: Supplies and Materials | G43: 2621 | H43: 259 | I43: 0 | J43: 0 | K43: 180 | L43: 0 | M43: 3060 | N43: HM214
A44: 2014 | B44: 407215 | C44: 407 | D44: HM | E44: 215 | F44: Travel and other expenses | G44: 0 | H44: 0 | I44: 0 | J44: 0 | K44: 8200 | L44: 0 | M44: 8200 | N44: HM215
A45: 2014 | B45: 407220 | C45: 407 | D45: HM | E45: 220 | F45: Subtotal - Classroom and Specialist Teachers | G45: 660428 | H45: 152848 | I45: 0 | J45: 0 | K45: 102221 | L45: 0 | M45: 915497 | N45: HM220
A46: 2014 | B46: 407221 | C46: 407 | D46: HM | E46: 221 | F46: Salaries - Teachers, Classroom | G46: 660428 | H46: 65315 | I46: 0 | J46: 0 | K46: 102221 | L46: 0 | M46: 827964 | N46: HM221
A47: 2014 | B47: 407222 | C47: 407 | D47: HM | E47: 222 | F47: Salaries - Teachers, Specialists | G47: 0 | H47: 87533 | I47: 0 | J47: 0 | K47: 0 | L47: 0 | M47: 87533 | N47: HM222
A48: 2014 | B48: 407230 | C48: 407 | D48: HM | E48: 230 | F48: Subtotal - Other Teaching Services | G48: 52856 | H48: 6941 | I48: 0 | J48: 0 | K48: 189103 | L48: 0 | M48: 248900 | N48: HM230
A49: 2014 | B49: 407231 | C49: 407 | D49: HM | E49: 231 | F49: Salaries - Professional | G49: 0 | H49: 0 | I49: 0 | J49: 0 | K49: 0 | L49: 0 | M49: 0 | N49: HM231
A50: 2014 | B50: 407232 | C50: 407 | D50: HM | E50: 232 | F50: Salaries - Nonclerical Paraprofessionals | G50: 0 | H50: 0 | I50: 0 | J50: 0 | K50: 0 | L50: 0 | M50: 0 | N50: HM232
A51: 2014 | B51: 407233 | C51: 407 | D51: HM | E51: 233 | F51: Salaries - Clerical | G51: 5217 | H51: 516 | I51: 0 | J51: 0 | K51: 0 | L51: 0 | M51: 5733 | N51: HM233
A52: 2014 | B52: 407234 | C52: 407 | D52: HM | E52: 234 | F52: Contracted Services | G52: 47639 | H52: 6425 | I52: 0 | J52: 0 | K52: 189103 | L52: 0 | M52: 243167 | N52: HM234
A53: 2014 | B53: 407240 | C53: 407 | D53: HM | E53: 240 | F53: Subtotal - Professional Development | G53: 10777 | H53: 1065 | I53: 6446 | J53: 0 | K53: 25115 | L53: 0 | M53: 43403 | N53: HM240
A54: 2014 | B54: 407241 | C54: 407 | D54: HM | E54: 241 | F54: Salaries - Professional | G54: 0 | H54: 0 | I54: 0 | J54: 0 | K54: 0 | L54: 0 | M54: 0 | N54: HM241
A55: 2014 | B55: 407242 | C55: 407 | D55: HM | E55: 242 | F55: Contracted Services | G55: 3969 | H55: 392 | I55: 0 | J55: 0 | K55: 21438 | L55: 0 | M55: 25799 | N55: HM242
A56: 2014 | B56: 407243 | C56: 407 | D56: HM | E56: 243 | F56: Supplies and Materials | G56: 0 | H56: 0 | I56: 6446 | J56: 0 | K56: 0 | L56: 0 | M56: 6446 | N56: HM243
A57: 2014 | B57: 407244 | C57: 407 | D57: HM | E57: 244 | F57: Travel and other expenses | G57: 6808 | H57: 673 | I57: 0 | J57: 0 | K57: 3677 | L57: 0 | M57: 11158 | N57: HM244
A58: 2014 | B58: 407250 | C58: 407 | D58: HM | E58: 250 | F58: Subtotal - Guidance, Psychological & Testing | G58: 57689 | H58: 75282 | I58: 0 | J58: 0 | K58: 0 | L58: 0 | M58: 132971 | N58: HM250
A59: 2014 | B59: 407251 | C59: 407 | D59: HM | E59: 251 | F59: Salaries - Professional | G59: 57689 | H59: 5701 | I59: 0 | J59: 0 | K59: 0 | L59: 0 | M59: 63390 | N59: HM251
A60: 2014 | B60: 407252 | C60: 407 | D60: HM | E60: 252 | F60: Salaries - Clerical | G60: 0 | H60: 0 | I60: 0 | J60: 0 | K60: 0 | L60: 0 | M60: 0 | N60: HM252
A61: 2014 | B61: 407253 | C61: 407 | D61: HM | E61: 253 | F61: Contracted Services | G61: 0 | H61: 69581 | I61: 0 | J61: 0 | K61: 0 | L61: 0 | M61: 69581 | N61: HM253
A62: 2014 | B62: 407254 | C62: 407 | D62: HM | E62: 254 | F62: Supplies and Materials | G62: 0 | H62: 0 | I62: 0 | J62: 0 | K62: 0 | L62: 0 | M62: 0 | N62: HM254
A63: 2014 | B63: 407260 | C63: 407 | D63: HM | E63: 260 | F63: Subtotal - Materials, Equipment & Technology | G63: 53072 | H63: 5407 | I63: 4461 | J63: 0 | K63: 52364 | L63: 0 | M63: 115304 | N63: HM260
A64: 2014 | B64: 407261 | C64: 407 | D64: HM | E64: 261 | F64: Textbooks & Related Media/Materials | G64: 6598 | H64: 652 | I64: 0 | J64: 0 | K64: 34238 | L64: 0 | M64: 41488 | N64: HM261
A65: 2014 | B65: 407262 | C65: 407 | D65: HM | E65: 262 | F65: Other Instructional Materials | G65: 4706 | H65: 465 | I65: 0 | J65: 0 | K65: 5285 | L65: 0 | M65: 10456 | N65: HM262
A66: 2014 | B66: 407263 | C66: 407 | D66: HM | E66: 263 | F66: Instructional Equipment | G66: 1919 | H66: 190 | I66: 0 | J66: 0 | K66: 4852 | L66: 0 | M66: 6961 | N66: HM263
A67: 2014 | B67: 407264 | C67: 407 | D67: HM | E67: 264 | F67: General Supplies | G67: 12965 | H67: 1441 | I67: 0 | J67: 0 | K67: 6521 | L67: 0 | M67: 20927 | N67: HM264
A68: 2014 | B68: 407265 | C68: 407 | D68: HM | E68: 265 | F68: Other Instructional Services | G68: 0 | H68: 0 | I68: 0 | J68: 0 | K68: 0 | L68: 0 | M68: 0 | N68: HM265
A69: 2014 | B69: 407266 | C69: 407 | D69: =VLOOKUP(C69, TYPE, 3, FALSE) -> HM | E69: 266 | F69: Classroom Instructional Technology | G69: 0 | H69: 0 | I69: 2139 | J69: 0 | K69: 110 | L69: 0 | M69: 2249 | N69: HM266
A70: 2014 | B70: 407267 | C70: 407 | D70: HM | E70: 267 | F70: Other Instructional Hardware | G70: 0 | H70: 0 | I70: 2322 | J70: 0 | K70: 1248 | L70: 0 | M70: 3570 | N70: =D70&E70 -> HM267
A71: 2014 | B71: 407268 | C71: 407 | D71: HM | E71: 268 | F71: Instructional Software | G71: 0 | H71: 0 | I71: 0 | J71: 0 | K71: 110 | L71: 0 | M71: 110 | N71: HM268
A72: 2014 | B72: 407269 | C72: 407 | D72: HM | E72: 269 | F72: Depreciation for Instructional Equipment | G72: 26884 | H72: 2659 | I72: 0 | J72: 0 | K72: 0 | L72: 0 | M72: 29543 | N72: HM269
A73: 2014 | B73: 407300 | C73: 407 | D73: HM | E73: 300 | F73: Pupil Services | G73: 239288 | H73: 0 | I73: 7723 | J73: 0 | K73: 12895 | L73: 0 | M73: 259906 | N73: HM300
A74: 2014 | B74: 407310 | C74: 407 | D74: HM | E74: 310 | F74: Salaries - Pupil Services, non-food-related | G74: 0 | H74: 0 | I74: 0 | J74: 0 | K74: 0 | L74: 0 | M74: 0 | N74: HM310
A75: 2014 | B75: 407315 | C75: 407 | D75: HM | E75: 315 | F75: Salaries - Food Services | G75: 0 | H75: 0 | I75: 2384 | J75: 0 | K75: 0 | L75: 0 | M75: 2384 | N75: HM315
A76: 2014 | B76: 407320 | C76: 407 | D76: HM | E76: 320 | F76: Health Services | G76: 0 | H76: 0 | I76: 0 | J76: 0 | K76: 0 | L76: 0 | M76: 0 | N76: HM320
A77: 2014 | B77: 407330 | C77: 407 | D77: HM | E77: 330 | F77: Student Transportation (to and from school) | G77: 239288 | H77: 0 | I77: 0 | J77: 0 | K77: 9292 | L77: 0 | M77: 248580 | N77: HM330
A78: 2014 | B78: 407340 | C78: 407 | D78: HM | E78: 340 | F78: Depreciation of Transportation Vehicles | G78: 0 | H78: 0 | I78: 0 | J78: 0 | K78: 0 | L78: 0 | M78: 0 | N78: HM340
A79: 2014 | B79: 407350 | C79: 407 | D79: HM | E79: 350 | F79: Food Services | G79: 0 | H79: 0 | I79: 0 | J79: 0 | K79: 0 | L79: 0 | M79: 0 | N79: HM350
A80: 2014 | B80: 407360 | C80: 407 | D80: HM | E80: 360 | F80: Athletic Services | G80: 0 | H80: 0 | I80: 0 | J80: 0 | K80: 0 | L80: 0 | M80: 0 | N80: HM360
A81: 2014 | B81: 407370 | C81: 407 | D81: HM | E81: 370 | F81: Other Student Activities | G81: 0 | H81: 0 | I81: 5339 | J81: 0 | K81: 3603 | L81: 0 | M81: 8942 | N81: HM370
A82: 2014 | B82: 407400 | C82: 407 | D82: HM | E82: 400 | F82: Operation & Maintenance of Plant | G82: 0 | H82: 0 | I82: 94077 | J82: 0 | K82: 0 | L82: 0 | M82: 94077 | N82: HM400
A83: 2014 | B83: 407410 | C83: 407 | D83: HM | E83: 410 | F83: Salaries - Operation & Maintenance of Plant | G83: 0 | H83: 0 | I83: 0 | J83: 0 | K83: 0 | L83: 0 | M83: 0 | N83: HM410
A84: 2014 | B84: 407420 | C84: 407 | D84: HM | E84: 420 | F84: Utilities | G84: 0 | H84: 0 | I84: 53847 | J84: 0 | K84: 0 | L84: 0 | M84: 53847 | N84: HM420
A85: 2014 | B85: 407430 | C85: 407 | D85: HM | E85: 430 | F85: Maintenance of Buildings & Grounds | G85: 0 | H85: 0 | I85: 40230 | J85: 0 | K85: 0 | L85: 0 | M85: 40230 | N85: HM430
A86: 2014 | B86: 407440 | C86: 407 | D86: HM | E86: 440 | F86: Maintenance of Equipment | G86: 0 | H86: 0 | I86: 0 | J86: 0 | K86: 0 | L86: 0 | M86: 0 | N86: HM440
A87: 2014 | B87: 407450 | C87: 407 | D87: HM | E87: 450 | F87: Networking and Telecommunications | G87: 0 | H87: 0 | I87: 0 | J87: 0 | K87: 0 | L87: 0 | M87: 0 | N87: HM450
A88: 2014 | B88: 407500 | C88: 407 | D88: HM | E88: 500 | F88: Benefits and Other Fixed Charges | G88: 0 | H88: 0 | I88: 206501 | J88: 0 | K88: 3322 | L88: 0 | M88: 209823 | N88: HM500
A89: 2014 | B89: 407510 | C89: 407 | D89: HM | E89: 510 | F89: Employee Retirement | G89: 0 | H89: 0 | I89: 0 | J89: 0 | K89: 0 | L89: 0 | M89: 0 | N89: HM510
A90: 2014 | B90: 407520 | C90: 407 | D90: HM | E90: 520 | F90: Fringe Benefits | G90: 0 | H90: 0 | I90: 198586 | J90: 0 | K90: 2557 | L90: 0 | M90: 201143 | N90: HM520
A91: 2014 | B91: 407530 | C91: 407 | D91: HM | E91: 530 | F91: Insurance (non-employee) | G91: 0 | H91: 0 | I91: 6067 | J91: 0 | K91: 0 | L91: 0 | M91: 6067 | N91: HM530
A92: 2014 | B92: 407550 | C92: 407 | D92: HM | E92: 550 | F92: Rental/Lease of Equipment | G92: 0 | H92: 0 | I92: 1848 | J92: 0 | K92: 765 | L92: 0 | M92: 2613 | N92: HM550
A93: 2014 | B93: 407560 | C93: 407 | D93: HM | E93: 560 | F93: Short-Term Interest | G93: 0 | H93: 0 | I93: 0 | J93: 0 | K93: 0 | L93: 0 | M93: 0 | N93: HM560
A94: 2014 | B94: 407600 | C94: 407 | D94: HM | E94: 600 | F94: Community Services | G94: 0 | H94: 0 | I94: 0 | J94: 0 | K94: 0 | L94: 0 | M94: 0 | N94: HM600
A95: 2014 | B95: 407610 | C95: 407 | D95: HM | E95: 610 | F95: Dissemination Activities | G95: 0 | H95: 0 | I95: 0 | J95: 0 | K95: 0 | L95: 0 | M95: 0 | N95: HM610
A96: 2014 | B96: 407620 | C96: 407 | D96: HM | E96: 620 | F96: Civic Activities | G96: 0 | H96: 0 | I96: 0 | J96: 0 | K96: 0 | L96: 0 | M96: 0 | N96: HM620
A97: 2014 | B97: 407700 | C97: 407 | D97: HM | E97: 700 | F97: Non-Operating / Capital Facilities Costs | G97: 0 | H97: 0 | I97: 0 | J97: 0 | K97: 0 | L97: 0 | M97: 0 | N97: HM700
A98: 2014 | B98: 407720 | C98: 407 | D98: HM | E98: 720 | F98: Long-Term Interest, facilities related | G98: 0 | H98: 0 | I98: 0 | J98: 0 | K98: 0 | L98: 0 | M98: 0 | N98: HM720
A99: 2014 | B99: 407725 | C99: 407 | D99: HM | E99: 725 | F99: Long-Term Interest, non-facilities related | G99: 0 | H99: 0 | I99: 0 | J99: 0 | K99: 0 | L99: 0 | M99: 0 | N99: HM725
A100: 2014 | B100: 407730 | C100: 407 | D100: HM | E100: 730 | F100: Other costs related to capital facilities acquisition | G100: 0 | H100: 0 | I100: 0 | J100: 0 | K100: 0 | L100: 0 | M100: 0 | N100: HM730
A101: 2014 | B101: 407740 | C101: 407 | D101: HM | E101: 740 | F101: Rental/Lease of Buildings & Grounds | G101: 0 | H101: 0 | I101: 0 | J101: 0 | K101: 0 | L101: 0 | M101: 0 | N101: HM740
A102: 2014 | B102: 407750 | C102: 407 | D102: HM | E102: 750 | F102: Depreciation of Equipment, Building, & Grounds | G102: 0 | H102: 0 | I102: 0 | J102: 0 | K102: 0 | L102: 0 | M102: 0 | N102: HM750
A103: 2014 | B103: 407760 | C103: 407 | D103: HM | E103: 760 | F103: Bad debt / loss on disposal of assets | G103: 0 | H103: 0 | I103: 0 | J103: 0 | K103: 0 | L103: 0 | M103: 0 | N103: HM760
A104: 2014 | B104: 407800 | C104: 407 | D104: HM | E104: 800 | F104: TOTALS | G104: 1204717 | H104: 329281 | I104: 444169 | J104: 0 | K104: 455367 | L104: 0 | M104: 2433534 | N104: HM800
A105: 2014 | B105: 407910 | C105: 407 | D105: HM | E105: 910 | F105: Reference: Capitalized Expenditures | G105: 0 | H105: 0 | I105: 0 | J105: 0 | K105: 40281 | L105: 0 | M105: 40281 | N105: HM910
A106: 2014 | B106: 407920 | C106: 407 | D106: HM | E106: 920 | F106: Reference: Deferrals/Carryovers | G106: 0 | H106: 0 | I106: 0 | J106: 0 | K106: 0 | L106: 0 | M106: 0 | N106: HM920
A107: 2014 | B107: 407900 | C107: 407 | D107: HM | E107: 900 | F107: Reference: Totals | G107: 0 | H107: 0 | I107: 444169 | J107: 0 | K107: 495648 | L107: 0 | M107: 2473815 | N107: HM900
A108: 2014 | B108: 409100 | C108: 409 | D108: C | E108: 100 | F108: Administration | G108: 0 | H108: 0 | I108: 295790.56 | J108: 0 | K108: 0 | L108: 40000 | M108: 335790.56 | N108: C100
A109: 2014 | B109: 409110 | C109: 409 | D109: C | E109: 110 | F109: Subtotal - Board of Trustees | G109: 0 | H109: 0 | I109: 5529.99 | J109: 0 | K109: 0 | L109: 0 | M109: 5529.99 | N109: C110
A110: 2014 | B110: 409111 | C110: 409 | D110: C | E110: 111 | F110: Contracted Services | G110: 0 | H110: 0 | I110: 5500 | J110: 0 | K110: 0 | L110: 0 | M110: 5500 | N110: C111
A111: 2014 | B111: 409112 | C111: 409 | D111: C | E111: 112 | F111: Travel and other expenses | G111: 0 | H111: 0 | I111: 29.99 | J111: 0 | K111: 0 | L111: 0 | M111: 29.99 | N111: C112
A112: 2014 | B112: 409120 | C112: 409 | D112: C | E112: 120 | F112: Subtotal - School Leaders | G112: 0 | H112: 0 | I112: 100320.04 | J112: 0 | K112: 0 | L112: 0 | M112: 100320.04 | N112: C120
A113: 2014 | B113: 409121 | C113: 409 | D113: C | E113: 121 | F113: Salaries - Professional | G113: 0 | H113: 0 | I113: 89760.04 | J113: 0 | K113: 0 | L113: 0 | M113: 89760.04 | N113: C121
A114: 2014 | B114: 409122 | C114: 409 | D114: C | E114: 122 | F114: Contracted Services | G114: 0 | H114: 0 | I114: 10560 | J114: 0 | K114: 0 | L114: 0 | M114: 10560 | N114: C122
A115: 2014 | B115: 409130 | C115: 409 | D115: C | E115: 130 | F115: Subtotal - Business and Finance | G115: 0 | H115: 0 | I115: 55452.5 | J115: 0 | K115: 0 | L115: 0 | M115: 55452.5 | N115: C130
A116: 2014 | B116: 409131 | C116: 409 | D116: C | E116: 131 | F116: Salaries - Professional | G116: 0 | H116: 0 | I116: 0 | J116: 0 | K116: 0 | L116: 0 | M116: 0 | N116: C131
A117: 2014 | B117: 409132 | C117: 409 | D117: C | E117: 132 | F117: Contracted Services | G117: 0 | H117: 0 | I117: 55452.5 | J117: 0 | K117: 0 | L117: 0 | M117: 55452.5 | N117: C132
A118: 2014 | B118: 409140 | C118: 409 | D118: C | E118: 140 | F118: Subtotal - Human Resources | G118: 0 | H118: 0 | I118: 15466.05 | J118: 0 | K118: 0 | L118: 0 | M118: 15466.05 | N118: C140
A119: 2014 | B119: 409141 | C119: 409 | D119: C | E119: 141 | F119: Salaries - Professional | G119: 0 | H119: 0 | I119: 0 | J119: 0 | K119: 0 | L119: 0 | M119: 0 | N119: C141
A120: 2014 | B120: 409142 | C120: 409 | D120: C | E120: 142 | F120: Contracted Services | G120: 0 | H120: 0 | I120: 15466.05 | J120: 0 | K120: 0 | L120: 0 | M120: 15466.05 | N120: C142
A121: 2014 | B121: 409150 | C121: 409 | D121: C | E121: 150 | F121: Subtotal - Legal Services | G121: 0 | H121: 0 | I121: 11957.97 | J121: 0 | K121: 0 | L121: 0 | M121: 11957.97 | N121: C150
A122: 2014 | B122: 409151 | C122: 409 | D122: C | E122: 151 | F122: Salaries - Professional | G122: 0 | H122: 0 | I122: 0 | J122: 0 | K122: 0 | L122: 0 | M122: 0 | N122: C151
A123: 2014 | B123: 409152 | C123: 409 | D123: C | E123: 152 | F123: Contracted Services | G123: 0 | H123: 0 | I123: 11957.97 | J123: 0 | K123: 0 | L123: 0 | M123: 11957.97 | N123: C152
A124: 2014 | B124: 409160 | C124: 409 | D124: C | E124: 160 | F124: Subtotal - Info. Management & Technology | G124: 0 | H124: 0 | I124: 17214.82 | J124: 0 | K124: 0 | L124: 0 | M124: 17214.82 | N124: C160
A125: 2014 | B125: 409161 | C125: 409 | D125: C | E125: 161 | F125: Salaries - Professional | G125: 0 | H125: 0 | I125: 0 | J125: 0 | K125: 0 | L125: 0 | M125: 0 | N125: C161
A126: 2014 | B126: 409162 | C126: 409 | D126: C | E126: 162 | F126: Contracted Services | G126: 0 | H126: 0 | I126: 13831.02 | J126: 0 | K126: 0 | L126: 0 | M126: 13831.02 | N126: C162
A127: 2014 | B127: 409163 | C127: 409 | D127: C | E127: 163 | F127: Supplies and Materials | G127: 0 | H127: 0 | I127: 3383.8 | J127: 0 | K127: 0 | L127: 0 | M127: 3383.8 | N127: C163
A128: 2014 | B128: 409164 | C128: 409 | D128: C | E128: 164 | F128: Depreciation for Information Technology | G128: 0 | H128: 0 | I128: 0 | J128: 0 | K128: 0 | L128: 0 | M128: 0 | N128: C164
A129: 2014 | B129: 409170 | C129: 409 | D129: C | E129: 170 | F129: Subtotal - Development (Private) | G129: 0 | H129: 0 | I129: 15912.13 | J129: 0 | K129: 0 | L129: 0 | M129: 15912.13 | N129: C170
A130: 2014 | B130: 409170a | C130: 409 | D130: C | E130: 170a | F130: Salaries - Professional - Private | G130: 0 | H130: 0 | I130: 0 | J130: 0 | K130: 0 | L130: 0 | M130: 0 | N130: C170a
A131: 2014 | B131: 409170b | C131: 409 | D131: C | E131: 170b | F131: Contracted Services - Private | G131: 0 | H131: 0 | I131: 0 | J131: 0 | K131: 0 | L131: 0 | M131: 0 | N131: C170b
A132: 2014 | B132: 409170c | C132: 409 | D132: C | E132: 170c | F132: Fundraising - Private | G132: 0 | H132: 0 | I132: 15912.13 | J132: 0 | K132: 0 | L132: 0 | M132: 15912.13 | N132: C170c
A133: 2014 | B133: 409171 | C133: 409 | D133: =VLOOKUP(C133, TYPE, 3, FALSE) -> C | E133: 171 | F133: Subtotal - Development (Public) | G133: 0 | H133: 0 | I133: 12931.25 | J133: 0 | K133: 0 | L133: 40000 | M133: 52931.25 | N133: C171
A134: 2014 | B134: 409171a | C134: 409 | D134: C | E134: 171a | F134: Salaries - Professional - Public | G134: 0 | H134: 0 | I134: 7031.25 | J134: 0 | K134: 0 | L134: 40000 | M134: 47031.25 | N134: =D134&E134 -> C171a
A135: 2014 | B135: 409171b | C135: 409 | D135: C | E135: 171b | F135: Contracted Services - Public | G135: 0 | H135: 0 | I135: 5900 | J135: 0 | K135: 0 | L135: 0 | M135: 5900 | N135: C171b
A136: 2014 | B136: 409180 | C136: 409 | D136: C | E136: 180 | F136: Subtotal - Other Administration | G136: 0 | H136: 0 | I136: 61005.81 | J136: 0 | K136: 0 | L136: 0 | M136: 61005.81 | N136: C180
A137: 2014 | B137: 409181 | C137: 409 | D137: C | E137: 181 | F137: Salaries - Clerical | G137: 0 | H137: 0 | I137: 34334.17 | J137: 0 | K137: 0 | L137: 0 | M137: 34334.17 | N137: C181
A138: 2014 | B138: 409182 | C138: 409 | D138: C | E138: 182 | F138: Recruitment/Advertising | G138: 0 | H138: 0 | I138: 14257.07 | J138: 0 | K138: 0 | L138: 0 | M138: 14257.07 | N138: C182
A139: 2014 | B139: 409183 | C139: 409 | D139: C | E139: 183 | F139: Travel, Dues, and other expenses | G139: 0 | H139: 0 | I139: 9545.38 | J139: 0 | K139: 0 | L139: 0 | M139: 9545.38 | N139: C183
A140: 2014 | B140: 409184 | C140: 409 | D140: C | E140: 184 | F140: Supplies and Materials | G140: 0 | H140: 0 | I140: 2869.19 | J140: 0 | K140: 0 | L140: 0 | M140: 2869.19 | N140: C184
A141: 2014 | B141: 409200 | C141: 409 | D141: C | E141: 200 | F141: Instructional Services | G141: 1103183.79 | H141: 203375.12 | I141: 8149.68 | J141: 45 | K141: 175229 | L141: 61367.48 | M141: 1551350.07 | N141: C200
A142: 2014 | B142: 409210 | C142: 409 | D142: C | E142: 210 | F142: Subtotal - Instructional Leadership | G142: 125819.11 | H142: 59746.53 | I142: 0 | J142: 0 | K142: 5000 | L142: 0 | M142: 190565.64 | N142: C210
A143: 2014 | B143: 409211 | C143: 409 | D143: C | E143: 211 | F143: Salaries - Professional | G143: 85176.58 | H143: 59700 | I143: 0 | J143: 0 | K143: 5000 | L143: 0 | M143: 149876.58 | N143: C211
A144: 2014 | B144: 409212 | C144: 409 | D144: C | E144: 212 | F144: Salaries - Clerical | G144: 39202.87 | H144: 0 | I144: 0 | J144: 0 | K144: 0 | L144: 0 | M144: 39202.87 | N144: C212
A145: 2014 | B145: 409213 | C145: 409 | D145: C | E145: 213 | F145: Contracted Services | G145: 0 | H145: 0 | I145: 0 | J145: 0 | K145: 0 | L145: 0 | M145: 0 | N145: C213
A146: 2014 | B146: 409214 | C146: 409 | D146: C | E146: 214 | F146: Supplies and Materials | G146: 1073.96 | H146: 0 | I146: 0 | J146: 0 | K146: 0 | L146: 0 | M146: 1073.96 | N146: C214
A147: 2014 | B147: 409215 | C147: 409 | D147: C | E147: 215 | F147: Travel and other expenses | G147: 365.7 | H147: 46.53 | I147: 0 | J147: 0 | K147: 0 | L147: 0 | M147: 412.23 | N147: C215
A148: 2014 | B148: 409220 | C148: 409 | D148: C | E148: 220 | F148: Subtotal - Classroom and Specialist Teachers | G148: 760724.22 | H148: 0 | I148: 0 | J148: 0 | K148: 0 | L148: 40000 | M148: 800724.22 | N148: C220
A149: 2014 | B149: 409221 | C149: 409 | D149: C | E149: 221 | F149: Salaries - Teachers, Classroom | G149: 555654.22 | H149: 0 | I149: 0 | J149: 0 | K149: 0 | L149: 25000 | M149: 580654.22 | N149: C221
A150: 2014 | B150: 409222 | C150: 409 | D150: C | E150: 222 | F150: Salaries - Teachers, Specialists | G150: 205070 | H150: 0 | I150: 0 | J150: 0 | K150: 0 | L150: 15000 | M150: 220070 | N150: C222
A151: 2014 | B151: 409230 | C151: 409 | D151: C | E151: 230 | F151: Subtotal - Other Teaching Services | G151: 44624.32 | H151: 134350.36 | I151: 0 | J151: 45 | K151: 77935 | L151: 0 | M151: 256954.68 | N151: C230
A152: 2014 | B152: 409231 | C152: 409 | D152: C | E152: 231 | F152: Salaries - Professional | G152: 0 | H152: 0 | I152: 0 | J152: 0 | K152: 0 | L152: 0 | M152: 0 | N152: C231
A153: 2014 | B153: 409232 | C153: 409 | D153: C | E153: 232 | F153: Salaries - Nonclerical Paraprofessionals | G153: 35949.32 | H153: 51934.7 | I153: 0 | J153: 0 | K153: 27000 | L153: 0 | M153: 114884.02 | N153: C232
A154: 2014 | B154: 409233 | C154: 409 | D154: C | E154: 233 | F154: Salaries - Clerical | G154: 0 | H154: 0 | I154: 0 | J154: 0 | K154: 0 | L154: 0 | M154: 0 | N154: C233
A155: 2014 | B155: 409234 | C155: 409 | D155: C | E155: 234 | F155: Contracted Services | G155: 8675 | H155: 82415.66 | I155: 0 | J155: 45 | K155: 50935 | L155: 0 | M155: 142070.66 | N155: C234
A156: 2014 | B156: 409240 | C156: 409 | D156: C | E156: 240 | F156: Subtotal - Professional Development | G156: 61034.21 | H156: 0 | I156: 0 | J156: 0 | K156: 47061 | L156: 0 | M156: 108095.21 | N156: C240
A157: 2014 | B157: 409241 | C157: 409 | D157: C | E157: 241 | F157: Salaries - Professional | G157: 0 | H157: 0 | I157: 0 | J157: 0 | K157: 0 | L157: 0 | M157: 0 | N157: C241
A158: 2014 | B158: 409242 | C158: 409 | D158: C | E158: 242 | F158: Contracted Services | G158: 36086.66 | H158: 0 | I158: 0 | J158: 0 | K158: 42068 | L158: 0 | M158: 78154.66 | N158: C242
A159: 2014 | B159: 409243 | C159: 409 | D159: C | E159: 243 | F159: Supplies and Materials | G159: 5863.62 | H159: 0 | I159: 0 | J159: 0 | K159: 0 | L159: 0 | M159: 5863.62 | N159: C243
A160: 2014 | B160: 409244 | C160: 409 | D160: C | E160: 244 | F160: Travel and other expenses | G160: 19083.93 | H160: 0 | I160: 0 | J160: 0 | K160: 4993 | L160: 0 | M160: 24076.93 | N160: C244
A161: 2014 | B161: 409250 | C161: 409 | D161: C | E161: 250 | F161: Subtotal - Guidance, Psychological & Testing | G161: 13984.68 | H161: 6176.18 | I161: 0 | J161: 0 | K161: 4737 | L161: 0 | M161: 24897.86 | N161: C250
A162: 2014 | B162: 409251 | C162: 409 | D162: C | E162: 251 | F162: Salaries - Professional | G162: 0 | H162: 0 | I162: 0 | J162: 0 | K162: 0 | L162: 0 | M162: 0 | N162: C251
A163: 2014 | B163: 409252 | C163: 409 | D163: C | E163: 252 | F163: Salaries - Clerical | G163: 0 | H163: 0 | I163: 0 | J163: 0 | K163: 0 | L163: 0 | M163: 0 | N163: C252
A164: 2014 | B164: 409253 | C164: 409 | D164: C | E164: 253 | F164: Contracted Services | G164: 481 | H164: 5461 | I164: 0 | J164: 0 | K164: 4372 | L164: 0 | M164: 10314 | N164: C253
A165: 2014 | B165: 409254 | C165: 409 | D165: C | E165: 254 | F165: Supplies and Materials | G165: 13503.68 | H165: 715.18 | I165: 0 | J165: 0 | K165: 365 | L165: 0 | M165: 14583.86 | N165: C254
A166: 2014 | B166: 409260 | C166: 409 | D166: C | E166: 260 | F166: Subtotal - Materials, Equipment & Technology | G166: 96997.25 | H166: 3102.05 | I166: 8149.68 | J166: 0 | K166: 40496 | L166: 21367.48 | M166: 170112.46 | N166: C260
A167: 2014 | B167: 409261 | C167: 409 | D167: C | E167: 261 | F167: Textbooks & Related Media/Materials | G167: 1319.21 | H167: 0 | I167: 0 | J167: 0 | K167: 13303 | L167: 0 | M167: 14622.21 | N167: C261
A168: 2014 | B168: 409262 | C168: 409 | D168: C | E168: 262 | F168: Other Instructional Materials | G168: 14141.74 | H168: 509.49 | I168: 0 | J168: 0 | K168: 4609 | L168: 12303.48 | M168: 31563.71 | N168: C262
A169: 2014 | B169: 409263 | C169: 409 | D169: C | E169: 263 | F169: Instructional Equipment | G169: 26873.12 | H169: 0 | I169: 0 | J169: 0 | K169: 5340 | L169: 3580 | M169: 35793.12 | N169: C263
A170: 2014 | B170: 409264 | C170: 409 | D170: C | E170: 264 | F170: General Supplies | G170: 27936.87 | H170: 1028.24 | I170: 0 | J170: 0 | K170: 4244 | L170: 1984 | M170: 35193.11 | N170: C264
A171: 2014 | B171: 409265 | C171: 409 | D171: C | E171: 265 | F171: Other Instructional Services | G171: 20955.58 | H171: 0 | I171: 0 | J171: 0 | K171: 0 | L171: 0 | M171: 20955.58 | N171: C265
A172: 2014 | B172: 409266 | C172: 409 | D172: C | E172: 266 | F172: Classroom Instructional Technology | G172: 0 | H172: 0 | I172: 8149.68 | J172: 0 | K172: 13000 | L172: 3500 | M172: 24649.68 | N172: C266
A173: 2014 | B173: 409267 | C173: 409 | D173: C | E173: 267 | F173: Other Instructional Hardware | G173: 0 | H173: 0 | I173: 0 | J173: 0 | K173: 0 | L173: 0 | M173: 0 | N173: C267
A174: 2014 | B174: 409268 | C174: 409 | D174: C | E174: 268 | F174: Instructional Software | G174: 29.73 | H174: 1564.32 | I174: 0 | J174: 0 | K174: 0 | L174: 0 | M174: 1594.05 | N174: C268
A175: 2014 | B175: 409269 | C175: 409 | D175: C | E175: 269 | F175: Depreciation for Instructional Equipment | G175: 5741 | H175: 0 | I175: 0 | J175: 0 | K175: 0 | L175: 0 | M175: 5741 | N175: C269
A176: 2014 | B176: 409300 | C176: 409 | D176: C | E176: 300 | F176: Pupil Services | G176: 241710.4 | H176: 0 | I176: 118527.16 | J176: 1602.75 | K176: 156917.97 | L176: 3150 | M176: 521908.28 | N176: C300
A177: 2014 | B177: 409310 | C177: 409 | D177: C | E177: 310 | F177: Salaries - Pupil Services, non-food-related | G177: 0 | H177: 0 | I177: 42452.04 | J177: 0 | K177: 0 | L177: 0 | M177: 42452.04 | N177: C310
A178: 2014 | B178: 409315 | C178: 409 | D178: C | E178: 315 | F178: Salaries - Food Services | G178: 0 | H178: 0 | I178: 8015 | J178: 0 | K178: 0 | L178: 0 | M178: 8015 | N178: C315
A179: 2014 | B179: 409320 | C179: 409 | D179: C | E179: 320 | F179: Health Services | G179: 0 | H179: 0 | I179: 3595.53 | J179: 0 | K179: 0 | L179: 0 | M179: 3595.53 | N179: C320
A180: 2014 | B180: 409330 | C180: 409 | D180: C | E180: 330 | F180: Student Transportation (to and from school) | G180: 241710.4 | H180: 0 | I180: 0 | J180: 200 | K180: 34000 | L180: 0 | M180: 275910.4 | N180: C330
A181: 2014 | B181: 409340 | C181: 409 | D181: C | E181: 340 | F181: Depreciation of Transportation Vehicles | G181: 0 | H181: 0 | I181: 0 | J181: 0 | K181: 0 | L181: 0 | M181: 0 | N181: C340
A182: 2014 | B182: 409350 | C182: 409 | D182: C | E182: 350 | F182: Food Services | G182: 0 | H182: 0 | I182: 33436.67 | J182: 1402.75 | K182: 122917.97 | L182: 0 | M182: 157757.39 | N182: C350
A183: 2014 | B183: 409360 | C183: 409 | D183: C | E183: 360 | F183: Athletic Services | G183: 0 | H183: 0 | I183: 0 | J183: 0 | K183: 0 | L183: 0 | M183: 0 | N183: C360
A184: 2014 | B184: 409370 | C184: 409 | D184: C | E184: 370 | F184: Other Student Activities | G184: 0 | H184: 0 | I184: 31027.92 | J184: 0 | K184: 0 | L184: 3150 | M184: 34177.92 | N184: C370
A185: 2014 | B185: 409400 | C185: 409 | D185: C | E185: 400 | F185: Operation & Maintenance of Plant | G185: 0 | H185: 0 | I185: 156580.06 | J185: 0 | K185: 0 | L185: 500 | M185: 157080.06 | N185: C400
A186: 2014 | B186: 409410 | C186: 409 | D186: C | E186: 410 | F186: Salaries - Operation & Maintenance of Plant | G186: 0 | H186: 0 | I186: 45267.67 | J186: 0 | K186: 0 | L186: 0 | M186: 45267.67 | N186: C410
A187: 2014 | B187: 409420 | C187: 409 | D187: C | E187: 420 | F187: Utilities | G187: 0 | H187: 0 | I187: 42992.58 | J187: 0 | K187: 0 | L187: 0 | M187: 42992.58 | N187: C420
A188: 2014 | B188: 409430 | C188: 409 | D188: C | E188: 430 | F188: Maintenance of Buildings & Grounds | G188: 0 | H188: 0 | I188: 54086.95 | J188: 0 | K188: 0 | L188: 500 | M188: 54586.95 | N188: C430
A189: 2014 | B189: 409440 | C189: 409 | D189: C | E189: 440 | F189: Maintenance of Equipment | G189: 0 | H189: 0 | I189: 0 | J189: 0 | K189: 0 | L189: 0 | M189: 0 | N189: C440
A190: 2014 | B190: 409450 | C190: 409 | D190: C | E190: 450 | F190: Networking and Telecommunications | G190: 0 | H190: 0 | I190: 14232.86 | J190: 0 | K190: 0 | L190: 0 | M190: 14232.86 | N190: C450
A191: 2014 | B191: 409500 | C191: 409 | D191: C | E191: 500 | F191: Benefits and Other Fixed Charges | G191: 0 | H191: 0 | I191: 178158.74 | J191: 0 | K191: 2867 | L191: 0 | M191: 181025.74 | N191: C500
A192: 2014 | B192: 409510 | C192: 409 | D192: C | E192: 510 | F192: Employee Retirement | G192: 0 | H192: 0 | I192: 0 | J192: 0 | K192: 450 | L192: 0 | M192: 450 | N192: C510
A193: 2014 | B193: 409520 | C193: 409 | D193: C | E193: 520 | F193: Fringe Benefits | G193: 0 | H193: 0 | I193: 156518.61 | J193: 0 | K193: 0 | L193: 0 | M193: 156518.61 | N193: C520
A194: 2014 | B194: 409530 | C194: 409 | D194: C | E194: 530 | F194: Insurance (non-employee) | G194: 0 | H194: 0 | I194: 14472 | J194: 0 | K194: 0 | L194: 0 | M194: 14472 | N194: C530
A195: 2014 | B195: 409550 | C195: 409 | D195: C | E195: 550 | F195: Rental/Lease of Equipment | G195: 0 | H195: 0 | I195: 6932.24 | J195: 0 | K195: 2417 | L195: 0 | M195: 9349.24 | N195: C550
A196: 2014 | B196: 409560 | C196: 409 | D196: C | E196: 560 | F196: Short-Term Interest | G196: 0 | H196: 0 | I196: 235.89 | J196: 0 | K196: 0 | L196: 0 | M196: 235.89 | N196: C560
A197: 2014 | B197: 409600 | C197: 409 | D197: =VLOOKUP(C197, TYPE, 3, FALSE) -> C | E197: 600 | F197: Community Services | G197: 0 | H197: 0 | I197: 7519.65 | J197: 0 | K197: 0 | L197: 0 | M197: 7519.65 | N197: C600
A198: 2014 | B198: 409610 | C198: 409 | D198: C | E198: 610 | F198: Dissemination Activities | G198: 0 | H198: 0 | I198: 0 | J198: 0 | K198: 0 | L198: 0 | M198: 0 | N198: =D198&E198 -> C610
A199: 2014 | B199: 409620 | C199: 409 | D199: C | E199: 620 | F199: Civic Activities | G199: 0 | H199: 0 | I199: 7519.65 | J199: 0 | K199: 0 | L199: 0 | M199: 7519.65 | N199: C620
A200: 2014 | B200: 409700 | C200: 409 | D200: C | E200: 700 | F200: Non-Operating / Capital Facilities Costs | G200: 0 | H200: 0 | I200: 131287.66 | J200: 0 | K200: 0 | L200: 0 | M200: 131287.66 | N200: C700
A201: 2014 | B201: 409720 | C201: 409 | D201: C | E201: 720 | F201: Long-Term Interest, facilities related | G201: 0 | H201: 0 | I201: 0 | J201: 0 | K201: 0 | L201: 0 | M201: 0 | N201: C720
A202: 2014 | B202: 409725 | C202: 409 | D202: C | E202: 725 | F202: Long-Term Interest, non-facilities related | G202: 0 | H202: 0 | I202: 0 | J202: 0 | K202: 0 | L202: 0 | M202: 0 | N202: C725
... 4298 more rows

Sheet CSLIST (hidden)
B1: Select a Charter School | C1: LEA
A2: 2 | B2: Abby Kelley Foster Charter Public School | C2: 445
A3: 3 | B3: Academy of the Pacific Rim Charter Public School | C3: 412
A4: 4 | B4: Advanced Math and Science Academy Charter School | C4: 430
A5: 5 | B5: Alma del Mar Charter School | C5: 409
A6: 6 | B6: Amesbury Academy Charter Public School | C6: 415
A7: 7 | B7: Argosy Collegiate Charter School | C7: 3509
A8: 8 | B8: Atlantis Charter School | C8: 491
A9: 9 | B9: Barnstable Community Horace Mann Charter Public School | C9: 427
A10: 10 | B10: Baystate Academy Charter Public School | C10: 3502
A11: 11 | B11: Benjamin Banneker Charter Public School | C11: 420
A12: 12 | B12: Benjamin Franklin Classical Charter Public School | C12: 447
A13: 13 | B13: Berkshire Arts and Technology Charter Public School | C13: 414
A14: 14 | B14: Boston Collegiate Charter School | C14: 449
A15: 15 | B15: Boston Day and Evening Academy Charter School | C15: 424
A16: 16 | B16: Boston Green Academy Horace Mann Charter School | C16: 411
A17: 17 | B17: Boston Preparatory Charter Public School | C17: 416
A18: 18 | B18: Boston Renaissance Charter Public School | C18: 481
A19: 19 | B19: Bridge Boston Charter School | C19: 417
A20: 20 | B20: Brooke Charter School East Boston | C20: 457
A21: 21 | B21: Brooke Charter School Mattapan | C21: 443
A22: 22 | B22: Brooke Charter School Roslindale | C22: 428
A23: 23 | B23: Cape Cod Lighthouse Charter School | C23: 432
A24: 24 | B24: Christa McAuliffe Charter School | C24: 418
A25: 25 | B25: City On A Hill Charter Public School | C25: 437
A26: 26 | B26: City On A Hill Charter Public School II | C26: 3504
A27: 27 | B27: City On A Hill Charter Public School New Bedford | C27: 3507
A28: 28 | B28: Codman Academy Charter Public School | C28: 438
A29: 29 | B29: Community Charter School of Cambridge | C29: 436
A30: 30 | B30: Community Day Charter Public School - Gateway | C30: 426
A31: 31 | B31: Community Day Charter Public School - Prospect | C31: 440
A32: 32 | B32: Community Day Charter Public School - R. Kingman Webster | C32: 431
A33: 33 | B33: Conservatory Lab Charter School | C33: 439
A34: 34 | B34: Dorchester Collegiate Academy Charter School | C34: 475
A35: 35 | B35: Dudley Street Neighborhood Charter School | C35: 407
A36: 36 | B36: Edward M. Kennedy Academy for Health Careers: A Horace Mann Charter Public School | C36: 452
A37: 37 | B37: Excel Academy Charter School | C37: 410
A38: 38 | B38: Four Rivers Charter Public School | C38: 413
A39: 39 | B39: Foxborough Regional Charter School | C39: 446
A40: 40 | B40: Francis W. Parker Charter Essential School | C40: 478
A41: 41 | B41: Global Learning Charter Public School | C41: 496
A42: 42 | B42: Hampden Charter School of Science | C42: 499
A43: 43 | B43: Helen Y Davis Leadership Academy Charter Public School | C43: 419
A44: 44 | B44: Hill View Montessori Charter Public School | C44: 455
A45: 45 | B45: Hilltown Cooperative Charter Public School | C45: 450
A46: 46 | B46: Holyoke Community Charter School | C46: 453
A47: 47 | B47: Innovation Academy Charter School | C47: 435
A48: 48 | B48: KIPP Academy Boston Charter School | C48: 463
A49: 49 | B49: KIPP Academy Lynn Charter School | C49: 429
A50: 50 | B50: Lawrence Family Development Charter School | C50: 454
A51: 51 | B51: Lowell Collegiate Charter School | C51: 3503
A52: 52 | B52: Lowell Community Charter Public School | C52: 456
A53: 53 | B53: Lowell Middlesex Academy Charter School | C53: 458
A54: 54 | B54: Marblehead Community Charter Public School | C54: 464
A55: 55 | B55: Martha's Vineyard Public Charter School | C55: 466
A56: 56 | B56: Martin Luther King, Jr. Charter School of Excellence | C56: 492
A57: 57 | B57: Match Charter Public School | C57: 469
A58: 58 | B58: Mystic Valley Regional Charter School | C58: 470
A59: 59 | B59: Neighborhood House Charter School | C59: 444
A60: 60 | B60: New Liberty Charter School of Salem | C60: 467
A61: 61 | B61: Paulo Freire Social Justice Charter School | C61: 3501
A62: 62 | B62: Phoenix Academy Charter Public High School, Chelsea | C62: 493
A63: 63 | B63: Phoenix Academy Public Charter High School, Springfield | C63: 3508
A64: 64 | B64: Pioneer Charter School of Science | C64: 494
A65: 65 | B65: Pioneer Charter School of Science II | C65: 3506
A66: 66 | B66: Pioneer Valley Chinese Immersion Charter School | C66: 497
A67: 67 | B67: Pioneer Valley Performing Arts Charter Public School | C67: 479
A68: 68 | B68: Prospect Hill Academy Charter School | C68: 487
A69: 69 | B69: Rising Tide Charter Public School | C69: 483
A70: 70 | B70: River Valley Charter School | C70: 482
A71: 71 | B71: Roxbury Preparatory Charter School | C71: 484
A72: 72 | B72: Sabis International Charter School | C72: 441
A73: 73 | B73: Salem Academy Charter School | C73: 485
A74: 74 | B74: Seven Hills Charter Public School | C74: 486
A75: 75 | B75: Silver Hill Horace Mann Charter School | C75: 477
A76: 76 | B76: Sizer School, A North Central Charter Essential School | C76: 474
A77: 77 | B77: South Shore Charter Public School | C77: 488
A78: 78 | B78: Springfield Preparatory Charter School | C78: 3510
A79: 79 | B79: Sturgis Charter Public School | C79: 489
A80: 80 | B80: UP Academy Charter School of Boston | C80: 480
A81: 81 | B81: UP Academy Charter School of Dorchester | C81: 3505
A82: 82 | B82: Veritas Preparatory Charter School | C82: 498
A83: 83 | B83: Commonwealth Charter Statewide Totals | C83: C
A84: 84 | B84: Horace Mann Charter Statewide Totals | C84: HM
A85: 85 | B85: All Charter Schools Statewide Totals | C85: ALL

Sheet FACTS (hidden)
A1: LEA | B1: Charter School | C1: Type | D1: Acct. Cohort | E1: Acct. Liaison | F1: Location | G1: Charter Status as of 10/20/14 | H1: Charter Granted | I1: Year Opened (Fall) | J1: FY15 Year of Oper. | K1: 1st Charter Renewal | L1: 2nd Charter Renewal | M1: 3rd Charter Renewal | N1: 1st Charter Renewal | O1: 2nd Charter Renewal | P1: 3rd Charter Renewal | Q1: Charter Expires | R1: Year Closed | S1: Regional | T1: EMO | U1: Max Grade Span | V1: Max. Enroll # | W1: Location Type | X1: School Type | Y1: Notes | Z1: Vendor Code | AA1: Max Enroll Reference #1 | AB1: Max Enroll Reference #2 | AC1: Max Grade Span Reference #1 | AD1: Max Grade Span Reference #2 | AE1: Max Notes (*5th year #'s in bold) | AF1: Operating Status | AG1: TypeOperating | AH1: RegionalOperating | AI1: EMOOperating | AJ1: Max. Enroll #Operating | AK1: Location TypeOperating | AL1: School TypeOperating | AM1: Max if Operating
A2: 445 | B2: Abby Kelley Foster Charter Public School | C2: C | D2: 2 | E2: Claire | F2: Worcester | G2: No Status | H2: 1998 | I2: 1998 | J2: =2015-I2 -> 17 | K2: =I2+5 -> 2003 | L2: =K2+5 -> 2008 | M2: 2013 | N2: =IF(K2>2014, "NA", K2) -> 2003 | O2: =IF(L2>2014, "NA", L2) -> 2008 | P2: =IF(M2>2014, "NA", M2) -> 2013 | Q2: =MAX(I2,N2:P2)+5 -> 2018 | R2: NA | S2: Yes | T2: Former | U2: K-12 | V2: 1426 | W2: Urban | X2: K12 | Z2: VC6000186162 | AA2: BOE minutes 10/30/07 Renewal; BOE minutes 4/25/06 max enrollment increase amendment | AB2: charter app, page 13; BOE Minutes 2/25/03 pg.10 charter renewal | AC2: BOE minutes 10/30/07 Renewal | AD2: charter app, page 13; BOE Minutes 2/25/03 pg.10 charter renewal | AF2: =IF(J2="NA","Closed",IF(J2<=0,"Pending","Operating")) -> Operating | AG2: =C2&AF2 -> COperating | AH2: =S2&AF2 -> YesOperating | AI2: =T2&AF2 -> FormerOperating | AJ2: =V2&AF2 -> 1426Operating | AK2: =W2&AF2 -> UrbanOperating | AL2: =X2&AF2 -> K12Operating | AM2: =IF(AF2="Operating", V2, "Not Operating") -> 1426
A3: 412 | B3: Academy of the Pacific Rim Charter Public School | C3: C | D3: 1 | E3: Puja | F3: Boston | G3: No Status | H3: 1995 | I3: 1997 | J3: 18 | K3: 2002 | L3: 2007 | M3: 2012 | N3: 2002 | O3: 2007 | P3: 2012 | Q3: 2017 | R3: NA | S3: No | T3: No | U3: 05-12 | V3: 545 | W3: Boston | X3: MSHS | Y3: 500 to 545 (45 seats 2/2013 BESE) | Z3: VC6000181650 | AA3: BOE minutes 2/27/07 renewal; BOE minutes 11/29/05 p. XXX Amendment approval | AB3: charter application p. 8; BOE Minutes 2/26/02 p.29 makes no mention of enrollment max in charter renewal; BESE mtg. 11/17/09 - increase enrollment from 475 to 500 | AC3: BOE minutes 2/27/07 renewal; BOE minutes 11/29/05 p. XXX Amendment approval | AD3: charter application p. 8 | AF3: Operating | AG3: COperating | AH3: NoOperating | AI3: NoOperating | AJ3: 545Operating | AK3: BostonOperating | AL3: MSHSOperating | AM3: 545
A4: 430 | B4: Advanced Math and Science Academy Charter School | C4: C | D4: 4 | E4: Sara | F4: Marlborough | G4: No Status | H4: 2004 | I4: 2005 | J4: 10 | K4: 2010 | L4: 2015 | M4: 2020 | N4: 2010 | O4: NA | P4: NA | Q4: 2015 | R4: NA | S4: Yes | T4: No | U4: 06-12 | V4: 966 | W4: Suburb | X4: MSHS | Z4: VC6000306988 | AA4: BOE Minutes 2/24/04 pg. 11 charter approved | AB4: BESE approval 2/23/10 | AC4: BOE Minutes 2/24/04 pg. 11 charter approved | AE4: * | AF4: Operating | AG4: COperating | AH4: YesOperating | AI4: NoOperating | AJ4: 966Operating | AK4: SuburbOperating | AL4: MSHSOperating | AM4: 966
A5: 409 | B5: Alma del Mar Charter School | C5: C | D5: 5 | E5: Sara | F5: New Bedford | G5: No Status | H5: 2011 | I5: 2011 | J5: 4 | K5: 2016 | L5: 2021 | M5: 2026 | N5: NA | O5: NA | P5: NA | Q5: 2016 | R5: NA | S5: No | T5: No | U5: K-08 | V5: 360 | W5: Urban | X5: ESMS | Z5: VC0000546618 | AA5: BESE Minutes 2/28/11 | AC5: BESE Minutes 2/28/11 | AF5: Operating | AG5: COperating | AH5: NoOperating | AI5: NoOperating | AJ5: 360Operating | AK5: UrbanOperating | AL5: ESMSOperating | AM5: 360
A6: 415 | B6: Amesbury Academy Charter Public School | C6: HM | D6: 5 | E6: Sara | F6: Amesbury | G6: No Status | H6: 2001 | I6: 2001 | J6: 14 | K6: 2006 | L6: 2011 | M6: 2016 | N6: 2006 | O6: 2011 | P6: NA | Q6: 2016 | R6: NA | S6: NA | T6: No | U6: 9-12 | V6: 50 | W6: Rural | X6: HS | Z6: VC6000189819 | AA6: BOE minutes 02/28/06 p.6 | AB6: BOE minutes 02/27/01 pg.22 charter granted | AC6: BOE minutes 02/28/06 p.6 | AD6: BOE minutes 02/27/01 pg.22 charter granted | AF6: Operating | AG6: HMOperating | AH6: NAOperating | AI6: NoOperating | AJ6: 50Operating | AK6: RuralOperating | AL6: HSOperating | AM6: 50
A7: 3509 | B7: Argosy Collegiate Charter School | C7: C | D7: 3 | E7: Jane | F7: Fall River | G7: No Status | H7: 2014 | I7: 2014 | J7: 1 | K7: 2019 | L7: 2024 | M7: 2029 | N7: NA | O7: NA | P7: NA | Q7: 2019 | R7: NA | S7: No | T7: No | U7: 6-12 | V7: 644 | W7: Urban | X7: MSHS | Z7: VC0000723940 | AF7: Operating | AG7: COperating | AH7: NoOperating | AI7: NoOperating | AJ7: 644Operating | AK7: UrbanOperating | AL7: MSHSOperating | AM7: 644
A8: 491 | B8: Atlantis Charter School | C8: C | D8: 4 | E8: Claire | F8: Fall River | G8: No Status | H8: 1994 | I8: 1995 | J8: 20 | K8: 2000 | L8: 2005 | M8: 2010 | N8: 2000 | O8: 2005 | P8: 2010 | Q8: 2015 | R8: NA | S8: No | T8: No | U8: K-12 | V8: 1378 | W8: Urban | X8: K12 | Z8: VC6000181845 | AA8: BOE Minutes 2/14/05 p. 6-7 | AB8: BOE Minutes 2/23/2000 p.39 makes no mention of enrollment max in charter renewal; charter renewal application p.25 | AC8: charter application p. 40 | AF8: Operating | AG8: COperating | AH8: NoOperating | AI8: NoOperating | AJ8: 1378Operating | AK8: UrbanOperating | AL8: K12Operating | AM8: 1378
A9: 427 | B9: Barnstable Community Horace Mann Charter Public School | C9: HM | D9: 3 | E9: Ellie | F9: Barnstable | G9: Conditions | H9: 2004 | I9: 2004 | J9: 11 | K9: 2009 | L9: 2014 | M9: 2019 | N9: 2009 | O9: 2014 | P9: NA | Q9: 2019 | R9: NA | S9: NA | T9: No | U9: K-03 | V9: 475 | W9: Suburb | X9: ES | Y9: Grade span amended to K-3 in 4/09. | Z9: VC6000263084 | AA9: BESE Minutes 2/24/09 pg.10 charter renewed; BOE Minutes 3/29/05 pg. 6, amendment approved for 370 to 475 increase (described in 3/22/05 Memo) and reiterated in 4/1/05 MS Letter | AB9: BOE Minutes 2/24/04 pg. 12 charter granted | AC9: BESE Minutes 2/24/09 pg.10 charter renewed; BOE Minutes 2/24/04 pg. 11 charter approved | AE9: * | AF9: Operating | AG9: HMOperating | AH9: NAOperating | AI9: NoOperating | AJ9: 475Operating | AK9: SuburbOperating | AL9: ESOperating | AM9: 475
A10: 3502 | B10: Baystate Academy Charter Public School | C10: C | D10: 2 | E10: Claire | F10: Springfield | G10: No Status | H10: 2012 | I10: 2013 | J10: 2 | K10: 2018 | L10: 2023 | M10: 2028 | N10: NA | O10: NA | P10: NA | Q10: 2018 | R10: NA | S10: No | T10: No | U10: 6-12 | V10: 560 | W10: Urban | X10: MSHS | Z10: VC0000607947 | AA10: BESE minutes 2/12 | AF10: Operating | AG10: COperating | AH10: NoOperating | AI10: NoOperating | AJ10: 560Operating | AK10: UrbanOperating | AL10: MSHSOperating | AM10: 560
A11: 420 | B11: Benjamin Banneker Charter Public School | C11: C | D11: 5 | E11: Puja | F11: Cambridge | G11: No Status | H11: 1995 | I11: 1996 | J11: 19 | K11: 2001 | L11: 2006 | M11: 2011 | N11: 2001 | O11: 2006 | P11: 2011 | Q11: 2016 | R11: NA | S11: No | T11: No | U11: K-06 | V11: 350 | W11: Urban | X11: ESMS | Y11: Per BOE 1/24/06; restricted to 325 for FY07 until it meets renewal conditions. | Z11: VC6000182073 | AA11: BESE Minutes 2/24/09 pg.13 decrease enrollment to 325;BOE minutes 01/24/06, p.4 | AB11: BOE Minutes 2/27/01 p.25 makes no mention of enrollment max in charter renewal; 3/26/1999 amend letter - E. Kirby | AC11: BOE minutes 01/24/06, p.4 | AD11: charter application p. 16 says max enrollment of 1340 | AF11: Operating | AG11: COperating | AH11: NoOperating | AI11: NoOperating | AJ11: 350Operating | AK11: UrbanOperating | AL11: ESMSOperating | AM11: 350
A12: 447 | B12: Benjamin Franklin Classical Charter Public School | C12: C | D12: 4 | E12: Sara | F12: Franklin | G12: No Status | H12: 1994 | I12: 1995 | J12: 20 | K12: 2000 | L12: 2005 | M12: 2010 | N12: 2000 | O12: 2005 | P12: 2010 | Q12: 2015 | R12: NA | S12: Yes | T12: No | U12: K-08 | V12: 900 | W12: Suburb | X12: ESMS | Z12: VC6000181823 | AA12: charter renewal app pg. 24 states 9 grades of 2 classes of 20-25 students each (9*2*25=450) | AB12: BOE Minutes 4/27991 p.19 makes no mention of enrollment max in charter renewal | AC12: charter renewal app pg. 24 | AF12: Operating | AG12: COperating | AH12: YesOperating | AI12: NoOperating | AJ12: 900Operating | AK12: SuburbOperating | AL12: ESMSOperating | AM12: 900
A13: 414 | B13: Berkshire Arts and Technology Charter Public School | C13: C | D13: 3 | E13: Sara | F13: Adams | G13: No Status | H13: 2003 | I13: 2004 | J13: 11 | K13: 2009 | L13: 2014 | M13: 2019 | N13: =IF(K13>2014, "NA", K13) -> 2009 | O13: 2013 | P13: =IF(M13>2014, "NA", M13) -> NA | Q13: 2018 | R13: NA | S13: Yes | T13: No | U13: 06-12 | V13: 363 | W13: Rural | X13: MSHS | Z13: VC6000246485 | AA13: BESE Minutes 1/27/09 pg.5-6 charter renewed; BOE Minutes 2/25/03 pg.8 charter granted | AC13: BESE Minutes 1/27/09 pg.5-6 charter renewed;BOE Minutes 2/25/03 pg.8 charter granted | AE13: * | AF13: Operating | AG13: COperating | AH13: YesOperating | AI13: NoOperating | AJ13: 363Operating | AK13: RuralOperating | AL13: MSHSOperating | AM13: 363
A14: 449 | B14: Boston Collegiate Charter School | C14: C | D14: 2 | E14: Ellie | F14: Boston | G14: No Status | H14: 1998 | I14: 1998 | J14: 17 | K14: 2003 | L14: 2008 | M14: 2013 | N14: 2003 | O14: =IF(L14>2014, "NA", L14) -> 2008 | P14: 2013 | Q14: 2018 | R14: NA | S14: No | T14: No | U14: 05-12 | V14: 665 | W14: Boston | X14: MSHS | Y14: Formerly South Boston Harbor Academy; will not add second 05-08 campus until FY08 | Z14: VC6000185891 | AA14: BOE minutes 01/22/08 renewal vote; BOE minutes 11/29/05 p. XXX Amendment approval | AB14: BOE Minutes 01/28/03 p. 5 charter renewal | AC14: BOE minutes 01/22/08 renewal vote; BOE Minutes 01/28/03 p. 5 charter renewal | AF14: Operating | AG14: COperating | AH14: NoOperating | AI14: NoOperating | AJ14: 665Operating | AK14: BostonOperating | AL14: MSHSOperating | AM14: 665
A15: 424 | B15: Boston Day and Evening Academy Charter School | C15: HM | D15: 2 | E15: Alison | F15: Boston | G15: No Status | H15: 1998 | I15: 1998 | J15: 17 | K15: 2003 | L15: 2008 | M15: 2013 | N15: 2003 | O15: 2008 | P15: 2013 | Q15: 2018 | R15: NA | S15: NA | T15: No | U15: 09-12 | V15: 405 | W15: Boston | X15: HS | Y15: Ungrade ages 16-23 | Z15: VC6000197778 | AA15: BOE minutes 01/22/08 renewal vote; BOE Minutes 06/22/04 p. 5 charter amendment to add day program and increase enrollment from 205-405;and 6/15/04 Commissioner's rec. in file | AB15: BOE Minutes 01/28/03 p. 6 charter renewal | AC15: BOE minutes 01/22/08 renewal vote; BOE Minutes 06/22/04 p. 5 charter amendment to add day program and increase enrollment from 205-405;and 6/15/04 Commissioner's rec. in file | AD15: BOE Minutes 01/28/03 p. 6 charter renewal | AF15: Operating | AG15: HMOperating | AH15: NAOperating | AI15: NoOperating | AJ15: 405Operating | AK15: BostonOperating | AL15: HSOperating | AM15: 405
A16: 411 | B16: Boston Green Academy Horace Mann Charter School | C16: HM | D16: 5 | E16: Claire | F16: Boston | G16: Probation | H16: 2011 | I16: 2011 | J16: 4 | K16: 2016 | L16: 2021 | M16: 2026 | N16: NA | O16: NA | P16: NA | Q16: 2016 | R16: NA | S16: NA | T16: No | U16: 6-12 | V16: 595 | W16: Boston | X16: MSHS | Z16: VC0000551592 | AA16: BESE Minutes 2/28/11 | AC16: BESE Minutes 2/28/11 | AF16: Operating | AG16: HMOperating | AH16: NAOperating | AI16: NoOperating | AJ16: 595Operating | AK16: BostonOperating | AL16: MSHSOperating | AM16: 595
A17: 416 | B17: Boston Preparatory Charter Public School | C17: C | D17: 3 | E17: Jane | F17: Boston | G17: No Status | H17: 2003 | I17: 2004 | J17: 11 | K17: 2009 | L17: 2014 | M17: 2019 | N17: 2009 | O17: 2014 | P17: NA | Q17: 2019 | R17: NA | S17: No | T17: No | U17: 06-12 | V17: 400 | W17: Boston | X17: MSHS | Z17: VC6000237205 | AA17: BESE Minutes 2/24/09 pg.10 charter renewed; BOE Minutes 10/25/05 p.8-9 Amendment approval (details in Board Memo dated 10/25/05) | AB17: BOE Minutes 2/25/03 pg.8 charter granted; BESE mtg 11/17/09 increase from 350 to 400 | AC17: BESE Minutes 2/24/09 pg.10 charter renewed; BOE Minutes for 02/26/08 | AD17: BOE Minutes 2/25/03 pg.8 charter granted | AE17: * | AF17: Operating | AG17: COperating | AH17: NoOperating | AI17: =T17&AF17 -> NoOperating | AJ17: 400Operating | AK17: BostonOperating | AL17: MSHSOperating | AM17: 400
A18: 481 | B18: Boston Renaissance Charter Public School | C18: C | D18: 4 | E18: Alison | F18: Boston | G18: Probation | H18: 1994 | I18: 1995 | J18: 20 | K18: 2000 | L18: 2005 | M18: 2010 | N18: 2000 | O18: 2005 | P18: 2010 | Q18: 2015 | R18: NA | S18: No | T18: Former | U18: PK-06 | V18: 944 | W18: Boston | X18: ESMS | Z18: VC6000182082 | AA18: BOE Minutes 02/27/07 Additional Conditions | AB18: BOE Minutes 09/26/06 Amendment; BOE Minutes 2/15/05 p. 8; BOE Minutes 12/21/1999 p. 23 charter renewal makes no mention of enro. max in ; charter renewal application p. 24 | AC18: BOE Minutes 2/15/05 p. 8; charter application p. 10 plans for K-12 | AD18: charter renewal application p. 24 indications K-8 | AF18: Operating | AG18: COperating | AH18: NoOperating | AI18: =T18&AF18 -> FormerOperating | AJ18: 944Operating | AK18: BostonOperating | AL18: ESMSOperating | AM18: 944
A19: 417 | B19: Bridge Boston Charter School | C19: C | D19: 5 | E19: Ellie | F19: Boston | G19: No Status | H19: 2011 | I19: 2011 | J19: 4 | K19: 2016 | L19: 2021 | M19: 2026 | N19: NA | O19: NA | P19: NA | Q19: 2016 | R19: NA | S19: No | T19: No | U19: PK-8 | V19: 335 | W19: Boston | X19: ESMS | Z19: VC0000546498 | AA19: SY 2011-12 max enroll is 72 per MDC | AC19: BESE Minutes 2/28/11 | AF19: Operating | AG19: COperating | AH19: NoOperating | AI19: NoOperating | AJ19: 335Operating | AK19: BostonOperating | AL19: ESMSOperating | AM19: 335
A20: 457 | B20: Brooke Charter School East Boston | C20: C | D20: 1 | E20: Jane | F20: Boston | G20: No Status | H20: 2011 | I20: 2012 | J20: 3 | K20: 2017 | L20: 2022 | M20: 2027 | N20: NA | O20: NA | P20: NA | Q20: 2017 | R20: NA | S20: Yes | T20: No | U20: K-08 | V20: =475+35 -> 510 | W20: Boston | X20: ESMS | Y20: 475 to 510 (35 seats 2/2013 BESE). No more than 340 students may enroll from Boston. | Z20: VC0000571755 | AA20: SY 2012-13 max enroll TBD by MDC | AC20: BESE Minutes 2/28/11 | AF20: Operating | AG20: COperating | AH20: YesOperating | AI20: =T20&AF20 -> NoOperating | AJ20: 510Operating | AK20: BostonOperating | AL20: ESMSOperating | AM20: 510
A21: 443 | B21: Brooke Charter School Mattapan | C21: C | D21: 5 | E21: Jane | F21: Boston | G21: No Status | H21: 2011 | I21: 2011 | J21: 4 | K21: 2016 | L21: 2021 | M21: 2026 | N21: NA | O21: NA | P21: NA | Q21: 2016 | R21: NA | S21: No | T21: No | U21: K-08 | V21: =475+35 -> 510 | W21: Boston | X21: ESMS | Y21: 475 to 510 (35 seats 2/2013 BESE) | Z21: VC0000549165 | AA21: SY 2011-12 max enroll is 168 per MDC | AC21: BESE Minutes 2/28/11 | AF21: Operating | AG21: COperating | AH21: NoOperating | AI21: NoOperating | AJ21: 510Operating | AK21: BostonOperating | AL21: ESMSOperating | AM21: 510
A22: 428 | B22: Brooke Charter School Roslindale | C22: C | D22: 1 | E22: Jane | F22: Boston | G22: No Status | H22: 2001 | I22: 2002 | J22: 13 | K22: 2007 | L22: =K22+5 -> 2012 | M22: 2017 | N22: 2007 | O22: 2012 | P22: NA | Q22: 2017 | R22: NA | S22: No | T22: No | U22: K-08 | V22: =475+35 -> 510 | W22: Boston | X22: ESMS | Y22: 475 to 510 (35 seats 2/2013 BESE) | Z22: VC6000189753 | AA22: BOE minutes 2/27/07 renewal; BOE minutes 10/24/06 pp. 10-11 | AB22: BOE minutes 02/27/01 pg.22 charter granted; BESE mtg. 11/17/09 - increase enrollment from 450-475 | AC22: BOE minutes 2/27/07 renewal; BOE Minutes 10/25/05 p.8-9 Amendment approval (details in Board Memo dated 10/25/05) | AD22: BOE minutes 02/27/01 pg.22 charter granted | AF22: Operating | AG22: COperating | AH22: NoOperating | AI22: NoOperating | AJ22: 510Operating | AK22: BostonOperating | AL22: ESMSOperating | AM22: 510
A23: 432 | B23: Cape Cod Lighthouse Charter School | C23: C | D23: 4 | E23: Jane | F23: Harwich | G23: No Status | H23: 1994 | I23: 1995 | J23: 20 | K23: 2000 | L23: 2005 | M23: 2010 | N23: 2000 | O23: 2005 | P23: 2010 | Q23: 2015 | R23: NA | S23: Yes | T23: No | U23: 06-12 | V23: 400 | W23: Suburb | X23: MSHS | Z23: VC6000190146 | AA23: BOE Minutes 03/29/05 p.4 | AB23: BOE 9/28/99 Charter Renewal No online Minutes; amend approval 11/5/02 KM letter | AC23: BOE Minutes 03/29/05 p.4 | AD23: amend approval 11/5/02 KM letter | AF23: Operating | AG23: COperating | AH23: YesOperating | AI23: NoOperating | AJ23: 400Operating | AK23: SuburbOperating | AL23: MSHSOperating | AM23: 400
A24: 418 | B24: Christa McAuliffe Charter School | C24: C | D24: 1 | E24: Sara | F24: Framingham | G24: No Status | H24: 2001 | I24: 2002 | J24: 13 | K24: 2007 | L24: 2012 | M24: 2017 | N24: 2007 | O24: 2012 | P24: NA | Q24: 2017 | R24: NA | S24: Yes | T24: No | U24: 06-08 | V24: 396 | W24: Suburb | X24: MS | Y24: Formerly Framingham Community CS | Z24: VC6000189786 | AA24: BOE minutes 2/27/07 renewal; BOE minutes 02/27/01 pg.22 charter granted | AC24: BOE minutes 2/27/07 renewal; BOE minutes 02/27/01 pg.22 charter granted | AF24: Operating | AG24: COperating | AH24: YesOperating | AI24: NoOperating | AJ24: 396Operating | AK24: SuburbOperating | AL24: MSOperating | AM24: 396
A25: 437 | B25: City On A Hill Charter Public School | C25: C | D25: 4 | E25: Puja | F25: Boston | G25: No Status | H25: 1994 | I25: 1995 | J25: 20 | K25: 2000 | L25: 2005 | M25: 2010 | N25: 2000 | O25: 2005 | P25: 2010 | Q25: 2015 | R25: NA | S25: No | T25: Former | U25: 09-12 | V25: 280 | W25: Boston | X25: HS | Z25: VC6000179704 | AA25: BOE minutes 10/24/06 pp. 10-11 | AB25: BOE Minutes 2/15/05 p. 9; BOE Minutes 01/25/00 p.19 charter renewal makes no mention of enrollment max | AC25: BOE Minutes 2/15/05 p. 9 | AD25: charter app | AF25: Operating | AG25: COperating | AH25: NoOperating | AI25: FormerOperating | AJ25: 280Operating | AK25: BostonOperating | AL25: HSOperating | AM25: 280
A26: 3504 | B26: City On A Hill Charter Public School II | C26: C | D26: 2 | E26: Puja | F26: Boston | G26: No Status | H26: 2013 | I26: 2013 | J26: 2 | K26: 2018 | L26: 2023 | M26: 2028 | N26: NA | O26: NA | P26: NA | Q26: 2018 | R26: NA | S26: No | T26: No | U26: 09-12 | V26: 280 | W26: Boston | X26: HS | Z26: VC0000663070 | AA26: BESE minutes 2/13 | AF26: Operating | AG26: COperating | AH26: NoOperating | AI26: NoOperating | AJ26: 280Operating | AK26: BostonOperating | AL26: HSOperating | AM26: 280
A27: 3507 | B27: City On A Hill Charter Public School New Bedford | C27: C | D27: 3 | E27: Puja | F27: New Bedford | G27: No Status | H27: 2013 | I27: 2014 | J27: 1 | K27: 2019 | L27: 2024 | M27: 2029 | N27: NA | O27: NA | P27: NA | Q27: 2019 | R27: NA | S27: No | T27: No | U27: 09-12 | V27: 280 | W27: Urban | X27: HS | Z27: VC0000663075 | AA27: BESE minutes 2/13 | AF27: Operating | AG27: COperating | AH27: NoOperating | AI27: NoOperating | AJ27: 280Operating | AK27: UrbanOperating | AL27: HSOperating | AM27: 280
A28: 438 | B28: Codman Academy Charter Public School | C28: C | D28: 5 | E28: Puja | F28: Boston | G28: No Status | H28: 2001 | I28: 2001 | J28: 14 | K28: 2006 | L28: 2011 | M28: 2016 | N28: 2006 | O28: 2011 | P28: NA | Q28: 2016 | R28: NA | S28: No | T28: No | U28: PK-12 | V28: 345 | W28: Boston | X28: K12 | Y28: 200 to 345 and also added K1-08 (145 seats 2/13 BESE). | Z28: VC6000189729 | AA28: BOE minutes 12/20/05 Renewal | AB28: BOE minutes 02/27/01 pg.22 charter granted; BESE mtg. 11/17/09 increase enrollment from 120 to 145 | AC28: BOE minutes 02/27/01 pg.22 charter granted | AF28: Operating | AG28: COperating | AH28: NoOperating | AI28: NoOperating | AJ28: 345Operating | AK28: BostonOperating | AL28: K12Operating | AM28: 345
A29: 436 | B29: Community Charter School of Cambridge | C29: C | D29: 4 | E29: Claire | F29: Cambridge | G29: No Status | H29: 2004 | I29: 2005 | J29: 10 | K29: 2010 | L29: 2015 | M29: 2020 | N29: 2010 | O29: NA | P29: NA | Q29: 2015 | R29: NA | S29: No | T29: No | U29: 06-12 | V29: 360 | W29: Urban | X29: MSHS | Y29: limited to 300 students from Cambridge | Z29: VC6000307227 | AA29: BOE Minutes 2/24/04 pg. 10 charter approved | AC29: BOE Minutes 2/24/04 pg. 10 charter approved | AE29: * | AF29: Operating | AG29: COperating | AH29: NoOperating | AI29: NoOperating | AJ29: 360Operating | AK29: UrbanOperating | AL29: MSHSOperating | AM29: 360
